{"text_format":"1","workbook":"xlsx","n_sheets":9,"sheets":["Vstupni oblast dat","Analýza reziduí","Grubbsův test","1.regrese","2.Regrese","3.Regrese","V.regrese","korelace","Vstupni oblast dat2"],"not_rendered":{"charts":0,"images":31,"macros":1,"external_links":0,"defined_names":12,"comments":0,"pivot_tables":0},"unopened":[],"bounds":{"document_bytes":16777216,"sheet_cells":100000,"rows_first":2000,"rows_last":500,"rows_between":2000,"halvings":0,"cell_chars":16384,"cell_head_chars":4096},"cells_cut":0,"cells_raw":0,"read":"whole","date_system":"1900"}

{"sheet":"Vstupni oblast dat","index":0,"n_rows":38,"n_cols":19,"rows_kept":38,"cut":false,"hidden":false,"merged":[[4,11,5,11],[4,12,5,12],[4,13,5,13],[4,14,5,14],[4,15,5,15],[4,16,5,16],[3,4,7,5],[4,6,5,6],[4,7,5,7],[4,8,5,8],[4,9,5,9],[4,10,5,10],[6,6,7,6],[6,7,7,7],[6,8,7,8],[6,9,7,9],[6,16,7,16],[8,4,8,5],[9,4,9,5],[9,34,9,41],[9,70,9,71],[9,74,9,75],[6,10,7,10],[6,11,7,11],[6,12,7,12],[6,13,7,13],[6,14,7,14],[6,15,7,15],[12,4,12,5],[12,34,12,39],[12,40,12,41],[13,4,13,5],[13,34,13,41],[14,4,14,5],[9,78,9,80],[10,4,10,5],[10,34,10,41],[11,4,11,5],[11,34,11,39],[11,40,11,41],[19,4,19,5],[20,4,20,5],[20,34,20,36],[21,4,21,5],[21,34,21,36],[22,4,22,5],[15,4,15,5],[15,34,15,35],[16,4,16,5],[16,34,16,35],[17,4,17,5],[18,4,18,5],[27,4,27,5],[27,34,27,39],[27,40,27,41],[28,4,28,5],[28,34,28,41],[29,4,29,5],[29,34,29,41],[23,4,23,5],[24,4,24,5],[24,34,24,41],[25,4,25,5],[25,34,25,41],[26,4,26,5],[26,34,26,36],[26,40,26,41],[34,4,34,5],[35,4,35,5],[35,34,35,41],[36,4,36,5],[37,4,37,5],[38,34,38,36],[30,4,30,5],[31,4,31,5],[31,34,31,36],[32,4,32,5],[32,34,32,41],[33,4,33,5],[33,34,33,36],[33,40,33,41],[46,34,46,35],[47,34,47,35],[48,34,48,35],[49,34,49,35],[50,34,50,35],[51,34,51,35],[40,34,44,35],[41,36,42,36],[41,37,42,37],[43,36,44,36],[43,37,44,37],[45,34,45,35],[58,34,58,35],[59,34,59,35],[60,34,60,35],[61,34,61,35],[62,34,62,35],[63,34,63,35],[52,34,52,35],[53,34,53,35],[54,34,54,35],[55,34,55,35],[56,34,56,35],[57,34,57,35],[70,34,70,35],[71,34,71,35],[72,34,72,35],[73,34,73,35],[74,34,74,35],[75,34,75,35],[64,34,64,35],[65,34,65,35],[66,34,66,35],[67,34,67,35],[68,34,68,35],[69,34,69,35]]}
[null,null,null,"počet","%","kus","počet",null,null,null,null,null,null,null,null,null,null,null,{"$f":"A4*A5","v":{"$error":"#VALUE!"}}]
[]
[]
["jednotky",null,null,null,"n",null,"yi","x1i","x2i","x3i","x4i","x5i","x6i","x7i","x8i","x9i","x10i"]
["jednotky",null,null,null,null,null,"Závisle proměnná","1.regresor","2.regresor","3.regresor","4.regresor","5.regresor","6.regresor","7.regresor","8.regresor","9.regresor","10.regresor"]
["jednotky"]
["jednotky",null,null,null,null,null,"[ jednotky ]","[ jednotky ]","[ jednotky ]","[ jednotky ]","[ jednotky ]","[ jednotky ]","[ jednotky ]","[ jednotky ]","[ jednotky ]","[ jednotky ]","[ jednotky ]"]
["jednotky"]
["jednotky",null,null,null,{"$f":"1","v":1}]
["jednotky",null,null,null,{"$f":"E9+1","v":2}]
["jednotky",null,null,null,{"$f":"E10+1","v":3}]
["jednotky",null,null,null,4]
["jednotky",null,null,null,5]
["jednotky",null,null,null,6]
[null,null,null,null,7]
[{"$f":"G19","v":0},null,null,null,8]
[0,null,null,null,9]
[0,null,null,null,10]
[0,null,null,null,11]
[0,null,null,null,12]
[null,null,null,null,13]
[null,null,null,null,14]
[null,null,null,null,15]
[null,null,null,null,16]
[null,null,null,null,17]
[null,null,null,null,18]
[null,null,null,null,19]
[null,null,null,null,20]
[null,null,null,null,21]
[null,null,null,null,22]
[null,null,null,null,23]
[null,null,null,null,24]
[null,null,null,null,25]
[null,null,null,null,26]
[null,null,null,null,27]
[null,null,null,null,28]
[null,null,null,null,{"$f":"E36+1","v":29}]
[null,null,null,null,{"$f":"E37+1","v":30}]

{"sheet":"Analýza reziduí","index":1,"n_rows":41,"n_cols":34,"rows_kept":41,"cut":false,"hidden":false,"merged":[[8,4,8,5],[9,4,9,5],[9,66,9,67],[9,70,9,71],[3,4,7,5],[3,8,3,9],[4,7,5,7],[4,8,7,8],[4,9,7,9],[6,7,7,7],[13,4,13,5],[14,4,14,5],[15,4,15,5],[9,74,9,76],[10,4,10,5],[11,4,11,5],[12,4,12,5],[10,29,10,30],[10,33,10,34],[11,29,11,30],[11,33,11,34],[13,30,13,32],[13,33,13,34],[14,33,14,34],[20,12,20,17],[21,4,21,5],[22,4,22,5],[16,4,16,5],[17,4,17,5],[18,4,18,5],[19,4,19,5],[31,4,31,5],[23,4,23,5],[24,4,24,5],[25,4,25,5],[20,4,20,5],[38,4,38,5],[39,4,39,5],[40,4,40,5],[4,6,5,6],[6,6,7,6],[32,4,32,5],[33,4,33,5],[34,4,34,5],[35,4,35,5],[36,4,36,5],[37,4,37,5],[26,4,26,5],[27,4,27,5],[28,4,28,5],[29,4,29,5],[30,4,30,5]]}
[null,null,null,"počet","%","kus",null,null,null,null,null,null,null,null,null,null,{"$f":"A4*A5","v":{"$error":"#VALUE!"}}]
[]
[null,null,null,null,null,null,null,null,null,null,null,null,null,null,null,null,null,null,null,null,null,"y ̅"]
[" jednotky ",null,null,null,"n",null,"yi","xi"]
["jednotky ",null,null,null,null,null,"Závisle proměnná","regresor"]
["*"]
["^2",null,null,null,null,null,"[ jednotky ]","[ jednotky ]",null,null,null,null,null,null,null,null,null,null,null,null,"yi*x1i","yi2","xi2"]
[null,null,null,null,null,null,null,null,null,null,null,null,null,null,null,null,null,null,null,null,{"$f":"A4&A6&A5","v":" jednotky *jednotky "},{"$f":"A4&A7","v":" jednotky ^2"},{"$f":"A5&A7","v":"jednotky ^2"},{"$f":"A4","v":" jednotky "},{"$f":"X8","v":" jednotky "}]
[null,null,null,null,{"$f":"1","v":1},null,{"$f":"IF('Vstupni oblast dat2'!G9<>\"0\",'Vstupni oblast dat2'!G9,\"\")","v":0},{"$f":"'Vstupni oblast dat'!H9","v":0},null,null,null,null,null,null,null,null,null,null,null,null,{"$f":"G9*H9","v":0},{"$f":"G9*G9","v":0},{"$f":"H9*H9","v":0},{"$f":"IF(G9<>0,($AB$11+$AB$12*H9),0)","v":0},{"$f":"(G9-X9)","v":0}]
[null,null,null,null,{"$f":"E9+1","v":2},null,{"$f":"IF('Vstupni oblast dat2'!G10<>\"0\",'Vstupni oblast dat2'!G10,\"\")","v":0},{"$f":"'Vstupni oblast dat'!H10","v":0},null,null,null,null,null,null,null,null,null,null,null,null,{"$f":"G10*H10","v":0},{"$f":"G10*G10","v":0},{"$f":"H10*H10","v":0},{"$f":"IF(G10<>0,($AB$11+$AB$12*H10),0)","v":0},{"$f":"(G10-X10)","v":0}]
["+",null,null,null,{"$f":"E10+1","v":3},null,{"$f":"IF('Vstupni oblast dat2'!G11<>\"0\",'Vstupni oblast dat2'!G11,\"\")","v":0},{"$f":"'Vstupni oblast dat'!H11","v":0},null,null,null,null,null,null,null,null,null,null,null,null,0,0,0,0,0,null,"b0",{"$f":"G39-(H39*AB12)","v":{"$error":"#VALUE!"}},null,"Testové kritérium",null,null,null,"Kritické hodnoty "]
[null,null,null,null,4,null,{"$f":"IF('Vstupni oblast dat2'!G12<>\"0\",'Vstupni oblast dat2'!G12,\"\")","v":0},{"$f":"'Vstupni oblast dat'!H12","v":0},null,null,null,null,null,null,null,null,null,null,null,null,0,0,0,0,0,null,"b1",{"$f":"(((G41*U39)-(G40*H40))/((G41*W39)-(H40*H40)))","v":{"$error":"#VALUE!"}}]
[null,null,null,null,5,null,{"$f":"IF('Vstupni oblast dat2'!G13<>\"0\",'Vstupni oblast dat2'!G13,\"\")","v":0},{"$f":"'Vstupni oblast dat'!H13","v":0},null,null,null,null,null,null,null,null,null,null,null,null,0,0,0,0,0,null,"rovnice yi",{"$f":"AB11&A11&AB12&H4","v":{"$error":"#VALUE!"}}]
[null,null,null,null,6,null,{"$f":"IF('Vstupni oblast dat2'!G14<>\"0\",'Vstupni oblast dat2'!G14,\"\")","v":0},{"$f":"'Vstupni oblast dat'!H14","v":0},null,null,null,null,null,null,null,null,null,null,null,null,0,0,0,0,0,null,"R ",{"$f":"(((G41*U39)-(G40*H40)))/SQRT(((G41*W39-H40*H40)*(G41*V39-G40*G40)))","v":{"$error":"#VALUE!"}},null,"U =",{"$f":"(COUNTIFS(Y9:Y38,\">0\")+0.5-($G$41-1)/2)/SQRT(($G$41-1)/2)","v":{"$error":"#NUM!"}},null,null,1.96]
[null,null,null,null,7,null,{"$f":"IF('Vstupni oblast dat2'!G15<>\"0\",'Vstupni oblast dat2'!G15,\"\")","v":0},{"$f":"'Vstupni oblast dat'!H15","v":0},null,null,null,null,null,null,null,null,null,null,null,null,0,0,0,0,0,null,"R^2",{"$f":"AB14*AB14","v":{"$error":"#VALUE!"}}]
[null,null,null,null,8,null,{"$f":"IF('Vstupni oblast dat2'!G16<>\"0\",'Vstupni oblast dat2'!G16,\"\")","v":0},{"$f":"'Vstupni oblast dat'!H16","v":0},null,null,null,null,null,null,null,null,null,null,null,null,0,0,0,0,0]
[null,null,null,null,9,null,{"$f":"IF('Vstupni oblast dat2'!G17<>\"0\",'Vstupni oblast dat2'!G17,\"\")","v":0},{"$f":"'Vstupni oblast dat'!H17","v":0},null,null,null,null,null,null,null,null,null,null,null,null,0,0,0,0,0]
[null,null,null,null,10,null,{"$f":"IF('Vstupni oblast dat2'!G18<>\"0\",'Vstupni oblast dat2'!G18,\"\")","v":0},{"$f":"'Vstupni oblast dat'!H18","v":0},null,null,null,null,null,null,null,null,null,null,null,null,0,0,0,0,0]
[null,null,null,null,11,null,{"$f":"IF('Vstupni oblast dat2'!G19<>\"0\",'Vstupni oblast dat2'!G19,\"\")","v":0},{"$f":"'Vstupni oblast dat'!H19","v":0},null,null,null,null,null,null,null,null,null,null,null,null,0,0,0,0,0]
[null,null,null,null,12,null,{"$f":"IF('Vstupni oblast dat2'!G20<>\"0\",'Vstupni oblast dat2'!G20,\"\")","v":0},{"$f":"'Vstupni oblast dat'!H20","v":0},null,null,null,null,null,null,null,null,null,null,null,null,0,0,0,0,0]
[null,null,null,null,13,null,{"$f":"IF('Vstupni oblast dat2'!G21<>\"0\",'Vstupni oblast dat2'!G21,\"\")","v":0},{"$f":"'Vstupni oblast dat'!H21","v":0},null,null,null,null,null,null,null,null,null,null,null,null,0,0,0,0,0]
[null,null,null,null,14,null,{"$f":"IF('Vstupni oblast dat2'!G22<>\"0\",'Vstupni oblast dat2'!G22,\"\")","v":0},{"$f":"'Vstupni oblast dat'!H22","v":0},null,null,null,null,null,null,null,null,null,null,null,null,0,0,0,0,0]
[null,null,null,null,15,null,{"$f":"IF('Vstupni oblast dat2'!G23<>\"0\",'Vstupni oblast dat2'!G23,\"\")","v":0},{"$f":"'Vstupni oblast dat'!H23","v":0},null,null,null,null,null,null,null,null,null,null,null,null,0,0,0,0,0]
[null,null,null,null,16,null,{"$f":"IF('Vstupni oblast dat2'!G24<>\"0\",'Vstupni oblast dat2'!G24,\"\")","v":0},{"$f":"'Vstupni oblast dat'!H24","v":0},null,null,null,null,null,null,null,null,null,null,null,null,0,0,0,0,0]
[null,null,null,null,17,null,{"$f":"IF('Vstupni oblast dat2'!G25<>\"0\",'Vstupni oblast dat2'!G25,\"\")","v":0},{"$f":"'Vstupni oblast dat'!H25","v":0},null,null,null,null,null,null,null,null,null,null,null,null,0,0,0,0,0]
[null,null,null,null,18,null,{"$f":"IF('Vstupni oblast dat2'!G26<>\"0\",'Vstupni oblast dat2'!G26,\"\")","v":0},{"$f":"'Vstupni oblast dat'!H26","v":0},null,null,null,null,null,null,null,null,null,null,null,null,0,0,0,0,0]
[null,null,null,null,19,null,{"$f":"IF('Vstupni oblast dat2'!G27<>\"0\",'Vstupni oblast dat2'!G27,\"\")","v":0},{"$f":"'Vstupni oblast dat'!H27","v":0},null,null,null,null,null,null,null,null,null,null,null,null,0,0,0,0,0]
[null,null,null,null,20,null,{"$f":"IF('Vstupni oblast dat2'!G28<>\"0\",'Vstupni oblast dat2'!G28,\"\")","v":0},{"$f":"'Vstupni oblast dat'!H28","v":0},null,null,null,null,null,null,null,null,null,null,null,null,0,0,0,0,0]
[null,null,null,null,21,null,{"$f":"IF('Vstupni oblast dat2'!G29<>\"0\",'Vstupni oblast dat2'!G29,\"\")","v":0},{"$f":"'Vstupni oblast dat'!H29","v":0},null,null,null,null,null,null,null,null,null,null,null,null,0,0,0,0,0]
[null,null,null,null,22,null,{"$f":"IF('Vstupni oblast dat2'!G30<>\"0\",'Vstupni oblast dat2'!G30,\"\")","v":0},{"$f":"'Vstupni oblast dat'!H30","v":0},null,null,null,null,null,null,null,null,null,null,null,null,0,0,0,0,0]
[null,null,null,null,23,null,{"$f":"IF('Vstupni oblast dat2'!G31<>\"0\",'Vstupni oblast dat2'!G31,\"\")","v":0},{"$f":"'Vstupni oblast dat'!H31","v":0},null,null,null,null,null,null,null,null,null,null,null,null,0,0,0,0,0]
[null,null,null,null,24,null,{"$f":"IF('Vstupni oblast dat2'!G32<>\"0\",'Vstupni oblast dat2'!G32,\"\")","v":0},{"$f":"'Vstupni oblast dat'!H32","v":0},null,null,null,null,null,null,null,null,null,null,null,null,0,0,0,0,0]
[null,null,null,null,25,null,{"$f":"IF('Vstupni oblast dat2'!G33<>\"0\",'Vstupni oblast dat2'!G33,\"\")","v":0},{"$f":"'Vstupni oblast dat'!H33","v":0},null,null,null,null,null,null,null,null,null,null,null,null,0,0,0,0,0]
[null,null,null,null,26,null,{"$f":"IF('Vstupni oblast dat2'!G34<>\"0\",'Vstupni oblast dat2'!G34,\"\")","v":0},{"$f":"'Vstupni oblast dat'!H34","v":0},null,null,null,null,null,null,null,null,null,null,null,null,0,0,0,0,0]
[null,null,null,null,27,null,{"$f":"IF('Vstupni oblast dat2'!G35<>\"0\",'Vstupni oblast dat2'!G35,\"\")","v":0},{"$f":"'Vstupni oblast dat'!H35","v":0},null,null,null,null,null,null,null,null,null,null,null,null,0,0,0,0,0]
[null,null,null,null,28,null,{"$f":"IF('Vstupni oblast dat2'!G36<>\"0\",'Vstupni oblast dat2'!G36,\"\")","v":0},{"$f":"'Vstupni oblast dat'!H36","v":0},null,null,null,null,null,null,null,null,null,null,null,null,0,0,0,0,0]
[null,null,null,null,29,null,{"$f":"IF('Vstupni oblast dat2'!G37<>\"0\",'Vstupni oblast dat2'!G37,\"\")","v":0},{"$f":"'Vstupni oblast dat'!H37","v":0},null,null,null,null,null,null,null,null,null,null,null,null,0,0,0,0,0]
[null,null,null,null,30,null,{"$f":"IF('Vstupni oblast dat2'!G38<>\"0\",'Vstupni oblast dat2'!G38,\"\")","v":0},{"$f":"'Vstupni oblast dat'!H38","v":0},null,null,null,null,null,null,null,null,null,null,null,null,0,0,0,0,0]
[null,null,null,null,"Aritmetický průměr",null,{"$f":"IF($G$41<>0,G40/$G$41,\"neměřeno\")","v":"neměřeno"},{"$f":"H40/G41","v":{"$error":"#VALUE!"}},null,null,null,null,null,null,null,null,null,null,null,null,{"$f":"IF($G$41<>0,SUM(U9:U38),\"neměřeno\")","v":"neměřeno"},{"$f":"IF($G$41<>0,SUM(V9:V38),\"neměřeno\")","v":"neměřeno"},"neměřeno","neměřeno","neměřeno"]
[null,null,null,null,"Suma",null,{"$f":"IF($G$41<>0,SUM(G9:G38),\"neměřeno\")","v":"neměřeno"},{"$f":"IF($G$41<>0,SUM(H9:H38),\"neměřeno\")","v":"neměřeno"}]
[null,null,null,null,"Počet - n ",null,{"$f":"COUNTIFS(G9:G38,\"<0\")+COUNTIFS(G9:G38,\">0\")","v":0}]

{"sheet":"Grubbsův test","index":2,"n_rows":42,"n_cols":153,"rows_kept":42,"cut":false,"hidden":false,"merged":[[41,4,41,5],[29,4,29,5],[30,4,30,5],[31,4,31,5],[32,4,32,5],[33,4,33,5],[34,4,34,5],[39,4,39,5],[35,4,35,5],[36,4,36,5],[20,11,20,16],[10,4,10,5],[10,20,10,21],[10,24,10,25],[9,24,9,25],[9,20,9,21],[37,4,37,5],[38,4,38,5],[40,4,40,5],[27,4,27,5],[28,4,28,5],[17,4,17,5],[18,4,18,5],[19,4,19,5],[20,4,20,5],[21,4,21,5],[25,4,25,5],[26,4,26,5],[12,24,12,25],[13,24,13,25],[14,24,14,25],[15,24,15,25],[12,21,12,23],[15,21,15,23],[4,7,7,7],[4,8,7,8],[3,7,3,8],[23,4,23,5],[24,4,24,5],[3,4,7,5],[4,6,5,6],[6,6,7,6],[8,4,8,5],[9,4,9,5],[22,4,22,5],[11,4,11,5],[12,4,12,5],[13,4,13,5],[14,4,14,5],[15,4,15,5],[16,4,16,5],[23,24,23,25],[24,24,24,25],[25,21,25,23],[25,24,25,25],[19,20,19,21],[19,24,19,25],[20,20,20,21],[20,24,20,25],[22,21,22,23],[22,24,22,25],[8,28,8,29],[9,28,9,29],[10,28,10,29],[11,28,11,29],[12,28,12,29],[3,28,7,29],[3,31,3,32],[4,30,5,30],[4,31,7,31],[4,32,7,32],[6,30,7,30],[26,28,26,29],[27,28,27,29],[18,28,18,29],[19,28,19,29],[20,28,20,29],[21,28,21,29],[22,28,22,29],[13,28,13,29],[14,28,14,29],[15,28,15,29],[16,28,16,29],[17,28,17,29],[11,34,11,35],[11,38,11,39],[13,35,13,37],[13,38,13,39],[38,28,38,29],[39,28,39,29],[40,28,40,29],[41,28,41,29],[10,34,10,35],[21,34,21,35],[26,35,26,37],[33,28,33,29],[34,28,34,29],[35,28,35,29],[36,28,36,29],[37,28,37,29],[28,28,28,29],[29,28,29,29],[30,28,30,29],[31,28,31,29],[32,28,32,29],[23,28,23,29],[24,28,24,29],[25,28,25,29],[23,35,23,37],[23,38,23,39],[24,38,24,39],[25,38,25,39],[14,38,14,39],[15,38,15,39],[16,35,16,37],[16,38,16,39],[20,34,20,35],[20,38,20,39],[26,38,26,39],[3,42,7,43],[3,45,3,46],[4,44,5,44],[4,45,7,45],[4,46,7,46],[6,44,7,44],[8,42,8,43],[9,42,9,43],[10,42,10,43],[12,42,12,43],[13,42,13,43],[16,42,16,43],[20,42,20,43],[22,42,22,43],[23,42,23,43],[21,38,21,39],[10,38,10,39],[13,49,13,51],[13,52,13,53],[14,42,14,43],[14,52,14,53],[15,42,15,43],[15,52,15,53],[10,48,10,49],[10,52,10,53],[11,42,11,43],[11,48,11,49],[11,52,11,53],[20,48,20,49],[20,52,20,53],[21,42,21,43],[21,48,21,49],[21,52,21,53],[16,49,16,51],[16,52,16,53],[17,42,17,43],[18,42,18,43],[19,42,19,43],[26,52,26,53],[27,42,27,43],[28,42,28,43],[23,49,23,51],[23,52,23,53],[24,42,24,43],[24,52,24,53],[25,42,25,43],[25,52,25,53],[37,42,37,43],[38,42,38,43],[29,42,29,43],[30,42,30,43],[31,42,31,43],[32,42,32,43],[33,42,33,43],[26,42,26,43],[26,49,26,51],[10,62,10,63],[10,66,10,67],[11,56,11,57],[11,62,11,63],[11,66,11,67],[39,42,39,43],[40,42,40,43],[41,42,41,43],[3,56,7,57],[3,59,3,60],[4,58,5,58],[4,59,7,59],[4,60,7,60],[6,58,7,58],[8,56,8,57],[9,56,9,57],[10,56,10,57],[12,56,12,57],[13,56,13,57],[16,56,16,57],[20,56,20,57],[34,42,34,43],[35,42,35,43],[36,42,36,43],[21,66,21,67],[16,63,16,65],[16,66,16,67],[17,56,17,57],[18,56,18,57],[19,56,19,57],[13,63,13,65],[13,66,13,67],[14,56,14,57],[14,66,14,67],[15,56,15,57],[15,66,15,67],[40,56,40,57],[41,56,41,57],[32,56,32,57],[33,56,33,57],[34,56,34,57],[35,56,35,57],[36,56,36,57],[27,56,27,57],[28,56,28,57],[29,56,29,57],[30,56,30,57],[31,56,31,57],[3,70,7,71],[3,73,3,74],[4,72,5,72],[4,73,7,73],[4,74,7,74],[6,72,7,72],[37,56,37,57],[38,56,38,57],[39,56,39,57],[25,56,25,57],[25,66,25,67],[26,56,26,57],[26,63,26,65],[26,66,26,67],[22,56,22,57],[23,56,23,57],[23,63,23,65],[23,66,23,67],[24,56,24,57],[24,66,24,67],[20,62,20,63],[20,66,20,67],[21,56,21,57],[21,62,21,63],[11,70,11,71],[11,76,11,77],[11,80,11,81],[12,70,12,71],[13,70,13,71],[13,77,13,79],[13,80,13,81],[8,70,8,71],[9,70,9,71],[10,70,10,71],[10,76,10,77],[10,80,10,81],[17,70,17,71],[18,70,18,71],[19,70,19,71],[20,70,20,71],[20,76,20,77],[14,70,14,71],[14,80,14,81],[15,70,15,71],[15,80,15,81],[16,70,16,71],[16,77,16,79],[16,80,16,81],[40,70,40,71],[41,70,41,71],[32,70,32,71],[33,70,33,71],[34,70,34,71],[35,70,35,71],[36,70,36,71],[27,70,27,71],[28,70,28,71],[29,70,29,71],[30,70,30,71],[31,70,31,71],[3,85,7,86],[3,88,3,89],[4,87,5,87],[4,88,7,88],[4,89,7,89],[6,87,7,87],[37,70,37,71],[38,70,38,71],[39,70,39,71],[25,70,25,71],[25,80,25,81],[26,70,26,71],[26,77,26,79],[26,80,26,81],[23,70,23,71],[23,77,23,79],[23,80,23,81],[24,70,24,71],[24,80,24,81],[20,80,20,81],[21,70,21,71],[21,76,21,77],[21,80,21,81],[22,70,22,71],[11,85,11,86],[11,91,11,92],[11,95,11,96],[12,85,12,86],[13,85,13,86],[13,92,13,94],[13,95,13,96],[8,85,8,86],[9,85,9,86],[10,85,10,86],[10,91,10,92],[10,95,10,96],[17,85,17,86],[18,85,18,86],[19,85,19,86],[20,85,20,86],[20,91,20,92],[14,85,14,86],[14,95,14,96],[15,85,15,86],[15,95,15,96],[16,85,16,86],[16,92,16,94],[16,95,16,96],[40,85,40,86],[41,85,41,86],[32,85,32,86],[33,85,33,86],[34,85,34,86],[35,85,35,86],[36,85,36,86],[27,85,27,86],[28,85,28,86],[29,85,29,86],[30,85,30,86],[31,85,31,86],[3,99,7,100],[3,102,3,103],[4,101,5,101],[4,102,7,102],[4,103,7,103],[6,101,7,101],[37,85,37,86],[38,85,38,86],[39,85,39,86],[25,85,25,86],[25,95,25,96],[26,85,26,86],[26,92,26,94],[26,95,26,96],[23,85,23,86],[23,92,23,94],[23,95,23,96],[24,85,24,86],[24,95,24,96],[20,95,20,96],[21,85,21,86],[21,91,21,92],[21,95,21,96],[22,85,22,86],[11,99,11,100],[11,105,11,106],[11,109,11,110],[12,99,12,100],[13,99,13,100],[13,106,13,108],[13,109,13,110],[8,99,8,100],[9,99,9,100],[10,99,10,100],[10,105,10,106],[10,109,10,110],[17,99,17,100],[18,99,18,100],[19,99,19,100],[20,99,20,100],[20,105,20,106],[14,99,14,100],[14,109,14,110],[15,99,15,100],[15,109,15,110],[16,99,16,100],[16,106,16,108],[16,109,16,110],[40,99,40,100],[41,99,41,100],[32,99,32,100],[33,99,33,100],[34,99,34,100],[35,99,35,100],[36,99,36,100],[27,99,27,100],[28,99,28,100],[29,99,29,100],[30,99,30,100],[31,99,31,100],[3,114,7,115],[3,117,3,118],[4,116,5,116],[4,117,7,117],[4,118,7,118],[6,116,7,116],[37,99,37,100],[38,99,38,100],[39,99,39,100],[25,99,25,100],[25,109,25,110],[26,99,26,100],[26,106,26,108],[26,109,26,110],[23,99,23,100],[23,106,23,108],[23,109,23,110],[24,99,24,100],[24,109,24,110],[20,109,20,110],[21,99,21,100],[21,105,21,106],[21,109,21,110],[22,99,22,100],[11,114,11,115],[11,120,11,121],[11,124,11,125],[12,114,12,115],[13,114,13,115],[13,121,13,123],[13,124,13,125],[8,114,8,115],[9,114,9,115],[10,114,10,115],[10,120,10,121],[10,124,10,125],[17,114,17,115],[18,114,18,115],[19,114,19,115],[20,114,20,115],[20,120,20,121],[14,114,14,115],[14,124,14,125],[15,114,15,115],[15,124,15,125],[16,114,16,115],[16,121,16,123],[16,124,16,125],[40,114,40,115],[41,114,41,115],[32,114,32,115],[33,114,33,115],[34,114,34,115],[35,114,35,115],[36,114,36,115],[27,114,27,115],[28,114,28,115],[29,114,29,115],[30,114,30,115],[31,114,31,115],[3,128,7,129],[3,131,3,132],[4,130,5,130],[4,131,7,131],[4,132,7,132],[6,130,7,130],[37,114,37,115],[38,114,38,115],[39,114,39,115],[25,114,25,115],[25,124,25,125],[26,114,26,115],[26,121,26,123],[26,124,26,125],[23,114,23,115],[23,121,23,123],[23,124,23,125],[24,114,24,115],[24,124,24,125],[20,124,20,125],[21,114,21,115],[21,120,21,121],[21,124,21,125],[22,114,22,115],[11,128,11,129],[11,134,11,135],[11,138,11,139],[12,128,12,129],[13,128,13,129],[13,135,13,137],[13,138,13,139],[8,128,8,129],[9,128,9,129],[10,128,10,129],[10,134,10,135],[10,138,10,139],[17,128,17,129],[18,128,18,129],[19,128,19,129],[20,128,20,129],[20,134,20,135],[14,128,14,129],[14,138,14,139],[15,128,15,129],[15,138,15,139],[16,128,16,129],[16,135,16,137],[16,138,16,139],[40,128,40,129],[41,128,41,129],[32,128,32,129],[33,128,33,129],[34,128,34,129],[35,128,35,129],[36,128,36,129],[27,128,27,129],[28,128,28,129],[29,128,29,129],[30,128,30,129],[31,128,31,129],[3,142,7,143],[3,145,3,146],[4,144,5,144],[4,145,7,145],[4,146,7,146],[6,144,7,144],[37,128,37,129],[38,128,38,129],[39,128,39,129],[25,128,25,129],[25,138,25,139],[26,128,26,129],[26,135,26,137],[26,138,26,139],[23,128,23,129],[23,135,23,137],[23,138,23,139],[24,128,24,129],[24,138,24,139],[20,138,20,139],[21,128,21,129],[21,134,21,135],[21,138,21,139],[22,128,22,129],[11,142,11,143],[11,148,11,149],[11,152,11,153],[12,142,12,143],[13,142,13,143],[13,149,13,151],[13,152,13,153],[8,142,8,143],[9,142,9,143],[10,142,10,143],[10,148,10,149],[10,152,10,153],[17,142,17,143],[18,142,18,143],[19,142,19,143],[20,142,20,143],[20,148,20,149],[14,142,14,143],[14,152,14,153],[15,142,15,143],[15,152,15,153],[16,142,16,143],[16,149,16,151],[16,152,16,153],[23,142,23,143],[23,149,23,151],[23,152,23,153],[24,142,24,143],[24,152,24,153],[20,152,20,153],[21,142,21,143],[21,148,21,149],[21,152,21,153],[22,142,22,143],[27,142,27,143],[28,142,28,143],[29,142,29,143],[30,142,30,143],[31,142,31,143],[25,142,25,143],[25,152,25,153],[26,142,26,143],[26,149,26,151],[26,152,26,153],[37,142,37,143],[38,142,38,143],[39,142,39,143],[40,142,40,143],[41,142,41,143],[32,142,32,143],[33,142,33,143],[34,142,34,143],[35,142,35,143],[36,142,36,143]]}
[null,null,null,"počet","%","kus",null,null,null,null,null,null,null,null,null,{"$f":"A4*A5","v":0}]
[]
[null,null,null,null,null,null,null,null,null,null,null,null,null,null,null,null,null,null,null,null,null,null,"y ̅"]
[null,null,null,null,"n",null,"x1i","Kritické hodnoty ",null,null,null,null,null,null,null,null,null,null,null,null,null,null,null,null,null,null,null,null,"n",null,"x2i","Kritické hodnoty ",null,null,null,null,null,null,null,null,null,null,"n",null,"x3i","Kritické hodnoty ",null,null,null,null,null,null,null,null,null,null,"n",null,"x4i","Kritické hodnoty ",null,null,null,null,null,null,null,null,null,null,"n",null,"x5i","Kritické hodnoty ",null,null,null,null,null,null,null,null,null,null,null,"n",null,"x6i","Kritické hodnoty ",null,null,null,null,null,null,null,null,null,null,"n",null,"x7i","Kritické hodnoty ",null,null,null,null,null,null,null,null,null,null,null,"n",null,"x8i","Kritické hodnoty ",null,null,null,null,null,null,null,null,null,null,"n",null,"x9i","Kritické hodnoty ",null,null,null,null,null,null,null,null,null,null,"n",null,"x10i","Kritické hodnoty "]
[null,null,null,null,null,null,{"$f":"'Vstupni oblast dat'!H5:H6","v":"1.regresor"},null,null,null,null,null,null,null,null,null,null,null,null,null,null,null,null,null,null,null,null,null,null,null,{"$f":"'Vstupni oblast dat'!I5:I6","v":"2.regresor"},null,null,null,null,null,null,null,null,null,null,null,null,null,{"$f":"'Vstupni oblast dat'!J5:J6","v":"3.regresor"},null,null,null,null,null,null,null,null,null,null,null,null,null,{"$f":"'Vstupni oblast dat'!K5:K6","v":"4.regresor"},null,null,null,null,null,null,null,null,null,null,null,null,null,{"$f":"'Vstupni oblast dat'!L5:L6","v":"5.regresor"},null,null,null,null,null,null,null,null,null,null,null,null,null,null,{"$f":"'Vstupni oblast dat'!M5:M6","v":"6.regresor"},null,null,null,null,null,null,null,null,null,null,null,null,null,{"$f":"'Vstupni oblast dat'!N5:N6","v":"7.regresor"},null,null,null,null,null,null,null,null,null,null,null,null,null,null,{"$f":"'Vstupni oblast dat'!O5:O6","v":"8.regresor"},null,null,null,null,null,null,null,null,null,null,null,null,null,{"$f":"'Vstupni oblast dat'!P5:P6","v":"9.regresor"},null,null,null,null,null,null,null,null,null,null,null,null,null,{"$f":"'Vstupni oblast dat'!Q5:Q6","v":"10.regresor"}]
["jednotky"]
["jednotky",null,null,null,null,null,{"$f":"'Vstupni oblast dat'!G7:G8","v":"[ jednotky ]"},null,null,null,null,null,null,null,null,null,null,null,null,null,null,null,null,null,null,null,null,null,null,null,{"$f":"'Vstupni oblast dat'!I7:I8","v":"[ jednotky ]"},null,null,null,null,null,null,null,null,null,null,null,null,null,{"$f":"'Vstupni oblast dat'!J7:J8","v":"[ jednotky ]"},null,null,null,null,null,null,null,null,null,null,null,null,null,{"$f":"'Vstupni oblast dat'!K7:K8","v":"[ jednotky ]"},null,null,null,null,null,null,null,null,null,null,null,null,null,{"$f":"'Vstupni oblast dat'!L7:L8","v":"[ jednotky ]"},null,null,null,null,null,null,null,null,null,null,null,null,null,null,{"$f":"'Vstupni oblast dat'!M7:M8","v":"[ jednotky ]"},null,null,null,null,null,null,null,null,null,null,null,null,null,{"$f":"'Vstupni oblast dat'!N7:N8","v":"[ jednotky ]"},null,null,null,null,null,null,null,null,null,null,null,null,null,null,{"$f":"'Vstupni oblast dat'!O7:O8","v":"[ jednotky ]"},null,null,null,null,null,null,null,null,null,null,null,null,null,{"$f":"'Vstupni oblast dat'!P7:P8","v":"[ jednotky ]"},null,null,null,null,null,null,null,null,null,null,null,null,null,{"$f":"'Vstupni oblast dat'!Q7:Q8","v":"[ jednotky ]"}]
["*"]
["^2",null,null,null,{"$f":"1","v":1},null,{"$f":"IF('Vstupni oblast dat'!H9<>\"\", IF('Vstupni oblast dat'!H9=0,1E-23,'Vstupni oblast dat'!H9),\"\")","v":""},null,null,null,null,null,null,null,null,null,null,null,null,null,null,null,null,null,null,null,null,null,{"$f":"1","v":1},null,{"$f":"IF('Vstupni oblast dat'!I9<>\"\", IF('Vstupni oblast dat'!I9=0,1E-23,'Vstupni oblast dat'!I9),\"\")","v":""},null,null,null,null,null,null,null,null,null,null,null,{"$f":"1","v":1},null,{"$f":"IF('Vstupni oblast dat'!J9<>\"\", IF('Vstupni oblast dat'!J9=0,1E-23,'Vstupni oblast dat'!J9),\"\")","v":""},null,null,null,null,null,null,null,null,null,null,null,{"$f":"1","v":1},null,{"$f":"IF('Vstupni oblast dat'!K9<>\"\", IF('Vstupni oblast dat'!K9=0,1E-23,'Vstupni oblast dat'!K9),\"\")","v":""},null,null,null,null,null,null,null,null,null,null,null,{"$f":"1","v":1},null,{"$f":"IF('Vstupni oblast dat'!L9<>\"\", IF('Vstupni oblast dat'!L9=0,1E-23,'Vstupni oblast dat'!L9),\"\")","v":""},null,null,null,null,null,null,null,null,null,null,null,null,{"$f":"1","v":1},null,{"$f":"IF('Vstupni oblast dat'!M9<>\"\", IF('Vstupni oblast dat'!M9=0,1E-23,'Vstupni oblast dat'!M9),\"\")","v":""},null,null,null,null,null,null,null,null,null,null,null,{"$f":"1","v":1},null,{"$f":"IF('Vstupni oblast dat'!N9<>\"\", IF('Vstupni oblast dat'!N9=0,1E-23,'Vstupni oblast dat'!N9),\"\")","v":""},null,null,null,null,null,null,null,null,null,null,null,null,{"$f":"1","v":1},null,{"$f":"IF('Vstupni oblast dat'!O9<>\"\", IF('Vstupni oblast dat'!O9=0,1E-23,'Vstupni oblast dat'!O9),\"\")","v":""},null,null,null,null,null,null,null,null,null,null,null,{"$f":"1","v":1},null,{"$f":"IF('Vstupni oblast dat'!P9<>\"\", IF('Vstupni oblast dat'!P9=0,1E-23,'Vstupni oblast dat'!P9),\"\")","v":""},null,null,null,null,null,null,null,null,null,null,null,{"$f":"1","v":1},null,{"$f":"IF('Vstupni oblast dat'!Q9<>\"\", IF('Vstupni oblast dat'!Q9=0,1E-23,'Vstupni oblast dat'!Q9),\"\")","v":""}]
["^3",null,null,null,{"$f":"E9+1","v":2},null,{"$f":"IF('Vstupni oblast dat'!H10<>\"\", IF('Vstupni oblast dat'!H10=0,1E-23,'Vstupni oblast dat'!H10),\"\")","v":""},null,null,null,null,null,null,null,null,null,null,null,null,null,"Testové kritérium",null,null,null,"Kritické hodnoty ",null,null,null,{"$f":"AC9+1","v":2},null,{"$f":"IF('Vstupni oblast dat'!I10<>\"\", IF('Vstupni oblast dat'!I10=0,1E-23,'Vstupni oblast dat'!I10),\"\")","v":""},null,null,null,null,null,null,null,null,null,null,null,{"$f":"AQ9+1","v":2},null,{"$f":"IF('Vstupni oblast dat'!J10<>\"\", IF('Vstupni oblast dat'!J10=0,1E-23,'Vstupni oblast dat'!J10),\"\")","v":""},null,null,null,null,null,null,null,null,null,null,null,{"$f":"BE9+1","v":2},null,{"$f":"IF('Vstupni oblast dat'!K10<>\"\", IF('Vstupni oblast dat'!K10=0,1E-23,'Vstupni oblast dat'!K10),\"\")","v":""},null,null,null,null,null,null,null,null,null,null,null,{"$f":"BS9+1","v":2},null,{"$f":"IF('Vstupni oblast dat'!L10<>\"\", IF('Vstupni oblast dat'!L10=0,1E-23,'Vstupni oblast dat'!L10),\"\")","v":""},null,null,null,null,null,null,null,null,null,null,null,null,{"$f":"CH9+1","v":2},null,{"$f":"IF('Vstupni oblast dat'!M10<>\"\", IF('Vstupni oblast dat'!M10=0,1E-23,'Vstupni oblast dat'!M10),\"\")","v":""},null,null,null,null,null,null,null,null,null,null,null,{"$f":"CV9+1","v":2},null,{"$f":"IF('Vstupni oblast dat'!N10<>\"\", IF('Vstupni oblast dat'!N10=0,1E-23,'Vstupni oblast dat'!N10),\"\")","v":""},null,null,null,null,null,null,null,null,null,null,null,null,{"$f":"DK9+1","v":2},null,{"$f":"IF('Vstupni oblast dat'!O10<>\"\", IF('Vstupni oblast dat'!O10=0,1E-23,'Vstupni oblast dat'!O10),\"\")","v":""},null,null,null,null,null,null,null,null,null,null,null,{"$f":"DY9+1","v":2},null,{"$f":"IF('Vstupni oblast dat'!P10<>\"\", IF('Vstupni oblast dat'!P10=0,1E-23,'Vstupni oblast dat'!P10),\"\")","v":""},null,null,null,null,null,null,null,null,null,null,null,{"$f":"EM9+1","v":2},null,{"$f":"IF('Vstupni oblast dat'!Q10<>\"\", IF('Vstupni oblast dat'!Q10=0,1E-23,'Vstupni oblast dat'!Q10),\"\")","v":""}]
["+",null,null,null,{"$f":"E10+1","v":3},null,{"$f":"IF('Vstupni oblast dat'!H11<>\"\", IF('Vstupni oblast dat'!H11=0,1E-23,'Vstupni oblast dat'!H11),\"\")","v":""},1.4119999999999999,1.4139999999999999,null,null,null,null,null,null,null,null,null,null,null,null,null,null,null,null,null,null,null,{"$f":"AC10+1","v":3},null,{"$f":"IF('Vstupni oblast dat'!I11<>\"\", IF('Vstupni oblast dat'!I11=0,1E-23,'Vstupni oblast dat'!I11),\"\")","v":""},1.4119999999999999,1.4139999999999999,null,"Testové kritérium",null,null,null,"Kritické hodnoty ",null,null,null,{"$f":"AQ10+1","v":3},null,{"$f":"IF('Vstupni oblast dat'!J11<>\"\", IF('Vstupni oblast dat'!J11=0,1E-23,'Vstupni oblast dat'!J11),\"\")","v":""},1.4119999999999999,1.4139999999999999,null,"Testové kritérium",null,null,null,"Kritické hodnoty ",null,null,null,{"$f":"BE10+1","v":3},null,{"$f":"IF('Vstupni oblast dat'!K11<>\"\", IF('Vstupni oblast dat'!K11=0,1E-23,'Vstupni oblast dat'!K11),\"\")","v":""},1.4119999999999999,1.4139999999999999,null,"Testové kritérium",null,null,null,"Kritické hodnoty ",null,null,null,{"$f":"BS10+1","v":3},null,{"$f":"IF('Vstupni oblast dat'!L11<>\"\", IF('Vstupni oblast dat'!L11=0,1E-23,'Vstupni oblast dat'!L11),\"\")","v":""},1.4119999999999999,1.4139999999999999,null,"Testové kritérium",null,null,null,"Kritické hodnoty ",null,null,null,null,{"$f":"CH10+1","v":3},null,{"$f":"IF('Vstupni oblast dat'!M11<>\"\", IF('Vstupni oblast dat'!M11=0,1E-23,'Vstupni oblast dat'!M11),\"\")","v":""},1.4119999999999999,1.4139999999999999,null,"Testové kritérium",null,null,null,"Kritické hodnoty ",null,null,null,{"$f":"CV10+1","v":3},null,{"$f":"IF('Vstupni oblast dat'!N11<>\"\", IF('Vstupni oblast dat'!N11=0,1E-23,'Vstupni oblast dat'!N11),\"\")","v":""},1.4119999999999999,1.4139999999999999,null,"Testové kritérium",null,null,null,"Kritické hodnoty ",null,null,null,null,{"$f":"DK10+1","v":3},null,{"$f":"IF('Vstupni oblast dat'!O11<>\"\", IF('Vstupni oblast dat'!O11=0,1E-23,'Vstupni oblast dat'!O11),\"\")","v":""},1.4119999999999999,1.4139999999999999,null,"Testové kritérium",null,null,null,"Kritické hodnoty ",null,null,null,{"$f":"DY10+1","v":3},null,{"$f":"IF('Vstupni oblast dat'!P11<>\"\", IF('Vstupni oblast dat'!P11=0,1E-23,'Vstupni oblast dat'!P11),\"\")","v":""},1.4119999999999999,1.4139999999999999,null,"Testové kritérium",null,null,null,"Kritické hodnoty ",null,null,null,{"$f":"EM10+1","v":3},null,{"$f":"IF('Vstupni oblast dat'!Q11<>\"\", IF('Vstupni oblast dat'!Q11=0,1E-23,'Vstupni oblast dat'!Q11),\"\")","v":""},1.4119999999999999,1.4139999999999999,null,"Testové kritérium",null,null,null,"Kritické hodnoty "]
[null,null,null,null,4,null,{"$f":"IF('Vstupni oblast dat'!H12<>\"\", IF('Vstupni oblast dat'!H12=0,1E-23,'Vstupni oblast dat'!H12),\"\")","v":""},1.6890000000000001,1.7230000000000001,null,null,null,null,null,null,null,null,null,null,null,null,null,null,null,null,null,null,null,4,null,{"$f":"IF('Vstupni oblast dat'!I12<>\"\", IF('Vstupni oblast dat'!I12=0,1E-23,'Vstupni oblast dat'!I12),\"\")","v":""},1.6890000000000001,1.7230000000000001,null,null,null,null,null,null,null,null,null,4,null,{"$f":"IF('Vstupni oblast dat'!J12<>\"\", IF('Vstupni oblast dat'!J12=0,1E-23,'Vstupni oblast dat'!J12),\"\")","v":""},1.6890000000000001,1.7230000000000001,null,null,null,null,null,null,null,null,null,4,null,{"$f":"IF('Vstupni oblast dat'!K12<>\"\", IF('Vstupni oblast dat'!K12=0,1E-23,'Vstupni oblast dat'!K12),\"\")","v":""},1.6890000000000001,1.7230000000000001,null,null,null,null,null,null,null,null,null,4,null,{"$f":"IF('Vstupni oblast dat'!L12<>\"\", IF('Vstupni oblast dat'!L12=0,1E-23,'Vstupni oblast dat'!L12),\"\")","v":""},1.6890000000000001,1.7230000000000001,null,null,null,null,null,null,null,null,null,null,4,null,{"$f":"IF('Vstupni oblast dat'!M12<>\"\", IF('Vstupni oblast dat'!M12=0,1E-23,'Vstupni oblast dat'!M12),\"\")","v":""},1.6890000000000001,1.7230000000000001,null,null,null,null,null,null,null,null,null,4,null,{"$f":"IF('Vstupni oblast dat'!N12<>\"\", IF('Vstupni oblast dat'!N12=0,1E-23,'Vstupni oblast dat'!N12),\"\")","v":""},1.6890000000000001,1.7230000000000001,null,null,null,null,null,null,null,null,null,null,4,null,{"$f":"IF('Vstupni oblast dat'!O12<>\"\", IF('Vstupni oblast dat'!O12=0,1E-23,'Vstupni oblast dat'!O12),\"\")","v":""},1.6890000000000001,1.7230000000000001,null,null,null,null,null,null,null,null,null,4,null,{"$f":"IF('Vstupni oblast dat'!P12<>\"\", IF('Vstupni oblast dat'!P12=0,1E-23,'Vstupni oblast dat'!P12),\"\")","v":""},1.6890000000000001,1.7230000000000001,null,null,null,null,null,null,null,null,null,4,null,{"$f":"IF('Vstupni oblast dat'!Q12<>\"\", IF('Vstupni oblast dat'!Q12=0,1E-23,'Vstupni oblast dat'!Q12),\"\")","v":""},1.6890000000000001,1.7230000000000001]
[null,null,null,null,5,null,{"$f":"IF('Vstupni oblast dat'!H13<>\"\", IF('Vstupni oblast dat'!H13=0,1E-23,'Vstupni oblast dat'!H13),\"\")","v":""},1.869,1.9550000000000001,null,null,null,null,null,null,null,null,null,null,null,"T(1) =",{"$f":"IF(G42<>0,(((MAX(G9:G38)-G39)/G40)),\"neměřeno\")","v":"neměřeno"},null,null,{"$f":"Grubbsuv_test_05(G42)","v":0},null,null,null,5,null,{"$f":"IF('Vstupni oblast dat'!I13<>\"\", IF('Vstupni oblast dat'!I13=0,1E-23,'Vstupni oblast dat'!I13),\"\")","v":""},1.869,1.9550000000000001,null,null,null,null,null,null,null,null,null,5,null,{"$f":"IF('Vstupni oblast dat'!J13<>\"\", IF('Vstupni oblast dat'!J13=0,1E-23,'Vstupni oblast dat'!J13),\"\")","v":""},1.869,1.9550000000000001,null,null,null,null,null,null,null,null,null,5,null,{"$f":"IF('Vstupni oblast dat'!K13<>\"\", IF('Vstupni oblast dat'!K13=0,1E-23,'Vstupni oblast dat'!K13),\"\")","v":""},1.869,1.9550000000000001,null,null,null,null,null,null,null,null,null,5,null,{"$f":"IF('Vstupni oblast dat'!L13<>\"\", IF('Vstupni oblast dat'!L13=0,1E-23,'Vstupni oblast dat'!L13),\"\")","v":""},1.869,1.9550000000000001,null,null,null,null,null,null,null,null,null,null,5,null,{"$f":"IF('Vstupni oblast dat'!M13<>\"\", IF('Vstupni oblast dat'!M13=0,1E-23,'Vstupni oblast dat'!M13),\"\")","v":""},1.869,1.9550000000000001,null,null,null,null,null,null,null,null,null,5,null,{"$f":"IF('Vstupni oblast dat'!N13<>\"\", IF('Vstupni oblast dat'!N13=0,1E-23,'Vstupni oblast dat'!N13),\"\")","v":""},1.869,1.9550000000000001,null,null,null,null,null,null,null,null,null,null,5,null,{"$f":"IF('Vstupni oblast dat'!O13<>\"\", IF('Vstupni oblast dat'!O13=0,1E-23,'Vstupni oblast dat'!O13),\"\")","v":""},1.869,1.9550000000000001,null,null,null,null,null,null,null,null,null,5,null,{"$f":"IF('Vstupni oblast dat'!P13<>\"\", IF('Vstupni oblast dat'!P13=0,1E-23,'Vstupni oblast dat'!P13),\"\")","v":""},1.869,1.9550000000000001,null,null,null,null,null,null,null,null,null,5,null,{"$f":"IF('Vstupni oblast dat'!Q13<>\"\", IF('Vstupni oblast dat'!Q13=0,1E-23,'Vstupni oblast dat'!Q13),\"\")","v":""},1.869,1.9550000000000001]
[null,null,null,null,6,null,{"$f":"IF('Vstupni oblast dat'!H14<>\"\", IF('Vstupni oblast dat'!H14=0,1E-23,'Vstupni oblast dat'!H14),\"\")","v":""},1.996,2.13,null,null,null,null,null,null,null,null,null,null,null,null,null,null,null,null,null,null,null,6,null,{"$f":"IF('Vstupni oblast dat'!I14<>\"\", IF('Vstupni oblast dat'!I14=0,1E-23,'Vstupni oblast dat'!I14),\"\")","v":""},1.996,2.13,null,"T(1) =",{"$f":"IF(AE42<>0,(((MAX(AE9:AE38)-AE39)/AE40)),\"neměřeno\")","v":"neměřeno"},null,null,{"$f":"Grubbsuv_test_05(AE42)","v":0},null,null,null,6,null,{"$f":"IF('Vstupni oblast dat'!J14<>\"\", IF('Vstupni oblast dat'!J14=0,1E-23,'Vstupni oblast dat'!J14),\"\")","v":""},1.996,2.13,null,"T(1) =",{"$f":"IF(AS42<>0,(((MAX(AS9:AS38)-AS39)/AS40)),\"neměřeno\")","v":"neměřeno"},null,null,{"$f":"Grubbsuv_test_05(AS42)","v":0},null,null,null,6,null,{"$f":"IF('Vstupni oblast dat'!K14<>\"\", IF('Vstupni oblast dat'!K14=0,1E-23,'Vstupni oblast dat'!K14),\"\")","v":""},1.996,2.13,null,"T(1) =",{"$f":"IF(BG42<>0,(((MAX(BG9:BG38)-BG39)/BG40)),\"neměřeno\")","v":"neměřeno"},null,null,{"$f":"Grubbsuv_test_05(BG42)","v":0},null,null,null,6,null,{"$f":"IF('Vstupni oblast dat'!L14<>\"\", IF('Vstupni oblast dat'!L14=0,1E-23,'Vstupni oblast dat'!L14),\"\")","v":""},1.996,2.13,null,"T(1) =",{"$f":"IF(BU42<>0,(((MAX(BU9:BU38)-BU39)/BU40)),\"neměřeno\")","v":"neměřeno"},null,null,{"$f":"Grubbsuv_test_05(BU42)","v":0},null,null,null,null,6,null,{"$f":"IF('Vstupni oblast dat'!M14<>\"\", IF('Vstupni oblast dat'!M14=0,1E-23,'Vstupni oblast dat'!M14),\"\")","v":""},1.996,2.13,null,"T(1) =",{"$f":"IF(CJ42<>0,(((MAX(CJ9:CJ38)-CJ39)/CJ40)),\"neměřeno\")","v":"neměřeno"},null,null,{"$f":"Grubbsuv_test_05(CJ42)","v":0},null,null,null,6,null,{"$f":"IF('Vstupni oblast dat'!N14<>\"\", IF('Vstupni oblast dat'!N14=0,1E-23,'Vstupni oblast dat'!N14),\"\")","v":""},1.996,2.13,null,"T(1) =",{"$f":"IF(CX42<>0,(((MAX(CX9:CX38)-CX39)/CX40)),\"neměřeno\")","v":"neměřeno"},null,null,{"$f":"Grubbsuv_test_05(CX42)","v":0},null,null,null,null,6,null,{"$f":"IF('Vstupni oblast dat'!O14<>\"\", IF('Vstupni oblast dat'!O14=0,1E-23,'Vstupni oblast dat'!O14),\"\")","v":""},1.996,2.13,null,"T(1) =",{"$f":"IF(DM42<>0,(((MAX(DM9:DM38)-DM39)/DM40)),\"neměřeno\")","v":"neměřeno"},null,null,{"$f":"Grubbsuv_test_05(DM42)","v":0},null,null,null,6,null,{"$f":"IF('Vstupni oblast dat'!P14<>\"\", IF('Vstupni oblast dat'!P14=0,1E-23,'Vstupni oblast dat'!P14),\"\")","v":""},1.996,2.13,null,"T(1) =",{"$f":"IF(EA42<>0,(((MAX(EA9:EA38)-EA39)/EA40)),\"neměřeno\")","v":"neměřeno"},null,null,{"$f":"Grubbsuv_test_05(EA42)","v":0},null,null,null,6,null,{"$f":"IF('Vstupni oblast dat'!Q14<>\"\", IF('Vstupni oblast dat'!Q14=0,1E-23,'Vstupni oblast dat'!Q14),\"\")","v":""},1.996,2.13,null,"T(1) =",{"$f":"IF(EO42<>0,(((MAX(EO9:EO38)-EO39)/EO40)),\"neměřeno\")","v":"neměřeno"},null,null,{"$f":"Grubbsuv_test_05(EO42)","v":0}]
[null,null,null,null,7,null,{"$f":"IF('Vstupni oblast dat'!H15<>\"\", IF('Vstupni oblast dat'!H15=0,1E-23,'Vstupni oblast dat'!H15),\"\")","v":""},2.073,2.2650000000000001,null,null,null,null,null,null,null,null,null,null,null,null,null,null,null,null,null,null,null,7,null,{"$f":"IF('Vstupni oblast dat'!I15<>\"\", IF('Vstupni oblast dat'!I15=0,1E-23,'Vstupni oblast dat'!I15),\"\")","v":""},2.073,2.2650000000000001,null,null,null,null,null,null,null,null,null,7,null,{"$f":"IF('Vstupni oblast dat'!J15<>\"\", IF('Vstupni oblast dat'!J15=0,1E-23,'Vstupni oblast dat'!J15),\"\")","v":""},2.073,2.2650000000000001,null,null,null,null,null,null,null,null,null,7,null,{"$f":"IF('Vstupni oblast dat'!K15<>\"\", IF('Vstupni oblast dat'!K15=0,1E-23,'Vstupni oblast dat'!K15),\"\")","v":""},2.073,2.2650000000000001,null,null,null,null,null,null,null,null,null,7,null,{"$f":"IF('Vstupni oblast dat'!L15<>\"\", IF('Vstupni oblast dat'!L15=0,1E-23,'Vstupni oblast dat'!L15),\"\")","v":""},2.073,2.2650000000000001,null,null,null,null,null,null,null,null,null,null,7,null,{"$f":"IF('Vstupni oblast dat'!M15<>\"\", IF('Vstupni oblast dat'!M15=0,1E-23,'Vstupni oblast dat'!M15),\"\")","v":""},2.073,2.2650000000000001,null,null,null,null,null,null,null,null,null,7,null,{"$f":"IF('Vstupni oblast dat'!N15<>\"\", IF('Vstupni oblast dat'!N15=0,1E-23,'Vstupni oblast dat'!N15),\"\")","v":""},2.073,2.2650000000000001,null,null,null,null,null,null,null,null,null,null,7,null,{"$f":"IF('Vstupni oblast dat'!O15<>\"\", IF('Vstupni oblast dat'!O15=0,1E-23,'Vstupni oblast dat'!O15),\"\")","v":""},2.073,2.2650000000000001,null,null,null,null,null,null,null,null,null,7,null,{"$f":"IF('Vstupni oblast dat'!P15<>\"\", IF('Vstupni oblast dat'!P15=0,1E-23,'Vstupni oblast dat'!P15),\"\")","v":""},2.073,2.2650000000000001,null,null,null,null,null,null,null,null,null,7,null,{"$f":"IF('Vstupni oblast dat'!Q15<>\"\", IF('Vstupni oblast dat'!Q15=0,1E-23,'Vstupni oblast dat'!Q15),\"\")","v":""},2.073,2.2650000000000001]
[null,null,null,null,8,null,{"$f":"IF('Vstupni oblast dat'!H16<>\"\", IF('Vstupni oblast dat'!H16=0,1E-23,'Vstupni oblast dat'!H16),\"\")","v":""},2.1720000000000002,2.3740000000000001,null,null,null,null,null,null,null,null,null,null,null,"T(      ) =",{"$f":"IF(G42<>0,(((G39-MIN(G9:G38))/G40)),\"neměřeno\")","v":"neměřeno"},null,null,{"$f":"Grubbsuv_test_05(G42)","v":0},null,null,null,8,null,{"$f":"IF('Vstupni oblast dat'!I19<>\"\", IF('Vstupni oblast dat'!I19=0,1E-23,'Vstupni oblast dat'!I19),\"\")","v":""},2.1720000000000002,2.3740000000000001,null,null,null,null,null,null,null,null,null,8,null,{"$f":"IF('Vstupni oblast dat'!J19<>\"\", IF('Vstupni oblast dat'!J19=0,1E-23,'Vstupni oblast dat'!J19),\"\")","v":""},2.1720000000000002,2.3740000000000001,null,null,null,null,null,null,null,null,null,8,null,{"$f":"IF('Vstupni oblast dat'!K16<>\"\", IF('Vstupni oblast dat'!K16=0,1E-23,'Vstupni oblast dat'!K16),\"\")","v":""},2.1720000000000002,2.3740000000000001,null,null,null,null,null,null,null,null,null,8,null,{"$f":"IF('Vstupni oblast dat'!L16<>\"\", IF('Vstupni oblast dat'!L16=0,1E-23,'Vstupni oblast dat'!L16),\"\")","v":""},2.1720000000000002,2.3740000000000001,null,null,null,null,null,null,null,null,null,null,8,null,{"$f":"IF('Vstupni oblast dat'!M16<>\"\", IF('Vstupni oblast dat'!M16=0,1E-23,'Vstupni oblast dat'!M16),\"\")","v":""},2.1720000000000002,2.3740000000000001,null,null,null,null,null,null,null,null,null,8,null,{"$f":"IF('Vstupni oblast dat'!N16<>\"\", IF('Vstupni oblast dat'!N16=0,1E-23,'Vstupni oblast dat'!N16),\"\")","v":""},2.1720000000000002,2.3740000000000001,null,null,null,null,null,null,null,null,null,null,8,null,{"$f":"IF('Vstupni oblast dat'!O16<>\"\", IF('Vstupni oblast dat'!O16=0,1E-23,'Vstupni oblast dat'!O16),\"\")","v":""},2.1720000000000002,2.3740000000000001,null,null,null,null,null,null,null,null,null,8,null,{"$f":"IF('Vstupni oblast dat'!P16<>\"\", IF('Vstupni oblast dat'!P16=0,1E-23,'Vstupni oblast dat'!P16),\"\")","v":""},2.1720000000000002,2.3740000000000001,null,null,null,null,null,null,null,null,null,8,null,{"$f":"IF('Vstupni oblast dat'!Q16<>\"\", IF('Vstupni oblast dat'!Q16=0,1E-23,'Vstupni oblast dat'!Q16),\"\")","v":""},2.1720000000000002,2.3740000000000001]
[null,null,null,null,9,null,{"$f":"IF('Vstupni oblast dat'!H17<>\"\", IF('Vstupni oblast dat'!H17=0,1E-23,'Vstupni oblast dat'!H17),\"\")","v":""},2.2370000000000001,2.464,null,null,null,null,null,null,null,null,null,null,null,null,null,null,null,null,null,null,null,9,null,{"$f":"IF('Vstupni oblast dat'!I16<>\"\", IF('Vstupni oblast dat'!I16=0,1E-23,'Vstupni oblast dat'!I16),\"\")","v":""},2.2370000000000001,2.464,null,"T(      ) =",{"$f":"IF(AE42<>0,(((AE39-MIN(AE9:AE38))/AE40)),\"neměřeno\")","v":"neměřeno"},null,null,{"$f":"AM14","v":0},null,null,null,9,null,{"$f":"IF('Vstupni oblast dat'!J17<>\"\", IF('Vstupni oblast dat'!J17=0,1E-23,'Vstupni oblast dat'!J17),\"\")","v":""},2.2370000000000001,2.464,null,"T(      ) =",{"$f":"IF(AS42<>0,(((AS39-MIN(AS9:AS38))/AS40)),\"neměřeno\")","v":"neměřeno"},null,null,{"$f":"BA14","v":0},null,null,null,9,null,{"$f":"IF('Vstupni oblast dat'!K17<>\"\", IF('Vstupni oblast dat'!K17=0,1E-23,'Vstupni oblast dat'!K17),\"\")","v":""},2.2370000000000001,2.464,null,"T(      ) =",{"$f":"IF(BG42<>0,(((BG39-MIN(BG9:BG38))/BG40)),\"neměřeno\")","v":"neměřeno"},null,null,{"$f":"BO14","v":0},null,null,null,9,null,{"$f":"IF('Vstupni oblast dat'!L17<>\"\", IF('Vstupni oblast dat'!L17=0,1E-23,'Vstupni oblast dat'!L17),\"\")","v":""},2.2370000000000001,2.464,null,"T(      ) =",{"$f":"IF(BU42<>0,(((BU39-MIN(BU9:BU38))/BU40)),\"neměřeno\")","v":"neměřeno"},null,null,{"$f":"CC14","v":0},null,null,null,null,9,null,{"$f":"IF('Vstupni oblast dat'!M17<>\"\", IF('Vstupni oblast dat'!M17=0,1E-23,'Vstupni oblast dat'!M17),\"\")","v":""},2.2370000000000001,2.464,null,"T(      ) =",{"$f":"IF(CJ42<>0,(((CJ39-MIN(CJ9:CJ38))/CJ40)),\"neměřeno\")","v":"neměřeno"},null,null,{"$f":"DF17","v":0},null,null,null,9,null,{"$f":"IF('Vstupni oblast dat'!N17<>\"\", IF('Vstupni oblast dat'!N17=0,1E-23,'Vstupni oblast dat'!N17),\"\")","v":""},2.2370000000000001,2.464,null,"T(      ) =",{"$f":"IF(CX42<>0,(((CX39-MIN(CX9:CX38))/CX40)),\"neměřeno\")","v":"neměřeno"},null,null,{"$f":"DF14","v":0},null,null,null,null,9,null,{"$f":"IF('Vstupni oblast dat'!O17<>\"\", IF('Vstupni oblast dat'!O17=0,1E-23,'Vstupni oblast dat'!O17),\"\")","v":""},2.2370000000000001,2.464,null,"T(      ) =",{"$f":"IF(DM42<>0,(((DM39-MIN(DM9:DM38))/DM40)),\"neměřeno\")","v":"neměřeno"},null,null,{"$f":"DU14","v":0},null,null,null,9,null,{"$f":"IF('Vstupni oblast dat'!P17<>\"\", IF('Vstupni oblast dat'!P17=0,1E-23,'Vstupni oblast dat'!P17),\"\")","v":""},2.2370000000000001,2.464,null,"T(      ) =",{"$f":"IF(EA42<>0,(((EA39-MIN(EA9:EA38))/EA40)),\"neměřeno\")","v":"neměřeno"},null,null,{"$f":"EI14","v":0},null,null,null,9,null,{"$f":"IF('Vstupni oblast dat'!Q17<>\"\", IF('Vstupni oblast dat'!Q17=0,1E-23,'Vstupni oblast dat'!Q17),\"\")","v":""},2.2370000000000001,2.464,null,"T(      ) =",{"$f":"IF(EO42<>0,(((EO39-MIN(EO9:EO38))/EO40)),\"neměřeno\")","v":"neměřeno"},null,null,{"$f":"EW14","v":0}]
[null,null,null,null,10,null,{"$f":"IF('Vstupni oblast dat'!H18<>\"\", IF('Vstupni oblast dat'!H18=0,1E-23,'Vstupni oblast dat'!H18),\"\")","v":""},2.294,2.54,null,null,null,null,null,null,null,null,null,null,null,null,null,null,null,null,null,null,null,10,null,{"$f":"IF('Vstupni oblast dat'!I17<>\"\", IF('Vstupni oblast dat'!I17=0,1E-23,'Vstupni oblast dat'!I17),\"\")","v":""},2.294,2.54,null,null,null,null,null,null,null,null,null,10,null,{"$f":"IF('Vstupni oblast dat'!J18<>\"\", IF('Vstupni oblast dat'!J18=0,1E-23,'Vstupni oblast dat'!J18),\"\")","v":""},2.294,2.54,null,null,null,null,null,null,null,null,null,10,null,{"$f":"IF('Vstupni oblast dat'!K18<>\"\", IF('Vstupni oblast dat'!K18=0,1E-23,'Vstupni oblast dat'!K18),\"\")","v":""},2.294,2.54,null,null,null,null,null,null,null,null,null,10,null,{"$f":"IF('Vstupni oblast dat'!L18<>\"\", IF('Vstupni oblast dat'!L18=0,1E-23,'Vstupni oblast dat'!L18),\"\")","v":""},2.294,2.54,null,null,null,null,null,null,null,null,null,null,10,null,{"$f":"IF('Vstupni oblast dat'!M18<>\"\", IF('Vstupni oblast dat'!M18=0,1E-23,'Vstupni oblast dat'!M18),\"\")","v":""},2.294,2.54,null,null,null,null,null,null,null,null,null,10,null,{"$f":"IF('Vstupni oblast dat'!N18<>\"\", IF('Vstupni oblast dat'!N18=0,1E-23,'Vstupni oblast dat'!N18),\"\")","v":""},2.294,2.54,null,null,null,null,null,null,null,null,null,null,10,null,{"$f":"IF('Vstupni oblast dat'!O18<>\"\", IF('Vstupni oblast dat'!O18=0,1E-23,'Vstupni oblast dat'!O18),\"\")","v":""},2.294,2.54,null,null,null,null,null,null,null,null,null,10,null,{"$f":"IF('Vstupni oblast dat'!P18<>\"\", IF('Vstupni oblast dat'!P18=0,1E-23,'Vstupni oblast dat'!P18),\"\")","v":""},2.294,2.54,null,null,null,null,null,null,null,null,null,10,null,{"$f":"IF('Vstupni oblast dat'!Q18<>\"\", IF('Vstupni oblast dat'!Q18=0,1E-23,'Vstupni oblast dat'!Q18),\"\")","v":""},2.294,2.54]
[null,null,null,null,11,null,{"$f":"IF('Vstupni oblast dat'!H19<>\"\", IF('Vstupni oblast dat'!H19=0,1E-23,'Vstupni oblast dat'!H19),\"\")","v":""},2.343,2.6059999999999999,null,null,null,null,null,null,null,null,null,null,null,null,null,null,null,null,null,null,null,11,null,{"$f":"IF('Vstupni oblast dat'!I20<>\"\", IF('Vstupni oblast dat'!I20=0,1E-23,'Vstupni oblast dat'!I20),\"\")","v":""},2.343,2.6059999999999999,null,null,null,null,null,null,null,null,null,11,null,{"$f":"IF('Vstupni oblast dat'!J16<>\"\", IF('Vstupni oblast dat'!J16=0,1E-23,'Vstupni oblast dat'!J16),\"\")","v":""},2.343,2.6059999999999999,null,null,null,null,null,null,null,null,null,11,null,{"$f":"IF('Vstupni oblast dat'!K19<>\"\", IF('Vstupni oblast dat'!K19=0,1E-23,'Vstupni oblast dat'!K19),\"\")","v":""},2.343,2.6059999999999999,null,null,null,null,null,null,null,null,null,11,null,{"$f":"IF('Vstupni oblast dat'!L19<>\"\", IF('Vstupni oblast dat'!L19=0,1E-23,'Vstupni oblast dat'!L19),\"\")","v":""},2.343,2.6059999999999999,null,null,null,null,null,null,null,null,null,null,11,null,{"$f":"IF('Vstupni oblast dat'!M19<>\"\", IF('Vstupni oblast dat'!M19=0,1E-23,'Vstupni oblast dat'!M19),\"\")","v":""},2.343,2.6059999999999999,null,null,null,null,null,null,null,null,null,11,null,{"$f":"IF('Vstupni oblast dat'!N19<>\"\", IF('Vstupni oblast dat'!N19=0,1E-23,'Vstupni oblast dat'!N19),\"\")","v":""},2.343,2.6059999999999999,null,null,null,null,null,null,null,null,null,null,11,null,{"$f":"IF('Vstupni oblast dat'!O19<>\"\", IF('Vstupni oblast dat'!O19=0,1E-23,'Vstupni oblast dat'!O19),\"\")","v":""},2.343,2.6059999999999999,null,null,null,null,null,null,null,null,null,11,null,{"$f":"IF('Vstupni oblast dat'!P19<>\"\", IF('Vstupni oblast dat'!P19=0,1E-23,'Vstupni oblast dat'!P19),\"\")","v":""},2.343,2.6059999999999999,null,null,null,null,null,null,null,null,null,11,null,{"$f":"IF('Vstupni oblast dat'!Q19<>\"\", IF('Vstupni oblast dat'!Q19=0,1E-23,'Vstupni oblast dat'!Q19),\"\")","v":""},2.343,2.6059999999999999]
[null,null,null,null,12,null,{"$f":"IF('Vstupni oblast dat'!H20<>\"\", IF('Vstupni oblast dat'!H20=0,1E-23,'Vstupni oblast dat'!H20),\"\")","v":""},2.387,2.6629999999999998,null,null,null,null,null,null,null,null,null,null,null,"Testové kritérium",null,null,null,"Kritické hodnoty ",null,null,null,12,null,{"$f":"IF('Vstupni oblast dat'!I18<>\"\", IF('Vstupni oblast dat'!I18=0,1E-23,'Vstupni oblast dat'!I18),\"\")","v":""},2.387,2.6629999999999998,null,null,null,null,null,null,null,null,null,12,null,{"$f":"IF('Vstupni oblast dat'!J20<>\"\", IF('Vstupni oblast dat'!J20=0,1E-23,'Vstupni oblast dat'!J20),\"\")","v":""},2.387,2.6629999999999998,null,null,null,null,null,null,null,null,null,12,null,{"$f":"IF('Vstupni oblast dat'!K20<>\"\", IF('Vstupni oblast dat'!K20=0,1E-23,'Vstupni oblast dat'!K20),\"\")","v":""},2.387,2.6629999999999998,null,null,null,null,null,null,null,null,null,12,null,{"$f":"IF('Vstupni oblast dat'!L20<>\"\", IF('Vstupni oblast dat'!L20=0,1E-23,'Vstupni oblast dat'!L20),\"\")","v":""},2.387,2.6629999999999998,null,null,null,null,null,null,null,null,null,null,12,null,{"$f":"IF('Vstupni oblast dat'!M20<>\"\", IF('Vstupni oblast dat'!M20=0,1E-23,'Vstupni oblast dat'!M20),\"\")","v":""},2.387,2.6629999999999998,null,null,null,null,null,null,null,null,null,12,null,{"$f":"IF('Vstupni oblast dat'!N20<>\"\", IF('Vstupni oblast dat'!N20=0,1E-23,'Vstupni oblast dat'!N20),\"\")","v":""},2.387,2.6629999999999998,null,null,null,null,null,null,null,null,null,null,12,null,{"$f":"IF('Vstupni oblast dat'!O20<>\"\", IF('Vstupni oblast dat'!O20=0,1E-23,'Vstupni oblast dat'!O20),\"\")","v":""},2.387,2.6629999999999998,null,null,null,null,null,null,null,null,null,12,null,{"$f":"IF('Vstupni oblast dat'!P20<>\"\", IF('Vstupni oblast dat'!P20=0,1E-23,'Vstupni oblast dat'!P20),\"\")","v":""},2.387,2.6629999999999998,null,null,null,null,null,null,null,null,null,12,null,{"$f":"IF('Vstupni oblast dat'!Q20<>\"\", IF('Vstupni oblast dat'!Q20=0,1E-23,'Vstupni oblast dat'!Q20),\"\")","v":""},2.387,2.6629999999999998]
[null,null,null,null,13,null,{"$f":"IF('Vstupni oblast dat'!H21<>\"\", IF('Vstupni oblast dat'!H21=0,1E-23,'Vstupni oblast dat'!H21),\"\")","v":""},2.4260000000000002,2.714,null,null,"...hodnota testovacího kritéria",null,null,null,null,null,null,null,null,null,null,null,null,null,null,null,null,13,null,{"$f":"IF('Vstupni oblast dat'!I21<>\"\", IF('Vstupni oblast dat'!I21=0,1E-23,'Vstupni oblast dat'!I21),\"\")","v":""},2.4260000000000002,2.714,null,"Testové kritérium",null,null,null,"Kritické hodnoty ",null,null,null,13,null,{"$f":"IF('Vstupni oblast dat'!J21<>\"\", IF('Vstupni oblast dat'!J21=0,1E-23,'Vstupni oblast dat'!J21),\"\")","v":""},2.4260000000000002,2.714,null,"Testové kritérium",null,null,null,"Kritické hodnoty ",null,null,null,13,null,{"$f":"IF('Vstupni oblast dat'!K21<>\"\", IF('Vstupni oblast dat'!K21=0,1E-23,'Vstupni oblast dat'!K21),\"\")","v":""},2.4260000000000002,2.714,null,"Testové kritérium",null,null,null,"Kritické hodnoty ",null,null,null,13,null,{"$f":"IF('Vstupni oblast dat'!L21<>\"\", IF('Vstupni oblast dat'!L21=0,1E-23,'Vstupni oblast dat'!L21),\"\")","v":""},2.4260000000000002,2.714,null,"Testové kritérium",null,null,null,"Kritické hodnoty ",null,null,null,null,13,null,{"$f":"IF('Vstupni oblast dat'!M21<>\"\", IF('Vstupni oblast dat'!M21=0,1E-23,'Vstupni oblast dat'!M21),\"\")","v":""},2.4260000000000002,2.714,null,"Testové kritérium",null,null,null,"Kritické hodnoty ",null,null,null,13,null,{"$f":"IF('Vstupni oblast dat'!N21<>\"\", IF('Vstupni oblast dat'!N21=0,1E-23,'Vstupni oblast dat'!N21),\"\")","v":""},2.4260000000000002,2.714,null,"Testové kritérium",null,null,null,"Kritické hodnoty ",null,null,null,null,13,null,{"$f":"IF('Vstupni oblast dat'!O21<>\"\", IF('Vstupni oblast dat'!O21=0,1E-23,'Vstupni oblast dat'!O21),\"\")","v":""},2.4260000000000002,2.714,null,"Testové kritérium",null,null,null,"Kritické hodnoty ",null,null,null,13,null,{"$f":"IF('Vstupni oblast dat'!P21<>\"\", IF('Vstupni oblast dat'!P21=0,1E-23,'Vstupni oblast dat'!P21),\"\")","v":""},2.4260000000000002,2.714,null,"Testové kritérium",null,null,null,"Kritické hodnoty ",null,null,null,13,null,{"$f":"IF('Vstupni oblast dat'!Q21<>\"\", IF('Vstupni oblast dat'!Q21=0,1E-23,'Vstupni oblast dat'!Q21),\"\")","v":""},2.4260000000000002,2.714,null,"Testové kritérium",null,null,null,"Kritické hodnoty "]
[null,null,null,null,14,null,{"$f":"IF('Vstupni oblast dat'!H22<>\"\", IF('Vstupni oblast dat'!H22=0,1E-23,'Vstupni oblast dat'!H22),\"\")","v":""},2.4609999999999999,2.7589999999999999,null,null,null,null,null,null,null,null,null,null,null,null,null,null,null,null,null,null,null,14,null,{"$f":"IF('Vstupni oblast dat'!I22<>\"\", IF('Vstupni oblast dat'!I22=0,1E-23,'Vstupni oblast dat'!I22),\"\")","v":""},2.4609999999999999,2.7589999999999999,null,null,null,null,null,null,null,null,null,14,null,{"$f":"IF('Vstupni oblast dat'!J22<>\"\", IF('Vstupni oblast dat'!J22=0,1E-23,'Vstupni oblast dat'!J22),\"\")","v":""},2.4609999999999999,2.7589999999999999,null,null,null,null,null,null,null,null,null,14,null,{"$f":"IF('Vstupni oblast dat'!K22<>\"\", IF('Vstupni oblast dat'!K22=0,1E-23,'Vstupni oblast dat'!K22),\"\")","v":""},2.4609999999999999,2.7589999999999999,null,null,null,null,null,null,null,null,null,14,null,{"$f":"IF('Vstupni oblast dat'!L22<>\"\", IF('Vstupni oblast dat'!L22=0,1E-23,'Vstupni oblast dat'!L22),\"\")","v":""},2.4609999999999999,2.7589999999999999,null,null,null,null,null,null,null,null,null,null,14,null,{"$f":"IF('Vstupni oblast dat'!M22<>\"\", IF('Vstupni oblast dat'!M22=0,1E-23,'Vstupni oblast dat'!M22),\"\")","v":""},2.4609999999999999,2.7589999999999999,null,null,null,null,null,null,null,null,null,14,null,{"$f":"IF('Vstupni oblast dat'!N22<>\"\", IF('Vstupni oblast dat'!N22=0,1E-23,'Vstupni oblast dat'!N22),\"\")","v":""},2.4609999999999999,2.7589999999999999,null,null,null,null,null,null,null,null,null,null,14,null,{"$f":"IF('Vstupni oblast dat'!O22<>\"\", IF('Vstupni oblast dat'!O22=0,1E-23,'Vstupni oblast dat'!O22),\"\")","v":""},2.4609999999999999,2.7589999999999999,null,null,null,null,null,null,null,null,null,14,null,{"$f":"IF('Vstupni oblast dat'!P22<>\"\", IF('Vstupni oblast dat'!P22=0,1E-23,'Vstupni oblast dat'!P22),\"\")","v":""},2.4609999999999999,2.7589999999999999,null,null,null,null,null,null,null,null,null,14,null,{"$f":"IF('Vstupni oblast dat'!Q22<>\"\", IF('Vstupni oblast dat'!Q22=0,1E-23,'Vstupni oblast dat'!Q22),\"\")","v":""},2.4609999999999999,2.7589999999999999]
[null,null,null,null,15,null,{"$f":"IF('Vstupni oblast dat'!H23<>\"\", IF('Vstupni oblast dat'!H23=0,1E-23,'Vstupni oblast dat'!H23),\"\")","v":""},2.4929999999999999,2.8,null,null,null,null,null,null,null,null,null,null,null,"T(1) =",{"$f":"V13","v":"neměřeno"},null,null,{"$f":"Grubbsuv_test_01(G42)","v":0},null,null,null,15,null,{"$f":"IF('Vstupni oblast dat'!I23<>\"\", IF('Vstupni oblast dat'!I23=0,1E-23,'Vstupni oblast dat'!I23),\"\")","v":""},2.4929999999999999,2.8,null,null,null,null,null,null,null,null,null,15,null,{"$f":"IF('Vstupni oblast dat'!J23<>\"\", IF('Vstupni oblast dat'!J23=0,1E-23,'Vstupni oblast dat'!J23),\"\")","v":""},2.4929999999999999,2.8,null,null,null,null,null,null,null,null,null,15,null,{"$f":"IF('Vstupni oblast dat'!K23<>\"\", IF('Vstupni oblast dat'!K23=0,1E-23,'Vstupni oblast dat'!K23),\"\")","v":""},2.4929999999999999,2.8,null,null,null,null,null,null,null,null,null,15,null,{"$f":"IF('Vstupni oblast dat'!L23<>\"\", IF('Vstupni oblast dat'!L23=0,1E-23,'Vstupni oblast dat'!L23),\"\")","v":""},2.4929999999999999,2.8,null,null,null,null,null,null,null,null,null,null,15,null,{"$f":"IF('Vstupni oblast dat'!M23<>\"\", IF('Vstupni oblast dat'!M23=0,1E-23,'Vstupni oblast dat'!M23),\"\")","v":""},2.4929999999999999,2.8,null,null,null,null,null,null,null,null,null,15,null,{"$f":"IF('Vstupni oblast dat'!N23<>\"\", IF('Vstupni oblast dat'!N23=0,1E-23,'Vstupni oblast dat'!N23),\"\")","v":""},2.4929999999999999,2.8,null,null,null,null,null,null,null,null,null,null,15,null,{"$f":"IF('Vstupni oblast dat'!O23<>\"\", IF('Vstupni oblast dat'!O23=0,1E-23,'Vstupni oblast dat'!O23),\"\")","v":""},2.4929999999999999,2.8,null,null,null,null,null,null,null,null,null,15,null,{"$f":"IF('Vstupni oblast dat'!P23<>\"\", IF('Vstupni oblast dat'!P23=0,1E-23,'Vstupni oblast dat'!P23),\"\")","v":""},2.4929999999999999,2.8,null,null,null,null,null,null,null,null,null,15,null,{"$f":"IF('Vstupni oblast dat'!Q23<>\"\", IF('Vstupni oblast dat'!Q23=0,1E-23,'Vstupni oblast dat'!Q23),\"\")","v":""},2.4929999999999999,2.8]
[null,null,null,null,16,null,{"$f":"IF('Vstupni oblast dat'!H24<>\"\", IF('Vstupni oblast dat'!H24=0,1E-23,'Vstupni oblast dat'!H24),\"\")","v":""},2.5230000000000001,2.8370000000000002,null,null,null,null,null,null,null,null,null,null,null,null,null,null,null,null,null,null,null,16,null,{"$f":"IF('Vstupni oblast dat'!I24<>\"\", IF('Vstupni oblast dat'!I24=0,1E-23,'Vstupni oblast dat'!I24),\"\")","v":""},2.5230000000000001,2.8370000000000002,null,"T(1) =",{"$f":"AJ14","v":"neměřeno"},null,null,{"$f":"Grubbsuv_test_01(AE42)","v":0},null,null,null,16,null,{"$f":"IF('Vstupni oblast dat'!J24<>\"\", IF('Vstupni oblast dat'!J24=0,1E-23,'Vstupni oblast dat'!J24),\"\")","v":""},2.5230000000000001,2.8370000000000002,null,"T(1) =",{"$f":"AX14","v":"neměřeno"},null,null,{"$f":"Grubbsuv_test_01(AS42)","v":0},null,null,null,16,null,{"$f":"IF('Vstupni oblast dat'!K24<>\"\", IF('Vstupni oblast dat'!K24=0,1E-23,'Vstupni oblast dat'!K24),\"\")","v":""},2.5230000000000001,2.8370000000000002,null,"T(1) =",{"$f":"BL14","v":"neměřeno"},null,null,{"$f":"Grubbsuv_test_01(BG42)","v":0},null,null,null,16,null,{"$f":"IF('Vstupni oblast dat'!L24<>\"\", IF('Vstupni oblast dat'!L24=0,1E-23,'Vstupni oblast dat'!L24),\"\")","v":""},2.5230000000000001,2.8370000000000002,null,"T(1) =",{"$f":"BZ14","v":"neměřeno"},null,null,{"$f":"Grubbsuv_test_01(BU42)","v":0},null,null,null,null,16,null,{"$f":"IF('Vstupni oblast dat'!M24<>\"\", IF('Vstupni oblast dat'!M24=0,1E-23,'Vstupni oblast dat'!M24),\"\")","v":""},2.5230000000000001,2.8370000000000002,null,"T(1) =",{"$f":"CO14","v":"neměřeno"},null,null,{"$f":"Grubbsuv_test_01(CJ42)","v":0},null,null,null,16,null,{"$f":"IF('Vstupni oblast dat'!N24<>\"\", IF('Vstupni oblast dat'!N24=0,1E-23,'Vstupni oblast dat'!N24),\"\")","v":""},2.5230000000000001,2.8370000000000002,null,"T(1) =",{"$f":"DC14","v":"neměřeno"},null,null,{"$f":"Grubbsuv_test_01(CX42)","v":0},null,null,null,null,16,null,{"$f":"IF('Vstupni oblast dat'!O24<>\"\", IF('Vstupni oblast dat'!O24=0,1E-23,'Vstupni oblast dat'!O24),\"\")","v":""},2.5230000000000001,2.8370000000000002,null,"T(1) =",{"$f":"DR14","v":"neměřeno"},null,null,{"$f":"Grubbsuv_test_01(DM42)","v":0},null,null,null,16,null,{"$f":"IF('Vstupni oblast dat'!P24<>\"\", IF('Vstupni oblast dat'!P24=0,1E-23,'Vstupni oblast dat'!P24),\"\")","v":""},2.5230000000000001,2.8370000000000002,null,"T(1) =",{"$f":"EF14","v":"neměřeno"},null,null,{"$f":"Grubbsuv_test_01(EA42)","v":0},null,null,null,16,null,{"$f":"IF('Vstupni oblast dat'!Q24<>\"\", IF('Vstupni oblast dat'!Q24=0,1E-23,'Vstupni oblast dat'!Q24),\"\")","v":""},2.5230000000000001,2.8370000000000002,null,"T(1) =",{"$f":"ET14","v":"neměřeno"},null,null,{"$f":"Grubbsuv_test_01(EO42)","v":0}]
[null,null,null,null,17,null,{"$f":"IF('Vstupni oblast dat'!H25<>\"\", IF('Vstupni oblast dat'!H25=0,1E-23,'Vstupni oblast dat'!H25),\"\")","v":""},2.5510000000000002,2.871,null,null,null,null,null,null,null,null,null,null,null,null,null,null,null,null,null,null,null,17,null,{"$f":"IF('Vstupni oblast dat'!I25<>\"\", IF('Vstupni oblast dat'!I25=0,1E-23,'Vstupni oblast dat'!I25),\"\")","v":""},2.5510000000000002,2.871,null,null,null,null,null,null,null,null,null,17,null,{"$f":"IF('Vstupni oblast dat'!J25<>\"\", IF('Vstupni oblast dat'!J25=0,1E-23,'Vstupni oblast dat'!J25),\"\")","v":""},2.5510000000000002,2.871,null,null,null,null,null,null,null,null,null,17,null,{"$f":"IF('Vstupni oblast dat'!K25<>\"\", IF('Vstupni oblast dat'!K25=0,1E-23,'Vstupni oblast dat'!K25),\"\")","v":""},2.5510000000000002,2.871,null,null,null,null,null,null,null,null,null,17,null,{"$f":"IF('Vstupni oblast dat'!L25<>\"\", IF('Vstupni oblast dat'!L25=0,1E-23,'Vstupni oblast dat'!L25),\"\")","v":""},2.5510000000000002,2.871,null,null,null,null,null,null,null,null,null,null,17,null,{"$f":"IF('Vstupni oblast dat'!M25<>\"\", IF('Vstupni oblast dat'!M25=0,1E-23,'Vstupni oblast dat'!M25),\"\")","v":""},2.5510000000000002,2.871,null,null,null,null,null,null,null,null,null,17,null,{"$f":"IF('Vstupni oblast dat'!N25<>\"\", IF('Vstupni oblast dat'!N25=0,1E-23,'Vstupni oblast dat'!N25),\"\")","v":""},2.5510000000000002,2.871,null,null,null,null,null,null,null,null,null,null,17,null,{"$f":"IF('Vstupni oblast dat'!O25<>\"\", IF('Vstupni oblast dat'!O25=0,1E-23,'Vstupni oblast dat'!O25),\"\")","v":""},2.5510000000000002,2.871,null,null,null,null,null,null,null,null,null,17,null,{"$f":"IF('Vstupni oblast dat'!P25<>\"\", IF('Vstupni oblast dat'!P25=0,1E-23,'Vstupni oblast dat'!P25),\"\")","v":""},2.5510000000000002,2.871,null,null,null,null,null,null,null,null,null,17,null,{"$f":"IF('Vstupni oblast dat'!Q25<>\"\", IF('Vstupni oblast dat'!Q25=0,1E-23,'Vstupni oblast dat'!Q25),\"\")","v":""},2.5510000000000002,2.871]
[null,null,null,null,18,null,{"$f":"IF('Vstupni oblast dat'!H26<>\"\", IF('Vstupni oblast dat'!H26=0,1E-23,'Vstupni oblast dat'!H26),\"\")","v":""},2.577,2.903,null,null,null,null,null,null,null,null,null,null,null,"T(      ) =",{"$f":"V16","v":"neměřeno"},null,null,{"$f":"Y23","v":0},null,null,null,18,null,{"$f":"IF('Vstupni oblast dat'!I26<>\"\", IF('Vstupni oblast dat'!I26=0,1E-23,'Vstupni oblast dat'!I26),\"\")","v":""},2.577,2.903,null,null,null,null,null,null,null,null,null,18,null,{"$f":"IF('Vstupni oblast dat'!J26<>\"\", IF('Vstupni oblast dat'!J26=0,1E-23,'Vstupni oblast dat'!J26),\"\")","v":""},2.577,2.903,null,null,null,null,null,null,null,null,null,18,null,{"$f":"IF('Vstupni oblast dat'!K26<>\"\", IF('Vstupni oblast dat'!K26=0,1E-23,'Vstupni oblast dat'!K26),\"\")","v":""},2.577,2.903,null,null,null,null,null,null,null,null,null,18,null,{"$f":"IF('Vstupni oblast dat'!L26<>\"\", IF('Vstupni oblast dat'!L26=0,1E-23,'Vstupni oblast dat'!L26),\"\")","v":""},2.577,2.903,null,null,null,null,null,null,null,null,null,null,18,null,{"$f":"IF('Vstupni oblast dat'!M26<>\"\", IF('Vstupni oblast dat'!M26=0,1E-23,'Vstupni oblast dat'!M26),\"\")","v":""},2.577,2.903,null,null,null,null,null,null,null,null,null,18,null,{"$f":"IF('Vstupni oblast dat'!N26<>\"\", IF('Vstupni oblast dat'!N26=0,1E-23,'Vstupni oblast dat'!N26),\"\")","v":""},2.577,2.903,null,null,null,null,null,null,null,null,null,null,18,null,{"$f":"IF('Vstupni oblast dat'!O26<>\"\", IF('Vstupni oblast dat'!O26=0,1E-23,'Vstupni oblast dat'!O26),\"\")","v":""},2.577,2.903,null,null,null,null,null,null,null,null,null,18,null,{"$f":"IF('Vstupni oblast dat'!P26<>\"\", IF('Vstupni oblast dat'!P26=0,1E-23,'Vstupni oblast dat'!P26),\"\")","v":""},2.577,2.903,null,null,null,null,null,null,null,null,null,18,null,{"$f":"IF('Vstupni oblast dat'!Q26<>\"\", IF('Vstupni oblast dat'!Q26=0,1E-23,'Vstupni oblast dat'!Q26),\"\")","v":""},2.577,2.903]
[null,null,null,null,19,null,{"$f":"IF('Vstupni oblast dat'!H27<>\"\", IF('Vstupni oblast dat'!H27=0,1E-23,'Vstupni oblast dat'!H27),\"\")","v":""},2.6,2.9319999999999999,null,null,null,null,null,null,null,null,null,null,null,null,null,null,null,null,null,null,null,19,null,{"$f":"IF('Vstupni oblast dat'!I27<>\"\", IF('Vstupni oblast dat'!I27=0,1E-23,'Vstupni oblast dat'!I27),\"\")","v":""},2.6,2.9319999999999999,null,"T(      ) =",{"$f":"AJ17","v":"neměřeno"},null,null,{"$f":"AM24","v":0},null,null,null,19,null,{"$f":"IF('Vstupni oblast dat'!J27<>\"\", IF('Vstupni oblast dat'!J27=0,1E-23,'Vstupni oblast dat'!J27),\"\")","v":""},2.6,2.9319999999999999,null,"T(      ) =",{"$f":"AX17","v":"neměřeno"},null,null,{"$f":"BA24","v":0},null,null,null,19,null,{"$f":"IF('Vstupni oblast dat'!K27<>\"\", IF('Vstupni oblast dat'!K27=0,1E-23,'Vstupni oblast dat'!K27),\"\")","v":""},2.6,2.9319999999999999,null,"T(      ) =",{"$f":"BL17","v":"neměřeno"},null,null,{"$f":"BO24","v":0},null,null,null,19,null,{"$f":"IF('Vstupni oblast dat'!L27<>\"\", IF('Vstupni oblast dat'!L27=0,1E-23,'Vstupni oblast dat'!L27),\"\")","v":""},2.6,2.9319999999999999,null,"T(      ) =",{"$f":"BZ17","v":"neměřeno"},null,null,{"$f":"CC24","v":0},null,null,null,null,19,null,{"$f":"IF('Vstupni oblast dat'!M27<>\"\", IF('Vstupni oblast dat'!M27=0,1E-23,'Vstupni oblast dat'!M27),\"\")","v":""},2.6,2.9319999999999999,null,"T(      ) =",{"$f":"CO17","v":"neměřeno"},null,null,{"$f":"CR24","v":0},null,null,null,19,null,{"$f":"IF('Vstupni oblast dat'!N27<>\"\", IF('Vstupni oblast dat'!N27=0,1E-23,'Vstupni oblast dat'!N27),\"\")","v":""},2.6,2.9319999999999999,null,"T(      ) =",{"$f":"DC17","v":"neměřeno"},null,null,{"$f":"DF24","v":0},null,null,null,null,19,null,{"$f":"IF('Vstupni oblast dat'!O27<>\"\", IF('Vstupni oblast dat'!O27=0,1E-23,'Vstupni oblast dat'!O27),\"\")","v":""},2.6,2.9319999999999999,null,"T(      ) =",{"$f":"DR17","v":"neměřeno"},null,null,{"$f":"DU24","v":0},null,null,null,19,null,{"$f":"IF('Vstupni oblast dat'!P27<>\"\", IF('Vstupni oblast dat'!P27=0,1E-23,'Vstupni oblast dat'!P27),\"\")","v":""},2.6,2.9319999999999999,null,"T(      ) =",{"$f":"EF17","v":"neměřeno"},null,null,{"$f":"EI24","v":0},null,null,null,19,null,{"$f":"IF('Vstupni oblast dat'!Q27<>\"\", IF('Vstupni oblast dat'!Q27=0,1E-23,'Vstupni oblast dat'!Q27),\"\")","v":""},2.6,2.9319999999999999,null,"T(      ) =",{"$f":"ET17","v":"neměřeno"},null,null,{"$f":"EW24","v":0}]
[null,null,null,null,20,null,{"$f":"IF('Vstupni oblast dat'!H28<>\"\", IF('Vstupni oblast dat'!H28=0,1E-23,'Vstupni oblast dat'!H28),\"\")","v":""},2.6230000000000002,2.9590000000000001,null,null,null,null,null,null,null,null,null,null,null,null,null,null,null,null,null,null,null,20,null,{"$f":"IF('Vstupni oblast dat'!I28<>\"\", IF('Vstupni oblast dat'!I28=0,1E-23,'Vstupni oblast dat'!I28),\"\")","v":""},2.6230000000000002,2.9590000000000001,null,null,null,null,null,null,null,null,null,20,null,{"$f":"IF('Vstupni oblast dat'!J28<>\"\", IF('Vstupni oblast dat'!J28=0,1E-23,'Vstupni oblast dat'!J28),\"\")","v":""},2.6230000000000002,2.9590000000000001,null,null,null,null,null,null,null,null,null,20,null,{"$f":"IF('Vstupni oblast dat'!K28<>\"\", IF('Vstupni oblast dat'!K28=0,1E-23,'Vstupni oblast dat'!K28),\"\")","v":""},2.6230000000000002,2.9590000000000001,null,null,null,null,null,null,null,null,null,20,null,{"$f":"IF('Vstupni oblast dat'!L28<>\"\", IF('Vstupni oblast dat'!L28=0,1E-23,'Vstupni oblast dat'!L28),\"\")","v":""},2.6230000000000002,2.9590000000000001,null,null,null,null,null,null,null,null,null,null,20,null,{"$f":"IF('Vstupni oblast dat'!M28<>\"\", IF('Vstupni oblast dat'!M28=0,1E-23,'Vstupni oblast dat'!M28),\"\")","v":""},2.6230000000000002,2.9590000000000001,null,null,null,null,null,null,null,null,null,20,null,{"$f":"IF('Vstupni oblast dat'!N28<>\"\", IF('Vstupni oblast dat'!N28=0,1E-23,'Vstupni oblast dat'!N28),\"\")","v":""},2.6230000000000002,2.9590000000000001,null,null,null,null,null,null,null,null,null,null,20,null,{"$f":"IF('Vstupni oblast dat'!O28<>\"\", IF('Vstupni oblast dat'!O28=0,1E-23,'Vstupni oblast dat'!O28),\"\")","v":""},2.6230000000000002,2.9590000000000001,null,null,null,null,null,null,null,null,null,20,null,{"$f":"IF('Vstupni oblast dat'!P28<>\"\", IF('Vstupni oblast dat'!P28=0,1E-23,'Vstupni oblast dat'!P28),\"\")","v":""},2.6230000000000002,2.9590000000000001,null,null,null,null,null,null,null,null,null,20,null,{"$f":"IF('Vstupni oblast dat'!Q28<>\"\", IF('Vstupni oblast dat'!Q28=0,1E-23,'Vstupni oblast dat'!Q28),\"\")","v":""},2.6230000000000002,2.9590000000000001]
[null,null,null,null,21,null,{"$f":"IF('Vstupni oblast dat'!H29<>\"\", IF('Vstupni oblast dat'!H29=0,1E-23,'Vstupni oblast dat'!H29),\"\")","v":""},2.6440000000000001,2.984,null,null,null,null,null,null,null,null,null,null,null,null,null,null,null,null,null,null,null,21,null,{"$f":"IF('Vstupni oblast dat'!I29<>\"\", IF('Vstupni oblast dat'!I29=0,1E-23,'Vstupni oblast dat'!I29),\"\")","v":""},2.6440000000000001,2.984,null,null,null,null,null,null,null,null,null,21,null,{"$f":"IF('Vstupni oblast dat'!J29<>\"\", IF('Vstupni oblast dat'!J29=0,1E-23,'Vstupni oblast dat'!J29),\"\")","v":""},2.6440000000000001,2.984,null,null,null,null,null,null,null,null,null,21,null,{"$f":"IF('Vstupni oblast dat'!K29<>\"\", IF('Vstupni oblast dat'!K29=0,1E-23,'Vstupni oblast dat'!K29),\"\")","v":""},2.6440000000000001,2.984,null,null,null,null,null,null,null,null,null,21,null,{"$f":"IF('Vstupni oblast dat'!L29<>\"\", IF('Vstupni oblast dat'!L29=0,1E-23,'Vstupni oblast dat'!L29),\"\")","v":""},2.6440000000000001,2.984,null,null,null,null,null,null,null,null,null,null,21,null,{"$f":"IF('Vstupni oblast dat'!M29<>\"\", IF('Vstupni oblast dat'!M29=0,1E-23,'Vstupni oblast dat'!M29),\"\")","v":""},2.6440000000000001,null,null,null,null,null,null,null,null,null,null,21,null,{"$f":"IF('Vstupni oblast dat'!N29<>\"\", IF('Vstupni oblast dat'!N29=0,1E-23,'Vstupni oblast dat'!N29),\"\")","v":""},2.6440000000000001,2.984,null,null,null,null,null,null,null,null,null,null,21,null,{"$f":"IF('Vstupni oblast dat'!O29<>\"\", IF('Vstupni oblast dat'!O29=0,1E-23,'Vstupni oblast dat'!O29),\"\")","v":""},2.6440000000000001,2.984,null,null,null,null,null,null,null,null,null,21,null,{"$f":"IF('Vstupni oblast dat'!P29<>\"\", IF('Vstupni oblast dat'!P29=0,1E-23,'Vstupni oblast dat'!P29),\"\")","v":""},2.6440000000000001,2.984,null,null,null,null,null,null,null,null,null,21,null,{"$f":"IF('Vstupni oblast dat'!Q29<>\"\", IF('Vstupni oblast dat'!Q29=0,1E-23,'Vstupni oblast dat'!Q29),\"\")","v":""},2.6440000000000001,2.984]
[null,null,null,null,22,null,{"$f":"IF('Vstupni oblast dat'!H30<>\"\", IF('Vstupni oblast dat'!H30=0,1E-23,'Vstupni oblast dat'!H30),\"\")","v":""},2.6640000000000001,3.008,null,null,null,null,null,null,null,null,null,null,null,null,null,null,null,null,null,null,null,22,null,{"$f":"IF('Vstupni oblast dat'!I30<>\"\", IF('Vstupni oblast dat'!I30=0,1E-23,'Vstupni oblast dat'!I30),\"\")","v":""},2.6640000000000001,3.008,null,null,null,null,null,null,null,null,null,22,null,{"$f":"IF('Vstupni oblast dat'!J30<>\"\", IF('Vstupni oblast dat'!J30=0,1E-23,'Vstupni oblast dat'!J30),\"\")","v":""},2.6640000000000001,3.008,null,null,null,null,null,null,null,null,null,22,null,{"$f":"IF('Vstupni oblast dat'!K30<>\"\", IF('Vstupni oblast dat'!K30=0,1E-23,'Vstupni oblast dat'!K30),\"\")","v":""},2.6640000000000001,3.008,null,null,null,null,null,null,null,null,null,22,null,{"$f":"IF('Vstupni oblast dat'!L30<>\"\", IF('Vstupni oblast dat'!L30=0,1E-23,'Vstupni oblast dat'!L30),\"\")","v":""},2.6640000000000001,3.008,null,null,null,null,null,null,null,null,null,null,22,null,{"$f":"IF('Vstupni oblast dat'!M30<>\"\", IF('Vstupni oblast dat'!M30=0,1E-23,'Vstupni oblast dat'!M30),\"\")","v":""},2.6640000000000001,3.008,null,null,null,null,null,null,null,null,null,22,null,{"$f":"IF('Vstupni oblast dat'!N30<>\"\", IF('Vstupni oblast dat'!N30=0,1E-23,'Vstupni oblast dat'!N30),\"\")","v":""},2.6640000000000001,3.008,null,null,null,null,null,null,null,null,null,null,22,null,{"$f":"IF('Vstupni oblast dat'!O30<>\"\", IF('Vstupni oblast dat'!O30=0,1E-23,'Vstupni oblast dat'!O30),\"\")","v":""},2.6640000000000001,3.008,null,null,null,null,null,null,null,null,null,22,null,{"$f":"IF('Vstupni oblast dat'!P30<>\"\", IF('Vstupni oblast dat'!P30=0,1E-23,'Vstupni oblast dat'!P30),\"\")","v":""},2.6640000000000001,3.008,null,null,null,null,null,null,null,null,null,22,null,{"$f":"IF('Vstupni oblast dat'!Q30<>\"\", IF('Vstupni oblast dat'!Q30=0,1E-23,'Vstupni oblast dat'!Q30),\"\")","v":""},2.6640000000000001,3.008]
[null,null,null,null,23,null,{"$f":"IF('Vstupni oblast dat'!H31<>\"\", IF('Vstupni oblast dat'!H31=0,1E-23,'Vstupni oblast dat'!H31),\"\")","v":""},2.6829999999999998,3.03,null,null,null,null,null,null,null,null,null,null,null,null,null,null,null,null,null,null,null,23,null,{"$f":"IF('Vstupni oblast dat'!I31<>\"\", IF('Vstupni oblast dat'!I31=0,1E-23,'Vstupni oblast dat'!I31),\"\")","v":""},2.6829999999999998,3.03,null,null,null,null,null,null,null,null,null,23,null,{"$f":"IF('Vstupni oblast dat'!J31<>\"\", IF('Vstupni oblast dat'!J31=0,1E-23,'Vstupni oblast dat'!J31),\"\")","v":""},2.6829999999999998,3.03,null,null,null,null,null,null,null,null,null,23,null,{"$f":"IF('Vstupni oblast dat'!K31<>\"\", IF('Vstupni oblast dat'!K31=0,1E-23,'Vstupni oblast dat'!K31),\"\")","v":""},2.6829999999999998,3.03,null,null,null,null,null,null,null,null,null,23,null,{"$f":"IF('Vstupni oblast dat'!L31<>\"\", IF('Vstupni oblast dat'!L31=0,1E-23,'Vstupni oblast dat'!L31),\"\")","v":""},2.6829999999999998,3.03,null,null,null,null,null,null,null,null,null,null,23,null,{"$f":"IF('Vstupni oblast dat'!M31<>\"\", IF('Vstupni oblast dat'!M31=0,1E-23,'Vstupni oblast dat'!M31),\"\")","v":""},2.6829999999999998,3.03,null,null,null,null,null,null,null,null,null,23,null,{"$f":"IF('Vstupni oblast dat'!N31<>\"\", IF('Vstupni oblast dat'!N31=0,1E-23,'Vstupni oblast dat'!N31),\"\")","v":""},2.6829999999999998,3.03,null,null,null,null,null,null,null,null,null,null,23,null,{"$f":"IF('Vstupni oblast dat'!O31<>\"\", IF('Vstupni oblast dat'!O31=0,1E-23,'Vstupni oblast dat'!O31),\"\")","v":""},2.6829999999999998,3.03,null,null,null,null,null,null,null,null,null,23,null,{"$f":"IF('Vstupni oblast dat'!P31<>\"\", IF('Vstupni oblast dat'!P31=0,1E-23,'Vstupni oblast dat'!P31),\"\")","v":""},2.6829999999999998,3.03,null,null,null,null,null,null,null,null,null,23,null,{"$f":"IF('Vstupni oblast dat'!Q31<>\"\", IF('Vstupni oblast dat'!Q31=0,1E-23,'Vstupni oblast dat'!Q31),\"\")","v":""},2.6829999999999998,3.03]
[null,null,null,null,24,null,{"$f":"IF('Vstupni oblast dat'!H32<>\"\", IF('Vstupni oblast dat'!H32=0,1E-23,'Vstupni oblast dat'!H32),\"\")","v":""},2.7010000000000001,3.0510000000000002,null,null,null,null,null,null,null,null,null,null,null,null,null,null,null,null,null,null,null,24,null,{"$f":"IF('Vstupni oblast dat'!I32<>\"\", IF('Vstupni oblast dat'!I32=0,1E-23,'Vstupni oblast dat'!I32),\"\")","v":""},2.7010000000000001,3.0510000000000002,null,null,null,null,null,null,null,null,null,24,null,{"$f":"IF('Vstupni oblast dat'!J32<>\"\", IF('Vstupni oblast dat'!J32=0,1E-23,'Vstupni oblast dat'!J32),\"\")","v":""},2.7010000000000001,3.0510000000000002,null,null,null,null,null,null,null,null,null,24,null,{"$f":"IF('Vstupni oblast dat'!K32<>\"\", IF('Vstupni oblast dat'!K32=0,1E-23,'Vstupni oblast dat'!K32),\"\")","v":""},2.7010000000000001,3.0510000000000002,null,null,null,null,null,null,null,null,null,24,null,{"$f":"IF('Vstupni oblast dat'!L32<>\"\", IF('Vstupni oblast dat'!L32=0,1E-23,'Vstupni oblast dat'!L32),\"\")","v":""},2.7010000000000001,3.0510000000000002,null,null,null,null,null,null,null,null,null,null,24,null,{"$f":"IF('Vstupni oblast dat'!M32<>\"\", IF('Vstupni oblast dat'!M32=0,1E-23,'Vstupni oblast dat'!M32),\"\")","v":""},2.7010000000000001,3.0510000000000002,null,null,null,null,null,null,null,null,null,24,null,{"$f":"IF('Vstupni oblast dat'!N32<>\"\", IF('Vstupni oblast dat'!N32=0,1E-23,'Vstupni oblast dat'!N32),\"\")","v":""},2.7010000000000001,3.0510000000000002,null,null,null,null,null,null,null,null,null,null,24,null,{"$f":"IF('Vstupni oblast dat'!O32<>\"\", IF('Vstupni oblast dat'!O32=0,1E-23,'Vstupni oblast dat'!O32),\"\")","v":""},2.7010000000000001,3.0510000000000002,null,null,null,null,null,null,null,null,null,24,null,{"$f":"IF('Vstupni oblast dat'!P32<>\"\", IF('Vstupni oblast dat'!P32=0,1E-23,'Vstupni oblast dat'!P32),\"\")","v":""},2.7010000000000001,3.0510000000000002,null,null,null,null,null,null,null,null,null,24,null,{"$f":"IF('Vstupni oblast dat'!Q32<>\"\", IF('Vstupni oblast dat'!Q32=0,1E-23,'Vstupni oblast dat'!Q32),\"\")","v":""},2.7010000000000001,3.0510000000000002]
[null,null,null,null,25,null,{"$f":"IF('Vstupni oblast dat'!H33<>\"\", IF('Vstupni oblast dat'!H33=0,1E-23,'Vstupni oblast dat'!H33),\"\")","v":""},2.7170000000000001,3.0710000000000002,null,null,null,null,null,null,null,null,null,null,null,null,null,null,null,null,null,null,null,25,null,{"$f":"IF('Vstupni oblast dat'!I33<>\"\", IF('Vstupni oblast dat'!I33=0,1E-23,'Vstupni oblast dat'!I33),\"\")","v":""},2.7170000000000001,3.0710000000000002,null,null,null,null,null,null,null,null,null,25,null,{"$f":"IF('Vstupni oblast dat'!J33<>\"\", IF('Vstupni oblast dat'!J33=0,1E-23,'Vstupni oblast dat'!J33),\"\")","v":""},2.7170000000000001,3.0710000000000002,null,null,null,null,null,null,null,null,null,25,null,{"$f":"IF('Vstupni oblast dat'!K33<>\"\", IF('Vstupni oblast dat'!K33=0,1E-23,'Vstupni oblast dat'!K33),\"\")","v":""},2.7170000000000001,3.0710000000000002,null,null,null,null,null,null,null,null,null,25,null,{"$f":"IF('Vstupni oblast dat'!L33<>\"\", IF('Vstupni oblast dat'!L33=0,1E-23,'Vstupni oblast dat'!L33),\"\")","v":""},2.7170000000000001,3.0710000000000002,null,null,null,null,null,null,null,null,null,null,25,null,{"$f":"IF('Vstupni oblast dat'!M33<>\"\", IF('Vstupni oblast dat'!M33=0,1E-23,'Vstupni oblast dat'!M33),\"\")","v":""},2.7170000000000001,3.0710000000000002,null,null,null,null,null,null,null,null,null,25,null,{"$f":"IF('Vstupni oblast dat'!N33<>\"\", IF('Vstupni oblast dat'!N33=0,1E-23,'Vstupni oblast dat'!N33),\"\")","v":""},2.7170000000000001,3.0710000000000002,null,null,null,null,null,null,null,null,null,null,25,null,{"$f":"IF('Vstupni oblast dat'!O33<>\"\", IF('Vstupni oblast dat'!O33=0,1E-23,'Vstupni oblast dat'!O33),\"\")","v":""},2.7170000000000001,3.0710000000000002,null,null,null,null,null,null,null,null,null,25,null,{"$f":"IF('Vstupni oblast dat'!P33<>\"\", IF('Vstupni oblast dat'!P33=0,1E-23,'Vstupni oblast dat'!P33),\"\")","v":""},2.7170000000000001,3.0710000000000002,null,null,null,null,null,null,null,null,null,25,null,{"$f":"IF('Vstupni oblast dat'!Q33<>\"\", IF('Vstupni oblast dat'!Q33=0,1E-23,'Vstupni oblast dat'!Q33),\"\")","v":""},2.7170000000000001,3.0710000000000002]
[null,null,null,null,26,null,{"$f":"IF('Vstupni oblast dat'!H34<>\"\", IF('Vstupni oblast dat'!H34=0,1E-23,'Vstupni oblast dat'!H34),\"\")","v":""},2.7309999999999999,3.089,null,null,null,null,null,null,null,null,null,null,null,null,null,null,null,null,null,null,null,26,null,{"$f":"IF('Vstupni oblast dat'!I34<>\"\", IF('Vstupni oblast dat'!I34=0,1E-23,'Vstupni oblast dat'!I34),\"\")","v":""},2.7309999999999999,3.089,null,null,null,null,null,null,null,null,null,26,null,{"$f":"IF('Vstupni oblast dat'!J34<>\"\", IF('Vstupni oblast dat'!J34=0,1E-23,'Vstupni oblast dat'!J34),\"\")","v":""},2.7309999999999999,3.089,null,null,null,null,null,null,null,null,null,26,null,{"$f":"IF('Vstupni oblast dat'!K34<>\"\", IF('Vstupni oblast dat'!K34=0,1E-23,'Vstupni oblast dat'!K34),\"\")","v":""},2.7309999999999999,3.089,null,null,null,null,null,null,null,null,null,26,null,{"$f":"IF('Vstupni oblast dat'!L34<>\"\", IF('Vstupni oblast dat'!L34=0,1E-23,'Vstupni oblast dat'!L34),\"\")","v":""},2.7309999999999999,3.089,null,null,null,null,null,null,null,null,null,null,26,null,{"$f":"IF('Vstupni oblast dat'!M34<>\"\", IF('Vstupni oblast dat'!M34=0,1E-23,'Vstupni oblast dat'!M34),\"\")","v":""},2.7309999999999999,3.089,null,null,null,null,null,null,null,null,null,26,null,{"$f":"IF('Vstupni oblast dat'!N34<>\"\", IF('Vstupni oblast dat'!N34=0,1E-23,'Vstupni oblast dat'!N34),\"\")","v":""},2.7309999999999999,3.089,null,null,null,null,null,null,null,null,null,null,26,null,{"$f":"IF('Vstupni oblast dat'!O34<>\"\", IF('Vstupni oblast dat'!O34=0,1E-23,'Vstupni oblast dat'!O34),\"\")","v":""},2.7309999999999999,3.089,null,null,null,null,null,null,null,null,null,26,null,{"$f":"IF('Vstupni oblast dat'!P34<>\"\", IF('Vstupni oblast dat'!P34=0,1E-23,'Vstupni oblast dat'!P34),\"\")","v":""},2.7309999999999999,3.089,null,null,null,null,null,null,null,null,null,26,null,{"$f":"IF('Vstupni oblast dat'!Q34<>\"\", IF('Vstupni oblast dat'!Q34=0,1E-23,'Vstupni oblast dat'!Q34),\"\")","v":""},2.7309999999999999,3.089]
[null,null,null,null,27,null,{"$f":"IF('Vstupni oblast dat'!H35<>\"\", IF('Vstupni oblast dat'!H35=0,1E-23,'Vstupni oblast dat'!H35),\"\")","v":""},2.7429999999999999,3.105,null,null,null,null,null,null,null,null,null,null,null,null,null,null,null,null,null,null,null,27,null,{"$f":"IF('Vstupni oblast dat'!I35<>\"\", IF('Vstupni oblast dat'!I35=0,1E-23,'Vstupni oblast dat'!I35),\"\")","v":""},2.7429999999999999,3.105,null,null,null,null,null,null,null,null,null,27,null,{"$f":"IF('Vstupni oblast dat'!J35<>\"\", IF('Vstupni oblast dat'!J35=0,1E-23,'Vstupni oblast dat'!J35),\"\")","v":""},2.7429999999999999,3.105,null,null,null,null,null,null,null,null,null,27,null,{"$f":"IF('Vstupni oblast dat'!K35<>\"\", IF('Vstupni oblast dat'!K35=0,1E-23,'Vstupni oblast dat'!K35),\"\")","v":""},2.7429999999999999,3.105,null,null,null,null,null,null,null,null,null,27,null,{"$f":"IF('Vstupni oblast dat'!L35<>\"\", IF('Vstupni oblast dat'!L35=0,1E-23,'Vstupni oblast dat'!L35),\"\")","v":""},2.7429999999999999,3.105,null,null,null,null,null,null,null,null,null,null,27,null,{"$f":"IF('Vstupni oblast dat'!M35<>\"\", IF('Vstupni oblast dat'!M35=0,1E-23,'Vstupni oblast dat'!M35),\"\")","v":""},2.7429999999999999,3.105,null,null,null,null,null,null,null,null,null,27,null,{"$f":"IF('Vstupni oblast dat'!N35<>\"\", IF('Vstupni oblast dat'!N35=0,1E-23,'Vstupni oblast dat'!N35),\"\")","v":""},2.7429999999999999,3.105,null,null,null,null,null,null,null,null,null,null,27,null,{"$f":"IF('Vstupni oblast dat'!O35<>\"\", IF('Vstupni oblast dat'!O35=0,1E-23,'Vstupni oblast dat'!O35),\"\")","v":""},2.7429999999999999,3.105,null,null,null,null,null,null,null,null,null,27,null,{"$f":"IF('Vstupni oblast dat'!P35<>\"\", IF('Vstupni oblast dat'!P35=0,1E-23,'Vstupni oblast dat'!P35),\"\")","v":""},2.7429999999999999,3.105,null,null,null,null,null,null,null,null,null,27,null,{"$f":"IF('Vstupni oblast dat'!Q35<>\"\", IF('Vstupni oblast dat'!Q35=0,1E-23,'Vstupni oblast dat'!Q35),\"\")","v":""},2.7429999999999999,3.105]
[null,null,null,null,28,null,{"$f":"IF('Vstupni oblast dat'!H36<>\"\", IF('Vstupni oblast dat'!H36=0,1E-23,'Vstupni oblast dat'!H36),\"\")","v":""},2.7530000000000001,3.1190000000000002,null,null,null,null,null,null,null,null,null,null,null,null,null,null,null,null,null,null,null,28,null,{"$f":"IF('Vstupni oblast dat'!I36<>\"\", IF('Vstupni oblast dat'!I36=0,1E-23,'Vstupni oblast dat'!I36),\"\")","v":""},2.7530000000000001,3.1190000000000002,null,null,null,null,null,null,null,null,null,28,null,{"$f":"IF('Vstupni oblast dat'!J36<>\"\", IF('Vstupni oblast dat'!J36=0,1E-23,'Vstupni oblast dat'!J36),\"\")","v":""},2.7530000000000001,3.1190000000000002,null,null,null,null,null,null,null,null,null,28,null,{"$f":"IF('Vstupni oblast dat'!K36<>\"\", IF('Vstupni oblast dat'!K36=0,1E-23,'Vstupni oblast dat'!K36),\"\")","v":""},2.7530000000000001,3.1190000000000002,null,null,null,null,null,null,null,null,null,28,null,{"$f":"IF('Vstupni oblast dat'!L36<>\"\", IF('Vstupni oblast dat'!L36=0,1E-23,'Vstupni oblast dat'!L36),\"\")","v":""},2.7530000000000001,3.1190000000000002,null,null,null,null,null,null,null,null,null,null,28,null,{"$f":"IF('Vstupni oblast dat'!M36<>\"\", IF('Vstupni oblast dat'!M36=0,1E-23,'Vstupni oblast dat'!M36),\"\")","v":""},2.7530000000000001,3.1190000000000002,null,null,null,null,null,null,null,null,null,28,null,{"$f":"IF('Vstupni oblast dat'!N36<>\"\", IF('Vstupni oblast dat'!N36=0,1E-23,'Vstupni oblast dat'!N36),\"\")","v":""},2.7530000000000001,3.1190000000000002,null,null,null,null,null,null,null,null,null,null,28,null,{"$f":"IF('Vstupni oblast dat'!O36<>\"\", IF('Vstupni oblast dat'!O36=0,1E-23,'Vstupni oblast dat'!O36),\"\")","v":""},2.7530000000000001,3.1190000000000002,null,null,null,null,null,null,null,null,null,28,null,{"$f":"IF('Vstupni oblast dat'!P36<>\"\", IF('Vstupni oblast dat'!P36=0,1E-23,'Vstupni oblast dat'!P36),\"\")","v":""},2.7530000000000001,3.1190000000000002,null,null,null,null,null,null,null,null,null,28,null,{"$f":"IF('Vstupni oblast dat'!Q36<>\"\", IF('Vstupni oblast dat'!Q36=0,1E-23,'Vstupni oblast dat'!Q36),\"\")","v":""},2.7530000000000001,3.1190000000000002]
[null,null,null,null,29,null,{"$f":"IF('Vstupni oblast dat'!H37<>\"\", IF('Vstupni oblast dat'!H37=0,1E-23,'Vstupni oblast dat'!H37),\"\")","v":""},2.7610000000000001,3.1309999999999998,null,null,null,null,null,null,null,null,null,null,null,null,null,null,null,null,null,null,null,29,null,{"$f":"IF('Vstupni oblast dat'!I37<>\"\", IF('Vstupni oblast dat'!I37=0,1E-23,'Vstupni oblast dat'!I37),\"\")","v":""},2.7610000000000001,3.1309999999999998,null,null,null,null,null,null,null,null,null,29,null,{"$f":"IF('Vstupni oblast dat'!J37<>\"\", IF('Vstupni oblast dat'!J37=0,1E-23,'Vstupni oblast dat'!J37),\"\")","v":""},2.7610000000000001,3.1309999999999998,null,null,null,null,null,null,null,null,null,29,null,{"$f":"IF('Vstupni oblast dat'!K37<>\"\", IF('Vstupni oblast dat'!K37=0,1E-23,'Vstupni oblast dat'!K37),\"\")","v":""},2.7610000000000001,3.1309999999999998,null,null,null,null,null,null,null,null,null,29,null,{"$f":"IF('Vstupni oblast dat'!L37<>\"\", IF('Vstupni oblast dat'!L37=0,1E-23,'Vstupni oblast dat'!L37),\"\")","v":""},2.7610000000000001,3.1309999999999998,null,null,null,null,null,null,null,null,null,null,29,null,{"$f":"IF('Vstupni oblast dat'!M37<>\"\", IF('Vstupni oblast dat'!M37=0,1E-23,'Vstupni oblast dat'!M37),\"\")","v":""},2.7610000000000001,3.1309999999999998,null,null,null,null,null,null,null,null,null,29,null,{"$f":"IF('Vstupni oblast dat'!N37<>\"\", IF('Vstupni oblast dat'!N37=0,1E-23,'Vstupni oblast dat'!N37),\"\")","v":""},2.7610000000000001,3.1309999999999998,null,null,null,null,null,null,null,null,null,null,29,null,{"$f":"IF('Vstupni oblast dat'!O37<>\"\", IF('Vstupni oblast dat'!O37=0,1E-23,'Vstupni oblast dat'!O37),\"\")","v":""},2.7610000000000001,3.1309999999999998,null,null,null,null,null,null,null,null,null,29,null,{"$f":"IF('Vstupni oblast dat'!P37<>\"\", IF('Vstupni oblast dat'!P37=0,1E-23,'Vstupni oblast dat'!P37),\"\")","v":""},2.7610000000000001,3.1309999999999998,null,null,null,null,null,null,null,null,null,29,null,{"$f":"IF('Vstupni oblast dat'!Q37<>\"\", IF('Vstupni oblast dat'!Q37=0,1E-23,'Vstupni oblast dat'!Q37),\"\")","v":""},2.7610000000000001,3.1309999999999998]
[null,null,null,null,30,null,{"$f":"IF('Vstupni oblast dat'!H38<>\"\", IF('Vstupni oblast dat'!H38=0,1E-23,'Vstupni oblast dat'!H38),\"\")","v":""},2.7669999999999999,3.141,null,null,null,null,null,null,null,null,null,null,null,null,null,null,null,null,null,null,null,30,null,{"$f":"IF('Vstupni oblast dat'!I38<>\"\", IF('Vstupni oblast dat'!I38=0,1E-23,'Vstupni oblast dat'!I38),\"\")","v":""},2.7669999999999999,3.141,null,null,null,null,null,null,null,null,null,30,null,{"$f":"IF('Vstupni oblast dat'!J38<>\"\", IF('Vstupni oblast dat'!J38=0,1E-23,'Vstupni oblast dat'!J38),\"\")","v":""},2.7669999999999999,3.141,null,null,null,null,null,null,null,null,null,30,null,{"$f":"IF('Vstupni oblast dat'!K38<>\"\", IF('Vstupni oblast dat'!K38=0,1E-23,'Vstupni oblast dat'!K38),\"\")","v":""},2.7669999999999999,3.141,null,null,null,null,null,null,null,null,null,30,null,{"$f":"IF('Vstupni oblast dat'!L38<>\"\", IF('Vstupni oblast dat'!L38=0,1E-23,'Vstupni oblast dat'!L38),\"\")","v":""},2.7669999999999999,3.141,null,null,null,null,null,null,null,null,null,null,30,null,{"$f":"IF('Vstupni oblast dat'!M38<>\"\", IF('Vstupni oblast dat'!M38=0,1E-23,'Vstupni oblast dat'!M38),\"\")","v":""},2.7669999999999999,3.141,null,null,null,null,null,null,null,null,null,30,null,{"$f":"IF('Vstupni oblast dat'!N38<>\"\", IF('Vstupni oblast dat'!N38=0,1E-23,'Vstupni oblast dat'!N38),\"\")","v":""},2.7669999999999999,3.141,null,null,null,null,null,null,null,null,null,null,30,null,{"$f":"IF('Vstupni oblast dat'!O38<>\"\", IF('Vstupni oblast dat'!O38=0,1E-23,'Vstupni oblast dat'!O38),\"\")","v":""},2.7669999999999999,3.141,null,null,null,null,null,null,null,null,null,30,null,{"$f":"IF('Vstupni oblast dat'!P38<>\"\", IF('Vstupni oblast dat'!P38=0,1E-23,'Vstupni oblast dat'!P38),\"\")","v":""},2.7669999999999999,3.141,null,null,null,null,null,null,null,null,null,30,null,{"$f":"IF('Vstupni oblast dat'!Q38<>\"\", IF('Vstupni oblast dat'!Q38=0,1E-23,'Vstupni oblast dat'!Q38),\"\")","v":""},2.7669999999999999,3.141]
[null,null,null,null,"Aritmetický průměr",null,{"$f":"IF(G42<>0,(G41/G42),\"\")","v":""},null,null,null,null,null,null,null,null,null,null,null,null,null,null,null,null,null,null,null,null,null,"Aritmetický průměr",null,{"$f":"IF(AE42<>0,(AE41/AE42),\"\")","v":""},null,null,null,null,null,null,null,null,null,null,null,"Aritmetický průměr",null,{"$f":"IF(AS42<>0,(AS41/AS42),\"\")","v":""},null,null,null,null,null,null,null,null,null,null,null,"Aritmetický průměr",null,{"$f":"IF(BG42<>0,(BG41/BG42),\"\")","v":""},null,null,null,null,null,null,null,null,null,null,null,"Aritmetický průměr",null,{"$f":"IF(BU42<>0,(BU41/BU42),\"\")","v":""},null,null,null,null,null,null,null,null,null,null,null,null,"Aritmetický průměr",null,{"$f":"IF(CJ42<>0,(CJ41/CJ42),\"\")","v":""},null,null,null,null,null,null,null,null,null,null,null,"Aritmetický průměr",null,{"$f":"IF(CX42<>0,(CX41/CX42),\"\")","v":""},null,null,null,null,null,null,null,null,null,null,null,null,"Aritmetický průměr",null,{"$f":"IF(DM42<>0,(DM41/DM42),\"\")","v":""},null,null,null,null,null,null,null,null,null,null,null,"Aritmetický průměr",null,{"$f":"IF(EA42<>0,(EA41/EA42),\"\")","v":""},null,null,null,null,null,null,null,null,null,null,null,"Aritmetický průměr",null,{"$f":"IF(EO42<>0,(EO41/EO42),\"\")","v":""}]
[null,null,null,null,"Sx",null,{"$f":" IF(G42<>0,(_xlfn.STDEV.P(G9:G38)),\"\")","v":""},null,null,null,null,null,null,null,null,null,null,null,null,null,null,null,null,null,null,null,null,null,"Sx",null,{"$f":" IF(AE42<>0,(_xlfn.STDEV.P(AE9:AE38)),\"\")","v":""},null,null,null,null,null,null,null,null,null,null,null,"Sx",null,{"$f":" IF(AS42<>0,(_xlfn.STDEV.P(AS9:AS38)),\"\")","v":""},null,null,null,null,null,null,null,null,null,null,null,"Sx",null,{"$f":" IF(BG42<>0,(_xlfn.STDEV.P(BG9:BG38)),\"\")","v":""},null,null,null,null,null,null,null,null,null,null,null,"Sx",null,{"$f":" IF(BU42<>0,(_xlfn.STDEV.P(BU9:BU38)),\"\")","v":""},null,null,null,null,null,null,null,null,null,null,null,null,"Sx",null,{"$f":" IF(CJ42<>0,(_xlfn.STDEV.P(CJ9:CJ38)),\"\")","v":""},null,null,null,null,null,null,null,null,null,null,null,"Sx",null,{"$f":" IF(CX42<>0,(_xlfn.STDEV.P(CX9:CX38)),\"\")","v":""},null,null,null,null,null,null,null,null,null,null,null,null,"Sx",null,{"$f":" IF(DM42<>0,(_xlfn.STDEV.P(DM9:DM38)),\"\")","v":""},null,null,null,null,null,null,null,null,null,null,null,"Sx",null,{"$f":" IF(EA42<>0,(_xlfn.STDEV.P(EA9:EA38)),\"\")","v":""},null,null,null,null,null,null,null,null,null,null,null,"Sx",null,{"$f":" IF(EO42<>0,(_xlfn.STDEV.P(EO9:EO38)),\"\")","v":""}]
[null,null,null,null,"Suma",null,{"$f":"IF(G42<>0,(SUM(G9:G38)),\"\")","v":""},null,null,null,null,null,null,null,null,null,null,null,null,null,null,null,null,null,null,null,null,null,"Suma",null,{"$f":"IF(AE42<>0,(SUM(AE9:AE38)),\"\")","v":""},null,null,null,null,null,null,null,null,null,null,null,"Suma",null,{"$f":"IF(AS42<>0,(SUM(AS9:AS38)),\"\")","v":""},null,null,null,null,null,null,null,null,null,null,null,"Suma",null,{"$f":"IF(BG42<>0,(SUM(BG9:BG38)),\"\")","v":""},null,null,null,null,null,null,null,null,null,null,null,"Suma",null,{"$f":"IF(BU42<>0,(SUM(BU9:BU38)),\"\")","v":""},null,null,null,null,null,null,null,null,null,null,null,null,"Suma",null,{"$f":"IF(CJ42<>0,(SUM(CJ9:CJ38)),\"\")","v":""},null,null,null,null,null,null,null,null,null,null,null,"Suma",null,{"$f":"IF(CX42<>0,(SUM(CX9:CX38)),\"\")","v":""},null,null,null,null,null,null,null,null,null,null,null,null,"Suma",null,{"$f":"IF(DM42<>0,(SUM(DM9:DM38)),\"\")","v":""},null,null,null,null,null,null,null,null,null,null,null,"Suma",null,{"$f":"IF(EA42<>0,(SUM(EA9:EA38)),\"\")","v":""},null,null,null,null,null,null,null,null,null,null,null,"Suma",null,{"$f":"IF(EO42<>0,(SUM(EO9:EO38)),\"\")","v":""}]
[null,null,null,null,"Počet - n ",null,{"$f":"COUNTIFS(G9:G38,\"<0\")+COUNTIFS(G9:G38,\">0\")","v":0},null,null,null,null,null,null,null,null,null,null,null,null,null,null,null,null,null,null,null,null,null,"Počet - n ",null,{"$f":"COUNTIFS(AE9:AE38,\"<0\")+COUNTIFS(AE9:AE38,\">0\")","v":0},null,null,null,null,null,null,null,null,null,null,null,"Počet - n ",null,{"$f":"COUNTIFS(AS9:AS38,\"<0\")+COUNTIFS(AS9:AS38,\">0\")","v":0},null,null,null,null,null,null,null,null,null,null,null,"Počet - n ",null,{"$f":"COUNTIFS(BG9:BG38,\"<0\")+COUNTIFS(BG9:BG38,\">0\")","v":0},null,null,null,null,null,null,null,null,null,null,null,"Počet - n ",null,{"$f":"COUNTIFS(BU9:BU38,\"<0\")+COUNTIFS(BU9:BU38,\">0\")","v":0},null,null,null,null,null,null,null,null,null,null,null,null,"Počet - n ",null,{"$f":"COUNTIFS(CJ9:CJ38,\"<0\")+COUNTIFS(CJ9:CJ38,\">0\")","v":0},null,null,null,null,null,null,null,null,null,null,null,"Počet - n ",null,{"$f":"COUNTIFS(CX9:CX38,\"<0\")+COUNTIFS(CX9:CX38,\">0\")","v":0},null,null,null,null,null,null,null,null,null,null,null,null,"Počet - n ",null,{"$f":"COUNTIFS(DM9:DM38,\"<0\")+COUNTIFS(DM9:DM38,\">0\")","v":0},null,null,null,null,null,null,null,null,null,null,null,"Počet - n ",null,{"$f":"COUNTIFS(EA9:EA38,\"<0\")+COUNTIFS(EA9:EA38,\">0\")","v":0},null,null,null,null,null,null,null,null,null,null,null,"Počet - n ",null,{"$f":"COUNTIFS(EO9:EO38,\"<0\")+COUNTIFS(EO9:EO38,\">0\")","v":0}]

{"sheet":"1.regrese","index":3,"n_rows":70,"n_cols":53,"rows_kept":70,"cut":false,"hidden":false,"merged":[[69,46,69,47],[64,46,64,47],[65,46,65,47],[66,46,66,47],[67,46,67,47],[68,46,68,47],[59,46,59,47],[60,46,60,47],[61,46,61,47],[62,46,62,47],[63,46,63,47],[54,46,54,47],[55,46,55,47],[56,46,56,47],[57,46,57,47],[58,46,58,47],[49,46,49,47],[50,46,50,47],[51,46,51,47],[52,46,52,47],[53,46,53,47],[44,46,44,47],[45,46,45,47],[46,46,46,47],[47,46,47,47],[48,46,48,47],[39,46,39,47],[40,46,40,47],[41,46,41,47],[42,46,42,47],[43,46,43,47],[32,46,32,48],[34,46,38,47],[35,48,36,48],[35,49,36,49],[35,50,36,50],[37,48,38,48],[37,49,38,49],[37,50,38,50],[20,46,20,48],[21,46,21,48],[25,46,25,48],[26,46,26,53],[27,46,27,48],[12,46,12,51],[12,52,12,53],[13,46,13,53],[15,46,15,47],[16,46,16,47],[8,4,8,5],[9,4,9,5],[3,4,7,5],[3,8,3,9],[4,6,5,6],[4,7,5,7],[4,8,7,8],[4,9,7,9],[6,6,7,6],[6,7,7,7],[9,62,9,63],[9,66,9,67],[9,70,9,72],[11,4,11,5],[10,4,10,5],[9,46,9,53],[10,46,10,53],[11,46,11,51],[11,52,11,53],[12,4,12,5],[13,4,13,5],[23,4,23,5],[14,4,14,5],[15,4,15,5],[16,4,16,5],[17,4,17,5],[18,4,18,5],[19,4,19,5],[20,4,20,5],[20,12,20,14],[21,4,21,5],[22,4,22,5],[35,4,35,5],[24,4,24,5],[25,4,25,5],[26,4,26,5],[27,4,27,5],[28,4,28,5],[29,4,29,5],[30,4,30,5],[31,4,31,5],[32,4,32,5],[33,4,33,5],[34,4,34,5],[36,4,36,5],[37,4,37,5],[39,4,39,5],[40,4,40,5],[41,4,41,5]]}
[null,null,null,"počet","%","kus"]
[]
[null,null,null,null,null,null,null,null,null,null,null,null,null,null,null,null,null,"y ̅"]
[" jednotky ",null,null,null,"n",null,"yi","xi"]
["jednotky ",null,null,null,null,null,{"$f":"'Vstupni oblast dat'!G5:G6","v":"Závisle proměnná"},{"$f":"'Vstupni oblast dat'!H5:H6","v":"1.regresor"}]
["*"]
["^2",null,null,null,null,null,{"$f":"'Vstupni oblast dat'!G7:G8","v":"[ jednotky ]"},{"$f":"'Vstupni oblast dat'!H7:H8","v":"[ jednotky ]"},null,null,null,null,null,null,null,null,"yi*x1i","yi2","xi2"]
[null,null,null,null,null,null,null,null,null,null,null,null,null,null,null,null,{"$f":"A4&A6&A5","v":" jednotky *jednotky "},{"$f":"A4&A7","v":" jednotky ^2"},{"$f":"A5&A7","v":"jednotky ^2"},{"$f":"A4","v":" jednotky "},{"$f":"T8","v":" jednotky "}]
[null,null,null,null,{"$f":"1","v":1},null,{"$f":"IF('Vstupni oblast dat2'!G9<>\"0\",'Vstupni oblast dat2'!G9,\"\")","v":0},{"$f":"IF('Vstupni oblast dat2'!H9<>\"0\",'Vstupni oblast dat2'!H9,\"\")","v":0},null,null,null,null,null,null,null,null,{"$f":"G9*H9","v":0},{"$f":"G9*G9","v":0},{"$f":"H9*H9","v":0},{"$f":"AX40","v":0},{"$f":"(G9-T9)","v":0}]
[null,null,null,null,{"$f":"E9+1","v":2},null,{"$f":"IF('Vstupni oblast dat2'!G10<>\"0\",'Vstupni oblast dat2'!G10,\"\")","v":0},{"$f":"IF('Vstupni oblast dat2'!H10<>\"0\",'Vstupni oblast dat2'!H10,\"\")","v":0},null,null,null,null,null,null,null,null,0,0,0,{"$f":"AX41","v":0},0,null,null,null,null,null,null,null,null,null,null,null,null,null,null,null,null,null,null,null,null,null,null,null,null,null,"Test významnosti regresního modelu:"]
["+",null,null,null,{"$f":"E10+1","v":3},null,{"$f":"IF('Vstupni oblast dat2'!G11<>\"0\",'Vstupni oblast dat2'!G11,\"\")","v":0},{"$f":"IF('Vstupni oblast dat2'!H11<>\"0\",'Vstupni oblast dat2'!H11,\"\")","v":0},null,null,null,null,null,null,null,null,0,0,0,0,0,null,"b0",{"$f":"IF($G$42<>0,G40-(H40*X12),\"neměřeno\")","v":"neměřeno"}]
[null,null,null,null,4,null,{"$f":"IF('Vstupni oblast dat2'!G12<>\"0\",'Vstupni oblast dat2'!G12,\"\")","v":0},{"$f":"IF('Vstupni oblast dat2'!H12<>\"0\",'Vstupni oblast dat2'!H12,\"\")","v":0},null,null,null,null,null,null,null,null,0,0,0,0,0,null,"b1",{"$f":"IF($G$42<>0,(((G42*Q40)-(G41*H41))/((G42*S40)-(H41*H41))),\"neměřeno\")","v":"neměřeno"},null,null,null,null,null,null,null,null,null,null,null,null,null,null,null,null,null,null,null,null,null,null,"H0 - vícenásobný lineární regresní model není významný (R2 = 0)",null,null,null,null,null,"F < F0,95(        ,         )"]
[null,null,null,null,5,null,{"$f":"IF('Vstupni oblast dat2'!G13<>\"0\",'Vstupni oblast dat2'!G13,\"\")","v":0},{"$f":"IF('Vstupni oblast dat2'!H13<>\"0\",'Vstupni oblast dat2'!H13,\"\")","v":0},null,null,null,null,null,null,null,null,0,0,0,0,0,null,"rovnice yi",{"$f":"IF($G$42<>0,X11&A11&X12&H4,\"neměřeno\")","v":"neměřeno"},null,null,null,null,null,null,null,null,null,null,null,null,null,null,null,null,null,null,null,null,null,null,"H1 - vícenásobný lineární regresní model je významný (R2 ≠ 0)",null,null,null,null,null,"F >F0,95(        ,         )"]
[null,null,null,null,6,null,{"$f":"IF('Vstupni oblast dat2'!G14<>\"0\",'Vstupni oblast dat2'!G14,\"\")","v":0},{"$f":"IF('Vstupni oblast dat2'!H14<>\"0\",'Vstupni oblast dat2'!H14,\"\")","v":0},null,null,null,null,null,null,null,null,0,0,0,0,0,null,"R ",{"$f":"IF($G$42<>0,(((G42*Q40)-(G41*H41)))/SQRT(((G42*S40-H41*H41)*(G42*R40-G41*G41))),\"neměřeno\")","v":"neměřeno"}]
[null,null,null,null,7,null,{"$f":"IF('Vstupni oblast dat2'!G15<>\"0\",'Vstupni oblast dat2'!G15,\"\")","v":0},{"$f":"IF('Vstupni oblast dat2'!H15<>\"0\",'Vstupni oblast dat2'!H15,\"\")","v":0},null,null,null,null,null,null,null,null,0,0,0,0,0,null,"R^2",{"$f":"IF($G$42<>0,X14*X14,\"neměřeno\")","v":"neměřeno"}]
[null,null,null,null,8,null,{"$f":"IF('Vstupni oblast dat2'!G16<>\"0\",'Vstupni oblast dat2'!G16,\"\")","v":0},{"$f":"IF('Vstupni oblast dat2'!H16<>\"0\",'Vstupni oblast dat2'!H16,\"\")","v":0},null,null,null,null,null,null,null,null,0,0,0,0,0,null,null,null,null,null,null,null,null,null,null,null,null,null,null,null,null,null,null,null,null,null,null,null,null,null,"determinační koeficient",null,null,{"$f":"IF($G$42<>0,AI14,\"neměřeno\")","v":"neměřeno"},{"$f":"AX16","v":"neměřeno"}]
[null,null,null,null,9,null,{"$f":"IF('Vstupni oblast dat2'!G17<>\"0\",'Vstupni oblast dat2'!G17,\"\")","v":0},{"$f":"IF('Vstupni oblast dat2'!H17<>\"0\",'Vstupni oblast dat2'!H17,\"\")","v":0},null,null,null,null,null,null,null,null,0,0,0,0,0,null,null,null,null,null,null,null,null,null,null,null,null,null,null,null,null,null,null,null,null,null,null,null,null,null,"korelační koeficient",null,null,{"$f":"IF($G$42<>0,AI13,\"neměřeno\")","v":"neměřeno"},{"$f":"AX17","v":"neměřeno"}]
[null,null,null,null,10,null,{"$f":"IF('Vstupni oblast dat2'!G18<>\"0\",'Vstupni oblast dat2'!G18,\"\")","v":0},{"$f":"IF('Vstupni oblast dat2'!H18<>\"0\",'Vstupni oblast dat2'!H18,\"\")","v":0},null,null,null,null,null,null,null,null,0,0,0,0,0]
[null,null,null,null,11,null,{"$f":"IF('Vstupni oblast dat2'!G19<>\"0\",'Vstupni oblast dat2'!G19,\"\")","v":0},{"$f":"IF('Vstupni oblast dat2'!H19<>\"0\",'Vstupni oblast dat2'!H19,\"\")","v":0},null,null,null,null,null,null,null,null,0,0,0,0,0]
[null,null,null,null,12,null,{"$f":"IF('Vstupni oblast dat2'!G20<>\"0\",'Vstupni oblast dat2'!G20,\"\")","v":0},{"$f":"IF('Vstupni oblast dat2'!H20<>\"0\",'Vstupni oblast dat2'!H20,\"\")","v":0},null,null,null,null,null,null,null,null,0,0,0,0,0]
[null,null,null,null,13,null,{"$f":"IF('Vstupni oblast dat2'!G21<>\"0\",'Vstupni oblast dat2'!G21,\"\")","v":0},{"$f":"IF('Vstupni oblast dat2'!H21<>\"0\",'Vstupni oblast dat2'!H21,\"\")","v":0},null,null,null,null,null,null,null,null,0,0,0,0,0,null,null,null,null,null,null,null,null,null,null,null,null,null,null,null,null,null,null,null,null,null,null,null,null,null,"testové kritérium",null,null,"F",{"$f":"IF($G$42<>0,AL21,\"neměřeno\")","v":"neměřeno"}]
[null,null,null,null,14,null,{"$f":"IF('Vstupni oblast dat2'!G22<>\"0\",'Vstupni oblast dat2'!G22,\"\")","v":0},{"$f":"IF('Vstupni oblast dat2'!H22<>\"0\",'Vstupni oblast dat2'!H22,\"\")","v":0},null,null,null,null,null,null,null,null,0,0,0,0,0,null,null,null,null,null,null,null,null,null,null,null,null,null,null,null,null,null,null,null,null,null,null,null,null,null,"kritická hodnota",null,null,"F0,95(    ,     )",{"$f":"IF($G$42<>0,FINV(AX23,AJ21,AJ22),\"neměřeno\")","v":"neměřeno"}]
[null,null,null,null,15,null,{"$f":"IF('Vstupni oblast dat2'!G23<>\"0\",'Vstupni oblast dat2'!G23,\"\")","v":0},{"$f":"IF('Vstupni oblast dat2'!H23<>\"0\",'Vstupni oblast dat2'!H23,\"\")","v":0},null,null,null,null,null,null,null,null,0,0,0,0,0,null,null,null,null,null,null,null,null,null,null,null,null,null,null,null,null,null,null,null,null,null,null,null,null,null,null,null,null,0.05]
[null,null,null,null,16,null,{"$f":"IF('Vstupni oblast dat2'!G24<>\"0\",'Vstupni oblast dat2'!G24,\"\")","v":0},{"$f":"IF('Vstupni oblast dat2'!H24<>\"0\",'Vstupni oblast dat2'!H24,\"\")","v":0},null,null,null,null,null,null,null,null,0,0,0,0,0]
[null,null,null,null,17,null,{"$f":"IF('Vstupni oblast dat2'!G25<>\"0\",'Vstupni oblast dat2'!G25,\"\")","v":0},{"$f":"IF('Vstupni oblast dat2'!H25<>\"0\",'Vstupni oblast dat2'!H25,\"\")","v":0},null,null,null,null,null,null,null,null,0,0,0,0,0]
[null,null,null,null,18,null,{"$f":"IF('Vstupni oblast dat2'!G26<>\"0\",'Vstupni oblast dat2'!G26,\"\")","v":0},{"$f":"IF('Vstupni oblast dat2'!H26<>\"0\",'Vstupni oblast dat2'!H26,\"\")","v":0},null,null,null,null,null,null,null,null,0,0,0,0,0,null,null,null,null,null,null,null,null,null,null,null,null,null,null,null,null,null,null,null,null,null,null,null,null,null,"Regresní rovnice"]
[null,null,null,null,19,null,{"$f":"IF('Vstupni oblast dat2'!G27<>\"0\",'Vstupni oblast dat2'!G27,\"\")","v":0},{"$f":"IF('Vstupni oblast dat2'!H27<>\"0\",'Vstupni oblast dat2'!H27,\"\")","v":0},null,null,null,null,null,null,null,null,0,0,0,0,0]
[null,null,null,null,20,null,{"$f":"IF('Vstupni oblast dat2'!G28<>\"0\",'Vstupni oblast dat2'!G28,\"\")","v":0},{"$f":"IF('Vstupni oblast dat2'!H28<>\"0\",'Vstupni oblast dat2'!H28,\"\")","v":0},null,null,null,null,null,null,null,null,0,0,0,0,0]
[null,null,null,null,21,null,{"$f":"IF('Vstupni oblast dat2'!G29<>\"0\",'Vstupni oblast dat2'!G29,\"\")","v":0},{"$f":"IF('Vstupni oblast dat2'!H29<>\"0\",'Vstupni oblast dat2'!H29,\"\")","v":0},null,null,null,null,null,null,null,null,0,0,0,0,0,null,null,null,null,null,null,null,null,null,null,null,null,null,null,null,null,null,null,null,null,null,null,null,null,null,null,{"$f":"X11","v":"neměřeno"},null,{"$f":"X12","v":"neměřeno"},{"$f":"H4","v":"xi"}]
[null,null,null,null,22,null,{"$f":"IF('Vstupni oblast dat2'!G30<>\"0\",'Vstupni oblast dat2'!G30,\"\")","v":0},{"$f":"IF('Vstupni oblast dat2'!H30<>\"0\",'Vstupni oblast dat2'!H30,\"\")","v":0},null,null,null,null,null,null,null,null,0,0,0,0,0,null,null,null,null,null,null,null,null,null,null,null,null,null,null,null,null,null,null,null,null,null,null,null,null,null,null,{"$f":"IF($G$42<>0,AI26,\"neměřeno\")","v":"neměřeno"},null,{"$f":"IF($G$42<>0,AI27,\"neměřeno\")","v":"neměřeno"},{"$f":"AY29","v":"xi"}]
[null,null,null,null,23,null,{"$f":"IF('Vstupni oblast dat2'!G31<>\"0\",'Vstupni oblast dat2'!G31,\"\")","v":0},{"$f":"IF('Vstupni oblast dat2'!H31<>\"0\",'Vstupni oblast dat2'!H31,\"\")","v":0},null,null,null,null,null,null,null,null,0,0,0,0,0]
[null,null,null,null,24,null,{"$f":"IF('Vstupni oblast dat2'!G32<>\"0\",'Vstupni oblast dat2'!G32,\"\")","v":0},{"$f":"IF('Vstupni oblast dat2'!H32<>\"0\",'Vstupni oblast dat2'!H32,\"\")","v":0},null,null,null,null,null,null,null,null,0,0,0,0,0]
[null,null,null,null,25,null,{"$f":"IF('Vstupni oblast dat2'!G33<>\"0\",'Vstupni oblast dat2'!G33,\"\")","v":0},{"$f":"IF('Vstupni oblast dat2'!H33<>\"0\",'Vstupni oblast dat2'!H33,\"\")","v":0},null,null,null,null,null,null,null,null,0,0,0,0,0,null,null,null,null,null,null,null,null,null,null,null,null,null,null,null,null,null,null,null,null,null,null,null,null,null,"Vyrovnané hodnoty"]
[null,null,null,null,26,null,{"$f":"IF('Vstupni oblast dat2'!G34<>\"0\",'Vstupni oblast dat2'!G34,\"\")","v":0},{"$f":"IF('Vstupni oblast dat2'!H34<>\"0\",'Vstupni oblast dat2'!H34,\"\")","v":0},null,null,null,null,null,null,null,null,0,0,0,0,0]
[null,null,null,null,27,null,{"$f":"IF('Vstupni oblast dat2'!G35<>\"0\",'Vstupni oblast dat2'!G35,\"\")","v":0},{"$f":"IF('Vstupni oblast dat2'!H35<>\"0\",'Vstupni oblast dat2'!H35,\"\")","v":0},null,null,null,null,null,null,null,null,0,0,0,0,0,null,null,null,null,null,null,null,null,null,null,null,null,null,null,null,null,null,null,null,null,null,null,null,null,null,"n",null,"yi"]
[null,null,null,null,28,null,{"$f":"IF('Vstupni oblast dat2'!G36<>\"0\",'Vstupni oblast dat2'!G36,\"\")","v":0},{"$f":"IF('Vstupni oblast dat2'!H36<>\"0\",'Vstupni oblast dat2'!H36,\"\")","v":0},null,null,null,null,null,null,null,null,0,0,0,0,0,null,null,null,null,null,null,null,null,null,null,null,null,null,null,null,null,null,null,null,null,null,null,null,null,null,null,null,{"$f":"G5","v":"Závisle proměnná"},"Vyr.hodnoty","Vyr.hodnoty"]
[null,null,null,null,29,null,{"$f":"IF('Vstupni oblast dat2'!G37<>\"0\",'Vstupni oblast dat2'!G37,\"\")","v":0},{"$f":"IF('Vstupni oblast dat2'!H37<>\"0\",'Vstupni oblast dat2'!H37,\"\")","v":0},null,null,null,null,null,null,null,null,0,0,0,0,0]
[null,null,null,null,30,null,{"$f":"IF('Vstupni oblast dat2'!G38<>\"0\",'Vstupni oblast dat2'!G38,\"\")","v":0},{"$f":"IF('Vstupni oblast dat2'!H38<>\"0\",'Vstupni oblast dat2'!H38,\"\")","v":0},null,null,null,null,null,null,null,null,0,0,0,0,0,null,null,null,null,null,null,null,null,null,null,null,null,null,null,null,null,null,null,null,null,null,null,null,null,null,null,null,{"$f":"G7","v":"[ jednotky ]"},{"$f":"AW38","v":"[ jednotky ]"},{"$f":"AW38","v":"[ jednotky ]"}]
[]
[null,null,null,null,"Aritmetický průměr",null,{"$f":"IF($G$42<>0,G41/$G$42,\"neměřeno\")","v":"neměřeno"},{"$f":"IF($G$42<>0,H41/$G$42,\"neměřeno\")","v":"neměřeno"},null,null,null,null,null,null,null,null,{"$f":"IF($G$42<>0,SUM(Q9:Q38),\"neměřeno\")","v":"neměřeno"},{"$f":"IF($G$42<>0,SUM(R9:R38),\"neměřeno\")","v":"neměřeno"},"neměřeno","neměřeno","neměřeno",null,null,null,null,null,null,null,null,null,null,null,null,null,null,null,null,null,null,null,null,null,null,null,null,null,{"$f":"1","v":1},null,{"$f":"G9","v":0},{"$f":"IF(AW40<>0,($AV$29+($AX$29*H9)),0)","v":0},{"$f":"IF(AW40<>0,($AV$30+($AX$30*H9)),0)","v":0}]
[null,null,null,null,"Suma",null,{"$f":"IF($G$42<>0,SUM(G9:G38),\"neměřeno\")","v":"neměřeno"},{"$f":"IF($G$42<>0,SUM(H9:H38),\"neměřeno\")","v":"neměřeno"},null,null,null,null,null,null,null,null,null,null,null,null,null,null,null,null,null,null,null,null,null,null,null,null,null,null,null,null,null,null,null,null,null,null,null,null,null,null,{"$f":"AU40+1","v":2},null,{"$f":"G10","v":0},{"$f":"IF(AW41<>0,($AV$29+($AX$29*H10)),0)","v":0},{"$f":"IF(AW41<>0,($AV$30+($AX$30*H10)),0)","v":0}]
[null,null,null,null,"Počet - n ",null,{"$f":"COUNTIFS(G9:G38,\"<0\")+COUNTIFS(G9:G38,\">0\")","v":0},null,null,null,null,null,null,null,null,null,null,null,null,null,null,null,null,null,null,null,null,null,null,null,null,null,null,null,null,null,null,null,null,null,null,null,null,null,null,null,{"$f":"AU41+1","v":3},null,0,0,0]
[null,null,null,null,null,null,null,null,null,null,null,null,null,null,null,null,null,null,null,null,null,null,null,null,null,null,null,null,null,null,null,null,null,null,null,null,null,null,null,null,null,null,null,null,null,null,4,null,0,0,0]
[null,null,null,null,null,null,null,null,null,null,null,null,null,null,null,null,null,null,null,null,null,null,null,null,null,null,null,null,null,null,null,null,null,null,null,null,null,null,null,null,null,null,null,null,null,null,5,null,0,0,0]
[null,null,null,null,null,null,null,null,null,null,null,null,null,null,null,null,null,null,null,null,null,null,null,null,null,null,null,null,null,null,null,null,null,null,null,null,null,null,null,null,null,null,null,null,null,null,6,null,0,0,0]
[null,null,null,null,null,null,null,null,null,null,null,null,null,null,null,null,null,null,null,null,null,null,null,null,null,null,null,null,null,null,null,null,null,null,null,null,null,null,null,null,null,null,null,null,null,null,7,null,0,0,0]
[null,null,null,null,null,null,null,null,null,null,null,null,null,null,null,null,null,null,null,null,null,null,null,null,null,null,null,null,null,null,null,null,null,null,null,null,null,null,null,null,null,null,null,null,null,null,8,null,0,0,0]
[null,null,null,null,null,null,null,null,null,null,null,null,null,null,null,null,null,null,null,null,null,null,null,null,null,null,null,null,null,null,null,null,null,null,null,null,null,null,null,null,null,null,null,null,null,null,9,null,0,0,0]
[null,null,null,null,null,null,null,null,null,null,null,null,null,null,null,null,null,null,null,null,null,null,null,null,null,null,null,null,null,null,null,null,null,null,null,null,null,null,null,null,null,null,null,null,null,null,10,null,0,0,0]
[null,null,null,null,null,null,null,null,null,null,null,null,null,null,null,null,null,null,null,null,null,null,null,null,null,null,null,null,null,null,null,null,null,null,null,null,null,null,null,null,null,null,null,null,null,null,11,null,0,0,0]
[null,null,null,null,null,null,null,null,null,null,null,null,null,null,null,null,null,null,null,null,null,null,null,null,null,null,null,null,null,null,null,null,null,null,null,null,null,null,null,null,null,null,null,null,null,null,12,null,0,0,0]
[null,null,null,null,null,null,null,null,null,null,null,null,null,null,null,null,null,null,null,null,null,null,null,null,null,null,null,null,null,null,null,null,null,null,null,null,null,null,null,null,null,null,null,null,null,null,13,null,0,0,0]
[null,null,null,null,null,null,null,null,null,null,null,null,null,null,null,null,null,null,null,null,null,null,null,null,null,null,null,null,null,null,null,null,null,null,null,null,null,null,null,null,null,null,null,null,null,null,14,null,0,0,0]
[null,null,null,null,null,null,null,null,null,null,null,null,null,null,null,null,null,null,null,null,null,null,null,null,null,null,null,null,null,null,null,null,null,null,null,null,null,null,null,null,null,null,null,null,null,null,15,null,0,0,0]
[null,null,null,null,null,null,null,null,null,null,null,null,null,null,null,null,null,null,null,null,null,null,null,null,null,null,null,null,null,null,null,null,null,null,null,null,null,null,null,null,null,null,null,null,null,null,16,null,0,0,0]
[null,null,null,null,null,null,null,null,null,null,null,null,null,null,null,null,null,null,null,null,null,null,null,null,null,null,null,null,null,null,null,null,null,null,null,null,null,null,null,null,null,null,null,null,null,null,17,null,0,0,0]
[null,null,null,null,null,null,null,null,null,null,null,null,null,null,null,null,null,null,null,null,null,null,null,null,null,null,null,null,null,null,null,null,null,null,null,null,null,null,null,null,null,null,null,null,null,null,18,null,0,0,0]
[null,null,null,null,null,null,null,null,null,null,null,null,null,null,null,null,null,null,null,null,null,null,null,null,null,null,null,null,null,null,null,null,null,null,null,null,null,null,null,null,null,null,null,null,null,null,19,null,0,0,0]
[null,null,null,null,null,null,null,null,null,null,null,null,null,null,null,null,null,null,null,null,null,null,null,null,null,null,null,null,null,null,null,null,null,null,null,null,null,null,null,null,null,null,null,null,null,null,20,null,0,0,0]
[null,null,null,null,null,null,null,null,null,null,null,null,null,null,null,null,null,null,null,null,null,null,null,null,null,null,null,null,null,null,null,null,null,null,null,null,null,null,null,null,null,null,null,null,null,null,21,null,0,0,0]
[null,null,null,null,null,null,null,null,null,null,null,null,null,null,null,null,null,null,null,null,null,null,null,null,null,null,null,null,null,null,null,null,null,null,null,null,null,null,null,null,null,null,null,null,null,null,22,null,0,0,0]
[null,null,null,null,null,null,null,null,null,null,null,null,null,null,null,null,null,null,null,null,null,null,null,null,null,null,null,null,null,null,null,null,null,null,null,null,null,null,null,null,null,null,null,null,null,null,23,null,0,0,0]
[null,null,null,null,null,null,null,null,null,null,null,null,null,null,null,null,null,null,null,null,null,null,null,null,null,null,null,null,null,null,null,null,null,null,null,null,null,null,null,null,null,null,null,null,null,null,24,null,0,0,0]
[null,null,null,null,null,null,null,null,null,null,null,null,null,null,null,null,null,null,null,null,null,null,null,null,null,null,null,null,null,null,null,null,null,null,null,null,null,null,null,null,null,null,null,null,null,null,25,null,0,0,0]
[null,null,null,null,null,null,null,null,null,null,null,null,null,null,null,null,null,null,null,null,null,null,null,null,null,null,null,null,null,null,null,null,null,null,null,null,null,null,null,null,null,null,null,null,null,null,26,null,0,0,0]
[null,null,null,null,null,null,null,null,null,null,null,null,null,null,null,null,null,null,null,null,null,null,null,null,null,null,null,null,null,null,null,null,null,null,null,null,null,null,null,null,null,null,null,null,null,null,27,null,0,0,0]
[null,null,null,null,null,null,null,null,null,null,null,null,null,null,null,null,null,null,null,null,null,null,null,null,null,null,null,null,null,null,null,null,null,null,null,null,null,null,null,null,null,null,null,null,null,null,28,null,0,0,0]
[null,null,null,null,null,null,null,null,null,null,null,null,null,null,null,null,null,null,null,null,null,null,null,null,null,null,null,null,null,null,null,null,null,null,null,null,null,null,null,null,null,null,null,null,null,null,29,null,0,0,0]
[null,null,null,null,null,null,null,null,null,null,null,null,null,null,null,null,null,null,null,null,null,null,null,null,null,null,null,null,null,null,null,null,null,null,null,null,null,null,null,null,null,null,null,null,null,null,30,null,{"$f":"G38","v":0},0,0]
[null,null,null,null,null,null,null,null,null,null,null,null,null,null,null,null,null,null,null,null,null,null,null,null,null,null,null,null,null,null,null,null,null,null,null,null,null,null,null,null,null,null,null,null,null,null,"Suma",null,{"$f":"IF(G42<>0,SUM(AW40:AW69),\"neměřeno\")","v":"neměřeno"},{"$f":"IF($G$42<>0,SUM(SUM(AX40:AX69)),\"neměřeno\")","v":"neměřeno"},{"$f":"IF($G$42<>0,SUM(SUM(AY40:AY69)),\"neměřeno\")","v":"neměřeno"}]

{"sheet":"2.Regrese","index":4,"n_rows":70,"n_cols":109,"rows_kept":70,"cut":false,"hidden":false,"merged":[[69,102,69,103],[44,102,44,103],[35,106,36,106],[37,106,38,106],[65,102,65,103],[66,102,66,103],[67,102,67,103],[68,102,68,103],[60,102,60,103],[61,102,61,103],[62,102,62,103],[63,102,63,103],[64,102,64,103],[55,102,55,103],[56,102,56,103],[57,102,57,103],[58,102,58,103],[59,102,59,103],[50,102,50,103],[51,102,51,103],[52,102,52,103],[53,102,53,103],[54,102,54,103],[45,102,45,103],[46,102,46,103],[47,102,47,103],[48,102,48,103],[49,102,49,103],[39,102,39,103],[40,102,40,103],[41,102,41,103],[42,102,42,103],[43,102,43,103],[32,102,32,104],[34,102,38,103],[35,104,36,104],[35,105,36,105],[37,104,38,104],[37,105,38,105],[25,102,25,104],[26,102,26,109],[27,102,27,104],[27,108,27,109],[13,102,13,109],[15,102,15,103],[16,102,16,103],[20,102,20,104],[21,102,21,104],[9,102,9,109],[10,102,10,109],[11,102,11,107],[11,108,11,109],[12,102,12,107],[12,108,12,109],[9,72,9,74],[10,4,10,5],[3,4,7,5],[4,6,5,6],[4,7,5,7],[4,8,5,8],[6,6,7,6],[6,7,7,7],[6,8,7,8],[16,4,16,5],[8,4,8,5],[9,4,9,5],[9,64,9,65],[9,68,9,69],[11,4,11,5],[12,4,12,5],[13,4,13,5],[14,4,14,5],[15,4,15,5],[28,4,28,5],[17,4,17,5],[18,4,18,5],[19,4,19,5],[20,4,20,5],[21,4,21,5],[22,4,22,5],[23,4,23,5],[24,4,24,5],[25,4,25,5],[26,4,26,5],[27,4,27,5],[41,4,41,5],[29,4,29,5],[30,4,30,5],[31,4,31,5],[32,4,32,5],[33,4,33,5],[34,4,34,5],[35,4,35,5],[36,4,36,5],[37,4,37,5],[39,4,39,5],[40,4,40,5]]}
[null,null,null,"počet","%","kus","počet",null,null,null,null,null,null,null,null,null,null,{"$f":"A4*A5","v":{"$error":"#VALUE!"}}]
[]
[null,null,null,null,null,null,null,null,null,null,null,null,null,null,null,null,null,null,null,null,null,null,"y ̅"]
[{"$f":"'Vstupni oblast dat2'!A4","v":"jednotky"},null,null,null,"n",null,"yi","x1i","x2i"]
[{"$f":"'Vstupni oblast dat2'!A5","v":"jednotky"},null,null,null,null,null,{"$f":"'Vstupni oblast dat2'!G5:G6","v":"Závisle proměnná"},{"$f":"'Vstupni oblast dat2'!H5:H6","v":"1.regresor"},{"$f":"'Vstupni oblast dat2'!I5:I6","v":"2.regresor"}]
[{"$f":"'Vstupni oblast dat2'!A6","v":"jednotky"}]
["jednotky",null,null,null,null,null,{"$f":"'Vstupni oblast dat2'!G7:G8","v":"[ jednotky ]"},{"$f":"'Vstupni oblast dat2'!H7:H8","v":"[ jednotky ]"},{"$f":"'Vstupni oblast dat2'!I7:I8","v":"[ jednotky ]"},null,null,null,null,null,null,null,null,"yi*x1i","yi*x2i","yi2","x1i2","x2i2","x1i*x2i","(yi -   𝐲 )2","(x1i -       )2","(x2i -       )2"]
["*",null,null,null,null,null,null,null,null,null,null,null,null,null,null,null,null,{"$f":"A4&A8&A5","v":"jednotky*jednotky"},{"$f":"A4&A8&A6","v":"jednotky*jednotky"},{"$f":"A4&A9","v":"jednotky^2"},{"$f":"A5&A9","v":"jednotky^2"},{"$f":"A6&A9","v":"jednotky^2"},{"$f":"A5&A8&A6","v":"jednotky*jednotky"},{"$f":"A4&A9","v":"jednotky^2"},{"$f":"A5&A9","v":"jednotky^2"},{"$f":"A6&A9","v":"jednotky^2"}]
["^2",null,null,null,{"$f":"1","v":1},null,{"$f":"IF('Vstupni oblast dat2'!G9<>\"0\",'Vstupni oblast dat2'!G9,\"\")","v":0},{"$f":"IF('Vstupni oblast dat2'!H9<>\"0\",'Vstupni oblast dat2'!H9,\"\")","v":0},{"$f":"IF('Vstupni oblast dat2'!I9<>\"0\",'Vstupni oblast dat2'!I9,\"\")","v":0},null,null,null,null,null,null,null,null,{"$f":"G9*H9","v":0},{"$f":"G9*I9","v":0},{"$f":"G9*G9","v":0},{"$f":"H9*H9","v":0},{"$f":"I9*I9","v":0},{"$f":"H9*I9","v":0},{"$f":"IF(G9<>0,(G9-$G$40)^2,0)","v":0},{"$f":"IF(H9<>0,(H9-$H$40)^2,0)","v":0},{"$f":"IF(I9<>0,(I9-$I$40)^2,0)","v":0}]
["^3",null,null,null,{"$f":"E9+1","v":2},null,{"$f":"IF('Vstupni oblast dat2'!G10<>\"0\",'Vstupni oblast dat2'!G10,\"\")","v":0},{"$f":"IF('Vstupni oblast dat2'!H10<>\"0\",'Vstupni oblast dat2'!H10,\"\")","v":0},{"$f":"IF('Vstupni oblast dat2'!I10<>\"0\",'Vstupni oblast dat2'!I10,\"\")","v":0},null,null,null,null,null,null,null,null,0,0,0,0,0,0,{"$f":"IF(G10<>0,(G10-$G$40)^2,0)","v":0},{"$f":"IF(H10<>0,(H10-$H$40)^2,0)","v":0},{"$f":"IF(I10<>0,(I10-$I$40)^2,0)","v":0},null,null,null,null,null,null,null,null,null,null,null,null,null,null,null,null,null,null,null,null,null,null,null,null,null,null,null,{"$f":"AK14","v":"neměřeno"},"=",1,null,"+",{"$f":"AK22","v":"neměřeno"},null,null,null,null,null,"Koeficienty ",null,null,null,"Inverzní matice ",null,null,null,"Výpočet koeficient Beta",null,null,null,null,null,null,null,null,null,null,null,null,null,null,null,null,null,null,null,null,null,null,null,null,null,null,null,null,null,"Test významnosti regresního modelu:"]
["+",null,null,null,{"$f":"E10+1","v":3},null,{"$f":"IF('Vstupni oblast dat2'!G11<>\"0\",'Vstupni oblast dat2'!G11,\"\")","v":0},{"$f":"IF('Vstupni oblast dat2'!H11<>\"0\",'Vstupni oblast dat2'!H11,\"\")","v":0},{"$f":"IF('Vstupni oblast dat2'!I11<>\"0\",'Vstupni oblast dat2'!I11,\"\")","v":0},null,null,null,null,null,null,null,null,0,0,0,0,0,0,0,0,0,null,null,null,null,null,null,null,null,null,"b0",{"$f":"IF($G$42<>0,G40-AK12*H40,\"neměřeno\")","v":"neměřeno"},null,"b0",{"$f":"IF($I$40<>0,G40-I40*AN12,\"neměřeno\")","v":"neměřeno"},null,null,null,null,null,null,null,null,null,null,null,null,null,{"$f":"AN14","v":"neměřeno"},"=",{"$f":"AK22","v":"neměřeno"},null,"+",1,null,null,null,null,null,null,null,null,null,null,null,null,null,null,null,null,null,null,null,null,null,null,null,null,null,{"$f":"IF($I$41<>0,SQRT((X40/G42)),\"neměřeno\")","v":"neměřeno"},null,null,{"$f":"IF($I$41<>0,G40-(H40*CJ12)-(I40*CJ13),\"neměřeno\")","v":"neměřeno"}]
[null,null,null,null,4,null,{"$f":"IF('Vstupni oblast dat2'!G12<>\"0\",'Vstupni oblast dat2'!G12,\"\")","v":0},{"$f":"IF('Vstupni oblast dat2'!H12<>\"0\",'Vstupni oblast dat2'!H12,\"\")","v":0},{"$f":"IF('Vstupni oblast dat2'!I12<>\"0\",'Vstupni oblast dat2'!I12,\"\")","v":0},null,null,null,null,null,null,null,null,0,0,0,0,0,0,0,0,0,null,null,null,null,null,null,null,null,null,"b1",{"$f":"IF($G$42<>0,(((G42*R40)-(H41*G41))/((G42*U40)-(H41*H41))),\"neměřeno\")","v":"neměřeno"},null,"b1",{"$f":"IF($I$40<>0,((G42*S40)-(I41*G41))/((G42*V40)-(I41*I41)),\"neměřeno\")","v":"neměřeno"},null,null,null,null,null,null,null,null,null,null,null,null,null,null,null,null,null,null,null,null,null,null,null,null,1,{"$f":"BG10","v":"neměřeno"},null,null,{"$f":"BQ19","v":"nemměřeno"},{"$f":"BR19","v":"nemměřeno"},null,null,null,{"$f":"IF($I$40<>0,MMULT(BQ12:BR13,BB10:BB11),\"nemměřeno\")","v":"nemměřeno"},null,null,null,null,null,null,null,null,null,null,{"$f":"IF($I$41<>0,SQRT((Y40/G42)),\"neměřeno\")","v":"neměřeno"},null,null,{"$f":"IF($I$41<>0,(CG11/CG12)*BV12,\"neměřeno\")","v":"neměřeno"},null,null,null,null,null,null,null,null,null,null,null,null,null,null,"H0 - vícenásobný lineární regresní model není významný (R2 = 0)",null,null,null,null,null,"F < F0,95(        ,        )"]
[null,null,null,null,5,null,{"$f":"IF('Vstupni oblast dat2'!G13<>\"0\",'Vstupni oblast dat2'!G13,\"\")","v":0},{"$f":"IF('Vstupni oblast dat2'!H13<>\"0\",'Vstupni oblast dat2'!H13,\"\")","v":0},{"$f":"IF('Vstupni oblast dat2'!I13<>\"0\",'Vstupni oblast dat2'!I13,\"\")","v":0},null,null,null,null,null,null,null,null,0,0,0,0,0,0,0,0,0,null,null,null,null,null,null,null,null,null,"rovnice yi",{"$f":"IF($G$42<>0,AK11&A11&AK12&H4,\"neměřeno\")","v":"neměřeno"},null,"rovnice yi",{"$f":"IF($I$40<>0,AN11&A11&AN12&I4,\"neměřeno\")","v":"neměřeno"},null,null,null,null,null,null,null,null,null,null,null,null,null,null,null,null,null,null,null,null,null,null,null,null,{"$f":"BD11","v":"neměřeno"},1,null,null,{"$f":"BQ20","v":"nemměřeno"},{"$f":"BR20","v":"nemměřeno"},null,null,null,"nemměřeno",null,null,null,null,null,null,null,null,null,null,{"$f":"IF($I$41<>0,SQRT((Z40/G42)),\"neměřeno\")","v":"neměřeno"},null,null,{"$f":"IF($I$41<>0,(CG11/CG13)*BV13,\"neměřeno\")","v":"neměřeno"},null,null,null,null,null,null,null,null,null,null,null,null,null,null,"H1 - vícenásobný lineární regresní model je významný (R2 ≠ 0)",null,null,null,null,null,"F >F0,95(        ,        )"]
[null,null,null,null,6,null,{"$f":"IF('Vstupni oblast dat2'!G14<>\"0\",'Vstupni oblast dat2'!G14,\"\")","v":0},{"$f":"IF('Vstupni oblast dat2'!H14<>\"0\",'Vstupni oblast dat2'!H14,\"\")","v":0},{"$f":"IF('Vstupni oblast dat2'!I14<>\"0\",'Vstupni oblast dat2'!I14,\"\")","v":0},null,null,null,null,null,null,null,null,0,0,0,0,0,0,0,0,0,null,null,null,null,null,null,null,null,null,"R ",{"$f":"IF($G$42<>0,(((G42*R40)-(H41*G41))/SQRT(((G42*U40-H41*H41)*(G42*T40-G41*G41)))),\"neměřeno\")","v":"neměřeno"},null,"R ",{"$f":"IF($I$40<>0,(((G42*S40)-(I41*G41))/SQRT(((((G42*V40)-(I41*I41)))*(G42*T40-G41*G41)))),\"neměřeno\")","v":"neměřeno"},null,null,null,null,null,null,null,null,null,null,null,null,null,null,null,null,null,null,null,null,null,null,null,null,null,null,null,null,null,null,null,null,null,null,null,null,null,null,null,null,null,null,null," ",null,null,null,{"$f":"IF($I$41<>0,SQRT((BV12*BB10)+(BV13*BB11)),\"neměřeno\")","v":"neměřeno"}]
[null,null,null,null,7,null,{"$f":"IF('Vstupni oblast dat2'!G15<>\"0\",'Vstupni oblast dat2'!G15,\"\")","v":0},{"$f":"IF('Vstupni oblast dat2'!H15<>\"0\",'Vstupni oblast dat2'!H15,\"\")","v":0},{"$f":"IF('Vstupni oblast dat2'!I15<>\"0\",'Vstupni oblast dat2'!I15,\"\")","v":0},null,null,null,null,null,null,null,null,0,0,0,0,0,0,0,0,0,null,null,null,null,null,null,null,null,null,"R^2",{"$f":"IF($G$42<>0,AK14*AK14,\"neměřeno\")","v":"neměřeno"},null,"R^2",{"$f":"IF($I$40<>0,AN14*AN14,\"neměřeno\")","v":"neměřeno"}]
[null,null,null,null,8,null,{"$f":"IF('Vstupni oblast dat2'!G16<>\"0\",'Vstupni oblast dat2'!G16,\"\")","v":0},{"$f":"IF('Vstupni oblast dat2'!H16<>\"0\",'Vstupni oblast dat2'!H16,\"\")","v":0},{"$f":"IF('Vstupni oblast dat2'!I16<>\"0\",'Vstupni oblast dat2'!I16,\"\")","v":0},null,null,null,null,null,null,null,null,0,0,0,0,0,0,0,0,0,null,null,null,null,null,null,null,null,null,null,null,null,null,null,null,null,null,null,null,null,null,null,null,null,null,null,null,null,null,null,null,null,null,null,null,null,null,null,null,null,null,null,null,null,null,null,null,null,null,null,null,null,null,null,null,null,null,null,null,null,null,null,null,null,null,null,null,null,null,null,null,null,null,null,null,null,"determinační koeficient",null,null,{"$f":"IF($I$41<>0,CN14,\"neměřeno\")","v":"neměřeno"},{"$f":"DB16","v":"neměřeno"}]
[null,null,null,null,9,null,{"$f":"IF('Vstupni oblast dat2'!G17<>\"0\",'Vstupni oblast dat2'!G17,\"\")","v":0},{"$f":"IF('Vstupni oblast dat2'!H17<>\"0\",'Vstupni oblast dat2'!H17,\"\")","v":0},{"$f":"IF('Vstupni oblast dat2'!I17<>\"0\",'Vstupni oblast dat2'!I17,\"\")","v":0},null,null,null,null,null,null,null,null,0,0,0,0,0,0,0,0,0,null,null,null,null,null,null,null,null,null,null,null,null,null,null,null,null,null,null,null,null,null,null,null,null,null,null,null,null,null,null,null,null,null,null,null,null,null,null,null,null,null,null,null,null,null,null,null,null,null,null,null,null,null,null,null,null,null," ",null,null,null,null,null,null,null,null,null,null,null,null,null,null,null,null,null,null,"korelační koeficient",null,null,{"$f":"IF($I$41<>0,CN13,\"neměřeno\")","v":"neměřeno"},{"$f":"DB17","v":"neměřeno"}]
[null,null,null,null,10,null,{"$f":"IF('Vstupni oblast dat2'!G18<>\"0\",'Vstupni oblast dat2'!G18,\"\")","v":0},{"$f":"IF('Vstupni oblast dat2'!H18<>\"0\",'Vstupni oblast dat2'!H18,\"\")","v":0},{"$f":"IF('Vstupni oblast dat2'!I18<>\"0\",'Vstupni oblast dat2'!I18,\"\")","v":0},null,null,null,null,null,null,null,null,0,0,0,0,0,0,0,0,0]
[null,null,null,null,11,null,{"$f":"IF('Vstupni oblast dat2'!G19<>\"0\",'Vstupni oblast dat2'!G19,\"\")","v":0},{"$f":"IF('Vstupni oblast dat2'!H19<>\"0\",'Vstupni oblast dat2'!H19,\"\")","v":0},{"$f":"IF('Vstupni oblast dat2'!I19<>\"0\",'Vstupni oblast dat2'!I19,\"\")","v":0},null,null,null,null,null,null,null,null,0,0,0,0,0,0,0,0,0,null,null,null,null,null,null,null,null,null,"b0",{"$f":"IF($I$40<>0,H40-AK20*I40,\"neměřeno\")","v":"neměřeno"},null,null,null,null,null,null,null,null,null,null,null,null,null,null,null,null,null,null,null,null,null,null,null,null,null,null,null,null,null,null,null,{"$f":"IF($I$40<>0,MINVERSE(BM12:BN13),\"nemměřeno\")","v":"nemměřeno"},"nemměřeno"]
[null,null,null,null,12,null,{"$f":"IF('Vstupni oblast dat2'!G20<>\"0\",'Vstupni oblast dat2'!G20,\"\")","v":0},{"$f":"IF('Vstupni oblast dat2'!H20<>\"0\",'Vstupni oblast dat2'!H20,\"\")","v":0},{"$f":"IF('Vstupni oblast dat2'!I20<>\"0\",'Vstupni oblast dat2'!I20,\"\")","v":0},null,null,null,null,null,null,null,null,0,0,0,0,0,0,0,0,0,null,null,null,null,null,null,null,null,null,"b1",{"$f":"IF($I$40<>0,((G42*W40)-(H41*I41))/((G42*V40)-(I41*I41)),\"neměřeno\")","v":"neměřeno"},null,null,null,null,null,null,null,null,null,null,null,null,null,null,null,null,null,null,null,null,null,null,null,null,null,null,null,null,null,null,null,"nemměřeno","nemměřeno"]
[null,null,null,null,13,null,{"$f":"IF('Vstupni oblast dat2'!G21<>\"0\",'Vstupni oblast dat2'!G21,\"\")","v":0},{"$f":"IF('Vstupni oblast dat2'!H21<>\"0\",'Vstupni oblast dat2'!H21,\"\")","v":0},{"$f":"IF('Vstupni oblast dat2'!I21<>\"0\",'Vstupni oblast dat2'!I21,\"\")","v":0},null,null,null,null,null,null,null,null,0,0,0,0,0,0,0,0,0,null,null,null,null,null,null,null,null,null,"rovnice x1i",{"$f":"IF($I$40<>0,AK19&A11&AK20&I4,\"neměřeno\")","v":"neměřeno"},null,null,null,null,null,null,null,null,null,null,null,null,null,null,null,null,null,null,null,null,null,null,null,null,null,null,null,null,null,null,null,null,null,null,null,null,null,null,null,null,null,null,null,null,null,null,null,null,null,null,null,null,null,null,null,null,null,null,null,null,null,null,null,null,null,"testové kritérium",null,null,"F",{"$f":"IF($I$41<>0,CQ21,\"neměřeno\")","v":"neměřeno"}]
[null,null,null,null,14,null,{"$f":"IF('Vstupni oblast dat2'!G22<>\"0\",'Vstupni oblast dat2'!G22,\"\")","v":0},{"$f":"IF('Vstupni oblast dat2'!H22<>\"0\",'Vstupni oblast dat2'!H22,\"\")","v":0},{"$f":"IF('Vstupni oblast dat2'!I22<>\"0\",'Vstupni oblast dat2'!I22,\"\")","v":0},null,null,null,null,null,null,null,null,0,0,0,0,0,0,0,0,0,null,null,null,null,null,null,null,null,null,"R ",{"$f":"IF($I$40<>0,((G42*W40)-(H41*I41))/SQRT(((G42*V40-I41*I41)*(G42*U40-H41*H41))),\"neměřeno\")","v":"neměřeno"},null,null,null,null,null,null,null,null,null,null,null,null,null,null,null,null,null,null,null,null,null,null,null,null,null,null,null,null,null,null,null,null,null,null,null,null,null,null,null,null,null,null,null,null,null,null," ",null,null,null,null,null,null,null,null,null,null,null,null,null,null,null,null,null,null,"kritická hodnota",null,null,"F0,95(    ,     )",{"$f":"IF($I$41<>0,FINV(DB23,CN21,CN22),\"neměřeno\")","v":"neměřeno"}]
[null,null,null,null,15,null,{"$f":"IF('Vstupni oblast dat2'!G23<>\"0\",'Vstupni oblast dat2'!G23,\"\")","v":0},{"$f":"IF('Vstupni oblast dat2'!H23<>\"0\",'Vstupni oblast dat2'!H23,\"\")","v":0},{"$f":"IF('Vstupni oblast dat2'!I23<>\"0\",'Vstupni oblast dat2'!I23,\"\")","v":0},null,null,null,null,null,null,null,null,0,0,0,0,0,0,0,0,0,null,null,null,null,null,null,null,null,null,"R^2",{"$f":"IF($I$40<>0,AK22*AK22,\"neměřeno\")","v":"neměřeno"},null,null,null,null,null,null,null,null,null,null,null,null,null,null,null,null,null,null,null,null,null,null,null,null,null,null,null,null,null,null,null,null,null,null,null,null,null,null,null,null,null,null,null,null,null,null,null,null,null,null,null,null,null,null,null,null,null,null,null,null,null,null,null,null,null,null,null,null,0.05]
[null,null,null,null,16,null,{"$f":"IF('Vstupni oblast dat2'!G24<>\"0\",'Vstupni oblast dat2'!G24,\"\")","v":0},{"$f":"IF('Vstupni oblast dat2'!H24<>\"0\",'Vstupni oblast dat2'!H24,\"\")","v":0},{"$f":"IF('Vstupni oblast dat2'!I24<>\"0\",'Vstupni oblast dat2'!I24,\"\")","v":0},null,null,null,null,null,null,null,null,0,0,0,0,0,0,0,0,0]
[null,null,null,null,17,null,{"$f":"IF('Vstupni oblast dat2'!G25<>\"0\",'Vstupni oblast dat2'!G25,\"\")","v":0},{"$f":"IF('Vstupni oblast dat2'!H25<>\"0\",'Vstupni oblast dat2'!H25,\"\")","v":0},{"$f":"IF('Vstupni oblast dat2'!I25<>\"0\",'Vstupni oblast dat2'!I25,\"\")","v":0},null,null,null,null,null,null,null,null,0,0,0,0,0,0,0,0,0]
[null,null,null,null,18,null,{"$f":"IF('Vstupni oblast dat2'!G26<>\"0\",'Vstupni oblast dat2'!G26,\"\")","v":0},{"$f":"IF('Vstupni oblast dat2'!H26<>\"0\",'Vstupni oblast dat2'!H26,\"\")","v":0},{"$f":"IF('Vstupni oblast dat2'!I26<>\"0\",'Vstupni oblast dat2'!I26,\"\")","v":0},null,null,null,null,null,null,null,null,0,0,0,0,0,0,0,0,0,null,null,null,null,null,null,null,null,null,null,null,null,null,null,null,null,null,null,null,null,null,null,null,null,null,null,null,null,null,null,null,null,null,null,null,null,null,null,null,null,null,null,null,null,null,null,null,null,null,null,null,null,null,null,null,null,null,null,null,null,null,null,null,null,null,null,null,null,null,null,null,null,null,null,null,null,"Regresní rovnice"]
[null,null,null,null,19,null,{"$f":"IF('Vstupni oblast dat2'!G27<>\"0\",'Vstupni oblast dat2'!G27,\"\")","v":0},{"$f":"IF('Vstupni oblast dat2'!H27<>\"0\",'Vstupni oblast dat2'!H27,\"\")","v":0},{"$f":"IF('Vstupni oblast dat2'!I27<>\"0\",'Vstupni oblast dat2'!I27,\"\")","v":0},null,null,null,null,null,null,null,null,0,0,0,0,0,0,0,0,0]
[null,null,null,null,20,null,{"$f":"IF('Vstupni oblast dat2'!G28<>\"0\",'Vstupni oblast dat2'!G28,\"\")","v":0},{"$f":"IF('Vstupni oblast dat2'!H28<>\"0\",'Vstupni oblast dat2'!H28,\"\")","v":0},{"$f":"IF('Vstupni oblast dat2'!I28<>\"0\",'Vstupni oblast dat2'!I28,\"\")","v":0},null,null,null,null,null,null,null,null,0,0,0,0,0,0,0,0,0]
[null,null,null,null,21,null,{"$f":"IF('Vstupni oblast dat2'!G29<>\"0\",'Vstupni oblast dat2'!G29,\"\")","v":0},{"$f":"IF('Vstupni oblast dat2'!H29<>\"0\",'Vstupni oblast dat2'!H29,\"\")","v":0},{"$f":"IF('Vstupni oblast dat2'!I29<>\"0\",'Vstupni oblast dat2'!I29,\"\")","v":0},null,null,null,null,null,null,null,null,0,0,0,0,0,0,0,0,0,null,null,null,null,null,null,null,null,null,null,null,null,null,null,null,null,null,null,null,null,null,null,null,null,null,null,null,null,null,null,null,null,null,null,null,null,null,null,null,null,null,null,null,null,null,null,null,null,null,null,null,null,null,null,null,null,null,null,null,null,null,null,null,null,null,null,null,null,null,null,null,null,null,null,null,null,null,{"$f":"CJ11","v":"neměřeno"},null,{"$f":"CJ12","v":"neměřeno"},{"$f":"H4","v":"x1i"},{"$f":"CJ13","v":"neměřeno"},{"$f":"I4","v":"x2i"}]
[null,null,null,null,22,null,{"$f":"IF('Vstupni oblast dat2'!G30<>\"0\",'Vstupni oblast dat2'!G30,\"\")","v":0},{"$f":"IF('Vstupni oblast dat2'!H30<>\"0\",'Vstupni oblast dat2'!H30,\"\")","v":0},{"$f":"IF('Vstupni oblast dat2'!I30<>\"0\",'Vstupni oblast dat2'!I30,\"\")","v":0},null,null,null,null,null,null,null,null,0,0,0,0,0,0,0,0,0,null,null,null,null,null,null,null,null,null,null,null,null,null,null,null,null,null,null,null,null,null,null,null,null,null,null,null,null,null,null,null,null,null,null,null,null,null,null,null,null,null,null,null,null,null,null,null,null,null,null,null,null,null,null,null,null,null,null,null,null,null,null,null,null,null,null,null,null,null,null,null,null,null,null,null,null,null,{"$f":"CN26","v":0},null,{"$f":"CN27","v":0},{"$f":"DC29","v":"x1i"},{"$f":"CN28","v":0},{"$f":"DE29","v":"x2i"}]
[null,null,null,null,23,null,{"$f":"IF('Vstupni oblast dat2'!G31<>\"0\",'Vstupni oblast dat2'!G31,\"\")","v":0},{"$f":"IF('Vstupni oblast dat2'!H31<>\"0\",'Vstupni oblast dat2'!H31,\"\")","v":0},{"$f":"IF('Vstupni oblast dat2'!I31<>\"0\",'Vstupni oblast dat2'!I31,\"\")","v":0},null,null,null,null,null,null,null,null,0,0,0,0,0,0,0,0,0]
[null,null,null,null,24,null,{"$f":"IF('Vstupni oblast dat2'!G32<>\"0\",'Vstupni oblast dat2'!G32,\"\")","v":0},{"$f":"IF('Vstupni oblast dat2'!H32<>\"0\",'Vstupni oblast dat2'!H32,\"\")","v":0},{"$f":"IF('Vstupni oblast dat2'!I32<>\"0\",'Vstupni oblast dat2'!I32,\"\")","v":0},null,null,null,null,null,null,null,null,0,0,0,0,0,0,0,0,0]
[null,null,null,null,25,null,{"$f":"IF('Vstupni oblast dat2'!G33<>\"0\",'Vstupni oblast dat2'!G33,\"\")","v":0},{"$f":"IF('Vstupni oblast dat2'!H33<>\"0\",'Vstupni oblast dat2'!H33,\"\")","v":0},{"$f":"IF('Vstupni oblast dat2'!I33<>\"0\",'Vstupni oblast dat2'!I33,\"\")","v":0},null,null,null,null,null,null,null,null,0,0,0,0,0,0,0,0,0,null,null,null,null,null,null,null,null,null,null,null,null,null,null,null,null,null,null,null,null,null,null,null,null,null,null,null,null,null,null,null,null,null,null,null,null,null,null,null,null,null,null,null,null,null,null,null,null,null,null,null,null,null,null,null,null,null,null,null,null,null,null,null,null,null,null,null,null,null,null,null,null,null,null,null,null,"Vyrovnané hodnoty"]
[null,null,null,null,26,null,{"$f":"IF('Vstupni oblast dat2'!G34<>\"0\",'Vstupni oblast dat2'!G34,\"\")","v":0},{"$f":"IF('Vstupni oblast dat2'!H34<>\"0\",'Vstupni oblast dat2'!H34,\"\")","v":0},{"$f":"IF('Vstupni oblast dat2'!I34<>\"0\",'Vstupni oblast dat2'!I34,\"\")","v":0},null,null,null,null,null,null,null,null,0,0,0,0,0,0,0,0,0]
[null,null,null,null,27,null,{"$f":"IF('Vstupni oblast dat2'!G35<>\"0\",'Vstupni oblast dat2'!G35,\"\")","v":0},{"$f":"IF('Vstupni oblast dat2'!H35<>\"0\",'Vstupni oblast dat2'!H35,\"\")","v":0},{"$f":"IF('Vstupni oblast dat2'!I35<>\"0\",'Vstupni oblast dat2'!I35,\"\")","v":0},null,null,null,null,null,null,null,null,0,0,0,0,0,0,0,0,0,null,null,null,null,null,null,null,null,null,null,null,null,null,null,null,null,null,null,null,null,null,null,null,null,null,null,null,null,null,null,null,null,null,null,null,null,null,null,null,null,null,null,null,null,null,null,null,null,null,null,null,null,null,null,null,null,null,null,null,null,null,null,null,null,null,null,null,null,null,null,null,null,null,null,null,null,"n",null,"yi"]
[null,null,null,null,28,null,{"$f":"IF('Vstupni oblast dat2'!G36<>\"0\",'Vstupni oblast dat2'!G36,\"\")","v":0},{"$f":"IF('Vstupni oblast dat2'!H36<>\"0\",'Vstupni oblast dat2'!H36,\"\")","v":0},{"$f":"IF('Vstupni oblast dat2'!I36<>\"0\",'Vstupni oblast dat2'!I36,\"\")","v":0},null,null,null,null,null,null,null,null,0,0,0,0,0,0,0,0,0,null,null,null,null,null,null,null,null,null,null,null,null,null,null,null,null,null,null,null,null,null,null,null,null,null,null,null,null,null,null,null,null,null,null,null,null,null,null,null,null,null,null,null,null,null,null,null,null,null,null,null,null,null,null,null,null,null,null,null,null,null,null,null,null,null,null,null,null,null,null,null,null,null,null,null,null,null,null,{"$f":"G5","v":"Závisle proměnná"},"Vyr.hodnoty","Vyr.hodnoty"]
[null,null,null,null,{"$f":"E36+1","v":29},null,{"$f":"IF('Vstupni oblast dat2'!G37<>\"0\",'Vstupni oblast dat2'!G37,\"\")","v":0},{"$f":"IF('Vstupni oblast dat2'!H37<>\"0\",'Vstupni oblast dat2'!H37,\"\")","v":0},{"$f":"IF('Vstupni oblast dat2'!I37<>\"0\",'Vstupni oblast dat2'!I37,\"\")","v":0},null,null,null,null,null,null,null,null,0,0,0,0,0,0,0,0,0]
[null,null,null,null,{"$f":"E37+1","v":30},null,{"$f":"IF('Vstupni oblast dat2'!G38<>\"0\",'Vstupni oblast dat2'!G38,\"\")","v":0},{"$f":"IF('Vstupni oblast dat2'!H38<>\"0\",'Vstupni oblast dat2'!H38,\"\")","v":0},{"$f":"IF('Vstupni oblast dat2'!I38<>\"0\",'Vstupni oblast dat2'!I38,\"\")","v":0},null,null,null,null,null,null,null,null,0,0,0,0,0,0,0,0,0,null,null,null,null,null,null,null,null,null,null,null,null,null,null,null,null,null,null,null,null,null,null,null,null,null,null,null,null,null,null,null,null,null,null,null,null,null,null,null,null,null,null,null,null,null,null,null,null,null,null,null,null,null,null,null,null,null,null,null,null,null,null,null,null,null,null,null,null,null,null,null,null,null,null,null,null,null,null,{"$f":"G7","v":"[ jednotky ]"},{"$f":"DA38","v":"[ jednotky ]"},{"$f":"DB38","v":"[ jednotky ]"}]
[]
[null,null,null,null,"Aritmetický průměr",null,{"$f":"IF($G$42<>0,(G41/$G$42),0)","v":0},{"$f":"IF($G$42<>0,(H41/$G$42),0)","v":0},0,null,null,null,null,null,null,null,null,{"$f":"IF($G$42<>0,SUM(R9:R38),\"neměřeno\")","v":"neměřeno"},{"$f":"IF($G$42<>0,SUM(S9:S38),\"neměřeno\")","v":"neměřeno"},"neměřeno","neměřeno","neměřeno","neměřeno","neměřeno","neměřeno","neměřeno",null,null,null,null,null,null,null,null,null,null,null,null,null,null,null,null,null,null,null,null,null,null,null,null,null,null,null,null,null,null,null,null,null,null,null,null,null,null,null,null,null,null,null,null,null,null,null,null,null,null,null,null,null,null,null,null,null,null,null,null,null,null,null,null,null,null,null,null,null,null,null,null,null,null,null,null,{"$f":"1","v":1},null,{"$f":"G9","v":0},{"$f":"IF(G9<>0,($CJ$11+($CJ$12*H9)+($CJ$13*I9)),0)","v":0},{"$f":"IF(G9<>0,($CZ$30+($DB$30*H9)+($DD$30*I9)),0)","v":0}]
[null,null,null,null,"Suma",null,{"$f":"IF($G$42<>0,SUM(G9:G38),0)","v":0},{"$f":"IF($G$42<>0,SUM(H9:H38),0)","v":0},0,null,null,null,null,null,null,null,null,null,null,null,null,null,null,null,null,null,null,null,null,null,null,null,null,null,null,null,null,null,null,null,null,null,null,null,null,null,null,null,null,null,null,null,null,null,null,null,null,null,null,null,null,null,null,null,null,null,null,null,null,null,null,null,null,null,null,null,null,null,null,null,null,null,null,null,null,null,null,null,null,null,null,null,null,null,null,null,null,null,null,null,null,null,{"$f":"CY40+1","v":2},null,{"$f":"G10","v":0},{"$f":"IF(G10<>0,($CJ$11+($CJ$12*H10)+($CJ$13*I10)),0)","v":0},{"$f":"IF(G10<>0,($CZ$30+($DB$30*H10)+($DD$30*I10)),0)","v":0}]
[null,null,null,null,"Počet - n ",null,{"$f":"COUNTIFS(G9:G38,\"<0\")+COUNTIFS(G9:G38,\">0\")","v":0},null,null,null,null,null,null,null,null,null,null,null,null,null,null,null,null,null,null,null,null,null,null,null,null,null,null,null,null,null,null,null,null,null,null,null,null,null,null,null,null,null,null,null,null,null,null,null,null,null,null,null,null,null,null,null,null,null,null,null,null,null,null,null,null,null,null,null,null,null,null,null,null,null,null,null,null,null,null,null,null,null,null,null,null,null,null,null,null,null,null,null,null,null,null,null,{"$f":"CY41+1","v":3},null,0,0,0]
[null,null,null,null,null,null,null,null,null,null,null,null,null,null,null,null,null,null,null,null,null,null,null,null,null,null,null,null,null,null,null,null,null,null,null,null,null,null,null,null,null,null,null,null,null,null,null,null,null,null,null,null,null,null,null,null,null,null,null,null,null,null,null,null,null,null,null,null,null,null,null,null,null,null,null,null,null,null,null,null,null,null,null,null,null,null,null,null,null,null,null,null,null,null,null,null,null,null,null,null,null,null,4,null,0,0,0]
[null,null,null,null,null,null,null,null,null,null,null,null,null,null,null,null,null,null,null,null,null,null,null,null,null,null,null,null,null,null,null,null,null,null,null,null,null,null,null,null,null,null,null,null,null,null,null,null,null,null,null,null,null,null,null,null,null,null,null,null,null,null,null,null,null,null,null,null,null,null,null,null,null,null,null,null,null,null,null,null,null,null,null,null,null,null,null,null,null,null,null,null,null,null,null,null,null,null,null,null,null,null,5,null,0,0,0]
[null,null,null,null,null,null,null,null,null,null,null,null,null,null,null,null,null,null,null,null,null,null,null,null,null,null,null,null,null,null,null,null,null,null,null,null,null,null,null,null,null,null,null,null,null,null,null,null,null,null,null,null,null,null,null,null,null,null,null,null,null,null,null,null,null,null,null,null,null,null,null,null,null,null,null,null,null,null,null,null,null,null,null,null,null,null,null,null,null,null,null,null,null,null,null,null,null,null,null,null,null,null,6,null,0,0,0]
[null,null,null,null,null,null,null,null,null,null,null,null,null,null,null,null,null,null,null,null,null,null,null,null,null,null,null,null,null,null,null,null,null,null,null,null,null,null,null,null,null,null,null,null,null,null,null,null,null,null,null,null,null,null,null,null,null,null,null,null,null,null,null,null,null,null,null,null,null,null,null,null,null,null,null,null,null,null,null,null,null,null,null,null,null,null,null,null,null,null,null,null,null,null,null,null,null,null,null,null,null,null,7,null,0,0,0]
[null,null,null,null,null,null,null,null,null,null,null,null,null,null,null,null,null,null,null,null,null,null,null,null,null,null,null,null,null,null,null,null,null,null,null,null,null,null,null,null,null,null,null,null,null,null,null,null,null,null,null,null,null,null,null,null,null,null,null,null,null,null,null,null,null,null,null,null,null,null,null,null,null,null,null,null,null,null,null,null,null,null,null,null,null,null,null,null,null,null,null,null,null,null,null,null,null,null,null,null,null,null,8,null,0,0,0]
[null,null,null,null,null,null,null,null,null,null,null,null,null,null,null,null,null,null,null,null,null,null,null,null,null,null,null,null,null,null,null,null,null,null,null,null,null,null,null,null,null,null,null,null,null,null,null,null,null,null,null,null,null,null,null,null,null,null,null,null,null,null,null,null,null,null,null,null,null,null,null,null,null,null,null,null,null,null,null,null,null,null,null,null,null,null,null,null,null,null,null,null,null,null,null,null,null,null,null,null,null,null,9,null,0,0,0]
[null,null,null,null,null,null,null,null,null,null,null,null,null,null,null,null,null,null,null,null,null,null,null,null,null,null,null,null,null,null,null,null,null,null,null,null,null,null,null,null,null,null,null,null,null,null,null,null,null,null,null,null,null,null,null,null,null,null,null,null,null,null,null,null,null,null,null,null,null,null,null,null,null,null,null,null,null,null,null,null,null,null,null,null,null,null,null,null,null,null,null,null,null,null,null,null,null,null,null,null,null,null,10,null,0,0,0]
[null,null,null,null,null,null,null,null,null,null,null,null,null,null,null,null,null,null,null,null,null,null,null,null,null,null,null,null,null,null,null,null,null,null,null,null,null,null,null,null,null,null,null,null,null,null,null,null,null,null,null,null,null,null,null,null,null,null,null,null,null,null,null,null,null,null,null,null,null,null,null,null,null,null,null,null,null,null,null,null,null,null,null,null,null,null,null,null,null,null,null,null,null,null,null,null,null,null,null,null,null,null,11,null,0,0,0]
[null,null,null,null,null,null,null,null,null,null,null,null,null,null,null,null,null,null,null,null,null,null,null,null,null,null,null,null,null,null,null,null,null,null,null,null,null,null,null,null,null,null,null,null,null,null,null,null,null,null,null,null,null,null,null,null,null,null,null,null,null,null,null,null,null,null,null,null,null,null,null,null,null,null,null,null,null,null,null,null,null,null,null,null,null,null,null,null,null,null,null,null,null,null,null,null,null,null,null,null,null,null,12,null,0,0,0]
[null,null,null,null,null,null,null,null,null,null,null,null,null,null,null,null,null,null,null,null,null,null,null,null,null,null,null,null,null,null,null,null,null,null,null,null,null,null,null,null,null,null,null,null,null,null,null,null,null,null,null,null,null,null,null,null,null,null,null,null,null,null,null,null,null,null,null,null,null,null,null,null,null,null,null,null,null,null,null,null,null,null,null,null,null,null,null,null,null,null,null,null,null,null,null,null,null,null,null,null,null,null,13,null,0,0,0]
[null,null,null,null,null,null,null,null,null,null,null,null,null,null,null,null,null,null,null,null,null,null,null,null,null,null,null,null,null,null,null,null,null,null,null,null,null,null,null,null,null,null,null,null,null,null,null,null,null,null,null,null,null,null,null,null,null,null,null,null,null,null,null,null,null,null,null,null,null,null,null,null,null,null,null,null,null,null,null,null,null,null,null,null,null,null,null,null,null,null,null,null,null,null,null,null,null,null,null,null,null,null,14,null,0,0,0]
[null,null,null,null,null,null,null,null,null,null,null,null,null,null,null,null,null,null,null,null,null,null,null,null,null,null,null,null,null,null,null,null,null,null,null,null,null,null,null,null,null,null,null,null,null,null,null,null,null,null,null,null,null,null,null,null,null,null,null,null,null,null,null,null,null,null,null,null,null,null,null,null,null,null,null,null,null,null,null,null,null,null,null,null,null,null,null,null,null,null,null,null,null,null,null,null,null,null,null,null,null,null,15,null,0,0,0]
[null,null,null,null,null,null,null,null,null,null,null,null,null,null,null,null,null,null,null,null,null,null,null,null,null,null,null,null,null,null,null,null,null,null,null,null,null,null,null,null,null,null,null,null,null,null,null,null,null,null,null,null,null,null,null,null,null,null,null,null,null,null,null,null,null,null,null,null,null,null,null,null,null,null,null,null,null,null,null,null,null,null,null,null,null,null,null,null,null,null,null,null,null,null,null,null,null,null,null,null,null,null,16,null,0,0,0]
[null,null,null,null,null,null,null,null,null,null,null,null,null,null,null,null,null,null,null,null,null,null,null,null,null,null,null,null,null,null,null,null,null,null,null,null,null,null,null,null,null,null,null,null,null,null,null,null,null,null,null,null,null,null,null,null,null,null,null,null,null,null,null,null,null,null,null,null,null,null,null,null,null,null,null,null,null,null,null,null,null,null,null,null,null,null,null,null,null,null,null,null,null,null,null,null,null,null,null,null,null,null,17,null,0,0,0]
[null,null,null,null,null,null,null,null,null,null,null,null,null,null,null,null,null,null,null,null,null,null,null,null,null,null,null,null,null,null,null,null,null,null,null,null,null,null,null,null,null,null,null,null,null,null,null,null,null,null,null,null,null,null,null,null,null,null,null,null,null,null,null,null,null,null,null,null,null,null,null,null,null,null,null,null,null,null,null,null,null,null,null,null,null,null,null,null,null,null,null,null,null,null,null,null,null,null,null,null,null,null,18,null,0,0,0]
[null,null,null,null,null,null,null,null,null,null,null,null,null,null,null,null,null,null,null,null,null,null,null,null,null,null,null,null,null,null,null,null,null,null,null,null,null,null,null,null,null,null,null,null,null,null,null,null,null,null,null,null,null,null,null,null,null,null,null,null,null,null,null,null,null,null,null,null,null,null,null,null,null,null,null,null,null,null,null,null,null,null,null,null,null,null,null,null,null,null,null,null,null,null,null,null,null,null,null,null,null,null,19,null,0,0,0]
[null,null,null,null,null,null,null,null,null,null,null,null,null,null,null,null,null,null,null,null,null,null,null,null,null,null,null,null,null,null,null,null,null,null,null,null,null,null,null,null,null,null,null,null,null,null,null,null,null,null,null,null,null,null,null,null,null,null,null,null,null,null,null,null,null,null,null,null,null,null,null,null,null,null,null,null,null,null,null,null,null,null,null,null,null,null,null,null,null,null,null,null,null,null,null,null,null,null,null,null,null,null,20,null,0,0,0]
[null,null,null,null,null,null,null,null,null,null,null,null,null,null,null,null,null,null,null,null,null,null,null,null,null,null,null,null,null,null,null,null,null,null,null,null,null,null,null,null,null,null,null,null,null,null,null,null,null,null,null,null,null,null,null,null,null,null,null,null,null,null,null,null,null,null,null,null,null,null,null,null,null,null,null,null,null,null,null,null,null,null,null,null,null,null,null,null,null,null,null,null,null,null,null,null,null,null,null,null,null,null,21,null,0,0,0]
[null,null,null,null,null,null,null,null,null,null,null,null,null,null,null,null,null,null,null,null,null,null,null,null,null,null,null,null,null,null,null,null,null,null,null,null,null,null,null,null,null,null,null,null,null,null,null,null,null,null,null,null,null,null,null,null,null,null,null,null,null,null,null,null,null,null,null,null,null,null,null,null,null,null,null,null,null,null,null,null,null,null,null,null,null,null,null,null,null,null,null,null,null,null,null,null,null,null,null,null,null,null,22,null,0,0,0]
[null,null,null,null,null,null,null,null,null,null,null,null,null,null,null,null,null,null,null,null,null,null,null,null,null,null,null,null,null,null,null,null,null,null,null,null,null,null,null,null,null,null,null,null,null,null,null,null,null,null,null,null,null,null,null,null,null,null,null,null,null,null,null,null,null,null,null,null,null,null,null,null,null,null,null,null,null,null,null,null,null,null,null,null,null,null,null,null,null,null,null,null,null,null,null,null,null,null,null,null,null,null,23,null,0,0,0]
[null,null,null,null,null,null,null,null,null,null,null,null,null,null,null,null,null,null,null,null,null,null,null,null,null,null,null,null,null,null,null,null,null,null,null,null,null,null,null,null,null,null,null,null,null,null,null,null,null,null,null,null,null,null,null,null,null,null,null,null,null,null,null,null,null,null,null,null,null,null,null,null,null,null,null,null,null,null,null,null,null,null,null,null,null,null,null,null,null,null,null,null,null,null,null,null,null,null,null,null,null,null,24,null,0,0,0]
[null,null,null,null,null,null,null,null,null,null,null,null,null,null,null,null,null,null,null,null,null,null,null,null,null,null,null,null,null,null,null,null,null,null,null,null,null,null,null,null,null,null,null,null,null,null,null,null,null,null,null,null,null,null,null,null,null,null,null,null,null,null,null,null,null,null,null,null,null,null,null,null,null,null,null,null,null,null,null,null,null,null,null,null,null,null,null,null,null,null,null,null,null,null,null,null,null,null,null,null,null,null,25,null,0,0,0]
[null,null,null,null,null,null,null,null,null,null,null,null,null,null,null,null,null,null,null,null,null,null,null,null,null,null,null,null,null,null,null,null,null,null,null,null,null,null,null,null,null,null,null,null,null,null,null,null,null,null,null,null,null,null,null,null,null,null,null,null,null,null,null,null,null,null,null,null,null,null,null,null,null,null,null,null,null,null,null,null,null,null,null,null,null,null,null,null,null,null,null,null,null,null,null,null,null,null,null,null,null,null,26,null,0,0,0]
[null,null,null,null,null,null,null,null,null,null,null,null,null,null,null,null,null,null,null,null,null,null,null,null,null,null,null,null,null,null,null,null,null,null,null,null,null,null,null,null,null,null,null,null,null,null,null,null,null,null,null,null,null,null,null,null,null,null,null,null,null,null,null,null,null,null,null,null,null,null,null,null,null,null,null,null,null,null,null,null,null,null,null,null,null,null,null,null,null,null,null,null,null,null,null,null,null,null,null,null,null,null,27,null,0,0,0]
[null,null,null,null,null,null,null,null,null,null,null,null,null,null,null,null,null,null,null,null,null,null,null,null,null,null,null,null,null,null,null,null,null,null,null,null,null,null,null,null,null,null,null,null,null,null,null,null,null,null,null,null,null,null,null,null,null,null,null,null,null,null,null,null,null,null,null,null,null,null,null,null,null,null,null,null,null,null,null,null,null,null,null,null,null,null,null,null,null,null,null,null,null,null,null,null,null,null,null,null,null,null,28,null,0,0,0]
[null,null,null,null,null,null,null,null,null,null,null,null,null,null,null,null,null,null,null,null,null,null,null,null,null,null,null,null,null,null,null,null,null,null,null,null,null,null,null,null,null,null,null,null,null,null,null,null,null,null,null,null,null,null,null,null,null,null,null,null,null,null,null,null,null,null,null,null,null,null,null,null,null,null,null,null,null,null,null,null,null,null,null,null,null,null,null,null,null,null,null,null,null,null,null,null,null,null,null,null,null,null,29,null,0,0,0]
[null,null,null,null,null,null,null,null,null,null,null,null,null,null,null,null,null,null,null,null,null,null,null,null,null,null,null,null,null,null,null,null,null,null,null,null,null,null,null,null,null,null,null,null,null,null,null,null,null,null,null,null,null,null,null,null,null,null,null,null,null,null,null,null,null,null,null,null,null,null,null,null,null,null,null,null,null,null,null,null,null,null,null,null,null,null,null,null,null,null,null,null,null,null,null,null,null,null,null,null,null,null,30,null,0,0,0]
[null,null,null,null,null,null,null,null,null,null,null,null,null,null,null,null,null,null,null,null,null,null,null,null,null,null,null,null,null,null,null,null,null,null,null,null,null,null,null,null,null,null,null,null,null,null,null,null,null,null,null,null,null,null,null,null,null,null,null,null,null,null,null,null,null,null,null,null,null,null,null,null,null,null,null,null,null,null,null,null,null,null,null,null,null,null,null,null,null,null,null,null,null,null,null,null,null,null,null,null,null,null,"Suma",null,{"$f":"IF($G$42<>0,SUM(DA40:DA69),\"neměřeno\")","v":"neměřeno"},{"$f":"IF($G$42<>0,SUM(DB40:DB69),\"neměřeno\")","v":"neměřeno"},"neměřeno"]

{"sheet":"3.Regrese","index":5,"n_rows":73,"n_cols":122,"rows_kept":73,"cut":false,"hidden":false,"merged":[[47,113,47,114],[38,117,39,117],[40,117,41,117],[16,4,16,5],[8,4,8,5],[9,4,9,5],[10,4,10,5],[36,4,36,5],[9,70,9,71],[9,74,9,75],[9,78,9,80],[41,4,41,5],[39,4,39,5],[40,4,40,5],[34,4,34,5],[35,4,35,5],[28,4,28,5],[17,4,17,5],[18,4,18,5],[19,4,19,5],[20,4,20,5],[21,4,21,5],[22,4,22,5],[23,4,23,5],[24,4,24,5],[25,4,25,5],[26,4,26,5],[27,4,27,5],[37,4,37,5],[29,4,29,5],[30,4,30,5],[31,4,31,5],[32,4,32,5],[33,4,33,5],[13,4,13,5],[14,4,14,5],[15,4,15,5],[6,7,7,7],[6,8,7,8],[3,4,7,5],[11,4,11,5],[12,4,12,5],[6,9,7,9],[4,6,5,6],[4,7,5,7],[4,8,5,8],[4,9,5,9],[6,6,7,6],[28,113,28,115],[29,113,29,120],[30,113,30,115],[30,119,30,120],[35,113,35,115],[37,113,41,114],[38,115,39,115],[38,116,39,116],[40,115,41,115],[40,116,41,116],[42,113,42,114],[43,113,43,114],[44,113,44,114],[45,113,45,114],[46,113,46,114],[48,113,48,114],[49,113,49,114],[50,113,50,114],[51,113,51,114],[52,113,52,114],[53,113,53,114],[54,113,54,114],[55,113,55,114],[56,113,56,114],[57,113,57,114],[58,113,58,114],[59,113,59,114],[60,113,60,114],[61,113,61,114],[62,113,62,114],[63,113,63,114],[64,113,64,114],[65,113,65,114],[66,113,66,114],[67,113,67,114],[72,113,72,114],[9,113,9,120],[10,113,10,120],[11,113,11,118],[11,119,11,120],[12,113,12,118],[12,119,12,120],[13,113,13,120],[15,113,15,114],[16,113,16,114],[20,113,20,115],[21,113,21,115],[68,113,68,114],[69,113,69,114],[70,113,70,114],[71,113,71,114]]}
[null,null,null,"počet","%","kus","počet",null,null,null,null,null,null,null,null,null,null,null,{"$f":"A4*A5","v":{"$error":"#VALUE!"}}]
[]
[null,null,null,null,null,null,null,null,null,null,null,null,null,null,null,null,null,null,null,null,null,null,null,null,null,"y ̅"]
[{"$f":"'Vstupni oblast dat2'!A4","v":"jednotky"},null,null,null,"n",null,"yi","x1i","x2i","x3i"]
[{"$f":"'Vstupni oblast dat2'!A5","v":"jednotky"},null,null,null,null,null,{"$f":"'Vstupni oblast dat2'!G5:G6","v":"Závisle proměnná"},{"$f":"'Vstupni oblast dat2'!H5:H6","v":"1.regresor"},{"$f":"'Vstupni oblast dat2'!I5:I6","v":"2.regresor"},{"$f":"'Vstupni oblast dat2'!J5:J6","v":"3.regresor"}]
[{"$f":"'Vstupni oblast dat2'!A6","v":"jednotky"}]
[{"$f":"'Vstupni oblast dat2'!A7","v":"jednotky"},null,null,null,null,null,{"$f":"'Vstupni oblast dat2'!G7:G8","v":"[ jednotky ]"},{"$f":"'Vstupni oblast dat2'!H7:H8","v":"[ jednotky ]"},{"$f":"'Vstupni oblast dat2'!I7:I8","v":"[ jednotky ]"},{"$f":"'Vstupni oblast dat2'!J7:J8","v":"[ jednotky ]"},null,null,null,null,null,null,null,null,"yi*x1i","yi*x2i","yi*x3i","yi2","x1i2","x2i2","x3i2","x1i*x2i","x1i*x3i","x2i*x3i","(yi -   𝐲 )2","(x1i -       )2","(x2i -       )2","(x3i -       )2"]
["*",null,null,null,null,null,null,null,null,null,null,null,null,null,null,null,null,null,{"$f":"A4&A8&A5","v":"jednotky*jednotky"},{"$f":"A4&A8&A6","v":"jednotky*jednotky"},{"$f":"A4&A8&A7","v":"jednotky*jednotky"},{"$f":"A4&A9","v":"jednotky^2"},{"$f":"A5&A9","v":"jednotky^2"},{"$f":"A6&A9","v":"jednotky^2"},{"$f":"A7&A9","v":"jednotky^2"},{"$f":"A5&A8&A6","v":"jednotky*jednotky"},{"$f":"A5&A8&A7","v":"jednotky*jednotky"},{"$f":"A6&A8&A7","v":"jednotky*jednotky"},{"$f":"A4&A9","v":"jednotky^2"},{"$f":"A5&A9","v":"jednotky^2"},{"$f":"A6&A9","v":"jednotky^2"},{"$f":"A7&A9","v":"jednotky^2"}]
["^2",null,null,null,{"$f":"1","v":1},null,{"$f":"IF('Vstupni oblast dat2'!G9<>\"0\",'Vstupni oblast dat2'!G9,\"\")","v":0},{"$f":"IF('Vstupni oblast dat2'!H9<>\"0\",'Vstupni oblast dat2'!H9,\"\")","v":0},{"$f":"IF('Vstupni oblast dat2'!I9<>\"0\",'Vstupni oblast dat2'!I9,\"\")","v":0},{"$f":"IF('Vstupni oblast dat2'!J9<>\"0\",'Vstupni oblast dat2'!J9,\"\")","v":0},null,null,null,null,null,null,null,null,{"$f":"G9*H9","v":0},{"$f":"G9*I9","v":0},{"$f":"G9*J9","v":0},{"$f":"G9*G9","v":0},{"$f":"H9*H9","v":0},{"$f":"I9*I9","v":0},{"$f":"J9*J9","v":0},{"$f":"H9*I9","v":0},{"$f":"H9*J9","v":0},{"$f":"I9*J9","v":0},{"$f":"IF(G9<>0,(G9-$G$40)^2,0)","v":0},{"$f":"IF(H9<>0,(H9-$H$40)^2,0)","v":0},{"$f":"IF(I9<>0,(I9-$I$40)^2,0)","v":0},{"$f":"IF(J9<>0,(J9-$J$40)^2,0)","v":0}]
["^3",null,null,null,{"$f":"E9+1","v":2},null,{"$f":"IF('Vstupni oblast dat2'!G10<>\"0\",'Vstupni oblast dat2'!G10,\"\")","v":0},{"$f":"IF('Vstupni oblast dat2'!H10<>\"0\",'Vstupni oblast dat2'!H10,\"\")","v":0},{"$f":"IF('Vstupni oblast dat2'!I10<>\"0\",'Vstupni oblast dat2'!I10,\"\")","v":0},{"$f":"IF('Vstupni oblast dat2'!J10<>\"0\",'Vstupni oblast dat2'!J10,\"\")","v":0},null,null,null,null,null,null,null,null,0,0,0,0,0,0,0,0,0,0,{"$f":"IF(G10<>0,(G10-$G$40)^2,0)","v":0},{"$f":"IF(H10<>0,(H10-$H$40)^2,0)","v":0},{"$f":"IF(I10<>0,(I10-$I$40)^2,0)","v":0},{"$f":"IF(J10<>0,(J10-$J$40)^2,0)","v":0},null,null,null,null,null,null,null,null,null,null,null,null,null,null,null,null,null,null,null,null,null,null,null,null,null,null,null,{"$f":"AQ14","v":{"$error":"#VALUE!"}},"=",1,null,"+",{"$f":"AQ22","v":{"$error":"#VALUE!"}},null,"+",{"$f":"AT22","v":{"$error":"#VALUE!"}},null,null,"Koeficienty ",null,null,null,"Inverzní matice ",null,null,null,"Výpočet koeficient Beta",null,null,null,null,null,null,null,null,null,null,null,null,null,null,null,null,null,null,null,null,null,null,null,null,null,null,null,null,null,null,null,null,null,null,"Test významnosti regresního modelu:"]
["+",null,null,null,{"$f":"E10+1","v":3},null,{"$f":"IF('Vstupni oblast dat2'!G11<>\"0\",'Vstupni oblast dat2'!G11,\"\")","v":0},{"$f":"IF('Vstupni oblast dat2'!H11<>\"0\",'Vstupni oblast dat2'!H11,\"\")","v":0},{"$f":"IF('Vstupni oblast dat2'!I11<>\"0\",'Vstupni oblast dat2'!I11,\"\")","v":0},{"$f":"IF('Vstupni oblast dat2'!J11<>\"0\",'Vstupni oblast dat2'!J11,\"\")","v":0},null,null,null,null,null,null,null,null,0,0,0,0,0,0,0,0,0,0,0,0,0,0,null,null,null,null,null,null,null,null,null,"b0",{"$f":"G40-AQ12*H40","v":{"$error":"#VALUE!"}},null,"b0",{"$f":"G40-I40*AT12","v":{"$error":"#VALUE!"}},null,"b0",{"$f":"G40-AW12*J40","v":{"$error":"#VALUE!"}},null,null,null,null,null,null,null,null,null,null,{"$f":"AT14","v":{"$error":"#VALUE!"}},"=",{"$f":"AQ22","v":{"$error":"#VALUE!"}},null,"+",1,null,"+",{"$f":"BM12","v":{"$error":"#VALUE!"}},null,null,null,null,null,null,null,null,null,null,null,null,null,null,null,null,null,null,null,null,null,null,{"$f":"SQRT((AC40/G42))","v":{"$error":"#VALUE!"}},null,null,{"$f":"G40-(H40*CP12)-(I40*CP13)-(J40*CP14)","v":{"$error":"#VALUE!"}}]
[null,null,null,null,4,null,{"$f":"IF('Vstupni oblast dat2'!G12<>\"0\",'Vstupni oblast dat2'!G12,\"\")","v":0},{"$f":"IF('Vstupni oblast dat2'!H12<>\"0\",'Vstupni oblast dat2'!H12,\"\")","v":0},{"$f":"IF('Vstupni oblast dat2'!I12<>\"0\",'Vstupni oblast dat2'!I12,\"\")","v":0},{"$f":"IF('Vstupni oblast dat2'!J12<>\"0\",'Vstupni oblast dat2'!J12,\"\")","v":0},null,null,null,null,null,null,null,null,0,0,0,0,0,0,0,0,0,0,0,0,0,0,null,null,null,null,null,null,null,null,null,"b1",{"$f":"(((G42*S40)-(H41*G41))/((G42*W40)-(H41*H41)))","v":{"$error":"#VALUE!"}},null,"b1",{"$f":"((G42*T40)-(I41*G41))/((G42*X40)-(I41*I41))","v":{"$error":"#VALUE!"}},null,"b1",{"$f":"((G42*U40)-(G41*J41))/((G42*Y40)-(J41*J41))","v":{"$error":"#VALUE!"}},null,null,null,null,null,null,null,null,null,null,{"$f":"AW14","v":{"$error":"#VALUE!"}},"=",{"$f":"AT22","v":{"$error":"#VALUE!"}},null,"+",{"$f":"AW22","v":{"$error":"#VALUE!"}},null,"+",1,null,null,1,{"$f":"BM10","v":{"$error":"#VALUE!"}},{"$f":"BP10","v":{"$error":"#VALUE!"}},null,{"$f":"MINVERSE(BS12:BU14)","v":{"$error":"#VALUE!"}},{"$error":"#VALUE!"},{"$error":"#VALUE!"},null,null,{"$f":"MMULT(BW12:BY14,BH10:BH12)","v":{"$error":"#VALUE!"}},null,null,null,null,null,null,null,null,null,null,{"$f":"SQRT((AD40/G42))","v":{"$error":"#VALUE!"}},null,null,{"$f":"(CM11/CM12)*CB12","v":{"$error":"#VALUE!"}},null,null,null,null,null,null,null,null,null,null,null,null,null,null,null,null,null,null,null,"H0 - vícenásobný lineární regresní model není významný (R2 = 0)",null,null,null,null,null,"F < F0,95(        ,        )"]
[null,null,null,null,5,null,{"$f":"IF('Vstupni oblast dat2'!G13<>\"0\",'Vstupni oblast dat2'!G13,\"\")","v":0},{"$f":"IF('Vstupni oblast dat2'!H13<>\"0\",'Vstupni oblast dat2'!H13,\"\")","v":0},{"$f":"IF('Vstupni oblast dat2'!I13<>\"0\",'Vstupni oblast dat2'!I13,\"\")","v":0},{"$f":"IF('Vstupni oblast dat2'!J13<>\"0\",'Vstupni oblast dat2'!J13,\"\")","v":0},null,null,null,null,null,null,null,null,0,0,0,0,0,0,0,0,0,0,0,0,0,0,null,null,null,null,null,null,null,null,null,"rovnice yi",{"$f":"AQ11&A11&AQ12&H4","v":{"$error":"#VALUE!"}},null,"rovnice yi",{"$f":"AT11&A11&AT12&I4","v":{"$error":"#VALUE!"}},null,"rovnice yi",{"$f":"AW11&A11&AW12&J4","v":{"$error":"#VALUE!"}},null,null,null,null,null,null,null,null,null,null,null,null,null,null,null,null,null,null,null,null,null,{"$f":"BJ11","v":{"$error":"#VALUE!"}},1,{"$f":"BP11","v":{"$error":"#VALUE!"}},null,{"$error":"#VALUE!"},{"$error":"#VALUE!"},{"$error":"#VALUE!"},null,null,{"$error":"#VALUE!"},null,null,null,null,null,null,null,null,null,null,{"$f":"SQRT((AE40/G42))","v":{"$error":"#VALUE!"}},null,null,{"$f":"(CM11/CM13)*CB13","v":{"$error":"#VALUE!"}},null,null,null,null,null,null,null,null,null,null,null,null,null,null,null,null,null,null,null,"H1 - vícenásobný lineární regresní model je významný (R2 ≠ 0)",null,null,null,null,null,"F >F0,95(        ,        )"]
[null,null,null,null,6,null,{"$f":"IF('Vstupni oblast dat2'!G14<>\"0\",'Vstupni oblast dat2'!G14,\"\")","v":0},{"$f":"IF('Vstupni oblast dat2'!H14<>\"0\",'Vstupni oblast dat2'!H14,\"\")","v":0},{"$f":"IF('Vstupni oblast dat2'!I14<>\"0\",'Vstupni oblast dat2'!I14,\"\")","v":0},{"$f":"IF('Vstupni oblast dat2'!J14<>\"0\",'Vstupni oblast dat2'!J14,\"\")","v":0},null,null,null,null,null,null,null,null,0,0,0,0,0,0,0,0,0,0,0,0,0,0,null,null,null,null,null,null,null,null,null,"R ",{"$f":"(((G42*S40)-(H41*G41))/SQRT(((G42*W40-H41*H41)*(G42*V40-G41*G41))))","v":{"$error":"#VALUE!"}},null,"R ",{"$f":"(((G42*T40)-(I41*G41))/SQRT(((((G42*X40)-(I41*I41)))*(G42*V40-G41*G41))))","v":{"$error":"#VALUE!"}},null,"R ",{"$f":"(((G42*U40)-(J41*G41))/SQRT(((((G42*Y40)-(J41*J41)))*(G42*V40-G41*G41))))","v":{"$error":"#VALUE!"}},null,null,null,null,null,null,null,null,null,null,null,null,null,null,null,null,null,null,null,null,null,{"$f":"BJ12","v":{"$error":"#VALUE!"}},{"$f":"BM12","v":{"$error":"#VALUE!"}},1,null,{"$error":"#VALUE!"},{"$error":"#VALUE!"},{"$error":"#VALUE!"},null,null,{"$error":"#VALUE!"},null,null,null,null,null,null,null,null,null,null,{"$f":"SQRT((AF40/G42))","v":{"$error":"#VALUE!"}},null,null,{"$f":"(CM11/CM14)*CB14","v":{"$error":"#VALUE!"}}]
[null,null,null,null,7,null,{"$f":"IF('Vstupni oblast dat2'!G15<>\"0\",'Vstupni oblast dat2'!G15,\"\")","v":0},{"$f":"IF('Vstupni oblast dat2'!H15<>\"0\",'Vstupni oblast dat2'!H15,\"\")","v":0},{"$f":"IF('Vstupni oblast dat2'!I15<>\"0\",'Vstupni oblast dat2'!I15,\"\")","v":0},{"$f":"IF('Vstupni oblast dat2'!J15<>\"0\",'Vstupni oblast dat2'!J15,\"\")","v":0},null,null,null,null,null,null,null,null,0,0,0,0,0,0,0,0,0,0,0,0,0,0,null,null,null,null,null,null,null,null,null,"R^2",{"$f":"AQ14*AQ14","v":{"$error":"#VALUE!"}},null,"R^2",{"$f":"AT14*AT14","v":{"$error":"#VALUE!"}},null,"R^2",{"$f":"AW14*AW14","v":{"$error":"#VALUE!"}},null,null,null,null,null,null,null,null,null,null,null,null,null,null,null,null,null,null,null,null,null,null,null,null,null,null,null,null,null,null,null,null,null,null,null,null,null,null,null,null,null,null,null,null,{"$f":"SQRT((CB12*BH10)+(CB13*BH11)+(CB14*BH12))","v":{"$error":"#VALUE!"}}]
[null,null,null,null,8,null,{"$f":"IF('Vstupni oblast dat2'!G16<>\"0\",'Vstupni oblast dat2'!G16,\"\")","v":0},{"$f":"IF('Vstupni oblast dat2'!H16<>\"0\",'Vstupni oblast dat2'!H16,\"\")","v":0},{"$f":"IF('Vstupni oblast dat2'!I16<>\"0\",'Vstupni oblast dat2'!I16,\"\")","v":0},{"$f":"IF('Vstupni oblast dat2'!J16<>\"0\",'Vstupni oblast dat2'!J16,\"\")","v":0},null,null,null,null,null,null,null,null,0,0,0,0,0,0,0,0,0,0,0,0,0,0,null,null,null,null,null,null,null,null,null,null,null,null,null,null,null,null,null,null,null,null,null,null,null,null,null,null,null,null,null,null,null,null,null,null,null,null,null,null,null,null,null,null,null,null,null,null,null,null,null,null,null,null,null,null,null,null,null,null,null,null,null,null,null,null,null,null,null,null,null,null,null,null,null,null,null,null,null,null,null,null,null,"determinační koeficient",null,{"$f":"CX14","v":0},{"$f":"DL16","v":0}]
[null,null,null,null,9,null,{"$f":"IF('Vstupni oblast dat2'!G17<>\"0\",'Vstupni oblast dat2'!G17,\"\")","v":0},{"$f":"IF('Vstupni oblast dat2'!H17<>\"0\",'Vstupni oblast dat2'!H17,\"\")","v":0},{"$f":"IF('Vstupni oblast dat2'!I17<>\"0\",'Vstupni oblast dat2'!I17,\"\")","v":0},{"$f":"IF('Vstupni oblast dat2'!J17<>\"0\",'Vstupni oblast dat2'!J17,\"\")","v":0},null,null,null,null,null,null,null,null,0,0,0,0,0,0,0,0,0,0,0,0,0,0,null,null,null,null,null,null,null,null,null,null,null,null,null,null,null,null,null,null,null,null,null,null,null,null,null,null,null,null,null,null,null,null,null,null,null,null,null,null,null,null,null,null,null,null,null,null,null,null,null,null,null,null,null,null,null,null,null," ",null,null,null,null,null,null,null,null,null,null,null,null,null,null,null,null,null,null,null,null,null,null,null,"korelační koeficient",null,{"$f":"CX13","v":0},{"$f":"DL17","v":0}]
[null,null,null,null,10,null,{"$f":"IF('Vstupni oblast dat2'!G18<>\"0\",'Vstupni oblast dat2'!G18,\"\")","v":0},{"$f":"IF('Vstupni oblast dat2'!H18<>\"0\",'Vstupni oblast dat2'!H18,\"\")","v":0},{"$f":"IF('Vstupni oblast dat2'!I18<>\"0\",'Vstupni oblast dat2'!I18,\"\")","v":0},{"$f":"IF('Vstupni oblast dat2'!J18<>\"0\",'Vstupni oblast dat2'!J18,\"\")","v":0},null,null,null,null,null,null,null,null,0,0,0,0,0,0,0,0,0,0,0,0,0,0]
[null,null,null,null,11,null,{"$f":"IF('Vstupni oblast dat2'!G19<>\"0\",'Vstupni oblast dat2'!G19,\"\")","v":0},{"$f":"IF('Vstupni oblast dat2'!H19<>\"0\",'Vstupni oblast dat2'!H19,\"\")","v":0},{"$f":"IF('Vstupni oblast dat2'!I19<>\"0\",'Vstupni oblast dat2'!I19,\"\")","v":0},{"$f":"IF('Vstupni oblast dat2'!J19<>\"0\",'Vstupni oblast dat2'!J19,\"\")","v":0},null,null,null,null,null,null,null,null,0,0,0,0,0,0,0,0,0,0,0,0,0,0,null,null,null,null,null,null,null,null,null,"b0",{"$f":"H40-AQ20*I40","v":{"$error":"#VALUE!"}},null,"b0",{"$f":"H40-J40*AT20","v":{"$error":"#VALUE!"}},null,"b0",{"$f":"I40-J40*AW20","v":{"$error":"#VALUE!"}}]
[null,null,null,null,12,null,{"$f":"IF('Vstupni oblast dat2'!G20<>\"0\",'Vstupni oblast dat2'!G20,\"\")","v":0},{"$f":"IF('Vstupni oblast dat2'!H20<>\"0\",'Vstupni oblast dat2'!H20,\"\")","v":0},{"$f":"IF('Vstupni oblast dat2'!I20<>\"0\",'Vstupni oblast dat2'!I20,\"\")","v":0},{"$f":"IF('Vstupni oblast dat2'!J20<>\"0\",'Vstupni oblast dat2'!J20,\"\")","v":0},null,null,null,null,null,null,null,null,0,0,0,0,0,0,0,0,0,0,0,0,0,0,null,null,null,null,null,null,null,null,null,"b1",{"$f":"((G42*Z40)-(H41*I41))/((G42*X40)-(I41*I41))","v":{"$error":"#VALUE!"}},null,"b1",{"$f":"((G42*AA40)-(H41*J41))/((G42*Y40)-(J41*J41))","v":{"$error":"#VALUE!"}},null,"b1",{"$f":"(((G42*AB40)-(I41*J41))/((G42*Y40)-(J41*J41)))","v":{"$error":"#VALUE!"}}]
[null,null,null,null,13,null,{"$f":"IF('Vstupni oblast dat2'!G21<>\"0\",'Vstupni oblast dat2'!G21,\"\")","v":0},{"$f":"IF('Vstupni oblast dat2'!H21<>\"0\",'Vstupni oblast dat2'!H21,\"\")","v":0},{"$f":"IF('Vstupni oblast dat2'!I21<>\"0\",'Vstupni oblast dat2'!I21,\"\")","v":0},{"$f":"IF('Vstupni oblast dat2'!J21<>\"0\",'Vstupni oblast dat2'!J21,\"\")","v":0},null,null,null,null,null,null,null,null,0,0,0,0,0,0,0,0,0,0,0,0,0,0,null,null,null,null,null,null,null,null,null,"rovnice x1i",{"$f":"AQ19&A11&AQ20&I4","v":{"$error":"#VALUE!"}},null,"rovnice x1i",{"$f":"AT19&A11&AT20&J4","v":{"$error":"#VALUE!"}},null,"rovnice x2i",{"$f":"AW19&A11&AW20&J4","v":{"$error":"#VALUE!"}},null,null,null,null,null,null,null,null,null,null,null,null,null,null,null,null,null,null,null,null,null,null,null,null,null,null,null,null,null,null,null,null,null,null,null,null,null,null,null,null,null,null,null,null,null,null,null,null,null,null,null,null,null,null,null,null,null,null,null,null,null,null,null,null,"testové kritérium",null,null,"F",{"$f":"DA21","v":0}]
[null,null,null,null,14,null,{"$f":"IF('Vstupni oblast dat2'!G22<>\"0\",'Vstupni oblast dat2'!G22,\"\")","v":0},{"$f":"IF('Vstupni oblast dat2'!H22<>\"0\",'Vstupni oblast dat2'!H22,\"\")","v":0},{"$f":"IF('Vstupni oblast dat2'!I22<>\"0\",'Vstupni oblast dat2'!I22,\"\")","v":0},{"$f":"IF('Vstupni oblast dat2'!J22<>\"0\",'Vstupni oblast dat2'!J22,\"\")","v":0},null,null,null,null,null,null,null,null,0,0,0,0,0,0,0,0,0,0,0,0,0,0,null,null,null,null,null,null,null,null,null,"R ",{"$f":"((G42*Z40)-(H41*I41))/SQRT(((G42*X40-I41*I41)*(G42*W40-H41*H41)))","v":{"$error":"#VALUE!"}},null,"R ",{"$f":"(((G42*AA40)-(H41*J41))/SQRT(((G42*Y40-J41*J41)*(G42*W40-H41*H41))))","v":{"$error":"#VALUE!"}},null,"R ",{"$f":"(((G42*AB40)-(I41*J41))/SQRT(((G42*Y40-J41*J41)*(G42*X40-I41*I41))))","v":{"$error":"#VALUE!"}},null,null,null,null,null,null,null,null,null,null,null,null,null,null,null,null,null,null,null,null,null,null,null,null,null,null,null,null,null,null,null,null,null,null,null,null,null,null,null,null,null,null,null,null,null,null,null,null,null,null,null,null,null,null,null,null,null,null,null,null,null,null,null,null,"kritická hodnota",null,null,"F0,95(    ,     )",{"$f":"FINV(DM23,CX21,CX22)","v":{"$error":"#NUM!"}}]
[null,null,null,null,15,null,{"$f":"IF('Vstupni oblast dat2'!G23<>\"0\",'Vstupni oblast dat2'!G23,\"\")","v":0},{"$f":"IF('Vstupni oblast dat2'!H23<>\"0\",'Vstupni oblast dat2'!H23,\"\")","v":0},{"$f":"IF('Vstupni oblast dat2'!I23<>\"0\",'Vstupni oblast dat2'!I23,\"\")","v":0},{"$f":"IF('Vstupni oblast dat2'!J23<>\"0\",'Vstupni oblast dat2'!J23,\"\")","v":0},null,null,null,null,null,null,null,null,0,0,0,0,0,0,0,0,0,0,0,0,0,0,null,null,null,null,null,null,null,null,null,"R^2",{"$f":"AQ22*AQ22","v":{"$error":"#VALUE!"}},null,"R^2",{"$f":"AT22*AT22","v":{"$error":"#VALUE!"}},null,"R^2",{"$f":"AW22*AW22","v":{"$error":"#VALUE!"}},null,null,null,null,null,null,null,null,null,null,null,null,null,null,null,null,null,null,null,null,null,null,null,null,null,null,null,null,null,null,null,null,null,null,null,null,null,null,null,null,null,null,null,null,null,null,null,null,null,null,null,null,null,null,null,null,null,null,null,null,null,null,null,null,null,null,null,0.05]
[null,null,null,null,16,null,{"$f":"IF('Vstupni oblast dat2'!G24<>\"0\",'Vstupni oblast dat2'!G24,\"\")","v":0},{"$f":"IF('Vstupni oblast dat2'!H24<>\"0\",'Vstupni oblast dat2'!H24,\"\")","v":0},{"$f":"IF('Vstupni oblast dat2'!I24<>\"0\",'Vstupni oblast dat2'!I24,\"\")","v":0},{"$f":"IF('Vstupni oblast dat2'!J24<>\"0\",'Vstupni oblast dat2'!J24,\"\")","v":0},null,null,null,null,null,null,null,null,0,0,0,0,0,0,0,0,0,0,0,0,0,0]
[null,null,null,null,17,null,{"$f":"IF('Vstupni oblast dat2'!G25<>\"0\",'Vstupni oblast dat2'!G25,\"\")","v":0},{"$f":"IF('Vstupni oblast dat2'!H25<>\"0\",'Vstupni oblast dat2'!H25,\"\")","v":0},{"$f":"IF('Vstupni oblast dat2'!I25<>\"0\",'Vstupni oblast dat2'!I25,\"\")","v":0},{"$f":"IF('Vstupni oblast dat2'!J25<>\"0\",'Vstupni oblast dat2'!J25,\"\")","v":0},null,null,null,null,null,null,null,null,0,0,0,0,0,0,0,0,0,0,0,0,0,0]
[null,null,null,null,18,null,{"$f":"IF('Vstupni oblast dat2'!G26<>\"0\",'Vstupni oblast dat2'!G26,\"\")","v":0},{"$f":"IF('Vstupni oblast dat2'!H26<>\"0\",'Vstupni oblast dat2'!H26,\"\")","v":0},{"$f":"IF('Vstupni oblast dat2'!I26<>\"0\",'Vstupni oblast dat2'!I26,\"\")","v":0},{"$f":"IF('Vstupni oblast dat2'!J26<>\"0\",'Vstupni oblast dat2'!J26,\"\")","v":0},null,null,null,null,null,null,null,null,0,0,0,0,0,0,0,0,0,0,0,0,0,0]
[null,null,null,null,19,null,{"$f":"IF('Vstupni oblast dat2'!G27<>\"0\",'Vstupni oblast dat2'!G27,\"\")","v":0},{"$f":"IF('Vstupni oblast dat2'!H27<>\"0\",'Vstupni oblast dat2'!H27,\"\")","v":0},{"$f":"IF('Vstupni oblast dat2'!I27<>\"0\",'Vstupni oblast dat2'!I27,\"\")","v":0},{"$f":"IF('Vstupni oblast dat2'!J27<>\"0\",'Vstupni oblast dat2'!J27,\"\")","v":0},null,null,null,null,null,null,null,null,0,0,0,0,0,0,0,0,0,0,0,0,0,0]
[null,null,null,null,20,null,{"$f":"IF('Vstupni oblast dat2'!G28<>\"0\",'Vstupni oblast dat2'!G28,\"\")","v":0},{"$f":"IF('Vstupni oblast dat2'!H28<>\"0\",'Vstupni oblast dat2'!H28,\"\")","v":0},{"$f":"IF('Vstupni oblast dat2'!I28<>\"0\",'Vstupni oblast dat2'!I28,\"\")","v":0},{"$f":"IF('Vstupni oblast dat2'!J28<>\"0\",'Vstupni oblast dat2'!J28,\"\")","v":0},null,null,null,null,null,null,null,null,0,0,0,0,0,0,0,0,0,0,0,0,0,0]
[null,null,null,null,21,null,{"$f":"IF('Vstupni oblast dat2'!G29<>\"0\",'Vstupni oblast dat2'!G29,\"\")","v":0},{"$f":"IF('Vstupni oblast dat2'!H29<>\"0\",'Vstupni oblast dat2'!H29,\"\")","v":0},{"$f":"IF('Vstupni oblast dat2'!I29<>\"0\",'Vstupni oblast dat2'!I29,\"\")","v":0},{"$f":"IF('Vstupni oblast dat2'!J29<>\"0\",'Vstupni oblast dat2'!J29,\"\")","v":0},null,null,null,null,null,null,null,null,0,0,0,0,0,0,0,0,0,0,0,0,0,0,null,null,null,null,null,null,null,null,null,null,null,null,null,null,null,null,null,null,null,null,null,null,null,null,null,null,null,null,null,null,null,null,null,null,null,null,null,null,null,null,null,null,null,null,null,null,null,null,null,null,null,null,null,null,null,null,null,null,null,null,null,null,null,null,null,null,null,null,null,null,null,null,null,null,null,null,null,null,null,null,null,"Regresní rovnice"]
[null,null,null,null,22,null,{"$f":"IF('Vstupni oblast dat2'!G30<>\"0\",'Vstupni oblast dat2'!G30,\"\")","v":0},{"$f":"IF('Vstupni oblast dat2'!H30<>\"0\",'Vstupni oblast dat2'!H30,\"\")","v":0},{"$f":"IF('Vstupni oblast dat2'!I30<>\"0\",'Vstupni oblast dat2'!I30,\"\")","v":0},{"$f":"IF('Vstupni oblast dat2'!J30<>\"0\",'Vstupni oblast dat2'!J30,\"\")","v":0},null,null,null,null,null,null,null,null,0,0,0,0,0,0,0,0,0,0,0,0,0,0]
[null,null,null,null,23,null,{"$f":"IF('Vstupni oblast dat2'!G31<>\"0\",'Vstupni oblast dat2'!G31,\"\")","v":0},{"$f":"IF('Vstupni oblast dat2'!H31<>\"0\",'Vstupni oblast dat2'!H31,\"\")","v":0},{"$f":"IF('Vstupni oblast dat2'!I31<>\"0\",'Vstupni oblast dat2'!I31,\"\")","v":0},{"$f":"IF('Vstupni oblast dat2'!J31<>\"0\",'Vstupni oblast dat2'!J31,\"\")","v":0},null,null,null,null,null,null,null,null,0,0,0,0,0,0,0,0,0,0,0,0,0,0]
[null,null,null,null,24,null,{"$f":"IF('Vstupni oblast dat2'!G32<>\"0\",'Vstupni oblast dat2'!G32,\"\")","v":0},{"$f":"IF('Vstupni oblast dat2'!H32<>\"0\",'Vstupni oblast dat2'!H32,\"\")","v":0},{"$f":"IF('Vstupni oblast dat2'!I32<>\"0\",'Vstupni oblast dat2'!I32,\"\")","v":0},{"$f":"IF('Vstupni oblast dat2'!J32<>\"0\",'Vstupni oblast dat2'!J32,\"\")","v":0},null,null,null,null,null,null,null,null,0,0,0,0,0,0,0,0,0,0,0,0,0,0,null,null,null,null,null,null,null,null,null,null,null,null,null,null,null,null,null,null,null,null,null,null,null,null,null,null,null,null,null,null,null,null,null,null,null,null,null,null,null,null,null,null,null,null,null,null,null,null,null,null,null,null,null,null,null,null,null,null,null,null,null,null,null,null,null,null,null,null,null,null,null,null,null,null,null,null,null,null,null,null,null,null,{"$f":"CP11","v":{"$error":"#VALUE!"}},null,{"$f":"CP12","v":{"$error":"#VALUE!"}},{"$f":"H4","v":"x1i"},{"$f":"CP13","v":{"$error":"#VALUE!"}},{"$f":"I4","v":"x2i"},{"$f":"CP14","v":{"$error":"#VALUE!"}},{"$f":"J4","v":"x3i"}]
[null,null,null,null,25,null,{"$f":"IF('Vstupni oblast dat2'!G33<>\"0\",'Vstupni oblast dat2'!G33,\"\")","v":0},{"$f":"IF('Vstupni oblast dat2'!H33<>\"0\",'Vstupni oblast dat2'!H33,\"\")","v":0},{"$f":"IF('Vstupni oblast dat2'!I33<>\"0\",'Vstupni oblast dat2'!I33,\"\")","v":0},{"$f":"IF('Vstupni oblast dat2'!J33<>\"0\",'Vstupni oblast dat2'!J33,\"\")","v":0},null,null,null,null,null,null,null,null,0,0,0,0,0,0,0,0,0,0,0,0,0,0,null,null,null,null,null,null,null,null,null,null,null,null,null,null,null,null,null,null,null,null,null,null,null,null,null,null,null,null,null,null,null,null,null,null,null,null,null,null,null,null,null,null,null,null,null,null,null,null,null,null,null,null,null,null,null,null,null,null,null,null,null,null,null,null,null,null,null,null,null,null,null,null,null,null,null,null,null,null,null,null,null,null,{"$f":"CX26","v":0},null,{"$f":"CX27","v":0},{"$f":"DN32","v":"x1i"},{"$f":"CX28","v":0},{"$f":"DP32","v":"x2i"},{"$f":"CX29","v":0},{"$f":"DR32","v":"x3i"}]
[null,null,null,null,{"$f":"E33+1","v":26},null,{"$f":"IF('Vstupni oblast dat2'!G34<>\"0\",'Vstupni oblast dat2'!G34,\"\")","v":0},{"$f":"IF('Vstupni oblast dat2'!H34<>\"0\",'Vstupni oblast dat2'!H34,\"\")","v":0},{"$f":"IF('Vstupni oblast dat2'!I34<>\"0\",'Vstupni oblast dat2'!I34,\"\")","v":0},{"$f":"IF('Vstupni oblast dat2'!J34<>\"0\",'Vstupni oblast dat2'!J34,\"\")","v":0},null,null,null,null,null,null,null,null,0,0,0,0,0,0,0,0,0,0,0,0,0,0]
[null,null,null,null,27,null,{"$f":"IF('Vstupni oblast dat2'!G35<>\"0\",'Vstupni oblast dat2'!G35,\"\")","v":0},{"$f":"IF('Vstupni oblast dat2'!H35<>\"0\",'Vstupni oblast dat2'!H35,\"\")","v":0},{"$f":"IF('Vstupni oblast dat2'!I35<>\"0\",'Vstupni oblast dat2'!I35,\"\")","v":0},{"$f":"IF('Vstupni oblast dat2'!J35<>\"0\",'Vstupni oblast dat2'!J35,\"\")","v":0},null,null,null,null,null,null,null,null,0,0,0,0,0,0,0,0,0,0,0,0,0,0]
[null,null,null,null,28,null,{"$f":"IF('Vstupni oblast dat2'!G36<>\"0\",'Vstupni oblast dat2'!G36,\"\")","v":0},{"$f":"IF('Vstupni oblast dat2'!H36<>\"0\",'Vstupni oblast dat2'!H36,\"\")","v":0},{"$f":"IF('Vstupni oblast dat2'!I36<>\"0\",'Vstupni oblast dat2'!I36,\"\")","v":0},{"$f":"IF('Vstupni oblast dat2'!J36<>\"0\",'Vstupni oblast dat2'!J36,\"\")","v":0},null,null,null,null,null,null,null,null,0,0,0,0,0,0,0,0,0,0,0,0,0,0,null,null,null,null,null,null,null,null,null,null,null,null,null,null,null,null,null,null,null,null,null,null,null,null,null,null,null,null,null,null,null,null,null,null,null,null,null,null,null,null,null,null,null,null,null,null,null,null,null,null,null,null,null,null,null,null,null,null,null,null,null,null,null,null,null,null,null,null,null,null,null,null,null,null,null,null,null,null,null,null,null,"Vyrovnané hodnoty"]
[null,null,null,null,{"$f":"E36+1","v":29},null,{"$f":"IF('Vstupni oblast dat2'!G37<>\"0\",'Vstupni oblast dat2'!G37,\"\")","v":0},{"$f":"IF('Vstupni oblast dat2'!H37<>\"0\",'Vstupni oblast dat2'!H37,\"\")","v":0},{"$f":"IF('Vstupni oblast dat2'!I37<>\"0\",'Vstupni oblast dat2'!I37,\"\")","v":0},{"$f":"IF('Vstupni oblast dat2'!J37<>\"0\",'Vstupni oblast dat2'!J37,\"\")","v":0},null,null,null,null,null,null,null,null,0,0,0,0,0,0,0,0,0,0,0,0,0,0]
[null,null,null,null,{"$f":"E37+1","v":30},null,{"$f":"IF('Vstupni oblast dat2'!G38<>\"0\",'Vstupni oblast dat2'!G38,\"\")","v":0},{"$f":"IF('Vstupni oblast dat2'!H38<>\"0\",'Vstupni oblast dat2'!H38,\"\")","v":0},{"$f":"IF('Vstupni oblast dat2'!I38<>\"0\",'Vstupni oblast dat2'!I38,\"\")","v":0},{"$f":"IF('Vstupni oblast dat2'!J38<>\"0\",'Vstupni oblast dat2'!J38,\"\")","v":0},null,null,null,null,null,null,null,null,0,0,0,0,0,0,0,0,0,0,0,0,0,0,null,null,null,null,null,null,null,null,null,null,null,null,null,null,null,null,null,null,null,null,null,null,null,null,null,null,null,null,null,null,null,null,null,null,null,null,null,null,null,null,null,null,null,null,null,null,null,null,null,null,null,null,null,null,null,null,null,null,null,null,null,null,null,null,null,null,null,null,null,null,null,null,null,null,null,null,null,null,null,null,null,"n",null,"yi"]
[null,null,null,null,null,null,null,null,null,null,null,null,null,null,null,null,null,null,null,null,null,null,null,null,null,null,null,null,null,null,null,null,null,null,null,null,null,null,null,null,null,null,null,null,null,null,null,null,null,null,null,null,null,null,null,null,null,null,null,null,null,null,null,null,null,null,null,null,null,null,null,null,null,null,null,null,null,null,null,null,null,null,null,null,null,null,null,null,null,null,null,null,null,null,null,null,null,null,null,null,null,null,null,null,null,null,null,null,null,null,null,null,null,null,null,{"$f":"'Vstupni oblast dat'!G5","v":"Závisle proměnná"},{"$f":"'Vstupni oblast dat'!H5","v":"1.regresor"},{"$f":"'Vstupni oblast dat'!I5","v":"2.regresor"}]
[null,null,null,null,"Aritmetický průměr",null,{"$f":"IF($G$42<>0,G41/$G$42,\"neměřeno\")","v":"neměřeno"},{"$f":"IF($G$42<>0,H41/$G$42,\"neměřeno\")","v":"neměřeno"},"neměřeno","neměřeno",null,null,null,null,null,null,null,null,{"$f":"IF($G$42<>0,SUM(S9:S38),\"neměřeno\")","v":"neměřeno"},{"$f":"IF($G$42<>0,SUM(T9:T38),\"neměřeno\")","v":"neměřeno"},"neměřeno","neměřeno","neměřeno","neměřeno","neměřeno",{"$f":"IF($G$42<>0,SUM(Z9:Z38),\"neměřeno\")","v":"neměřeno"},"neměřeno","neměřeno","neměřeno","neměřeno","neměřeno","neměřeno"]
[null,null,null,null,"Suma",null,{"$f":"IF($G$42<>0,SUM(G9:G38),\"neměřeno\")","v":"neměřeno"},{"$f":"IF($G$42<>0,SUM(H9:H38),\"neměřeno\")","v":"neměřeno"},"neměřeno","neměřeno",null,null,null,null,null,null,null,null,null,null,null,null,null,null,null,null,null,null,null,null,null,null,null,null,null,null,null,null,null,null,null,null,null,null,null,null,null,null,null,null,null,null,null,null,null,null,null,null,null,null,null,null,null,null,null,null,null,null,null,null,null,null,null,null,null,null,null,null,null,null,null,null,null,null,null,null,null,null,null,null,null,null,null,null,null,null,null,null,null,null,null,null,null,null,null,null,null,null,null,null,null,null,null,null,null,{"$f":"'Vstupni oblast dat'!G7","v":"[ jednotky ]"},{"$f":"'Vstupni oblast dat'!H7","v":"[ jednotky ]"},{"$f":"'Vstupni oblast dat'!I7","v":"[ jednotky ]"}]
[null,null,null,null,"Počet - n ",null,{"$f":"COUNTIFS(G9:G38,\"<0\")+COUNTIFS(G9:G38,\">0\")","v":0}]
[null,null,null,null,null,null,null,null,null,null,null,null,null,null,null,null,null,null,null,null,null,null,null,null,null,null,null,null,null,null,null,null,null,null,null,null,null,null,null,null,null,null,null,null,null,null,null,null,null,null,null,null,null,null,null,null,null,null,null,null,null,null,null,null,null,null,null,null,null,null,null,null,null,null,null,null,null,null,null,null,null,null,null,null,null,null,null,null,null,null,null,null,null,null,null,null,null,null,null,null,null,null,null,null,null,null,null,null,null,null,null,null,null,{"$f":"1","v":1},null,{"$f":"G9","v":0},{"$f":"IF(DL43<>0,$DK$32+($DM$32*H9)+($DO$32*I9)+($DQ$32*J9),0)","v":0},{"$f":"IF(DM43<>0,$DK$33+($DM$33*H9)+($DO$33*I9)+($DQ$33*J9),0)","v":0}]
[null,null,null,null,null,null,null,null,null,null,null,null,null,null,null,null,null,null,null,null,null,null,null,null,null,null,null,null,null,null,null,null,null,null,null,null,null,null,null,null,null,null,null,null,null,null,null,null,null,null,null,null,null,null,null,null,null,null,null,null,null,null,null,null,null,null,null,null,null,null,null,null,null,null,null,null,null,null,null,null,null,null,null,null,null,null,null,null,null,null,null,null,null,null,null,null,null,null,null,null,null,null,null,null,null,null,null,null,null,null,null,null,null,{"$f":"DJ43+1","v":2},null,0,0,0]
[null,null,null,null,null,null,null,null,null,null,null,null,null,null,null,null,null,null,null,null,null,null,null,null,null,null,null,null,null,null,null,null,null,null,null,null,null,null,null,null,null,null,null,null,null,null,null,null,null,null,null,null,null,null,null,null,null,null,null,null,null,null,null,null,null,null,null,null,null,null,null,null,null,null,null,null,null,null,null,null,null,null,null,null,null,null,null,null,null,null,null,null,null,null,null,null,null,null,null,null,null,null,null,null,null,null,null,null,null,null,null,null,null,{"$f":"DJ44+1","v":3},null,0,0,0]
[null,null,null,null,null,null,null,null,null,null,null,null,null,null,null,null,null,null,null,null,null,null,null,null,null,null,null,null,null,null,null,null,null,null,null,null,null,null,null,null,null,null,null,null,null,null,null,null,null,null,null,null,null,null,null,null,null,null,null,null,null,null,null,null,null,null,null,null,null,null,null,null,null,null,null,null,null,null,null,null,null,null,null,null,null,null,null,null,null,null,null,null,null,null,null,null,null,null,null,null,null,null,null,null,null,null,null,null,null,null,null,null,null,4,null,0,0,0]
[null,null,null,null,null,null,null,null,null,null,null,null,null,null,null,null,null,null,null,null,null,null,null,null,null,null,null,null,null,null,null,null,null,null,null,null,null,null,null,null,null,null,null,null,null,null,null,null,null,null,null,null,null,null,null,null,null,null,null,null,null,null,null,null,null,null,null,null,null,null,null,null,null,null,null,null,null,null,null,null,null,null,null,null,null,null,null,null,null,null,null,null,null,null,null,null,null,null,null,null,null,null,null,null,null,null,null,null,null,null,null,null,null,5,null,0,0,0]
[null,null,null,null,null,null,null,null,null,null,null,null,null,null,null,null,null,null,null,null,null,null,null,null,null,null,null,null,null,null,null,null,null,null,null,null,null,null,null,null,null,null,null,null,null,null,null,null,null,null,null,null,null,null,null,null,null,null,null,null,null,null,null,null,null,null,null,null,null,null,null,null,null,null,null,null,null,null,null,null,null,null,null,null,null,null,null,null,null,null,null,null,null,null,null,null,null,null,null,null,null,null,null,null,null,null,null,null,null,null,null,null,null,6,null,0,0,0]
[null,null,null,null,null,null,null,null,null,null,null,null,null,null,null,null,null,null,null,null,null,null,null,null,null,null,null,null,null,null,null,null,null,null,null,null,null,null,null,null,null,null,null,null,null,null,null,null,null,null,null,null,null,null,null,null,null,null,null,null,null,null,null,null,null,null,null,null,null,null,null,null,null,null,null,null,null,null,null,null,null,null,null,null,null,null,null,null,null,null,null,null,null,null,null,null,null,null,null,null,null,null,null,null,null,null,null,null,null,null,null,null,null,7,null,0,0,0]
[null,null,null,null,null,null,null,null,null,null,null,null,null,null,null,null,null,null,null,null,null,null,null,null,null,null,null,null,null,null,null,null,null,null,null,null,null,null,null,null,null,null,null,null,null,null,null,null,null,null,null,null,null,null,null,null,null,null,null,null,null,null,null,null,null,null,null,null,null,null,null,null,null,null,null,null,null,null,null,null,null,null,null,null,null,null,null,null,null,null,null,null,null,null,null,null,null,null,null,null,null,null,null,null,null,null,null,null,null,null,null,null,null,8,null,0,0,0]
[null,null,null,null,null,null,null,null,null,null,null,null,null,null,null,null,null,null,null,null,null,null,null,null,null,null,null,null,null,null,null,null,null,null,null,null,null,null,null,null,null,null,null,null,null,null,null,null,null,null,null,null,null,null,null,null,null,null,null,null,null,null,null,null,null,null,null,null,null,null,null,null,null,null,null,null,null,null,null,null,null,null,null,null,null,null,null,null,null,null,null,null,null,null,null,null,null,null,null,null,null,null,null,null,null,null,null,null,null,null,null,null,null,9,null,0,0,0]
[null,null,null,null,null,null,null,null,null,null,null,null,null,null,null,null,null,null,null,null,null,null,null,null,null,null,null,null,null,null,null,null,null,null,null,null,null,null,null,null,null,null,null,null,null,null,null,null,null,null,null,null,null,null,null,null,null,null,null,null,null,null,null,null,null,null,null,null,null,null,null,null,null,null,null,null,null,null,null,null,null,null,null,null,null,null,null,null,null,null,null,null,null,null,null,null,null,null,null,null,null,null,null,null,null,null,null,null,null,null,null,null,null,10,null,0,0,0]
[null,null,null,null,null,null,null,null,null,null,null,null,null,null,null,null,null,null,null,null,null,null,null,null,null,null,null,null,null,null,null,null,null,null,null,null,null,null,null,null,null,null,null,null,null,null,null,null,null,null,null,null,null,null,null,null,null,null,null,null,null,null,null,null,null,null,null,null,null,null,null,null,null,null,null,null,null,null,null,null,null,null,null,null,null,null,null,null,null,null,null,null,null,null,null,null,null,null,null,null,null,null,null,null,null,null,null,null,null,null,null,null,null,11,null,0,0,0]
[null,null,null,null,null,null,null,null,null,null,null,null,null,null,null,null,null,null,null,null,null,null,null,null,null,null,null,null,null,null,null,null,null,null,null,null,null,null,null,null,null,null,null,null,null,null,null,null,null,null,null,null,null,null,null,null,null,null,null,null,null,null,null,null,null,null,null,null,null,null,null,null,null,null,null,null,null,null,null,null,null,null,null,null,null,null,null,null,null,null,null,null,null,null,null,null,null,null,null,null,null,null,null,null,null,null,null,null,null,null,null,null,null,12,null,0,0,0]
[null,null,null,null,null,null,null,null,null,null,null,null,null,null,null,null,null,null,null,null,null,null,null,null,null,null,null,null,null,null,null,null,null,null,null,null,null,null,null,null,null,null,null,null,null,null,null,null,null,null,null,null,null,null,null,null,null,null,null,null,null,null,null,null,null,null,null,null,null,null,null,null,null,null,null,null,null,null,null,null,null,null,null,null,null,null,null,null,null,null,null,null,null,null,null,null,null,null,null,null,null,null,null,null,null,null,null,null,null,null,null,null,null,13,null,0,0,0]
[null,null,null,null,null,null,null,null,null,null,null,null,null,null,null,null,null,null,null,null,null,null,null,null,null,null,null,null,null,null,null,null,null,null,null,null,null,null,null,null,null,null,null,null,null,null,null,null,null,null,null,null,null,null,null,null,null,null,null,null,null,null,null,null,null,null,null,null,null,null,null,null,null,null,null,null,null,null,null,null,null,null,null,null,null,null,null,null,null,null,null,null,null,null,null,null,null,null,null,null,null,null,null,null,null,null,null,null,null,null,null,null,null,14,null,0,0,0]
[null,null,null,null,null,null,null,null,null,null,null,null,null,null,null,null,null,null,null,null,null,null,null,null,null,null,null,null,null,null,null,null,null,null,null,null,null,null,null,null,null,null,null,null,null,null,null,null,null,null,null,null,null,null,null,null,null,null,null,null,null,null,null,null,null,null,null,null,null,null,null,null,null,null,null,null,null,null,null,null,null,null,null,null,null,null,null,null,null,null,null,null,null,null,null,null,null,null,null,null,null,null,null,null,null,null,null,null,null,null,null,null,null,15,null,0,0,0]
[null,null,null,null,null,null,null,null,null,null,null,null,null,null,null,null,null,null,null,null,null,null,null,null,null,null,null,null,null,null,null,null,null,null,null,null,null,null,null,null,null,null,null,null,null,null,null,null,null,null,null,null,null,null,null,null,null,null,null,null,null,null,null,null,null,null,null,null,null,null,null,null,null,null,null,null,null,null,null,null,null,null,null,null,null,null,null,null,null,null,null,null,null,null,null,null,null,null,null,null,null,null,null,null,null,null,null,null,null,null,null,null,null,16,null,0,0,0]
[null,null,null,null,null,null,null,null,null,null,null,null,null,null,null,null,null,null,null,null,null,null,null,null,null,null,null,null,null,null,null,null,null,null,null,null,null,null,null,null,null,null,null,null,null,null,null,null,null,null,null,null,null,null,null,null,null,null,null,null,null,null,null,null,null,null,null,null,null,null,null,null,null,null,null,null,null,null,null,null,null,null,null,null,null,null,null,null,null,null,null,null,null,null,null,null,null,null,null,null,null,null,null,null,null,null,null,null,null,null,null,null,null,17,null,0,0,0]
[null,null,null,null,null,null,null,null,null,null,null,null,null,null,null,null,null,null,null,null,null,null,null,null,null,null,null,null,null,null,null,null,null,null,null,null,null,null,null,null,null,null,null,null,null,null,null,null,null,null,null,null,null,null,null,null,null,null,null,null,null,null,null,null,null,null,null,null,null,null,null,null,null,null,null,null,null,null,null,null,null,null,null,null,null,null,null,null,null,null,null,null,null,null,null,null,null,null,null,null,null,null,null,null,null,null,null,null,null,null,null,null,null,18,null,0,0,0]
[null,null,null,null,null,null,null,null,null,null,null,null,null,null,null,null,null,null,null,null,null,null,null,null,null,null,null,null,null,null,null,null,null,null,null,null,null,null,null,null,null,null,null,null,null,null,null,null,null,null,null,null,null,null,null,null,null,null,null,null,null,null,null,null,null,null,null,null,null,null,null,null,null,null,null,null,null,null,null,null,null,null,null,null,null,null,null,null,null,null,null,null,null,null,null,null,null,null,null,null,null,null,null,null,null,null,null,null,null,null,null,null,null,19,null,0,0,0]
[null,null,null,null,null,null,null,null,null,null,null,null,null,null,null,null,null,null,null,null,null,null,null,null,null,null,null,null,null,null,null,null,null,null,null,null,null,null,null,null,null,null,null,null,null,null,null,null,null,null,null,null,null,null,null,null,null,null,null,null,null,null,null,null,null,null,null,null,null,null,null,null,null,null,null,null,null,null,null,null,null,null,null,null,null,null,null,null,null,null,null,null,null,null,null,null,null,null,null,null,null,null,null,null,null,null,null,null,null,null,null,null,null,20,null,0,0,0]
[null,null,null,null,null,null,null,null,null,null,null,null,null,null,null,null,null,null,null,null,null,null,null,null,null,null,null,null,null,null,null,null,null,null,null,null,null,null,null,null,null,null,null,null,null,null,null,null,null,null,null,null,null,null,null,null,null,null,null,null,null,null,null,null,null,null,null,null,null,null,null,null,null,null,null,null,null,null,null,null,null,null,null,null,null,null,null,null,null,null,null,null,null,null,null,null,null,null,null,null,null,null,null,null,null,null,null,null,null,null,null,null,null,21,null,0,0,0]
[null,null,null,null,null,null,null,null,null,null,null,null,null,null,null,null,null,null,null,null,null,null,null,null,null,null,null,null,null,null,null,null,null,null,null,null,null,null,null,null,null,null,null,null,null,null,null,null,null,null,null,null,null,null,null,null,null,null,null,null,null,null,null,null,null,null,null,null,null,null,null,null,null,null,null,null,null,null,null,null,null,null,null,null,null,null,null,null,null,null,null,null,null,null,null,null,null,null,null,null,null,null,null,null,null,null,null,null,null,null,null,null,null,22,null,0,0,0]
[null,null,null,null,null,null,null,null,null,null,null,null,null,null,null,null,null,null,null,null,null,null,null,null,null,null,null,null,null,null,null,null,null,null,null,null,null,null,null,null,null,null,null,null,null,null,null,null,null,null,null,null,null,null,null,null,null,null,null,null,null,null,null,null,null,null,null,null,null,null,null,null,null,null,null,null,null,null,null,null,null,null,null,null,null,null,null,null,null,null,null,null,null,null,null,null,null,null,null,null,null,null,null,null,null,null,null,null,null,null,null,null,null,23,null,0,0,0]
[null,null,null,null,null,null,null,null,null,null,null,null,null,null,null,null,null,null,null,null,null,null,null,null,null,null,null,null,null,null,null,null,null,null,null,null,null,null,null,null,null,null,null,null,null,null,null,null,null,null,null,null,null,null,null,null,null,null,null,null,null,null,null,null,null,null,null,null,null,null,null,null,null,null,null,null,null,null,null,null,null,null,null,null,null,null,null,null,null,null,null,null,null,null,null,null,null,null,null,null,null,null,null,null,null,null,null,null,null,null,null,null,null,24,null,0,0,0]
[null,null,null,null,null,null,null,null,null,null,null,null,null,null,null,null,null,null,null,null,null,null,null,null,null,null,null,null,null,null,null,null,null,null,null,null,null,null,null,null,null,null,null,null,null,null,null,null,null,null,null,null,null,null,null,null,null,null,null,null,null,null,null,null,null,null,null,null,null,null,null,null,null,null,null,null,null,null,null,null,null,null,null,null,null,null,null,null,null,null,null,null,null,null,null,null,null,null,null,null,null,null,null,null,null,null,null,null,null,null,null,null,null,25,null,0,0,0]
[null,null,null,null,null,null,null,null,null,null,null,null,null,null,null,null,null,null,null,null,null,null,null,null,null,null,null,null,null,null,null,null,null,null,null,null,null,null,null,null,null,null,null,null,null,null,null,null,null,null,null,null,null,null,null,null,null,null,null,null,null,null,null,null,null,null,null,null,null,null,null,null,null,null,null,null,null,null,null,null,null,null,null,null,null,null,null,null,null,null,null,null,null,null,null,null,null,null,null,null,null,null,null,null,null,null,null,null,null,null,null,null,null,26,null,0,0,0]
[null,null,null,null,null,null,null,null,null,null,null,null,null,null,null,null,null,null,null,null,null,null,null,null,null,null,null,null,null,null,null,null,null,null,null,null,null,null,null,null,null,null,null,null,null,null,null,null,null,null,null,null,null,null,null,null,null,null,null,null,null,null,null,null,null,null,null,null,null,null,null,null,null,null,null,null,null,null,null,null,null,null,null,null,null,null,null,null,null,null,null,null,null,null,null,null,null,null,null,null,null,null,null,null,null,null,null,null,null,null,null,null,null,27,null,0,0,0]
[null,null,null,null,null,null,null,null,null,null,null,null,null,null,null,null,null,null,null,null,null,null,null,null,null,null,null,null,null,null,null,null,null,null,null,null,null,null,null,null,null,null,null,null,null,null,null,null,null,null,null,null,null,null,null,null,null,null,null,null,null,null,null,null,null,null,null,null,null,null,null,null,null,null,null,null,null,null,null,null,null,null,null,null,null,null,null,null,null,null,null,null,null,null,null,null,null,null,null,null,null,null,null,null,null,null,null,null,null,null,null,null,null,28,null,0,0,0]
[null,null,null,null,null,null,null,null,null,null,null,null,null,null,null,null,null,null,null,null,null,null,null,null,null,null,null,null,null,null,null,null,null,null,null,null,null,null,null,null,null,null,null,null,null,null,null,null,null,null,null,null,null,null,null,null,null,null,null,null,null,null,null,null,null,null,null,null,null,null,null,null,null,null,null,null,null,null,null,null,null,null,null,null,null,null,null,null,null,null,null,null,null,null,null,null,null,null,null,null,null,null,null,null,null,null,null,null,null,null,null,null,null,29,null,0,0,0]
[null,null,null,null,null,null,null,null,null,null,null,null,null,null,null,null,null,null,null,null,null,null,null,null,null,null,null,null,null,null,null,null,null,null,null,null,null,null,null,null,null,null,null,null,null,null,null,null,null,null,null,null,null,null,null,null,null,null,null,null,null,null,null,null,null,null,null,null,null,null,null,null,null,null,null,null,null,null,null,null,null,null,null,null,null,null,null,null,null,null,null,null,null,null,null,null,null,null,null,null,null,null,null,null,null,null,null,null,null,null,null,null,null,30,null,0,0,0]
[null,null,null,null,null,null,null,null,null,null,null,null,null,null,null,null,null,null,null,null,null,null,null,null,null,null,null,null,null,null,null,null,null,null,null,null,null,null,null,null,null,null,null,null,null,null,null,null,null,null,null,null,null,null,null,null,null,null,null,null,null,null,null,null,null,null,null,null,null,null,null,null,null,null,null,null,null,null,null,null,null,null,null,null,null,null,null,null,null,null,null,null,null,null,null,null,null,null,null,null,null,null,null,null,null,null,null,null,null,null,null,null,null,"Suma",null,{"$f":"IF($G$42<>0,SUM(DL43:DL72),\"neměřeno\")","v":"neměřeno"},{"$f":"IF($G$42<>0,SUM(DM43:DM72),\"neměřeno\")","v":"neměřeno"},"neměřeno"]

{"sheet":"V.regrese","index":6,"n_rows":76,"n_cols":57,"rows_kept":76,"cut":false,"hidden":false,"merged":[[75,34,75,35],[31,34,31,36],[38,34,38,36],[71,34,71,35],[72,34,72,35],[73,34,73,35],[74,34,74,35],[41,37,42,37],[43,37,44,37],[66,34,66,35],[67,34,67,35],[68,34,68,35],[69,34,69,35],[70,34,70,35],[61,34,61,35],[62,34,62,35],[63,34,63,35],[64,34,64,35],[65,34,65,35],[56,34,56,35],[57,34,57,35],[58,34,58,35],[59,34,59,35],[60,34,60,35],[51,34,51,35],[52,34,52,35],[53,34,53,35],[54,34,54,35],[55,34,55,35],[46,34,46,35],[47,34,47,35],[48,34,48,35],[49,34,49,35],[50,34,50,35],[40,34,44,35],[41,36,42,36],[43,36,44,36],[45,34,45,35],[6,12,7,12],[4,16,5,16],[6,16,7,16],[4,13,5,13],[6,13,7,13],[4,14,5,14],[6,14,7,14],[4,15,5,15],[6,15,7,15],[20,34,20,36],[35,34,35,41],[29,34,29,41],[32,34,32,41],[33,34,33,36],[33,40,33,41],[26,40,26,41],[27,34,27,39],[27,40,27,41],[28,34,28,41],[26,34,26,36],[35,4,35,5],[36,4,36,5],[37,4,37,5],[29,4,29,5],[30,4,30,5],[31,4,31,5],[32,4,32,5],[33,4,33,5],[34,4,34,5],[16,34,16,35],[28,4,28,5],[17,4,17,5],[18,4,18,5],[19,4,19,5],[20,4,20,5],[21,4,21,5],[22,4,22,5],[23,4,23,5],[24,4,24,5],[25,4,25,5],[26,4,26,5],[27,4,27,5],[21,34,21,36],[24,34,24,41],[25,34,25,41],[16,4,16,5],[11,4,11,5],[12,4,12,5],[13,4,13,5],[14,4,14,5],[15,4,15,5],[13,34,13,41],[15,34,15,35],[11,34,11,39],[12,34,12,39],[11,40,11,41],[12,40,12,41],[9,78,9,80],[10,4,10,5],[3,4,7,5],[4,6,5,6],[4,7,5,7],[4,8,5,8],[4,9,5,9],[6,6,7,6],[6,7,7,7],[6,8,7,8],[6,9,7,9],[4,10,5,10],[6,10,7,10],[4,11,5,11],[6,11,7,11],[4,12,5,12],[9,34,9,41],[10,34,10,41],[8,4,8,5],[9,4,9,5],[9,70,9,71],[9,74,9,75]]}
[null,null,null,"počet","%","kus","počet",null,null,null,null,null,null,null,null,null,null,null,{"$f":"A4*A5","v":{"$error":"#VALUE!"}}]
[]
[]
[" jednotky ",null,null,null,"n",null,"yi","x1i","x2i","x3i","x4i","x5i","x6i","x7i","x8i","x9i","x10i"]
["jednotky ",null,null,null,null,null,{"$f":"'Vstupni oblast dat2'!G5:G6","v":"Závisle proměnná"},{"$f":"'Vstupni oblast dat2'!H5:H6","v":"1.regresor"},{"$f":"'Vstupni oblast dat2'!I5:I6","v":"2.regresor"},{"$f":"'Vstupni oblast dat2'!J5:J6","v":"3.regresor"},null,{"$f":"'Vstupni oblast dat2'!L5:L6","v":"5.regresor"},{"$f":"'Vstupni oblast dat2'!M5:M6","v":"6.regresor"},{"$f":"'Vstupni oblast dat2'!N5:N6","v":"7.regresor"},{"$f":"'Vstupni oblast dat2'!O5:O6","v":"8.regresor"},{"$f":"'Vstupni oblast dat2'!P5:P6","v":"9.regresor"},{"$f":"'Vstupni oblast dat2'!Q5:Q6","v":"10.regresor"}]
["jednotky"]
["jednotky",null,null,null,null,null,{"$f":"'Vstupni oblast dat2'!G7:G8","v":"[ jednotky ]"},{"$f":"'Vstupni oblast dat2'!H7:H8","v":"[ jednotky ]"},{"$f":"'Vstupni oblast dat2'!I7:I8","v":"[ jednotky ]"},{"$f":"'Vstupni oblast dat2'!J7:J8","v":"[ jednotky ]"},{"$f":"'Vstupni oblast dat2'!K7:K8","v":"[ jednotky ]"},{"$f":"'Vstupni oblast dat2'!L7:L8","v":"[ jednotky ]"},{"$f":"'Vstupni oblast dat2'!M7:M8","v":"[ jednotky ]"},{"$f":"'Vstupni oblast dat2'!N7:N8","v":"[ jednotky ]"},{"$f":"'Vstupni oblast dat2'!O7:O8","v":"[ jednotky ]"},{"$f":"'Vstupni oblast dat2'!P7:P8","v":"[ jednotky ]"},{"$f":"'Vstupni oblast dat2'!Q7:Q8","v":"[ jednotky ]"}]
[" jednotky "]
[" jednotky ",null,null,null,{"$f":"1","v":1},null,{"$f":"IF('Vstupni oblast dat2'!G9<>\"0\",'Vstupni oblast dat2'!G9,\"\")","v":0},{"$f":"IF('Vstupni oblast dat2'!H9<>\"0\",'Vstupni oblast dat2'!H9,\"\")","v":0},{"$f":"IF('Vstupni oblast dat2'!I9<>\"0\",'Vstupni oblast dat2'!I9,\"\")","v":0},{"$f":"IF('Vstupni oblast dat2'!J9<>\"0\",'Vstupni oblast dat2'!J9,\"\")","v":0},{"$f":"IF('Vstupni oblast dat2'!K9<>\"0\",'Vstupni oblast dat2'!K9,\"\")","v":0},{"$f":"IF('Vstupni oblast dat2'!L9<>\"0\",'Vstupni oblast dat2'!L9,\"\")","v":0},{"$f":"IF('Vstupni oblast dat2'!M9<>\"0\",'Vstupni oblast dat2'!M9,\"\")","v":0},{"$f":"IF('Vstupni oblast dat2'!N9<>\"0\",'Vstupni oblast dat2'!N9,\"\")","v":0},{"$f":"IF('Vstupni oblast dat2'!O9<>\"0\",'Vstupni oblast dat2'!O9,\"\")","v":0},{"$f":"IF('Vstupni oblast dat2'!P9<>\"0\",'Vstupni oblast dat2'!P9,\"\")","v":0},{"$f":"IF('Vstupni oblast dat2'!Q9<>\"0\",'Vstupni oblast dat2'!Q9,\"\")","v":0}]
[" jednotky ",null,null,null,{"$f":"E9+1","v":2},null,{"$f":"IF('Vstupni oblast dat2'!G10<>\"0\",'Vstupni oblast dat2'!G10,\"\")","v":0},{"$f":"IF('Vstupni oblast dat2'!H10<>\"0\",'Vstupni oblast dat2'!H10,\"\")","v":0},{"$f":"IF('Vstupni oblast dat2'!I10<>\"0\",'Vstupni oblast dat2'!I10,\"\")","v":0},{"$f":"IF('Vstupni oblast dat2'!J10<>\"0\",'Vstupni oblast dat2'!J10,\"\")","v":0},{"$f":"IF('Vstupni oblast dat2'!K10<>\"0\",'Vstupni oblast dat2'!K10,\"\")","v":0},{"$f":"IF('Vstupni oblast dat2'!L10<>\"0\",'Vstupni oblast dat2'!L10,\"\")","v":0},{"$f":"IF('Vstupni oblast dat2'!M10<>\"0\",'Vstupni oblast dat2'!M10,\"\")","v":0},{"$f":"IF('Vstupni oblast dat2'!N10<>\"0\",'Vstupni oblast dat2'!N10,\"\")","v":0},{"$f":"IF('Vstupni oblast dat2'!O10<>\"0\",'Vstupni oblast dat2'!O10,\"\")","v":0},{"$f":"IF('Vstupni oblast dat2'!P10<>\"0\",'Vstupni oblast dat2'!P10,\"\")","v":0},{"$f":"IF('Vstupni oblast dat2'!Q10<>\"0\",'Vstupni oblast dat2'!Q10,\"\")","v":0},null,null,null,null,null,null,null,null,null,null,null,null,null,null,null,null,null,"Test významnosti regresního modelu:"]
[" jednotky ",null,null,null,{"$f":"E10+1","v":3},null,{"$f":"IF('Vstupni oblast dat2'!G11<>\"0\",'Vstupni oblast dat2'!G11,\"\")","v":0},{"$f":"IF('Vstupni oblast dat2'!H11<>\"0\",'Vstupni oblast dat2'!H11,\"\")","v":0},{"$f":"IF('Vstupni oblast dat2'!I11<>\"0\",'Vstupni oblast dat2'!I11,\"\")","v":0},{"$f":"IF('Vstupni oblast dat2'!J11<>\"0\",'Vstupni oblast dat2'!J11,\"\")","v":0},{"$f":"IF('Vstupni oblast dat2'!K11<>\"0\",'Vstupni oblast dat2'!K11,\"\")","v":0},{"$f":"IF('Vstupni oblast dat2'!L11<>\"0\",'Vstupni oblast dat2'!L11,\"\")","v":0},{"$f":"IF('Vstupni oblast dat2'!M11<>\"0\",'Vstupni oblast dat2'!M11,\"\")","v":0},{"$f":"IF('Vstupni oblast dat2'!N11<>\"0\",'Vstupni oblast dat2'!N11,\"\")","v":0},{"$f":"IF('Vstupni oblast dat2'!O11<>\"0\",'Vstupni oblast dat2'!O11,\"\")","v":0},{"$f":"IF('Vstupni oblast dat2'!P11<>\"0\",'Vstupni oblast dat2'!P11,\"\")","v":0},{"$f":"IF('Vstupni oblast dat2'!Q11<>\"0\",'Vstupni oblast dat2'!Q11,\"\")","v":0}]
[" jednotky ",null,null,null,4,null,{"$f":"IF('Vstupni oblast dat2'!G12<>\"0\",'Vstupni oblast dat2'!G12,\"\")","v":0},{"$f":"IF('Vstupni oblast dat2'!H12<>\"0\",'Vstupni oblast dat2'!H12,\"\")","v":0},{"$f":"IF('Vstupni oblast dat2'!I12<>\"0\",'Vstupni oblast dat2'!I12,\"\")","v":0},{"$f":"IF('Vstupni oblast dat2'!J12<>\"0\",'Vstupni oblast dat2'!J12,\"\")","v":0},{"$f":"IF('Vstupni oblast dat2'!K12<>\"0\",'Vstupni oblast dat2'!K12,\"\")","v":0},{"$f":"IF('Vstupni oblast dat2'!L12<>\"0\",'Vstupni oblast dat2'!L12,\"\")","v":0},{"$f":"IF('Vstupni oblast dat2'!M12<>\"0\",'Vstupni oblast dat2'!M12,\"\")","v":0},{"$f":"IF('Vstupni oblast dat2'!N12<>\"0\",'Vstupni oblast dat2'!N12,\"\")","v":0},{"$f":"IF('Vstupni oblast dat2'!O12<>\"0\",'Vstupni oblast dat2'!O12,\"\")","v":0},{"$f":"IF('Vstupni oblast dat2'!P12<>\"0\",'Vstupni oblast dat2'!P12,\"\")","v":0},{"$f":"IF('Vstupni oblast dat2'!Q12<>\"0\",'Vstupni oblast dat2'!Q12,\"\")","v":0},null,null,null,null,null,null,null,null,null,null,null,null,null,null,null,null,null,"H0 - vícenásobný lineární regresní model není významný (R2 = 0)",null,null,null,null,null,"F < F0,95(        ,        )"]
[" jednotky ",null,null,null,5,null,{"$f":"IF('Vstupni oblast dat2'!G13<>\"0\",'Vstupni oblast dat2'!G13,\"\")","v":0},{"$f":"IF('Vstupni oblast dat2'!H13<>\"0\",'Vstupni oblast dat2'!H13,\"\")","v":0},{"$f":"IF('Vstupni oblast dat2'!I13<>\"0\",'Vstupni oblast dat2'!I13,\"\")","v":0},{"$f":"IF('Vstupni oblast dat2'!J13<>\"0\",'Vstupni oblast dat2'!J13,\"\")","v":0},{"$f":"IF('Vstupni oblast dat2'!K13<>\"0\",'Vstupni oblast dat2'!K13,\"\")","v":0},{"$f":"IF('Vstupni oblast dat2'!L13<>\"0\",'Vstupni oblast dat2'!L13,\"\")","v":0},{"$f":"IF('Vstupni oblast dat2'!M13<>\"0\",'Vstupni oblast dat2'!M13,\"\")","v":0},{"$f":"IF('Vstupni oblast dat2'!N13<>\"0\",'Vstupni oblast dat2'!N13,\"\")","v":0},{"$f":"IF('Vstupni oblast dat2'!O13<>\"0\",'Vstupni oblast dat2'!O13,\"\")","v":0},{"$f":"IF('Vstupni oblast dat2'!P13<>\"0\",'Vstupni oblast dat2'!P13,\"\")","v":0},{"$f":"IF('Vstupni oblast dat2'!Q13<>\"0\",'Vstupni oblast dat2'!Q13,\"\")","v":0},null,null,null,null,null,null,null,null,null,null,null,null,null,null,null,null,null,"H1 - vícenásobný lineární regresní model je významný (R2 ≠ 0)",null,null,null,null,null,"F >F0,95(        ,        )"]
[null,null,null,null,6,null,{"$f":"IF('Vstupni oblast dat2'!G14<>\"0\",'Vstupni oblast dat2'!G14,\"\")","v":0},{"$f":"IF('Vstupni oblast dat2'!H14<>\"0\",'Vstupni oblast dat2'!H14,\"\")","v":0},{"$f":"IF('Vstupni oblast dat2'!I14<>\"0\",'Vstupni oblast dat2'!I14,\"\")","v":0},{"$f":"IF('Vstupni oblast dat2'!J14<>\"0\",'Vstupni oblast dat2'!J14,\"\")","v":0},{"$f":"IF('Vstupni oblast dat2'!K14<>\"0\",'Vstupni oblast dat2'!K14,\"\")","v":0},{"$f":"IF('Vstupni oblast dat2'!L14<>\"0\",'Vstupni oblast dat2'!L14,\"\")","v":0},{"$f":"IF('Vstupni oblast dat2'!M14<>\"0\",'Vstupni oblast dat2'!M14,\"\")","v":0},{"$f":"IF('Vstupni oblast dat2'!N14<>\"0\",'Vstupni oblast dat2'!N14,\"\")","v":0},{"$f":"IF('Vstupni oblast dat2'!O14<>\"0\",'Vstupni oblast dat2'!O14,\"\")","v":0},{"$f":"IF('Vstupni oblast dat2'!P14<>\"0\",'Vstupni oblast dat2'!P14,\"\")","v":0},{"$f":"IF('Vstupni oblast dat2'!Q14<>\"0\",'Vstupni oblast dat2'!Q14,\"\")","v":0}]
[null,null,null,null,7,null,{"$f":"IF('Vstupni oblast dat2'!G15<>\"0\",'Vstupni oblast dat2'!G15,\"\")","v":0},{"$f":"IF('Vstupni oblast dat2'!H15<>\"0\",'Vstupni oblast dat2'!H15,\"\")","v":0},{"$f":"IF('Vstupni oblast dat2'!I15<>\"0\",'Vstupni oblast dat2'!I15,\"\")","v":0},{"$f":"IF('Vstupni oblast dat2'!J15<>\"0\",'Vstupni oblast dat2'!J15,\"\")","v":0},{"$f":"IF('Vstupni oblast dat2'!K15<>\"0\",'Vstupni oblast dat2'!K15,\"\")","v":0},{"$f":"IF('Vstupni oblast dat2'!L15<>\"0\",'Vstupni oblast dat2'!L15,\"\")","v":0},{"$f":"IF('Vstupni oblast dat2'!M15<>\"0\",'Vstupni oblast dat2'!M15,\"\")","v":0},{"$f":"IF('Vstupni oblast dat2'!N15<>\"0\",'Vstupni oblast dat2'!N15,\"\")","v":0},{"$f":"IF('Vstupni oblast dat2'!O15<>\"0\",'Vstupni oblast dat2'!O15,\"\")","v":0},{"$f":"IF('Vstupni oblast dat2'!P15<>\"0\",'Vstupni oblast dat2'!P15,\"\")","v":0},{"$f":"IF('Vstupni oblast dat2'!Q15<>\"0\",'Vstupni oblast dat2'!Q15,\"\")","v":0}]
[null,null,null,null,8,null,{"$f":"IF('Vstupni oblast dat2'!G16<>\"0\",'Vstupni oblast dat2'!G16,\"\")","v":0},{"$f":"IF('Vstupni oblast dat2'!H16<>\"0\",'Vstupni oblast dat2'!H16,\"\")","v":0},{"$f":"IF('Vstupni oblast dat2'!I16<>\"0\",'Vstupni oblast dat2'!I16,\"\")","v":0},{"$f":"IF('Vstupni oblast dat2'!J16<>\"0\",'Vstupni oblast dat2'!J16,\"\")","v":0},{"$f":"IF('Vstupni oblast dat2'!K16<>\"0\",'Vstupni oblast dat2'!K16,\"\")","v":0},{"$f":"IF('Vstupni oblast dat2'!L16<>\"0\",'Vstupni oblast dat2'!L16,\"\")","v":0},{"$f":"IF('Vstupni oblast dat2'!M16<>\"0\",'Vstupni oblast dat2'!M16,\"\")","v":0},{"$f":"IF('Vstupni oblast dat2'!N16<>\"0\",'Vstupni oblast dat2'!N16,\"\")","v":0},{"$f":"IF('Vstupni oblast dat2'!O16<>\"0\",'Vstupni oblast dat2'!O16,\"\")","v":0},{"$f":"IF('Vstupni oblast dat2'!P16<>\"0\",'Vstupni oblast dat2'!P16,\"\")","v":0},{"$f":"IF('Vstupni oblast dat2'!Q16<>\"0\",'Vstupni oblast dat2'!Q16,\"\")","v":0},null,null,null,null,null,null,null,null,null,null,null,null,null,null,null,null,null,"determinační koeficient",null,{"$f":"Y14","v":0},{"$f":"AK16","v":0}]
[null,null,null,null,9,null,{"$f":"IF('Vstupni oblast dat2'!G17<>\"0\",'Vstupni oblast dat2'!G17,\"\")","v":0},{"$f":"IF('Vstupni oblast dat2'!H17<>\"0\",'Vstupni oblast dat2'!H17,\"\")","v":0},{"$f":"IF('Vstupni oblast dat2'!I17<>\"0\",'Vstupni oblast dat2'!I17,\"\")","v":0},{"$f":"IF('Vstupni oblast dat2'!J17<>\"0\",'Vstupni oblast dat2'!J17,\"\")","v":0},{"$f":"IF('Vstupni oblast dat2'!K17<>\"0\",'Vstupni oblast dat2'!K17,\"\")","v":0},{"$f":"IF('Vstupni oblast dat2'!L17<>\"0\",'Vstupni oblast dat2'!L17,\"\")","v":0},{"$f":"IF('Vstupni oblast dat2'!M17<>\"0\",'Vstupni oblast dat2'!M17,\"\")","v":0},{"$f":"IF('Vstupni oblast dat2'!N17<>\"0\",'Vstupni oblast dat2'!N17,\"\")","v":0},{"$f":"IF('Vstupni oblast dat2'!O17<>\"0\",'Vstupni oblast dat2'!O17,\"\")","v":0},{"$f":"IF('Vstupni oblast dat2'!P17<>\"0\",'Vstupni oblast dat2'!P17,\"\")","v":0},{"$f":"IF('Vstupni oblast dat2'!Q17<>\"0\",'Vstupni oblast dat2'!Q17,\"\")","v":0},null,null,null,null,null,null,null,null,null,null,null,null,null,null,null,null,null,"korelační koeficient",null,{"$f":"Y13","v":0},{"$f":"AK17","v":0}]
[null,null,null,null,10,null,{"$f":"IF('Vstupni oblast dat2'!G18<>\"0\",'Vstupni oblast dat2'!G18,\"\")","v":0},{"$f":"IF('Vstupni oblast dat2'!H18<>\"0\",'Vstupni oblast dat2'!H18,\"\")","v":0},{"$f":"IF('Vstupni oblast dat2'!I18<>\"0\",'Vstupni oblast dat2'!I18,\"\")","v":0},{"$f":"IF('Vstupni oblast dat2'!J18<>\"0\",'Vstupni oblast dat2'!J18,\"\")","v":0},{"$f":"IF('Vstupni oblast dat2'!K18<>\"0\",'Vstupni oblast dat2'!K18,\"\")","v":0},{"$f":"IF('Vstupni oblast dat2'!L18<>\"0\",'Vstupni oblast dat2'!L18,\"\")","v":0},{"$f":"IF('Vstupni oblast dat2'!M18<>\"0\",'Vstupni oblast dat2'!M18,\"\")","v":0},{"$f":"IF('Vstupni oblast dat2'!N18<>\"0\",'Vstupni oblast dat2'!N18,\"\")","v":0},{"$f":"IF('Vstupni oblast dat2'!O18<>\"0\",'Vstupni oblast dat2'!O18,\"\")","v":0},{"$f":"IF('Vstupni oblast dat2'!P18<>\"0\",'Vstupni oblast dat2'!P18,\"\")","v":0},{"$f":"IF('Vstupni oblast dat2'!Q18<>\"0\",'Vstupni oblast dat2'!Q18,\"\")","v":0}]
[null,null,null,null,11,null,{"$f":"IF('Vstupni oblast dat2'!G19<>\"0\",'Vstupni oblast dat2'!G19,\"\")","v":0},{"$f":"IF('Vstupni oblast dat2'!H19<>\"0\",'Vstupni oblast dat2'!H19,\"\")","v":0},{"$f":"IF('Vstupni oblast dat2'!I19<>\"0\",'Vstupni oblast dat2'!I19,\"\")","v":0},{"$f":"IF('Vstupni oblast dat2'!J19<>\"0\",'Vstupni oblast dat2'!J19,\"\")","v":0},{"$f":"IF('Vstupni oblast dat2'!K19<>\"0\",'Vstupni oblast dat2'!K19,\"\")","v":0},{"$f":"IF('Vstupni oblast dat2'!L19<>\"0\",'Vstupni oblast dat2'!L19,\"\")","v":0},{"$f":"IF('Vstupni oblast dat2'!M19<>\"0\",'Vstupni oblast dat2'!M19,\"\")","v":0},{"$f":"IF('Vstupni oblast dat2'!N19<>\"0\",'Vstupni oblast dat2'!N19,\"\")","v":0},{"$f":"IF('Vstupni oblast dat2'!O19<>\"0\",'Vstupni oblast dat2'!O19,\"\")","v":0},{"$f":"IF('Vstupni oblast dat2'!P19<>\"0\",'Vstupni oblast dat2'!P19,\"\")","v":0},{"$f":"IF('Vstupni oblast dat2'!Q19<>\"0\",'Vstupni oblast dat2'!Q19,\"\")","v":0}]
[null,null,null,null,12,null,{"$f":"IF('Vstupni oblast dat2'!G20<>\"0\",'Vstupni oblast dat2'!G20,\"\")","v":0},{"$f":"IF('Vstupni oblast dat2'!H20<>\"0\",'Vstupni oblast dat2'!H20,\"\")","v":0},{"$f":"IF('Vstupni oblast dat2'!I20<>\"0\",'Vstupni oblast dat2'!I20,\"\")","v":0},{"$f":"IF('Vstupni oblast dat2'!J20<>\"0\",'Vstupni oblast dat2'!J20,\"\")","v":0},{"$f":"IF('Vstupni oblast dat2'!K20<>\"0\",'Vstupni oblast dat2'!K20,\"\")","v":0},{"$f":"IF('Vstupni oblast dat2'!L20<>\"0\",'Vstupni oblast dat2'!L20,\"\")","v":0},{"$f":"IF('Vstupni oblast dat2'!M20<>\"0\",'Vstupni oblast dat2'!M20,\"\")","v":0},{"$f":"IF('Vstupni oblast dat2'!N20<>\"0\",'Vstupni oblast dat2'!N20,\"\")","v":0},{"$f":"IF('Vstupni oblast dat2'!O20<>\"0\",'Vstupni oblast dat2'!O20,\"\")","v":0},{"$f":"IF('Vstupni oblast dat2'!P20<>\"0\",'Vstupni oblast dat2'!P20,\"\")","v":0},{"$f":"IF('Vstupni oblast dat2'!Q20<>\"0\",'Vstupni oblast dat2'!Q20,\"\")","v":0}]
[null,null,null,null,13,null,{"$f":"IF('Vstupni oblast dat2'!G21<>\"0\",'Vstupni oblast dat2'!G21,\"\")","v":0},{"$f":"IF('Vstupni oblast dat2'!H21<>\"0\",'Vstupni oblast dat2'!H21,\"\")","v":0},{"$f":"IF('Vstupni oblast dat2'!I21<>\"0\",'Vstupni oblast dat2'!I21,\"\")","v":0},{"$f":"IF('Vstupni oblast dat2'!J21<>\"0\",'Vstupni oblast dat2'!J21,\"\")","v":0},{"$f":"IF('Vstupni oblast dat2'!K21<>\"0\",'Vstupni oblast dat2'!K21,\"\")","v":0},{"$f":"IF('Vstupni oblast dat2'!L21<>\"0\",'Vstupni oblast dat2'!L21,\"\")","v":0},{"$f":"IF('Vstupni oblast dat2'!M21<>\"0\",'Vstupni oblast dat2'!M21,\"\")","v":0},{"$f":"IF('Vstupni oblast dat2'!N21<>\"0\",'Vstupni oblast dat2'!N21,\"\")","v":0},{"$f":"IF('Vstupni oblast dat2'!O21<>\"0\",'Vstupni oblast dat2'!O21,\"\")","v":0},{"$f":"IF('Vstupni oblast dat2'!P21<>\"0\",'Vstupni oblast dat2'!P21,\"\")","v":0},{"$f":"IF('Vstupni oblast dat2'!Q21<>\"0\",'Vstupni oblast dat2'!Q21,\"\")","v":0},null,null,null,null,null,null,null,null,null,null,null,null,null,null,null,null,null,"testové kritérium",null,null,"F",{"$f":"AB21","v":0}]
[null,null,null,null,14,null,{"$f":"IF('Vstupni oblast dat2'!G22<>\"0\",'Vstupni oblast dat2'!G22,\"\")","v":0},{"$f":"IF('Vstupni oblast dat2'!H22<>\"0\",'Vstupni oblast dat2'!H22,\"\")","v":0},{"$f":"IF('Vstupni oblast dat2'!I22<>\"0\",'Vstupni oblast dat2'!I22,\"\")","v":0},{"$f":"IF('Vstupni oblast dat2'!J22<>\"0\",'Vstupni oblast dat2'!J22,\"\")","v":0},{"$f":"IF('Vstupni oblast dat2'!K22<>\"0\",'Vstupni oblast dat2'!K22,\"\")","v":0},{"$f":"IF('Vstupni oblast dat2'!L22<>\"0\",'Vstupni oblast dat2'!L22,\"\")","v":0},{"$f":"IF('Vstupni oblast dat2'!M22<>\"0\",'Vstupni oblast dat2'!M22,\"\")","v":0},{"$f":"IF('Vstupni oblast dat2'!N22<>\"0\",'Vstupni oblast dat2'!N22,\"\")","v":0},{"$f":"IF('Vstupni oblast dat2'!O22<>\"0\",'Vstupni oblast dat2'!O22,\"\")","v":0},{"$f":"IF('Vstupni oblast dat2'!P22<>\"0\",'Vstupni oblast dat2'!P22,\"\")","v":0},{"$f":"IF('Vstupni oblast dat2'!Q22<>\"0\",'Vstupni oblast dat2'!Q22,\"\")","v":0},null,null,null,null,null,null,null,null,null,null,null,null,null,null,null,null,null,"kritická hodnota",null,null,"F0,95(     ,       )",{"$f":"FINV(AL24,Y21,Y22)","v":{"$error":"#NUM!"}}]
[null,null,null,null,15,null,{"$f":"IF('Vstupni oblast dat2'!G23<>\"0\",'Vstupni oblast dat2'!G23,\"\")","v":0},{"$f":"IF('Vstupni oblast dat2'!H23<>\"0\",'Vstupni oblast dat2'!H23,\"\")","v":0},{"$f":"IF('Vstupni oblast dat2'!I23<>\"0\",'Vstupni oblast dat2'!I23,\"\")","v":0},{"$f":"IF('Vstupni oblast dat2'!J23<>\"0\",'Vstupni oblast dat2'!J23,\"\")","v":0},{"$f":"IF('Vstupni oblast dat2'!K23<>\"0\",'Vstupni oblast dat2'!K23,\"\")","v":0},{"$f":"IF('Vstupni oblast dat2'!L23<>\"0\",'Vstupni oblast dat2'!L23,\"\")","v":0},{"$f":"IF('Vstupni oblast dat2'!M23<>\"0\",'Vstupni oblast dat2'!M23,\"\")","v":0},{"$f":"IF('Vstupni oblast dat2'!N23<>\"0\",'Vstupni oblast dat2'!N23,\"\")","v":0},{"$f":"IF('Vstupni oblast dat2'!O23<>\"0\",'Vstupni oblast dat2'!O23,\"\")","v":0},{"$f":"IF('Vstupni oblast dat2'!P23<>\"0\",'Vstupni oblast dat2'!P23,\"\")","v":0},{"$f":"IF('Vstupni oblast dat2'!Q23<>\"0\",'Vstupni oblast dat2'!Q23,\"\")","v":0}]
[null,null,null,null,16,null,{"$f":"IF('Vstupni oblast dat2'!G24<>\"0\",'Vstupni oblast dat2'!G24,\"\")","v":0},{"$f":"IF('Vstupni oblast dat2'!H24<>\"0\",'Vstupni oblast dat2'!H24,\"\")","v":0},{"$f":"IF('Vstupni oblast dat2'!I24<>\"0\",'Vstupni oblast dat2'!I24,\"\")","v":0},{"$f":"IF('Vstupni oblast dat2'!J24<>\"0\",'Vstupni oblast dat2'!J24,\"\")","v":0},{"$f":"IF('Vstupni oblast dat2'!K24<>\"0\",'Vstupni oblast dat2'!K24,\"\")","v":0},{"$f":"IF('Vstupni oblast dat2'!L24<>\"0\",'Vstupni oblast dat2'!L24,\"\")","v":0},{"$f":"IF('Vstupni oblast dat2'!M24<>\"0\",'Vstupni oblast dat2'!M24,\"\")","v":0},{"$f":"IF('Vstupni oblast dat2'!N24<>\"0\",'Vstupni oblast dat2'!N24,\"\")","v":0},{"$f":"IF('Vstupni oblast dat2'!O24<>\"0\",'Vstupni oblast dat2'!O24,\"\")","v":0},{"$f":"IF('Vstupni oblast dat2'!P24<>\"0\",'Vstupni oblast dat2'!P24,\"\")","v":0},{"$f":"IF('Vstupni oblast dat2'!Q24<>\"0\",'Vstupni oblast dat2'!Q24,\"\")","v":0},null,null,null,null,null,null,null,null,null,null,null,null,null,null,null,null,null,null,null,null,0.05]
[null,null,null,null,17,null,{"$f":"IF('Vstupni oblast dat2'!G25<>\"0\",'Vstupni oblast dat2'!G25,\"\")","v":0},{"$f":"IF('Vstupni oblast dat2'!H25<>\"0\",'Vstupni oblast dat2'!H25,\"\")","v":0},{"$f":"IF('Vstupni oblast dat2'!I25<>\"0\",'Vstupni oblast dat2'!I25,\"\")","v":0},{"$f":"IF('Vstupni oblast dat2'!J25<>\"0\",'Vstupni oblast dat2'!J25,\"\")","v":0},{"$f":"IF('Vstupni oblast dat2'!K25<>\"0\",'Vstupni oblast dat2'!K25,\"\")","v":0},{"$f":"IF('Vstupni oblast dat2'!L25<>\"0\",'Vstupni oblast dat2'!L25,\"\")","v":0},{"$f":"IF('Vstupni oblast dat2'!M25<>\"0\",'Vstupni oblast dat2'!M25,\"\")","v":0},{"$f":"IF('Vstupni oblast dat2'!N25<>\"0\",'Vstupni oblast dat2'!N25,\"\")","v":0},{"$f":"IF('Vstupni oblast dat2'!O25<>\"0\",'Vstupni oblast dat2'!O25,\"\")","v":0},{"$f":"IF('Vstupni oblast dat2'!P25<>\"0\",'Vstupni oblast dat2'!P25,\"\")","v":0},{"$f":"IF('Vstupni oblast dat2'!Q25<>\"0\",'Vstupni oblast dat2'!Q25,\"\")","v":0},null,null,null,null,null,null,null,null,null,null,null,null,null,null,null,null,null,"Test významnnosti regresorů"]
[null,null,null,null,18,null,{"$f":"IF('Vstupni oblast dat2'!G26<>\"0\",'Vstupni oblast dat2'!G26,\"\")","v":0},{"$f":"IF('Vstupni oblast dat2'!H26<>\"0\",'Vstupni oblast dat2'!H26,\"\")","v":0},{"$f":"IF('Vstupni oblast dat2'!I26<>\"0\",'Vstupni oblast dat2'!I26,\"\")","v":0},{"$f":"IF('Vstupni oblast dat2'!J26<>\"0\",'Vstupni oblast dat2'!J26,\"\")","v":0},{"$f":"IF('Vstupni oblast dat2'!K26<>\"0\",'Vstupni oblast dat2'!K26,\"\")","v":0},{"$f":"IF('Vstupni oblast dat2'!L26<>\"0\",'Vstupni oblast dat2'!L26,\"\")","v":0},{"$f":"IF('Vstupni oblast dat2'!M26<>\"0\",'Vstupni oblast dat2'!M26,\"\")","v":0},{"$f":"IF('Vstupni oblast dat2'!N26<>\"0\",'Vstupni oblast dat2'!N26,\"\")","v":0},{"$f":"IF('Vstupni oblast dat2'!O26<>\"0\",'Vstupni oblast dat2'!O26,\"\")","v":0},{"$f":"IF('Vstupni oblast dat2'!P26<>\"0\",'Vstupni oblast dat2'!P26,\"\")","v":0},{"$f":"IF('Vstupni oblast dat2'!Q26<>\"0\",'Vstupni oblast dat2'!Q26,\"\")","v":0}]
[null,null,null,null,19,null,{"$f":"IF('Vstupni oblast dat2'!G27<>\"0\",'Vstupni oblast dat2'!G27,\"\")","v":0},{"$f":"IF('Vstupni oblast dat2'!H27<>\"0\",'Vstupni oblast dat2'!H27,\"\")","v":0},{"$f":"IF('Vstupni oblast dat2'!I27<>\"0\",'Vstupni oblast dat2'!I27,\"\")","v":0},{"$f":"IF('Vstupni oblast dat2'!J27<>\"0\",'Vstupni oblast dat2'!J27,\"\")","v":0},{"$f":"IF('Vstupni oblast dat2'!K27<>\"0\",'Vstupni oblast dat2'!K27,\"\")","v":0},{"$f":"IF('Vstupni oblast dat2'!L27<>\"0\",'Vstupni oblast dat2'!L27,\"\")","v":0},{"$f":"IF('Vstupni oblast dat2'!M27<>\"0\",'Vstupni oblast dat2'!M27,\"\")","v":0},{"$f":"IF('Vstupni oblast dat2'!N27<>\"0\",'Vstupni oblast dat2'!N27,\"\")","v":0},{"$f":"IF('Vstupni oblast dat2'!O27<>\"0\",'Vstupni oblast dat2'!O27,\"\")","v":0},{"$f":"IF('Vstupni oblast dat2'!P27<>\"0\",'Vstupni oblast dat2'!P27,\"\")","v":0},{"$f":"IF('Vstupni oblast dat2'!Q27<>\"0\",'Vstupni oblast dat2'!Q27,\"\")","v":0},null,null,null,null,null,null,null,null,null,null,null,null,null,null,null,null,null," adjust. determinační koeficient",null,null,{"$f":"Y15","v":0},null,{"$f":"Y21","v":0},"regresorů"]
[null,null,null,null,20,null,{"$f":"IF('Vstupni oblast dat2'!G28<>\"0\",'Vstupni oblast dat2'!G28,\"\")","v":0},{"$f":"IF('Vstupni oblast dat2'!H28<>\"0\",'Vstupni oblast dat2'!H28,\"\")","v":0},{"$f":"IF('Vstupni oblast dat2'!I28<>\"0\",'Vstupni oblast dat2'!I28,\"\")","v":0},{"$f":"IF('Vstupni oblast dat2'!J28<>\"0\",'Vstupni oblast dat2'!J28,\"\")","v":0},{"$f":"IF('Vstupni oblast dat2'!K28<>\"0\",'Vstupni oblast dat2'!K28,\"\")","v":0},{"$f":"IF('Vstupni oblast dat2'!L28<>\"0\",'Vstupni oblast dat2'!L28,\"\")","v":0},{"$f":"IF('Vstupni oblast dat2'!M28<>\"0\",'Vstupni oblast dat2'!M28,\"\")","v":0},{"$f":"IF('Vstupni oblast dat2'!N28<>\"0\",'Vstupni oblast dat2'!N28,\"\")","v":0},{"$f":"IF('Vstupni oblast dat2'!O28<>\"0\",'Vstupni oblast dat2'!O28,\"\")","v":0},{"$f":"IF('Vstupni oblast dat2'!P28<>\"0\",'Vstupni oblast dat2'!P28,\"\")","v":0},{"$f":"IF('Vstupni oblast dat2'!Q28<>\"0\",'Vstupni oblast dat2'!Q28,\"\")","v":0}]
[null,null,null,null,21,null,{"$f":"IF('Vstupni oblast dat2'!G29<>\"0\",'Vstupni oblast dat2'!G29,\"\")","v":0},{"$f":"IF('Vstupni oblast dat2'!H29<>\"0\",'Vstupni oblast dat2'!H29,\"\")","v":0},{"$f":"IF('Vstupni oblast dat2'!I29<>\"0\",'Vstupni oblast dat2'!I29,\"\")","v":0},{"$f":"IF('Vstupni oblast dat2'!J29<>\"0\",'Vstupni oblast dat2'!J29,\"\")","v":0},{"$f":"IF('Vstupni oblast dat2'!K29<>\"0\",'Vstupni oblast dat2'!K29,\"\")","v":0},{"$f":"IF('Vstupni oblast dat2'!L29<>\"0\",'Vstupni oblast dat2'!L29,\"\")","v":0},{"$f":"IF('Vstupni oblast dat2'!M29<>\"0\",'Vstupni oblast dat2'!M29,\"\")","v":0},{"$f":"IF('Vstupni oblast dat2'!N29<>\"0\",'Vstupni oblast dat2'!N29,\"\")","v":0},{"$f":"IF('Vstupni oblast dat2'!O29<>\"0\",'Vstupni oblast dat2'!O29,\"\")","v":0},{"$f":"IF('Vstupni oblast dat2'!P29<>\"0\",'Vstupni oblast dat2'!P29,\"\")","v":0},{"$f":"IF('Vstupni oblast dat2'!Q29<>\"0\",'Vstupni oblast dat2'!Q29,\"\")","v":0},null,null,null,null,null,null,null,null,null,null,null,null,null,null,null,null,null,"Pokud je adj. determinační koeficient s přidáním regresoru vyšší, je vliv nového regresoru statisticky"]
[null,null,null,null,22,null,{"$f":"IF('Vstupni oblast dat2'!G30<>\"0\",'Vstupni oblast dat2'!G30,\"\")","v":0},{"$f":"IF('Vstupni oblast dat2'!H30<>\"0\",'Vstupni oblast dat2'!H30,\"\")","v":0},{"$f":"IF('Vstupni oblast dat2'!I30<>\"0\",'Vstupni oblast dat2'!I30,\"\")","v":0},{"$f":"IF('Vstupni oblast dat2'!J30<>\"0\",'Vstupni oblast dat2'!J30,\"\")","v":0},{"$f":"IF('Vstupni oblast dat2'!K30<>\"0\",'Vstupni oblast dat2'!K30,\"\")","v":0},{"$f":"IF('Vstupni oblast dat2'!L30<>\"0\",'Vstupni oblast dat2'!L30,\"\")","v":0},{"$f":"IF('Vstupni oblast dat2'!M30<>\"0\",'Vstupni oblast dat2'!M30,\"\")","v":0},{"$f":"IF('Vstupni oblast dat2'!N30<>\"0\",'Vstupni oblast dat2'!N30,\"\")","v":0},{"$f":"IF('Vstupni oblast dat2'!O30<>\"0\",'Vstupni oblast dat2'!O30,\"\")","v":0},{"$f":"IF('Vstupni oblast dat2'!P30<>\"0\",'Vstupni oblast dat2'!P30,\"\")","v":0},{"$f":"IF('Vstupni oblast dat2'!Q30<>\"0\",'Vstupni oblast dat2'!Q30,\"\")","v":0},null,null,null,null,null,null,null,null,null,null,null,null,null,null,null,null,null,"významný."]
[null,null,null,null,23,null,{"$f":"IF('Vstupni oblast dat2'!G31<>\"0\",'Vstupni oblast dat2'!G31,\"\")","v":0},{"$f":"IF('Vstupni oblast dat2'!H31<>\"0\",'Vstupni oblast dat2'!H31,\"\")","v":0},{"$f":"IF('Vstupni oblast dat2'!I31<>\"0\",'Vstupni oblast dat2'!I31,\"\")","v":0},{"$f":"IF('Vstupni oblast dat2'!J31<>\"0\",'Vstupni oblast dat2'!J31,\"\")","v":0},{"$f":"IF('Vstupni oblast dat2'!K31<>\"0\",'Vstupni oblast dat2'!K31,\"\")","v":0},{"$f":"IF('Vstupni oblast dat2'!L31<>\"0\",'Vstupni oblast dat2'!L31,\"\")","v":0},{"$f":"IF('Vstupni oblast dat2'!M31<>\"0\",'Vstupni oblast dat2'!M31,\"\")","v":0},{"$f":"IF('Vstupni oblast dat2'!N31<>\"0\",'Vstupni oblast dat2'!N31,\"\")","v":0},{"$f":"IF('Vstupni oblast dat2'!O31<>\"0\",'Vstupni oblast dat2'!O31,\"\")","v":0},{"$f":"IF('Vstupni oblast dat2'!P31<>\"0\",'Vstupni oblast dat2'!P31,\"\")","v":0},{"$f":"IF('Vstupni oblast dat2'!Q31<>\"0\",'Vstupni oblast dat2'!Q31,\"\")","v":0}]
[null,null,null,null,24,null,{"$f":"IF('Vstupni oblast dat2'!G32<>\"0\",'Vstupni oblast dat2'!G32,\"\")","v":0},{"$f":"IF('Vstupni oblast dat2'!H32<>\"0\",'Vstupni oblast dat2'!H32,\"\")","v":0},{"$f":"IF('Vstupni oblast dat2'!I32<>\"0\",'Vstupni oblast dat2'!I32,\"\")","v":0},{"$f":"IF('Vstupni oblast dat2'!J32<>\"0\",'Vstupni oblast dat2'!J32,\"\")","v":0},{"$f":"IF('Vstupni oblast dat2'!K32<>\"0\",'Vstupni oblast dat2'!K32,\"\")","v":0},{"$f":"IF('Vstupni oblast dat2'!L32<>\"0\",'Vstupni oblast dat2'!L32,\"\")","v":0},{"$f":"IF('Vstupni oblast dat2'!M32<>\"0\",'Vstupni oblast dat2'!M32,\"\")","v":0},{"$f":"IF('Vstupni oblast dat2'!N32<>\"0\",'Vstupni oblast dat2'!N32,\"\")","v":0},{"$f":"IF('Vstupni oblast dat2'!O32<>\"0\",'Vstupni oblast dat2'!O32,\"\")","v":0},{"$f":"IF('Vstupni oblast dat2'!P32<>\"0\",'Vstupni oblast dat2'!P32,\"\")","v":0},{"$f":"IF('Vstupni oblast dat2'!Q32<>\"0\",'Vstupni oblast dat2'!Q32,\"\")","v":0},null,null,null,null,null,null,null,null,null,null,null,null,null,null,null,null,null,"Regresní rovnice"]
[null,null,null,null,25,null,{"$f":"IF('Vstupni oblast dat2'!G33<>\"0\",'Vstupni oblast dat2'!G33,\"\")","v":0},{"$f":"IF('Vstupni oblast dat2'!H33<>\"0\",'Vstupni oblast dat2'!H33,\"\")","v":0},{"$f":"IF('Vstupni oblast dat2'!I33<>\"0\",'Vstupni oblast dat2'!I33,\"\")","v":0},{"$f":"IF('Vstupni oblast dat2'!J33<>\"0\",'Vstupni oblast dat2'!J33,\"\")","v":0},{"$f":"IF('Vstupni oblast dat2'!K33<>\"0\",'Vstupni oblast dat2'!K33,\"\")","v":0},{"$f":"IF('Vstupni oblast dat2'!L33<>\"0\",'Vstupni oblast dat2'!L33,\"\")","v":0},{"$f":"IF('Vstupni oblast dat2'!M33<>\"0\",'Vstupni oblast dat2'!M33,\"\")","v":0},{"$f":"IF('Vstupni oblast dat2'!N33<>\"0\",'Vstupni oblast dat2'!N33,\"\")","v":0},{"$f":"IF('Vstupni oblast dat2'!O33<>\"0\",'Vstupni oblast dat2'!O33,\"\")","v":0},{"$f":"IF('Vstupni oblast dat2'!P33<>\"0\",'Vstupni oblast dat2'!P33,\"\")","v":0},{"$f":"IF('Vstupni oblast dat2'!Q33<>\"0\",'Vstupni oblast dat2'!Q33,\"\")","v":0}]
[null,null,null,null,26,null,{"$f":"IF('Vstupni oblast dat2'!G34<>\"0\",'Vstupni oblast dat2'!G34,\"\")","v":0},{"$f":"IF('Vstupni oblast dat2'!H34<>\"0\",'Vstupni oblast dat2'!H34,\"\")","v":0},{"$f":"IF('Vstupni oblast dat2'!I34<>\"0\",'Vstupni oblast dat2'!I34,\"\")","v":0},{"$f":"IF('Vstupni oblast dat2'!J34<>\"0\",'Vstupni oblast dat2'!J34,\"\")","v":0},{"$f":"IF('Vstupni oblast dat2'!K34<>\"0\",'Vstupni oblast dat2'!K34,\"\")","v":0},{"$f":"IF('Vstupni oblast dat2'!L34<>\"0\",'Vstupni oblast dat2'!L34,\"\")","v":0},{"$f":"IF('Vstupni oblast dat2'!M34<>\"0\",'Vstupni oblast dat2'!M34,\"\")","v":0},{"$f":"IF('Vstupni oblast dat2'!N34<>\"0\",'Vstupni oblast dat2'!N34,\"\")","v":0},{"$f":"IF('Vstupni oblast dat2'!O34<>\"0\",'Vstupni oblast dat2'!O34,\"\")","v":0},{"$f":"IF('Vstupni oblast dat2'!P34<>\"0\",'Vstupni oblast dat2'!P34,\"\")","v":0},{"$f":"IF('Vstupni oblast dat2'!Q34<>\"0\",'Vstupni oblast dat2'!Q34,\"\")","v":0}]
[null,null,null,null,27,null,{"$f":"IF('Vstupni oblast dat2'!G35<>\"0\",'Vstupni oblast dat2'!G35,\"\")","v":0},{"$f":"IF('Vstupni oblast dat2'!H35<>\"0\",'Vstupni oblast dat2'!H35,\"\")","v":0},{"$f":"IF('Vstupni oblast dat2'!I35<>\"0\",'Vstupni oblast dat2'!I35,\"\")","v":0},{"$f":"IF('Vstupni oblast dat2'!J35<>\"0\",'Vstupni oblast dat2'!J35,\"\")","v":0},{"$f":"IF('Vstupni oblast dat2'!K35<>\"0\",'Vstupni oblast dat2'!K35,\"\")","v":0},{"$f":"IF('Vstupni oblast dat2'!L35<>\"0\",'Vstupni oblast dat2'!L35,\"\")","v":0},{"$f":"IF('Vstupni oblast dat2'!M35<>\"0\",'Vstupni oblast dat2'!M35,\"\")","v":0},{"$f":"IF('Vstupni oblast dat2'!N35<>\"0\",'Vstupni oblast dat2'!N35,\"\")","v":0},{"$f":"IF('Vstupni oblast dat2'!O35<>\"0\",'Vstupni oblast dat2'!O35,\"\")","v":0},{"$f":"IF('Vstupni oblast dat2'!P35<>\"0\",'Vstupni oblast dat2'!P35,\"\")","v":0},{"$f":"IF('Vstupni oblast dat2'!Q35<>\"0\",'Vstupni oblast dat2'!Q35,\"\")","v":0},null,null,null,null,null,null,null,null,null,null,null,null,null,null,null,null,null,null,{"$f":"Y26","v":0},null,{"$f":"Y27","v":0},{"$f":"H4","v":"x1i"},{"$f":"Y28","v":0},{"$f":"I4","v":"x2i"},{"$f":"Y29","v":0},{"$f":"J4","v":"x3i"},{"$f":"Y30","v":0},{"$f":"K4","v":"x4i"},{"$f":"Y31","v":0},{"$f":"L4","v":"x5i"},{"$f":"Y32","v":0},{"$f":"M4","v":"x6i"},{"$f":"Y33","v":0},{"$f":"N4","v":"x7i"},{"$f":"Y34","v":0},{"$f":"O4","v":"x8i"},{"$f":"Y35","v":0},{"$f":"P4","v":"x9i"},{"$f":"Y36","v":0},{"$f":"Q4","v":"x10i"}]
[null,null,null,null,28,null,{"$f":"IF('Vstupni oblast dat2'!G36<>\"0\",'Vstupni oblast dat2'!G36,\"\")","v":0},{"$f":"IF('Vstupni oblast dat2'!H36<>\"0\",'Vstupni oblast dat2'!H36,\"\")","v":0},{"$f":"IF('Vstupni oblast dat2'!I36<>\"0\",'Vstupni oblast dat2'!I36,\"\")","v":0},{"$f":"IF('Vstupni oblast dat2'!J36<>\"0\",'Vstupni oblast dat2'!J36,\"\")","v":0},{"$f":"IF('Vstupni oblast dat2'!K36<>\"0\",'Vstupni oblast dat2'!K36,\"\")","v":0},{"$f":"IF('Vstupni oblast dat2'!L36<>\"0\",'Vstupni oblast dat2'!L36,\"\")","v":0},{"$f":"IF('Vstupni oblast dat2'!M36<>\"0\",'Vstupni oblast dat2'!M36,\"\")","v":0},{"$f":"IF('Vstupni oblast dat2'!N36<>\"0\",'Vstupni oblast dat2'!N36,\"\")","v":0},{"$f":"IF('Vstupni oblast dat2'!O36<>\"0\",'Vstupni oblast dat2'!O36,\"\")","v":0},{"$f":"IF('Vstupni oblast dat2'!P36<>\"0\",'Vstupni oblast dat2'!P36,\"\")","v":0},{"$f":"IF('Vstupni oblast dat2'!Q36<>\"0\",'Vstupni oblast dat2'!Q36,\"\")","v":0}]
[null,null,null,null,{"$f":"E36+1","v":29},null,{"$f":"IF('Vstupni oblast dat2'!G37<>\"0\",'Vstupni oblast dat2'!G37,\"\")","v":0},{"$f":"IF('Vstupni oblast dat2'!H37<>\"0\",'Vstupni oblast dat2'!H37,\"\")","v":0},{"$f":"IF('Vstupni oblast dat2'!I37<>\"0\",'Vstupni oblast dat2'!I37,\"\")","v":0},{"$f":"IF('Vstupni oblast dat2'!J37<>\"0\",'Vstupni oblast dat2'!J37,\"\")","v":0},{"$f":"IF('Vstupni oblast dat2'!K37<>\"0\",'Vstupni oblast dat2'!K37,\"\")","v":0},{"$f":"IF('Vstupni oblast dat2'!L37<>\"0\",'Vstupni oblast dat2'!L37,\"\")","v":0},{"$f":"IF('Vstupni oblast dat2'!M37<>\"0\",'Vstupni oblast dat2'!M37,\"\")","v":0},{"$f":"IF('Vstupni oblast dat2'!N37<>\"0\",'Vstupni oblast dat2'!N37,\"\")","v":0},{"$f":"IF('Vstupni oblast dat2'!O37<>\"0\",'Vstupni oblast dat2'!O37,\"\")","v":0},{"$f":"IF('Vstupni oblast dat2'!P37<>\"0\",'Vstupni oblast dat2'!P37,\"\")","v":0},{"$f":"IF('Vstupni oblast dat2'!Q37<>\"0\",'Vstupni oblast dat2'!Q37,\"\")","v":0}]
[null,null,null,null,{"$f":"E37+1","v":30},null,{"$f":"IF('Vstupni oblast dat2'!G38<>\"0\",'Vstupni oblast dat2'!G38,\"\")","v":0},{"$f":"IF('Vstupni oblast dat2'!H38<>\"0\",'Vstupni oblast dat2'!H38,\"\")","v":0},{"$f":"IF('Vstupni oblast dat2'!I38<>\"0\",'Vstupni oblast dat2'!I38,\"\")","v":0},{"$f":"IF('Vstupni oblast dat2'!J38<>\"0\",'Vstupni oblast dat2'!J38,\"\")","v":0},{"$f":"IF('Vstupni oblast dat2'!K38<>\"0\",'Vstupni oblast dat2'!K38,\"\")","v":0},{"$f":"IF('Vstupni oblast dat2'!L38<>\"0\",'Vstupni oblast dat2'!L38,\"\")","v":0},{"$f":"IF('Vstupni oblast dat2'!M38<>\"0\",'Vstupni oblast dat2'!M38,\"\")","v":0},{"$f":"IF('Vstupni oblast dat2'!N38<>\"0\",'Vstupni oblast dat2'!N38,\"\")","v":0},{"$f":"IF('Vstupni oblast dat2'!O38<>\"0\",'Vstupni oblast dat2'!O38,\"\")","v":0},{"$f":"IF('Vstupni oblast dat2'!P38<>\"0\",'Vstupni oblast dat2'!P38,\"\")","v":0},{"$f":"IF('Vstupni oblast dat2'!Q38<>\"0\",'Vstupni oblast dat2'!Q38,\"\")","v":0}]
[null,null,null,null,null,null,null,null,null,null,null,null,null,null,null,null,null,null,null,null,null,null,null,null,null,null,null,null,null,null,null,null,null,null,"Vyrovnané hodnoty"]
[]
[null,null,null,null,null,null,null,null,null,null,null,null,null,null,null,null,null,null,null,null,null,null,null,null,null,null,null,null,null,null,null,null,null,null,"n",null,"yi"]
[null,null,null,null,null,null,null,null,null,null,null,null,null,null,null,null,null,null,null,null,null,null,null,null,null,null,null,null,null,null,null,null,null,null,null,null,{"$f":"G5","v":"Závisle proměnná"},"Vyr.hodnoty"]
[]
[null,null,null,null,null,null,null,null,null,null,null,null,null,null,null,null,null,null,null,null,null,null,null,null,null,null,null,null,null,null,null,null,null,null,null,null,{"$f":"G7","v":"[ jednotky ]"},{"$f":"AK44","v":"[ jednotky ]"}]
[]
[null,null,null,null,null,null,null,null,null,null,null,null,null,null,null,null,null,null,null,null,null,null,null,null,null,null,null,null,null,null,null,null,null,null,{"$f":"1","v":1},null,{"$f":"IF(G9<>\"0\",G9,\"\")","v":0},{"$f":"IF(AK46<>\"\",($AJ$35+($AL$35*H9)+($AN$35*I9)+($AP$35*J9)+($AR$35*K9)+($AT$35*L9)+($AV$35*M9)+($AX$35*N9)+($AZ$35*O9)+($BB$35*P9)+($BD$35*Q9)),\"\")","v":0}]
[null,null,null,null,null,null,null,null,null,null,null,null,null,null,null,null,null,null,null,null,null,null,null,null,null,null,null,null,null,null,null,null,null,null,{"$f":"AI46+1","v":2},null,{"$f":"IF(G10<>\"0\",G10,\"\")","v":0},{"$f":"IF(AK47<>0,($AJ$35+($AL$35*H10)+($AN$35*I10)+($AP$35*J10)+($AR$35*K10)+($AT$35*L10)+($AV$35*M10)+($AX$35*N10)+($AZ$35*O10)+($BB$35*P10)+($BD$35*Q10)),0)","v":0}]
[null,null,null,null,null,null,null,null,null,null,null,null,null,null,null,null,null,null,null,null,null,null,null,null,null,null,null,null,null,null,null,null,null,null,{"$f":"AI47+1","v":3},null,0,0]
[null,null,null,null,null,null,null,null,null,null,null,null,null,null,null,null,null,null,null,null,null,null,null,null,null,null,null,null,null,null,null,null,null,null,4,null,0,0]
[null,null,null,null,null,null,null,null,null,null,null,null,null,null,null,null,null,null,null,null,null,null,null,null,null,null,null,null,null,null,null,null,null,null,5,null,0,0]
[null,null,null,null,null,null,null,null,null,null,null,null,null,null,null,null,null,null,null,null,null,null,null,null,null,null,null,null,null,null,null,null,null,null,6,null,0,0]
[null,null,null,null,null,null,null,null,null,null,null,null,null,null,null,null,null,null,null,null,null,null,null,null,null,null,null,null,null,null,null,null,null,null,7,null,0,0]
[null,null,null,null,null,null,null,null,null,null,null,null,null,null,null,null,null,null,null,null,null,null,null,null,null,null,null,null,null,null,null,null,null,null,8,null,0,0]
[null,null,null,null,null,null,null,null,null,null,null,null,null,null,null,null,null,null,null,null,null,null,null,null,null,null,null,null,null,null,null,null,null,null,9,null,0,0]
[null,null,null,null,null,null,null,null,null,null,null,null,null,null,null,null,null,null,null,null,null,null,null,null,null,null,null,null,null,null,null,null,null,null,10,null,0,0]
[null,null,null,null,null,null,null,null,null,null,null,null,null,null,null,null,null,null,null,null,null,null,null,null,null,null,null,null,null,null,null,null,null,null,11,null,0,0]
[null,null,null,null,null,null,null,null,null,null,null,null,null,null,null,null,null,null,null,null,null,null,null,null,null,null,null,null,null,null,null,null,null,null,12,null,0,0]
[null,null,null,null,null,null,null,null,null,null,null,null,null,null,null,null,null,null,null,null,null,null,null,null,null,null,null,null,null,null,null,null,null,null,13,null,0,0]
[null,null,null,null,null,null,null,null,null,null,null,null,null,null,null,null,null,null,null,null,null,null,null,null,null,null,null,null,null,null,null,null,null,null,14,null,0,0]
[null,null,null,null,null,null,null,null,null,null,null,null,null,null,null,null,null,null,null,null,null,null,null,null,null,null,null,null,null,null,null,null,null,null,15,null,0,0]
[null,null,null,null,null,null,null,null,null,null,null,null,null,null,null,null,null,null,null,null,null,null,null,null,null,null,null,null,null,null,null,null,null,null,16,null,0,0]
[null,null,null,null,null,null,null,null,null,null,null,null,null,null,null,null,null,null,null,null,null,null,null,null,null,null,null,null,null,null,null,null,null,null,17,null,0,0]
[null,null,null,null,null,null,null,null,null,null,null,null,null,null,null,null,null,null,null,null,null,null,null,null,null,null,null,null,null,null,null,null,null,null,18,null,0,0]
[null,null,null,null,null,null,null,null,null,null,null,null,null,null,null,null,null,null,null,null,null,null,null,null,null,null,null,null,null,null,null,null,null,null,19,null,0,0]
[null,null,null,null,null,null,null,null,null,null,null,null,null,null,null,null,null,null,null,null,null,null,null,null,null,null,null,null,null,null,null,null,null,null,20,null,0,0]
[null,null,null,null,null,null,null,null,null,null,null,null,null,null,null,null,null,null,null,null,null,null,null,null,null,null,null,null,null,null,null,null,null,null,21,null,0,0]
[null,null,null,null,null,null,null,null,null,null,null,null,null,null,null,null,null,null,null,null,null,null,null,null,null,null,null,null,null,null,null,null,null,null,22,null,0,0]
[null,null,null,null,null,null,null,null,null,null,null,null,null,null,null,null,null,null,null,null,null,null,null,null,null,null,null,null,null,null,null,null,null,null,23,null,0,0]
[null,null,null,null,null,null,null,null,null,null,null,null,null,null,null,null,null,null,null,null,null,null,null,null,null,null,null,null,null,null,null,null,null,null,24,null,0,0]
[null,null,null,null,null,null,null,null,null,null,null,null,null,null,null,null,null,null,null,null,null,null,null,null,null,null,null,null,null,null,null,null,null,null,25,null,0,0]
[null,null,null,null,null,null,null,null,null,null,null,null,null,null,null,null,null,null,null,null,null,null,null,null,null,null,null,null,null,null,null,null,null,null,26,null,0,0]
[null,null,null,null,null,null,null,null,null,null,null,null,null,null,null,null,null,null,null,null,null,null,null,null,null,null,null,null,null,null,null,null,null,null,27,null,0,0]
[null,null,null,null,null,null,null,null,null,null,null,null,null,null,null,null,null,null,null,null,null,null,null,null,null,null,null,null,null,null,null,null,null,null,28,null,0,0]
[null,null,null,null,null,null,null,null,null,null,null,null,null,null,null,null,null,null,null,null,null,null,null,null,null,null,null,null,null,null,null,null,null,null,{"$f":"AI73+1","v":29},null,0,0]
[null,null,null,null,null,null,null,null,null,null,null,null,null,null,null,null,null,null,null,null,null,null,null,null,null,null,null,null,null,null,null,null,null,null,{"$f":"AI74+1","v":30},null,0,0]
[null,null,null,null,null,null,null,null,null,null,null,null,null,null,null,null,null,null,null,null,null,null,null,null,null,null,null,null,null,null,null,null,null,null,"Suma",null,{"$f":"SUM(AK46:AK75)","v":0},{"$f":"SUM(AL46:AL75)","v":0}]

{"sheet":"korelace","index":7,"n_rows":38,"n_cols":19,"rows_kept":38,"cut":false,"hidden":false,"merged":[[4,11,5,11],[4,12,5,12],[4,13,5,13],[4,14,5,14],[4,15,5,15],[4,16,5,16],[3,4,7,5],[4,6,5,6],[4,7,5,7],[4,8,5,8],[4,9,5,9],[4,10,5,10],[6,6,7,6],[6,7,7,7],[6,8,7,8],[6,9,7,9],[6,16,7,16],[8,4,8,5],[9,4,9,5],[9,34,9,41],[9,70,9,71],[9,74,9,75],[6,10,7,10],[6,11,7,11],[6,12,7,12],[6,13,7,13],[6,14,7,14],[6,15,7,15],[8,21,8,22],[12,4,12,5],[12,34,12,39],[12,40,12,41],[13,4,13,5],[13,34,13,41],[14,4,14,5],[9,78,9,80],[10,4,10,5],[10,34,10,41],[11,4,11,5],[11,34,11,39],[11,40,11,41],[19,4,19,5],[20,4,20,5],[20,34,20,36],[21,4,21,5],[21,34,21,36],[22,4,22,5],[15,4,15,5],[15,34,15,35],[16,4,16,5],[16,34,16,35],[17,4,17,5],[18,4,18,5],[27,4,27,5],[27,34,27,39],[27,40,27,41],[28,4,28,5],[28,34,28,41],[29,4,29,5],[29,34,29,41],[23,4,23,5],[24,4,24,5],[24,34,24,41],[25,4,25,5],[25,34,25,41],[26,4,26,5],[26,34,26,36],[26,40,26,41],[34,4,34,5],[35,4,35,5],[35,34,35,41],[36,4,36,5],[37,4,37,5],[38,34,38,36],[30,4,30,5],[31,4,31,5],[31,34,31,36],[32,4,32,5],[32,34,32,41],[33,4,33,5],[33,34,33,36],[33,40,33,41],[46,34,46,35],[47,34,47,35],[48,34,48,35],[49,34,49,35],[50,34,50,35],[51,34,51,35],[40,34,44,35],[41,36,42,36],[41,37,42,37],[43,36,44,36],[43,37,44,37],[45,34,45,35],[58,34,58,35],[59,34,59,35],[60,34,60,35],[61,34,61,35],[62,34,62,35],[63,34,63,35],[52,34,52,35],[53,34,53,35],[54,34,54,35],[55,34,55,35],[56,34,56,35],[57,34,57,35],[70,34,70,35],[71,34,71,35],[72,34,72,35],[73,34,73,35],[74,34,74,35],[75,34,75,35],[64,34,64,35],[65,34,65,35],[66,34,66,35],[67,34,67,35],[68,34,68,35],[69,34,69,35]]}
[null,null,null,"počet","%","kus","počet",null,null,null,null,null,null,null,null,null,null,null,{"$f":"A4*A5","v":{"$error":"#VALUE!"}}]
[]
[]
[" jednotky ",null,null,null,"n",null,{"$f":"'Vstupni oblast dat2'!G4","v":"yi"},"x1i","x2i","x3i","x4i","x5i","x6i","x7i","x8i","x9i","x10i"]
["jednotky ",null,null,null,null,null,{"$f":"'Vstupni oblast dat2'!G5:G6","v":"Závisle proměnná"},{"$f":"'Vstupni oblast dat2'!H5:H6","v":"1.regresor"},{"$f":"'Vstupni oblast dat2'!I5:I6","v":"2.regresor"},{"$f":"'Vstupni oblast dat2'!J5:J6","v":"3.regresor"},{"$f":"'Vstupni oblast dat2'!K5:K6","v":"4.regresor"},{"$f":"'Vstupni oblast dat2'!L5:L6","v":"5.regresor"},{"$f":"'Vstupni oblast dat2'!M5:M6","v":"6.regresor"},{"$f":"'Vstupni oblast dat2'!N5:N6","v":"7.regresor"},{"$f":"'Vstupni oblast dat2'!O5:O6","v":"8.regresor"},{"$f":"'Vstupni oblast dat2'!P5:P6","v":"9.regresor"},{"$f":"'Vstupni oblast dat2'!Q5:Q6","v":"10.regresor"}]
["jednotky"]
["jednotky",null,null,null,null,null,{"$f":"'Vstupni oblast dat2'!G7:G8","v":"[ jednotky ]"},{"$f":"'Vstupni oblast dat2'!H7:H8","v":"[ jednotky ]"},{"$f":"'Vstupni oblast dat2'!I7:I8","v":"[ jednotky ]"},{"$f":"'Vstupni oblast dat2'!J7:J8","v":"[ jednotky ]"},{"$f":"'Vstupni oblast dat2'!K7:K8","v":"[ jednotky ]"},{"$f":"'Vstupni oblast dat2'!L7:L8","v":"[ jednotky ]"},{"$f":"'Vstupni oblast dat2'!M7:M8","v":"[ jednotky ]"},{"$f":"'Vstupni oblast dat2'!N7:N8","v":"[ jednotky ]"},{"$f":"'Vstupni oblast dat2'!O7:O8","v":"[ jednotky ]"},{"$f":"'Vstupni oblast dat2'!P7:P8","v":"[ jednotky ]"},{"$f":"'Vstupni oblast dat2'!Q7:Q8","v":"[ jednotky ]"}]
[" jednotky "]
[" jednotky ",null,null,null,{"$f":"1","v":1},null,{"$f":"IF('Vstupni oblast dat2'!G9<>\"\",'Vstupni oblast dat2'!G9,\"\")","v":0},{"$f":"IF('Vstupni oblast dat2'!H9<>\"\",'Vstupni oblast dat2'!H9,\"\")","v":0},{"$f":"IF('Vstupni oblast dat2'!I9<>\"\",'Vstupni oblast dat2'!I9,\"\")","v":0},{"$f":"IF('Vstupni oblast dat2'!J9<>\"\",'Vstupni oblast dat2'!J9,\"\")","v":0},{"$f":"IF('Vstupni oblast dat2'!K9<>\"\",'Vstupni oblast dat2'!K9,\"\")","v":0},{"$f":"IF('Vstupni oblast dat2'!L9<>\"\",'Vstupni oblast dat2'!L9,\"\")","v":0},{"$f":"IF('Vstupni oblast dat2'!M9<>\"\",'Vstupni oblast dat2'!M9,\"\")","v":0},{"$f":"IF('Vstupni oblast dat2'!N9<>\"\",'Vstupni oblast dat2'!N9,\"\")","v":0},{"$f":"IF('Vstupni oblast dat2'!O9<>\"\",'Vstupni oblast dat2'!O9,\"\")","v":0},{"$f":"IF('Vstupni oblast dat2'!P9<>\"\",'Vstupni oblast dat2'!P9,\"\")","v":0},{"$f":"IF('Vstupni oblast dat2'!Q9<>\"\",'Vstupni oblast dat2'!Q9,\"\")","v":0}]
[" jednotky ",null,null,null,{"$f":"E9+1","v":2},null,{"$f":"IF('Vstupni oblast dat2'!G10<>\"\",'Vstupni oblast dat2'!G10,\"\")","v":0},{"$f":"IF('Vstupni oblast dat2'!H10<>\"\",'Vstupni oblast dat2'!H10,\"\")","v":0},{"$f":"IF('Vstupni oblast dat2'!I10<>\"\",'Vstupni oblast dat2'!I10,\"\")","v":0},{"$f":"IF('Vstupni oblast dat2'!J10<>\"\",'Vstupni oblast dat2'!J10,\"\")","v":0},{"$f":"IF('Vstupni oblast dat2'!K10<>\"\",'Vstupni oblast dat2'!K10,\"\")","v":0},{"$f":"IF('Vstupni oblast dat2'!L10<>\"\",'Vstupni oblast dat2'!L10,\"\")","v":0},{"$f":"IF('Vstupni oblast dat2'!M10<>\"\",'Vstupni oblast dat2'!M10,\"\")","v":0},{"$f":"IF('Vstupni oblast dat2'!N10<>\"\",'Vstupni oblast dat2'!N10,\"\")","v":0},{"$f":"IF('Vstupni oblast dat2'!O10<>\"\",'Vstupni oblast dat2'!O10,\"\")","v":0},{"$f":"IF('Vstupni oblast dat2'!P10<>\"\",'Vstupni oblast dat2'!P10,\"\")","v":0},{"$f":"IF('Vstupni oblast dat2'!Q10<>\"\",'Vstupni oblast dat2'!Q10,\"\")","v":0}]
[" jednotky ",null,null,null,{"$f":"E10+1","v":3},null,{"$f":"IF('Vstupni oblast dat2'!G11<>\"\",'Vstupni oblast dat2'!G11,\"\")","v":0},{"$f":"IF('Vstupni oblast dat2'!H11<>\"\",'Vstupni oblast dat2'!H11,\"\")","v":0},{"$f":"IF('Vstupni oblast dat2'!I11<>\"\",'Vstupni oblast dat2'!I11,\"\")","v":0},{"$f":"IF('Vstupni oblast dat2'!J11<>\"\",'Vstupni oblast dat2'!J11,\"\")","v":0},{"$f":"IF('Vstupni oblast dat2'!K11<>\"\",'Vstupni oblast dat2'!K11,\"\")","v":0},{"$f":"IF('Vstupni oblast dat2'!L11<>\"\",'Vstupni oblast dat2'!L11,\"\")","v":0},{"$f":"IF('Vstupni oblast dat2'!M11<>\"\",'Vstupni oblast dat2'!M11,\"\")","v":0},{"$f":"IF('Vstupni oblast dat2'!N11<>\"\",'Vstupni oblast dat2'!N11,\"\")","v":0},{"$f":"IF('Vstupni oblast dat2'!O11<>\"\",'Vstupni oblast dat2'!O11,\"\")","v":0},{"$f":"IF('Vstupni oblast dat2'!P11<>\"\",'Vstupni oblast dat2'!P11,\"\")","v":0},{"$f":"IF('Vstupni oblast dat2'!Q11<>\"\",'Vstupni oblast dat2'!Q11,\"\")","v":0}]
[" jednotky ",null,null,null,4,null,{"$f":"IF('Vstupni oblast dat2'!G12<>\"\",'Vstupni oblast dat2'!G12,\"\")","v":0},{"$f":"IF('Vstupni oblast dat2'!H12<>\"\",'Vstupni oblast dat2'!H12,\"\")","v":0},{"$f":"IF('Vstupni oblast dat2'!I12<>\"\",'Vstupni oblast dat2'!I12,\"\")","v":0},{"$f":"IF('Vstupni oblast dat2'!J12<>\"\",'Vstupni oblast dat2'!J12,\"\")","v":0},{"$f":"IF('Vstupni oblast dat2'!K12<>\"\",'Vstupni oblast dat2'!K12,\"\")","v":0},{"$f":"IF('Vstupni oblast dat2'!L12<>\"\",'Vstupni oblast dat2'!L12,\"\")","v":0},{"$f":"IF('Vstupni oblast dat2'!M12<>\"\",'Vstupni oblast dat2'!M12,\"\")","v":0},{"$f":"IF('Vstupni oblast dat2'!N12<>\"\",'Vstupni oblast dat2'!N12,\"\")","v":0},{"$f":"IF('Vstupni oblast dat2'!O12<>\"\",'Vstupni oblast dat2'!O12,\"\")","v":0},{"$f":"IF('Vstupni oblast dat2'!P12<>\"\",'Vstupni oblast dat2'!P12,\"\")","v":0},{"$f":"IF('Vstupni oblast dat2'!Q12<>\"\",'Vstupni oblast dat2'!Q12,\"\")","v":0}]
[" jednotky ",null,null,null,5,null,{"$f":"IF('Vstupni oblast dat2'!G13<>\"\",'Vstupni oblast dat2'!G13,\"\")","v":0},{"$f":"IF('Vstupni oblast dat2'!H13<>\"\",'Vstupni oblast dat2'!H13,\"\")","v":0},{"$f":"IF('Vstupni oblast dat2'!I13<>\"\",'Vstupni oblast dat2'!I13,\"\")","v":0},{"$f":"IF('Vstupni oblast dat2'!J13<>\"\",'Vstupni oblast dat2'!J13,\"\")","v":0},{"$f":"IF('Vstupni oblast dat2'!K13<>\"\",'Vstupni oblast dat2'!K13,\"\")","v":0},{"$f":"IF('Vstupni oblast dat2'!L13<>\"\",'Vstupni oblast dat2'!L13,\"\")","v":0},{"$f":"IF('Vstupni oblast dat2'!M13<>\"\",'Vstupni oblast dat2'!M13,\"\")","v":0},{"$f":"IF('Vstupni oblast dat2'!N13<>\"\",'Vstupni oblast dat2'!N13,\"\")","v":0},{"$f":"IF('Vstupni oblast dat2'!O13<>\"\",'Vstupni oblast dat2'!O13,\"\")","v":0},{"$f":"IF('Vstupni oblast dat2'!P13<>\"\",'Vstupni oblast dat2'!P13,\"\")","v":0},{"$f":"IF('Vstupni oblast dat2'!Q13<>\"\",'Vstupni oblast dat2'!Q13,\"\")","v":0}]
[null,null,null,null,6,null,{"$f":"IF('Vstupni oblast dat2'!G14<>\"\",'Vstupni oblast dat2'!G14,\"\")","v":0},{"$f":"IF('Vstupni oblast dat2'!H14<>\"\",'Vstupni oblast dat2'!H14,\"\")","v":0},{"$f":"IF('Vstupni oblast dat2'!I14<>\"\",'Vstupni oblast dat2'!I14,\"\")","v":0},{"$f":"IF('Vstupni oblast dat2'!J14<>\"\",'Vstupni oblast dat2'!J14,\"\")","v":0},{"$f":"IF('Vstupni oblast dat2'!K14<>\"\",'Vstupni oblast dat2'!K14,\"\")","v":0},{"$f":"IF('Vstupni oblast dat2'!L14<>\"\",'Vstupni oblast dat2'!L14,\"\")","v":0},{"$f":"IF('Vstupni oblast dat2'!M14<>\"\",'Vstupni oblast dat2'!M14,\"\")","v":0},{"$f":"IF('Vstupni oblast dat2'!N14<>\"\",'Vstupni oblast dat2'!N14,\"\")","v":0},{"$f":"IF('Vstupni oblast dat2'!O14<>\"\",'Vstupni oblast dat2'!O14,\"\")","v":0},{"$f":"IF('Vstupni oblast dat2'!P14<>\"\",'Vstupni oblast dat2'!P14,\"\")","v":0},{"$f":"IF('Vstupni oblast dat2'!Q14<>\"\",'Vstupni oblast dat2'!Q14,\"\")","v":0}]
[null,null,null,null,7,null,{"$f":"IF('Vstupni oblast dat2'!G15<>\"\",'Vstupni oblast dat2'!G15,\"\")","v":0},{"$f":"IF('Vstupni oblast dat2'!H15<>\"\",'Vstupni oblast dat2'!H15,\"\")","v":0},{"$f":"IF('Vstupni oblast dat2'!I15<>\"\",'Vstupni oblast dat2'!I15,\"\")","v":0},{"$f":"IF('Vstupni oblast dat2'!J15<>\"\",'Vstupni oblast dat2'!J15,\"\")","v":0},{"$f":"IF('Vstupni oblast dat2'!K15<>\"\",'Vstupni oblast dat2'!K15,\"\")","v":0},{"$f":"IF('Vstupni oblast dat2'!L15<>\"\",'Vstupni oblast dat2'!L15,\"\")","v":0},{"$f":"IF('Vstupni oblast dat2'!M15<>\"\",'Vstupni oblast dat2'!M15,\"\")","v":0},{"$f":"IF('Vstupni oblast dat2'!N15<>\"\",'Vstupni oblast dat2'!N15,\"\")","v":0},{"$f":"IF('Vstupni oblast dat2'!O15<>\"\",'Vstupni oblast dat2'!O15,\"\")","v":0},{"$f":"IF('Vstupni oblast dat2'!P15<>\"\",'Vstupni oblast dat2'!P15,\"\")","v":0},{"$f":"IF('Vstupni oblast dat2'!Q15<>\"\",'Vstupni oblast dat2'!Q15,\"\")","v":0}]
[null,null,null,null,8,null,{"$f":"IF('Vstupni oblast dat2'!G16<>\"\",'Vstupni oblast dat2'!G16,\"\")","v":0},{"$f":"IF('Vstupni oblast dat2'!H16<>\"\",'Vstupni oblast dat2'!H16,\"\")","v":0},{"$f":"IF('Vstupni oblast dat2'!I16<>\"\",'Vstupni oblast dat2'!I16,\"\")","v":0},{"$f":"IF('Vstupni oblast dat2'!J16<>\"\",'Vstupni oblast dat2'!J16,\"\")","v":0},{"$f":"IF('Vstupni oblast dat2'!K16<>\"\",'Vstupni oblast dat2'!K16,\"\")","v":0},{"$f":"IF('Vstupni oblast dat2'!L16<>\"\",'Vstupni oblast dat2'!L16,\"\")","v":0},{"$f":"IF('Vstupni oblast dat2'!M16<>\"\",'Vstupni oblast dat2'!M16,\"\")","v":0},{"$f":"IF('Vstupni oblast dat2'!N16<>\"\",'Vstupni oblast dat2'!N16,\"\")","v":0},{"$f":"IF('Vstupni oblast dat2'!O16<>\"\",'Vstupni oblast dat2'!O16,\"\")","v":0},{"$f":"IF('Vstupni oblast dat2'!P16<>\"\",'Vstupni oblast dat2'!P16,\"\")","v":0},{"$f":"IF('Vstupni oblast dat2'!Q16<>\"\",'Vstupni oblast dat2'!Q16,\"\")","v":0}]
[null,null,null,null,9,null,{"$f":"IF('Vstupni oblast dat2'!G17<>\"\",'Vstupni oblast dat2'!G17,\"\")","v":0},{"$f":"IF('Vstupni oblast dat2'!H17<>\"\",'Vstupni oblast dat2'!H17,\"\")","v":0},{"$f":"IF('Vstupni oblast dat2'!I17<>\"\",'Vstupni oblast dat2'!I17,\"\")","v":0},{"$f":"IF('Vstupni oblast dat2'!J17<>\"\",'Vstupni oblast dat2'!J17,\"\")","v":0},{"$f":"IF('Vstupni oblast dat2'!K17<>\"\",'Vstupni oblast dat2'!K17,\"\")","v":0},{"$f":"IF('Vstupni oblast dat2'!L17<>\"\",'Vstupni oblast dat2'!L17,\"\")","v":0},{"$f":"IF('Vstupni oblast dat2'!M17<>\"\",'Vstupni oblast dat2'!M17,\"\")","v":0},{"$f":"IF('Vstupni oblast dat2'!N17<>\"\",'Vstupni oblast dat2'!N17,\"\")","v":0},{"$f":"IF('Vstupni oblast dat2'!O17<>\"\",'Vstupni oblast dat2'!O17,\"\")","v":0},{"$f":"IF('Vstupni oblast dat2'!P17<>\"\",'Vstupni oblast dat2'!P17,\"\")","v":0},{"$f":"IF('Vstupni oblast dat2'!Q17<>\"\",'Vstupni oblast dat2'!Q17,\"\")","v":0}]
[null,null,null,null,10,null,{"$f":"IF('Vstupni oblast dat2'!G18<>\"\",'Vstupni oblast dat2'!G18,\"\")","v":0},{"$f":"IF('Vstupni oblast dat2'!H18<>\"\",'Vstupni oblast dat2'!H18,\"\")","v":0},{"$f":"IF('Vstupni oblast dat2'!I18<>\"\",'Vstupni oblast dat2'!I18,\"\")","v":0},{"$f":"IF('Vstupni oblast dat2'!J18<>\"\",'Vstupni oblast dat2'!J18,\"\")","v":0},{"$f":"IF('Vstupni oblast dat2'!K18<>\"\",'Vstupni oblast dat2'!K18,\"\")","v":0},{"$f":"IF('Vstupni oblast dat2'!L18<>\"\",'Vstupni oblast dat2'!L18,\"\")","v":0},{"$f":"IF('Vstupni oblast dat2'!M18<>\"\",'Vstupni oblast dat2'!M18,\"\")","v":0},{"$f":"IF('Vstupni oblast dat2'!N18<>\"\",'Vstupni oblast dat2'!N18,\"\")","v":0},{"$f":"IF('Vstupni oblast dat2'!O18<>\"\",'Vstupni oblast dat2'!O18,\"\")","v":0},{"$f":"IF('Vstupni oblast dat2'!P18<>\"\",'Vstupni oblast dat2'!P18,\"\")","v":0},{"$f":"IF('Vstupni oblast dat2'!Q18<>\"\",'Vstupni oblast dat2'!Q18,\"\")","v":0}]
[null,null,null,null,11,null,{"$f":"IF('Vstupni oblast dat2'!G19<>\"\",'Vstupni oblast dat2'!G19,\"\")","v":0},{"$f":"IF('Vstupni oblast dat2'!H19<>\"\",'Vstupni oblast dat2'!H19,\"\")","v":0},{"$f":"IF('Vstupni oblast dat2'!I19<>\"\",'Vstupni oblast dat2'!I19,\"\")","v":0},{"$f":"IF('Vstupni oblast dat2'!J19<>\"\",'Vstupni oblast dat2'!J19,\"\")","v":0},{"$f":"IF('Vstupni oblast dat2'!K19<>\"\",'Vstupni oblast dat2'!K19,\"\")","v":0},{"$f":"IF('Vstupni oblast dat2'!L19<>\"\",'Vstupni oblast dat2'!L19,\"\")","v":0},{"$f":"IF('Vstupni oblast dat2'!M19<>\"\",'Vstupni oblast dat2'!M19,\"\")","v":0},{"$f":"IF('Vstupni oblast dat2'!N19<>\"\",'Vstupni oblast dat2'!N19,\"\")","v":0},{"$f":"IF('Vstupni oblast dat2'!O19<>\"\",'Vstupni oblast dat2'!O19,\"\")","v":0},{"$f":"IF('Vstupni oblast dat2'!P19<>\"\",'Vstupni oblast dat2'!P19,\"\")","v":0},{"$f":"IF('Vstupni oblast dat2'!Q19<>\"\",'Vstupni oblast dat2'!Q19,\"\")","v":0}]
[null,null,null,null,12,null,{"$f":"IF('Vstupni oblast dat2'!G20<>\"\",'Vstupni oblast dat2'!G20,\"\")","v":0},{"$f":"IF('Vstupni oblast dat2'!H20<>\"\",'Vstupni oblast dat2'!H20,\"\")","v":0},{"$f":"IF('Vstupni oblast dat2'!I20<>\"\",'Vstupni oblast dat2'!I20,\"\")","v":0},{"$f":"IF('Vstupni oblast dat2'!J20<>\"\",'Vstupni oblast dat2'!J20,\"\")","v":0},{"$f":"IF('Vstupni oblast dat2'!K20<>\"\",'Vstupni oblast dat2'!K20,\"\")","v":0},{"$f":"IF('Vstupni oblast dat2'!L20<>\"\",'Vstupni oblast dat2'!L20,\"\")","v":0},{"$f":"IF('Vstupni oblast dat2'!M20<>\"\",'Vstupni oblast dat2'!M20,\"\")","v":0},{"$f":"IF('Vstupni oblast dat2'!N20<>\"\",'Vstupni oblast dat2'!N20,\"\")","v":0},{"$f":"IF('Vstupni oblast dat2'!O20<>\"\",'Vstupni oblast dat2'!O20,\"\")","v":0},{"$f":"IF('Vstupni oblast dat2'!P20<>\"\",'Vstupni oblast dat2'!P20,\"\")","v":0},{"$f":"IF('Vstupni oblast dat2'!Q20<>\"\",'Vstupni oblast dat2'!Q20,\"\")","v":0}]
[null,null,null,null,13,null,{"$f":"IF('Vstupni oblast dat2'!G21<>\"\",'Vstupni oblast dat2'!G21,\"\")","v":0},{"$f":"IF('Vstupni oblast dat2'!H21<>\"\",'Vstupni oblast dat2'!H21,\"\")","v":0},{"$f":"IF('Vstupni oblast dat2'!I21<>\"\",'Vstupni oblast dat2'!I21,\"\")","v":0},{"$f":"IF('Vstupni oblast dat2'!J21<>\"\",'Vstupni oblast dat2'!J21,\"\")","v":0},{"$f":"IF('Vstupni oblast dat2'!K21<>\"\",'Vstupni oblast dat2'!K21,\"\")","v":0},{"$f":"IF('Vstupni oblast dat2'!L21<>\"\",'Vstupni oblast dat2'!L21,\"\")","v":0},{"$f":"IF('Vstupni oblast dat2'!M21<>\"\",'Vstupni oblast dat2'!M21,\"\")","v":0},{"$f":"IF('Vstupni oblast dat2'!N21<>\"\",'Vstupni oblast dat2'!N21,\"\")","v":0},{"$f":"IF('Vstupni oblast dat2'!O21<>\"\",'Vstupni oblast dat2'!O21,\"\")","v":0},{"$f":"IF('Vstupni oblast dat2'!P21<>\"\",'Vstupni oblast dat2'!P21,\"\")","v":0},{"$f":"IF('Vstupni oblast dat2'!Q21<>\"\",'Vstupni oblast dat2'!Q21,\"\")","v":0}]
[null,null,null,null,14,null,{"$f":"IF('Vstupni oblast dat2'!G22<>\"\",'Vstupni oblast dat2'!G22,\"\")","v":0},{"$f":"IF('Vstupni oblast dat2'!H22<>\"\",'Vstupni oblast dat2'!H22,\"\")","v":0},{"$f":"IF('Vstupni oblast dat2'!I22<>\"\",'Vstupni oblast dat2'!I22,\"\")","v":0},{"$f":"IF('Vstupni oblast dat2'!J22<>\"\",'Vstupni oblast dat2'!J22,\"\")","v":0},{"$f":"IF('Vstupni oblast dat2'!K22<>\"\",'Vstupni oblast dat2'!K22,\"\")","v":0},{"$f":"IF('Vstupni oblast dat2'!L22<>\"\",'Vstupni oblast dat2'!L22,\"\")","v":0},{"$f":"IF('Vstupni oblast dat2'!M22<>\"\",'Vstupni oblast dat2'!M22,\"\")","v":0},{"$f":"IF('Vstupni oblast dat2'!N22<>\"\",'Vstupni oblast dat2'!N22,\"\")","v":0},{"$f":"IF('Vstupni oblast dat2'!O22<>\"\",'Vstupni oblast dat2'!O22,\"\")","v":0},{"$f":"IF('Vstupni oblast dat2'!P22<>\"\",'Vstupni oblast dat2'!P22,\"\")","v":0},{"$f":"IF('Vstupni oblast dat2'!Q22<>\"\",'Vstupni oblast dat2'!Q22,\"\")","v":0}]
[null,null,null,null,15,null,{"$f":"IF('Vstupni oblast dat2'!G23<>\"\",'Vstupni oblast dat2'!G23,\"\")","v":0},{"$f":"IF('Vstupni oblast dat2'!H23<>\"\",'Vstupni oblast dat2'!H23,\"\")","v":0},{"$f":"IF('Vstupni oblast dat2'!I23<>\"\",'Vstupni oblast dat2'!I23,\"\")","v":0},{"$f":"IF('Vstupni oblast dat2'!J23<>\"\",'Vstupni oblast dat2'!J23,\"\")","v":0},{"$f":"IF('Vstupni oblast dat2'!K23<>\"\",'Vstupni oblast dat2'!K23,\"\")","v":0},{"$f":"IF('Vstupni oblast dat2'!L23<>\"\",'Vstupni oblast dat2'!L23,\"\")","v":0},{"$f":"IF('Vstupni oblast dat2'!M23<>\"\",'Vstupni oblast dat2'!M23,\"\")","v":0},{"$f":"IF('Vstupni oblast dat2'!N23<>\"\",'Vstupni oblast dat2'!N23,\"\")","v":0},{"$f":"IF('Vstupni oblast dat2'!O23<>\"\",'Vstupni oblast dat2'!O23,\"\")","v":0},{"$f":"IF('Vstupni oblast dat2'!P23<>\"\",'Vstupni oblast dat2'!P23,\"\")","v":0},{"$f":"IF('Vstupni oblast dat2'!Q23<>\"\",'Vstupni oblast dat2'!Q23,\"\")","v":0}]
[null,null,null,null,16,null,{"$f":"IF('Vstupni oblast dat2'!G24<>\"\",'Vstupni oblast dat2'!G24,\"\")","v":0},{"$f":"IF('Vstupni oblast dat2'!H24<>\"\",'Vstupni oblast dat2'!H24,\"\")","v":0},{"$f":"IF('Vstupni oblast dat2'!I24<>\"\",'Vstupni oblast dat2'!I24,\"\")","v":0},{"$f":"IF('Vstupni oblast dat2'!J24<>\"\",'Vstupni oblast dat2'!J24,\"\")","v":0},{"$f":"IF('Vstupni oblast dat2'!K24<>\"\",'Vstupni oblast dat2'!K24,\"\")","v":0},{"$f":"IF('Vstupni oblast dat2'!L24<>\"\",'Vstupni oblast dat2'!L24,\"\")","v":0},{"$f":"IF('Vstupni oblast dat2'!M24<>\"\",'Vstupni oblast dat2'!M24,\"\")","v":0},{"$f":"IF('Vstupni oblast dat2'!N24<>\"\",'Vstupni oblast dat2'!N24,\"\")","v":0},{"$f":"IF('Vstupni oblast dat2'!O24<>\"\",'Vstupni oblast dat2'!O24,\"\")","v":0},{"$f":"IF('Vstupni oblast dat2'!P24<>\"\",'Vstupni oblast dat2'!P24,\"\")","v":0},{"$f":"IF('Vstupni oblast dat2'!Q24<>\"\",'Vstupni oblast dat2'!Q24,\"\")","v":0}]
[null,null,null,null,17,null,{"$f":"IF('Vstupni oblast dat2'!G25<>\"\",'Vstupni oblast dat2'!G25,\"\")","v":0},{"$f":"IF('Vstupni oblast dat2'!H25<>\"\",'Vstupni oblast dat2'!H25,\"\")","v":0},{"$f":"IF('Vstupni oblast dat2'!I25<>\"\",'Vstupni oblast dat2'!I25,\"\")","v":0},{"$f":"IF('Vstupni oblast dat2'!J25<>\"\",'Vstupni oblast dat2'!J25,\"\")","v":0},{"$f":"IF('Vstupni oblast dat2'!K25<>\"\",'Vstupni oblast dat2'!K25,\"\")","v":0},{"$f":"IF('Vstupni oblast dat2'!L25<>\"\",'Vstupni oblast dat2'!L25,\"\")","v":0},{"$f":"IF('Vstupni oblast dat2'!M25<>\"\",'Vstupni oblast dat2'!M25,\"\")","v":0},{"$f":"IF('Vstupni oblast dat2'!N25<>\"\",'Vstupni oblast dat2'!N25,\"\")","v":0},{"$f":"IF('Vstupni oblast dat2'!O25<>\"\",'Vstupni oblast dat2'!O25,\"\")","v":0},{"$f":"IF('Vstupni oblast dat2'!P25<>\"\",'Vstupni oblast dat2'!P25,\"\")","v":0},{"$f":"IF('Vstupni oblast dat2'!Q25<>\"\",'Vstupni oblast dat2'!Q25,\"\")","v":0}]
[null,null,null,null,18,null,{"$f":"IF('Vstupni oblast dat2'!G26<>\"\",'Vstupni oblast dat2'!G26,\"\")","v":0},{"$f":"IF('Vstupni oblast dat2'!H26<>\"\",'Vstupni oblast dat2'!H26,\"\")","v":0},{"$f":"IF('Vstupni oblast dat2'!I26<>\"\",'Vstupni oblast dat2'!I26,\"\")","v":0},{"$f":"IF('Vstupni oblast dat2'!J26<>\"\",'Vstupni oblast dat2'!J26,\"\")","v":0},{"$f":"IF('Vstupni oblast dat2'!K26<>\"\",'Vstupni oblast dat2'!K26,\"\")","v":0},{"$f":"IF('Vstupni oblast dat2'!L26<>\"\",'Vstupni oblast dat2'!L26,\"\")","v":0},{"$f":"IF('Vstupni oblast dat2'!M26<>\"\",'Vstupni oblast dat2'!M26,\"\")","v":0},{"$f":"IF('Vstupni oblast dat2'!N26<>\"\",'Vstupni oblast dat2'!N26,\"\")","v":0},{"$f":"IF('Vstupni oblast dat2'!O26<>\"\",'Vstupni oblast dat2'!O26,\"\")","v":0},{"$f":"IF('Vstupni oblast dat2'!P26<>\"\",'Vstupni oblast dat2'!P26,\"\")","v":0},{"$f":"IF('Vstupni oblast dat2'!Q26<>\"\",'Vstupni oblast dat2'!Q26,\"\")","v":0}]
[null,null,null,null,19,null,{"$f":"IF('Vstupni oblast dat2'!G27<>\"\",'Vstupni oblast dat2'!G27,\"\")","v":0},{"$f":"IF('Vstupni oblast dat2'!H27<>\"\",'Vstupni oblast dat2'!H27,\"\")","v":0},{"$f":"IF('Vstupni oblast dat2'!I27<>\"\",'Vstupni oblast dat2'!I27,\"\")","v":0},{"$f":"IF('Vstupni oblast dat2'!J27<>\"\",'Vstupni oblast dat2'!J27,\"\")","v":0},{"$f":"IF('Vstupni oblast dat2'!K27<>\"\",'Vstupni oblast dat2'!K27,\"\")","v":0},{"$f":"IF('Vstupni oblast dat2'!L27<>\"\",'Vstupni oblast dat2'!L27,\"\")","v":0},{"$f":"IF('Vstupni oblast dat2'!M27<>\"\",'Vstupni oblast dat2'!M27,\"\")","v":0},{"$f":"IF('Vstupni oblast dat2'!N27<>\"\",'Vstupni oblast dat2'!N27,\"\")","v":0},{"$f":"IF('Vstupni oblast dat2'!O27<>\"\",'Vstupni oblast dat2'!O27,\"\")","v":0},{"$f":"IF('Vstupni oblast dat2'!P27<>\"\",'Vstupni oblast dat2'!P27,\"\")","v":0},{"$f":"IF('Vstupni oblast dat2'!Q27<>\"\",'Vstupni oblast dat2'!Q27,\"\")","v":0}]
[null,null,null,null,20,null,{"$f":"IF('Vstupni oblast dat2'!G28<>\"\",'Vstupni oblast dat2'!G28,\"\")","v":0},{"$f":"IF('Vstupni oblast dat2'!H28<>\"\",'Vstupni oblast dat2'!H28,\"\")","v":0},{"$f":"IF('Vstupni oblast dat2'!I28<>\"\",'Vstupni oblast dat2'!I28,\"\")","v":0},{"$f":"IF('Vstupni oblast dat2'!J28<>\"\",'Vstupni oblast dat2'!J28,\"\")","v":0},{"$f":"IF('Vstupni oblast dat2'!K28<>\"\",'Vstupni oblast dat2'!K28,\"\")","v":0},{"$f":"IF('Vstupni oblast dat2'!L28<>\"\",'Vstupni oblast dat2'!L28,\"\")","v":0},{"$f":"IF('Vstupni oblast dat2'!M28<>\"\",'Vstupni oblast dat2'!M28,\"\")","v":0},{"$f":"IF('Vstupni oblast dat2'!N28<>\"\",'Vstupni oblast dat2'!N28,\"\")","v":0},{"$f":"IF('Vstupni oblast dat2'!O28<>\"\",'Vstupni oblast dat2'!O28,\"\")","v":0},{"$f":"IF('Vstupni oblast dat2'!P28<>\"\",'Vstupni oblast dat2'!P28,\"\")","v":0},{"$f":"IF('Vstupni oblast dat2'!Q28<>\"\",'Vstupni oblast dat2'!Q28,\"\")","v":0}]
[null,null,null,null,21,null,{"$f":"IF('Vstupni oblast dat2'!G29<>\"\",'Vstupni oblast dat2'!G29,\"\")","v":0},{"$f":"IF('Vstupni oblast dat2'!H29<>\"\",'Vstupni oblast dat2'!H29,\"\")","v":0},{"$f":"IF('Vstupni oblast dat2'!I29<>\"\",'Vstupni oblast dat2'!I29,\"\")","v":0},{"$f":"IF('Vstupni oblast dat2'!J29<>\"\",'Vstupni oblast dat2'!J29,\"\")","v":0},{"$f":"IF('Vstupni oblast dat2'!K29<>\"\",'Vstupni oblast dat2'!K29,\"\")","v":0},{"$f":"IF('Vstupni oblast dat2'!L29<>\"\",'Vstupni oblast dat2'!L29,\"\")","v":0},{"$f":"IF('Vstupni oblast dat2'!M29<>\"\",'Vstupni oblast dat2'!M29,\"\")","v":0},{"$f":"IF('Vstupni oblast dat2'!N29<>\"\",'Vstupni oblast dat2'!N29,\"\")","v":0},{"$f":"IF('Vstupni oblast dat2'!O29<>\"\",'Vstupni oblast dat2'!O29,\"\")","v":0},{"$f":"IF('Vstupni oblast dat2'!P29<>\"\",'Vstupni oblast dat2'!P29,\"\")","v":0},{"$f":"IF('Vstupni oblast dat2'!Q29<>\"\",'Vstupni oblast dat2'!Q29,\"\")","v":0}]
[null,null,null,null,22,null,{"$f":"IF('Vstupni oblast dat2'!G30<>\"\",'Vstupni oblast dat2'!G30,\"\")","v":0},{"$f":"IF('Vstupni oblast dat2'!H30<>\"\",'Vstupni oblast dat2'!H30,\"\")","v":0},{"$f":"IF('Vstupni oblast dat2'!I30<>\"\",'Vstupni oblast dat2'!I30,\"\")","v":0},{"$f":"IF('Vstupni oblast dat2'!J30<>\"\",'Vstupni oblast dat2'!J30,\"\")","v":0},{"$f":"IF('Vstupni oblast dat2'!K30<>\"\",'Vstupni oblast dat2'!K30,\"\")","v":0},{"$f":"IF('Vstupni oblast dat2'!L30<>\"\",'Vstupni oblast dat2'!L30,\"\")","v":0},{"$f":"IF('Vstupni oblast dat2'!M30<>\"\",'Vstupni oblast dat2'!M30,\"\")","v":0},{"$f":"IF('Vstupni oblast dat2'!N30<>\"\",'Vstupni oblast dat2'!N30,\"\")","v":0},{"$f":"IF('Vstupni oblast dat2'!O30<>\"\",'Vstupni oblast dat2'!O30,\"\")","v":0},{"$f":"IF('Vstupni oblast dat2'!P30<>\"\",'Vstupni oblast dat2'!P30,\"\")","v":0},{"$f":"IF('Vstupni oblast dat2'!Q30<>\"\",'Vstupni oblast dat2'!Q30,\"\")","v":0}]
[null,null,null,null,23,null,{"$f":"IF('Vstupni oblast dat2'!G31<>\"\",'Vstupni oblast dat2'!G31,\"\")","v":0},{"$f":"IF('Vstupni oblast dat2'!H31<>\"\",'Vstupni oblast dat2'!H31,\"\")","v":0},{"$f":"IF('Vstupni oblast dat2'!I31<>\"\",'Vstupni oblast dat2'!I31,\"\")","v":0},{"$f":"IF('Vstupni oblast dat2'!J31<>\"\",'Vstupni oblast dat2'!J31,\"\")","v":0},{"$f":"IF('Vstupni oblast dat2'!K31<>\"\",'Vstupni oblast dat2'!K31,\"\")","v":0},{"$f":"IF('Vstupni oblast dat2'!L31<>\"\",'Vstupni oblast dat2'!L31,\"\")","v":0},{"$f":"IF('Vstupni oblast dat2'!M31<>\"\",'Vstupni oblast dat2'!M31,\"\")","v":0},{"$f":"IF('Vstupni oblast dat2'!N31<>\"\",'Vstupni oblast dat2'!N31,\"\")","v":0},{"$f":"IF('Vstupni oblast dat2'!O31<>\"\",'Vstupni oblast dat2'!O31,\"\")","v":0},{"$f":"IF('Vstupni oblast dat2'!P31<>\"\",'Vstupni oblast dat2'!P31,\"\")","v":0},{"$f":"IF('Vstupni oblast dat2'!Q31<>\"\",'Vstupni oblast dat2'!Q31,\"\")","v":0}]
[null,null,null,null,24,null,{"$f":"IF('Vstupni oblast dat2'!G32<>\"\",'Vstupni oblast dat2'!G32,\"\")","v":0},{"$f":"IF('Vstupni oblast dat2'!H32<>\"\",'Vstupni oblast dat2'!H32,\"\")","v":0},{"$f":"IF('Vstupni oblast dat2'!I32<>\"\",'Vstupni oblast dat2'!I32,\"\")","v":0},{"$f":"IF('Vstupni oblast dat2'!J32<>\"\",'Vstupni oblast dat2'!J32,\"\")","v":0},{"$f":"IF('Vstupni oblast dat2'!K32<>\"\",'Vstupni oblast dat2'!K32,\"\")","v":0},{"$f":"IF('Vstupni oblast dat2'!L32<>\"\",'Vstupni oblast dat2'!L32,\"\")","v":0},{"$f":"IF('Vstupni oblast dat2'!M32<>\"\",'Vstupni oblast dat2'!M32,\"\")","v":0},{"$f":"IF('Vstupni oblast dat2'!N32<>\"\",'Vstupni oblast dat2'!N32,\"\")","v":0},{"$f":"IF('Vstupni oblast dat2'!O32<>\"\",'Vstupni oblast dat2'!O32,\"\")","v":0},{"$f":"IF('Vstupni oblast dat2'!P32<>\"\",'Vstupni oblast dat2'!P32,\"\")","v":0},{"$f":"IF('Vstupni oblast dat2'!Q32<>\"\",'Vstupni oblast dat2'!Q32,\"\")","v":0}]
[null,null,null,null,25,null,{"$f":"IF('Vstupni oblast dat2'!G33<>\"\",'Vstupni oblast dat2'!G33,\"\")","v":0},{"$f":"IF('Vstupni oblast dat2'!H33<>\"\",'Vstupni oblast dat2'!H33,\"\")","v":0},{"$f":"IF('Vstupni oblast dat2'!I33<>\"\",'Vstupni oblast dat2'!I33,\"\")","v":0},{"$f":"IF('Vstupni oblast dat2'!J33<>\"\",'Vstupni oblast dat2'!J33,\"\")","v":0},{"$f":"IF('Vstupni oblast dat2'!K33<>\"\",'Vstupni oblast dat2'!K33,\"\")","v":0},{"$f":"IF('Vstupni oblast dat2'!L33<>\"\",'Vstupni oblast dat2'!L33,\"\")","v":0},{"$f":"IF('Vstupni oblast dat2'!M33<>\"\",'Vstupni oblast dat2'!M33,\"\")","v":0},{"$f":"IF('Vstupni oblast dat2'!N33<>\"\",'Vstupni oblast dat2'!N33,\"\")","v":0},{"$f":"IF('Vstupni oblast dat2'!O33<>\"\",'Vstupni oblast dat2'!O33,\"\")","v":0},{"$f":"IF('Vstupni oblast dat2'!P33<>\"\",'Vstupni oblast dat2'!P33,\"\")","v":0},{"$f":"IF('Vstupni oblast dat2'!Q33<>\"\",'Vstupni oblast dat2'!Q33,\"\")","v":0}]
[null,null,null,null,26,null,{"$f":"IF('Vstupni oblast dat2'!G34<>\"\",'Vstupni oblast dat2'!G34,\"\")","v":0},{"$f":"IF('Vstupni oblast dat2'!H34<>\"\",'Vstupni oblast dat2'!H34,\"\")","v":0},{"$f":"IF('Vstupni oblast dat2'!I34<>\"\",'Vstupni oblast dat2'!I34,\"\")","v":0},{"$f":"IF('Vstupni oblast dat2'!J34<>\"\",'Vstupni oblast dat2'!J34,\"\")","v":0},{"$f":"IF('Vstupni oblast dat2'!K34<>\"\",'Vstupni oblast dat2'!K34,\"\")","v":0},{"$f":"IF('Vstupni oblast dat2'!L34<>\"\",'Vstupni oblast dat2'!L34,\"\")","v":0},{"$f":"IF('Vstupni oblast dat2'!M34<>\"\",'Vstupni oblast dat2'!M34,\"\")","v":0},{"$f":"IF('Vstupni oblast dat2'!N34<>\"\",'Vstupni oblast dat2'!N34,\"\")","v":0},{"$f":"IF('Vstupni oblast dat2'!O34<>\"\",'Vstupni oblast dat2'!O34,\"\")","v":0},{"$f":"IF('Vstupni oblast dat2'!P34<>\"\",'Vstupni oblast dat2'!P34,\"\")","v":0},{"$f":"IF('Vstupni oblast dat2'!Q34<>\"\",'Vstupni oblast dat2'!Q34,\"\")","v":0}]
[null,null,null,null,27,null,{"$f":"IF('Vstupni oblast dat2'!G35<>\"\",'Vstupni oblast dat2'!G35,\"\")","v":0},{"$f":"IF('Vstupni oblast dat2'!H35<>\"\",'Vstupni oblast dat2'!H35,\"\")","v":0},{"$f":"IF('Vstupni oblast dat2'!I35<>\"\",'Vstupni oblast dat2'!I35,\"\")","v":0},{"$f":"IF('Vstupni oblast dat2'!J35<>\"\",'Vstupni oblast dat2'!J35,\"\")","v":0},{"$f":"IF('Vstupni oblast dat2'!K35<>\"\",'Vstupni oblast dat2'!K35,\"\")","v":0},{"$f":"IF('Vstupni oblast dat2'!L35<>\"\",'Vstupni oblast dat2'!L35,\"\")","v":0},{"$f":"IF('Vstupni oblast dat2'!M35<>\"\",'Vstupni oblast dat2'!M35,\"\")","v":0},{"$f":"IF('Vstupni oblast dat2'!N35<>\"\",'Vstupni oblast dat2'!N35,\"\")","v":0},{"$f":"IF('Vstupni oblast dat2'!O35<>\"\",'Vstupni oblast dat2'!O35,\"\")","v":0},{"$f":"IF('Vstupni oblast dat2'!P35<>\"\",'Vstupni oblast dat2'!P35,\"\")","v":0},{"$f":"IF('Vstupni oblast dat2'!Q35<>\"\",'Vstupni oblast dat2'!Q35,\"\")","v":0}]
[null,null,null,null,28,null,{"$f":"IF('Vstupni oblast dat2'!G36<>\"\",'Vstupni oblast dat2'!G36,\"\")","v":0},{"$f":"IF('Vstupni oblast dat2'!H36<>\"\",'Vstupni oblast dat2'!H36,\"\")","v":0},{"$f":"IF('Vstupni oblast dat2'!I36<>\"\",'Vstupni oblast dat2'!I36,\"\")","v":0},{"$f":"IF('Vstupni oblast dat2'!J36<>\"\",'Vstupni oblast dat2'!J36,\"\")","v":0},{"$f":"IF('Vstupni oblast dat2'!K36<>\"\",'Vstupni oblast dat2'!K36,\"\")","v":0},{"$f":"IF('Vstupni oblast dat2'!L36<>\"\",'Vstupni oblast dat2'!L36,\"\")","v":0},{"$f":"IF('Vstupni oblast dat2'!M36<>\"\",'Vstupni oblast dat2'!M36,\"\")","v":0},{"$f":"IF('Vstupni oblast dat2'!N36<>\"\",'Vstupni oblast dat2'!N36,\"\")","v":0},{"$f":"IF('Vstupni oblast dat2'!O36<>\"\",'Vstupni oblast dat2'!O36,\"\")","v":0},{"$f":"IF('Vstupni oblast dat2'!P36<>\"\",'Vstupni oblast dat2'!P36,\"\")","v":0},{"$f":"IF('Vstupni oblast dat2'!Q36<>\"\",'Vstupni oblast dat2'!Q36,\"\")","v":0}]
[null,null,null,null,29,null,{"$f":"IF('Vstupni oblast dat2'!G37<>\"\",'Vstupni oblast dat2'!G37,\"\")","v":0},{"$f":"IF('Vstupni oblast dat2'!H37<>\"\",'Vstupni oblast dat2'!H37,\"\")","v":0},{"$f":"IF('Vstupni oblast dat2'!I37<>\"\",'Vstupni oblast dat2'!I37,\"\")","v":0},{"$f":"IF('Vstupni oblast dat2'!J37<>\"\",'Vstupni oblast dat2'!J37,\"\")","v":0},{"$f":"IF('Vstupni oblast dat2'!K37<>\"\",'Vstupni oblast dat2'!K37,\"\")","v":0},{"$f":"IF('Vstupni oblast dat2'!L37<>\"\",'Vstupni oblast dat2'!L37,\"\")","v":0},{"$f":"IF('Vstupni oblast dat2'!M37<>\"\",'Vstupni oblast dat2'!M37,\"\")","v":0},{"$f":"IF('Vstupni oblast dat2'!N37<>\"\",'Vstupni oblast dat2'!N37,\"\")","v":0},{"$f":"IF('Vstupni oblast dat2'!O37<>\"\",'Vstupni oblast dat2'!O37,\"\")","v":0},{"$f":"IF('Vstupni oblast dat2'!P37<>\"\",'Vstupni oblast dat2'!P37,\"\")","v":0},{"$f":"IF('Vstupni oblast dat2'!Q37<>\"\",'Vstupni oblast dat2'!Q37,\"\")","v":0}]
[null,null,null,null,30,null,{"$f":"IF('Vstupni oblast dat2'!G38<>\"\",'Vstupni oblast dat2'!G38,\"\")","v":0},{"$f":"IF('Vstupni oblast dat2'!H38<>\"\",'Vstupni oblast dat2'!H38,\"\")","v":0},{"$f":"IF('Vstupni oblast dat2'!I38<>\"\",'Vstupni oblast dat2'!I38,\"\")","v":0},{"$f":"IF('Vstupni oblast dat2'!J38<>\"\",'Vstupni oblast dat2'!J38,\"\")","v":0},{"$f":"IF('Vstupni oblast dat2'!K38<>\"\",'Vstupni oblast dat2'!K38,\"\")","v":0},{"$f":"IF('Vstupni oblast dat2'!L38<>\"\",'Vstupni oblast dat2'!L38,\"\")","v":0},{"$f":"IF('Vstupni oblast dat2'!M38<>\"\",'Vstupni oblast dat2'!M38,\"\")","v":0},{"$f":"IF('Vstupni oblast dat2'!N38<>\"\",'Vstupni oblast dat2'!N38,\"\")","v":0},{"$f":"IF('Vstupni oblast dat2'!O38<>\"\",'Vstupni oblast dat2'!O38,\"\")","v":0},{"$f":"IF('Vstupni oblast dat2'!P38<>\"\",'Vstupni oblast dat2'!P38,\"\")","v":0},{"$f":"IF('Vstupni oblast dat2'!Q38<>\"\",'Vstupni oblast dat2'!Q38,\"\")","v":0}]

{"sheet":"Vstupni oblast dat2","index":8,"n_rows":38,"n_cols":19,"rows_kept":38,"cut":false,"hidden":true,"merged":[[70,34,70,35],[71,34,71,35],[72,34,72,35],[73,34,73,35],[74,34,74,35],[75,34,75,35],[64,34,64,35],[65,34,65,35],[66,34,66,35],[67,34,67,35],[68,34,68,35],[69,34,69,35],[58,34,58,35],[59,34,59,35],[60,34,60,35],[61,34,61,35],[62,34,62,35],[63,34,63,35],[52,34,52,35],[53,34,53,35],[54,34,54,35],[55,34,55,35],[56,34,56,35],[57,34,57,35],[46,34,46,35],[47,34,47,35],[48,34,48,35],[49,34,49,35],[50,34,50,35],[51,34,51,35],[40,34,44,35],[41,36,42,36],[41,37,42,37],[43,36,44,36],[43,37,44,37],[45,34,45,35],[34,4,34,5],[35,4,35,5],[35,34,35,41],[36,4,36,5],[37,4,37,5],[38,34,38,36],[30,4,30,5],[31,4,31,5],[31,34,31,36],[32,4,32,5],[32,34,32,41],[33,4,33,5],[33,34,33,36],[33,40,33,41],[27,4,27,5],[27,34,27,39],[27,40,27,41],[28,4,28,5],[28,34,28,41],[29,4,29,5],[29,34,29,41],[23,4,23,5],[24,4,24,5],[24,34,24,41],[25,4,25,5],[25,34,25,41],[26,4,26,5],[26,34,26,36],[26,40,26,41],[19,4,19,5],[20,4,20,5],[20,34,20,36],[21,4,21,5],[21,34,21,36],[22,4,22,5],[15,4,15,5],[15,34,15,35],[16,4,16,5],[16,34,16,35],[17,4,17,5],[18,4,18,5],[12,4,12,5],[12,34,12,39],[12,40,12,41],[13,4,13,5],[13,34,13,41],[14,4,14,5],[9,78,9,80],[10,4,10,5],[10,34,10,41],[11,4,11,5],[11,34,11,39],[11,40,11,41],[8,4,8,5],[9,4,9,5],[9,34,9,41],[9,70,9,71],[9,74,9,75],[6,10,7,10],[6,11,7,11],[6,12,7,12],[6,13,7,13],[6,14,7,14],[6,15,7,15],[4,11,5,11],[4,12,5,12],[4,13,5,13],[4,14,5,14],[4,15,5,15],[4,16,5,16],[3,4,7,5],[4,6,5,6],[4,7,5,7],[4,8,5,8],[4,9,5,9],[4,10,5,10],[6,6,7,6],[6,7,7,7],[6,8,7,8],[6,9,7,9],[6,16,7,16]]}
[null,null,null,"počet","%","kus","počet",null,null,null,null,null,null,null,null,null,null,null,{"$f":"A4*A5","v":{"$error":"#VALUE!"}}]
[]
[]
[{"$f":"'Vstupni oblast dat'!A4","v":"jednotky"},null,null,null,"n",null,"yi","x1i","x2i","x3i","x4i","x5i","x6i","x7i","x8i","x9i","x10i"]
[{"$f":"'Vstupni oblast dat'!A5","v":"jednotky"},null,null,null,null,null,{"$f":"'Vstupni oblast dat'!G5:G6","v":"Závisle proměnná"},{"$f":"'Vstupni oblast dat'!H5:H6","v":"1.regresor"},{"$f":"'Vstupni oblast dat'!I5:I6","v":"2.regresor"},{"$f":"'Vstupni oblast dat'!J5:J6","v":"3.regresor"},{"$f":"'Vstupni oblast dat'!K5:K6","v":"4.regresor"},{"$f":"'Vstupni oblast dat'!L5:L6","v":"5.regresor"},{"$f":"'Vstupni oblast dat'!M5:M6","v":"6.regresor"},{"$f":"'Vstupni oblast dat'!N5:N6","v":"7.regresor"},{"$f":"'Vstupni oblast dat'!O5:O6","v":"8.regresor"},{"$f":"'Vstupni oblast dat'!P5:P6","v":"9.regresor"},{"$f":"'Vstupni oblast dat'!Q5:Q6","v":"10.regresor"}]
[{"$f":"'Vstupni oblast dat'!A6","v":"jednotky"}]
[{"$f":"'Vstupni oblast dat'!A7","v":"jednotky"},null,null,null,null,null,{"$f":"'Vstupni oblast dat'!G7:G8","v":"[ jednotky ]"},{"$f":"'Vstupni oblast dat'!H7:H8","v":"[ jednotky ]"},{"$f":"'Vstupni oblast dat'!I7:I8","v":"[ jednotky ]"},{"$f":"'Vstupni oblast dat'!J7:J8","v":"[ jednotky ]"},{"$f":"'Vstupni oblast dat'!K7:K8","v":"[ jednotky ]"},{"$f":"'Vstupni oblast dat'!L7:L8","v":"[ jednotky ]"},{"$f":"'Vstupni oblast dat'!M7:M8","v":"[ jednotky ]"},{"$f":"'Vstupni oblast dat'!N7:N8","v":"[ jednotky ]"},{"$f":"'Vstupni oblast dat'!O7:O8","v":"[ jednotky ]"},{"$f":"'Vstupni oblast dat'!P7:P8","v":"[ jednotky ]"},{"$f":"'Vstupni oblast dat'!Q7:Q8","v":"[ jednotky ]"}]
[{"$f":"'Vstupni oblast dat'!A8","v":"jednotky"}]
[{"$f":"'Vstupni oblast dat'!A9","v":"jednotky"},null,null,null,{"$f":"1","v":1},null,{"$f":"IF('Vstupni oblast dat'!G9<>\"\", IF('Vstupni oblast dat'!G9=0,1E-23,'Vstupni oblast dat'!G9),0)","v":0},{"$f":"IF('Vstupni oblast dat'!H9<>\"\", IF('Vstupni oblast dat'!H9=0,1E-23,'Vstupni oblast dat'!H9),0)","v":0},{"$f":"IF('Vstupni oblast dat'!I9<>\"\", IF('Vstupni oblast dat'!I9=0,1E-23,'Vstupni oblast dat'!I9),0)","v":0},{"$f":"IF('Vstupni oblast dat'!J9<>\"\", IF('Vstupni oblast dat'!J9=0,1E-23,'Vstupni oblast dat'!J9),0)","v":0},{"$f":"IF('Vstupni oblast dat'!K9<>\"\", IF('Vstupni oblast dat'!K9=0,1E-23,'Vstupni oblast dat'!K9),0)","v":0},{"$f":"IF('Vstupni oblast dat'!L9<>\"\", IF('Vstupni oblast dat'!L9=0,1E-23,'Vstupni oblast dat'!L9),0)","v":0},{"$f":"IF('Vstupni oblast dat'!M9<>\"\", IF('Vstupni oblast dat'!M9=0,1E-23,'Vstupni oblast dat'!M9),0)","v":0},{"$f":"IF('Vstupni oblast dat'!N9<>\"\", IF('Vstupni oblast dat'!N9=0,1E-23,'Vstupni oblast dat'!N9),0)","v":0},{"$f":"IF('Vstupni oblast dat'!O9<>\"\", IF('Vstupni oblast dat'!O9=0,1E-23,'Vstupni oblast dat'!O9),0)","v":0},{"$f":"IF('Vstupni oblast dat'!P9<>\"\", IF('Vstupni oblast dat'!P9=0,1E-23,'Vstupni oblast dat'!P9),0)","v":0},{"$f":"IF('Vstupni oblast dat'!Q9<>\"\", IF('Vstupni oblast dat'!Q9=0,1E-23,'Vstupni oblast dat'!Q9),0)","v":0}]
[{"$f":"'Vstupni oblast dat'!A10","v":"jednotky"},null,null,null,{"$f":"E9+1","v":2},null,{"$f":"IF('Vstupni oblast dat'!G10<>\"\", IF('Vstupni oblast dat'!G10=0,1E-23,'Vstupni oblast dat'!G10),0)","v":0},{"$f":"IF('Vstupni oblast dat'!H10<>\"\", IF('Vstupni oblast dat'!H10=0,1E-23,'Vstupni oblast dat'!H10),0)","v":0},{"$f":"IF('Vstupni oblast dat'!I10<>\"\", IF('Vstupni oblast dat'!I10=0,1E-23,'Vstupni oblast dat'!I10),0)","v":0},{"$f":"IF('Vstupni oblast dat'!J10<>\"\", IF('Vstupni oblast dat'!J10=0,1E-23,'Vstupni oblast dat'!J10),0)","v":0},{"$f":"IF('Vstupni oblast dat'!K10<>\"\", IF('Vstupni oblast dat'!K10=0,1E-23,'Vstupni oblast dat'!K10),0)","v":0},{"$f":"IF('Vstupni oblast dat'!L10<>\"\", IF('Vstupni oblast dat'!L10=0,1E-23,'Vstupni oblast dat'!L10),0)","v":0},{"$f":"IF('Vstupni oblast dat'!M10<>\"\", IF('Vstupni oblast dat'!M10=0,1E-23,'Vstupni oblast dat'!M10),0)","v":0},{"$f":"IF('Vstupni oblast dat'!N10<>\"\", IF('Vstupni oblast dat'!N10=0,1E-23,'Vstupni oblast dat'!N10),0)","v":0},{"$f":"IF('Vstupni oblast dat'!O10<>\"\", IF('Vstupni oblast dat'!O10=0,1E-23,'Vstupni oblast dat'!O10),0)","v":0},{"$f":"IF('Vstupni oblast dat'!P10<>\"\", IF('Vstupni oblast dat'!P10=0,1E-23,'Vstupni oblast dat'!P10),0)","v":0},{"$f":"IF('Vstupni oblast dat'!Q10<>\"\", IF('Vstupni oblast dat'!Q10=0,1E-23,'Vstupni oblast dat'!Q10),0)","v":0}]
[{"$f":"'Vstupni oblast dat'!A11","v":"jednotky"},null,null,null,{"$f":"E10+1","v":3},null,{"$f":"IF('Vstupni oblast dat'!G11<>\"\", IF('Vstupni oblast dat'!G11=0,1E-23,'Vstupni oblast dat'!G11),0)","v":0},{"$f":"IF('Vstupni oblast dat'!H11<>\"\", IF('Vstupni oblast dat'!H11=0,1E-23,'Vstupni oblast dat'!H11),0)","v":0},{"$f":"IF('Vstupni oblast dat'!I11<>\"\", IF('Vstupni oblast dat'!I11=0,1E-23,'Vstupni oblast dat'!I11),0)","v":0},{"$f":"IF('Vstupni oblast dat'!J11<>\"\", IF('Vstupni oblast dat'!J11=0,1E-23,'Vstupni oblast dat'!J11),0)","v":0},{"$f":"IF('Vstupni oblast dat'!K11<>\"\", IF('Vstupni oblast dat'!K11=0,1E-23,'Vstupni oblast dat'!K11),0)","v":0},{"$f":"IF('Vstupni oblast dat'!L11<>\"\", IF('Vstupni oblast dat'!L11=0,1E-23,'Vstupni oblast dat'!L11),0)","v":0},{"$f":"IF('Vstupni oblast dat'!M11<>\"\", IF('Vstupni oblast dat'!M11=0,1E-23,'Vstupni oblast dat'!M11),0)","v":0},{"$f":"IF('Vstupni oblast dat'!N11<>\"\", IF('Vstupni oblast dat'!N11=0,1E-23,'Vstupni oblast dat'!N11),0)","v":0},{"$f":"IF('Vstupni oblast dat'!O11<>\"\", IF('Vstupni oblast dat'!O11=0,1E-23,'Vstupni oblast dat'!O11),0)","v":0},{"$f":"IF('Vstupni oblast dat'!P11<>\"\", IF('Vstupni oblast dat'!P11=0,1E-23,'Vstupni oblast dat'!P11),0)","v":0},{"$f":"IF('Vstupni oblast dat'!Q11<>\"\", IF('Vstupni oblast dat'!Q11=0,1E-23,'Vstupni oblast dat'!Q11),0)","v":0}]
[{"$f":"'Vstupni oblast dat'!A12","v":"jednotky"},null,null,null,4,null,{"$f":"IF('Vstupni oblast dat'!G12<>\"\", IF('Vstupni oblast dat'!G12=0,1E-23,'Vstupni oblast dat'!G12),0)","v":0},{"$f":"IF('Vstupni oblast dat'!H12<>\"\", IF('Vstupni oblast dat'!H12=0,1E-23,'Vstupni oblast dat'!H12),0)","v":0},{"$f":"IF('Vstupni oblast dat'!I12<>\"\", IF('Vstupni oblast dat'!I12=0,1E-23,'Vstupni oblast dat'!I12),0)","v":0},{"$f":"IF('Vstupni oblast dat'!J12<>\"\", IF('Vstupni oblast dat'!J12=0,1E-23,'Vstupni oblast dat'!J12),0)","v":0},{"$f":"IF('Vstupni oblast dat'!K12<>\"\", IF('Vstupni oblast dat'!K12=0,1E-23,'Vstupni oblast dat'!K12),0)","v":0},{"$f":"IF('Vstupni oblast dat'!L12<>\"\", IF('Vstupni oblast dat'!L12=0,1E-23,'Vstupni oblast dat'!L12),0)","v":0},{"$f":"IF('Vstupni oblast dat'!M12<>\"\", IF('Vstupni oblast dat'!M12=0,1E-23,'Vstupni oblast dat'!M12),0)","v":0},{"$f":"IF('Vstupni oblast dat'!N12<>\"\", IF('Vstupni oblast dat'!N12=0,1E-23,'Vstupni oblast dat'!N12),0)","v":0},{"$f":"IF('Vstupni oblast dat'!O12<>\"\", IF('Vstupni oblast dat'!O12=0,1E-23,'Vstupni oblast dat'!O12),0)","v":0},{"$f":"IF('Vstupni oblast dat'!P12<>\"\", IF('Vstupni oblast dat'!P12=0,1E-23,'Vstupni oblast dat'!P12),0)","v":0},{"$f":"IF('Vstupni oblast dat'!Q12<>\"\", IF('Vstupni oblast dat'!Q12=0,1E-23,'Vstupni oblast dat'!Q12),0)","v":0}]
[{"$f":"'Vstupni oblast dat'!A13","v":"jednotky"},null,null,null,5,null,{"$f":"IF('Vstupni oblast dat'!G13<>\"\", IF('Vstupni oblast dat'!G13=0,1E-23,'Vstupni oblast dat'!G13),0)","v":0},{"$f":"IF('Vstupni oblast dat'!H13<>\"\", IF('Vstupni oblast dat'!H13=0,1E-23,'Vstupni oblast dat'!H13),0)","v":0},{"$f":"IF('Vstupni oblast dat'!I13<>\"\", IF('Vstupni oblast dat'!I13=0,1E-23,'Vstupni oblast dat'!I13),0)","v":0},{"$f":"IF('Vstupni oblast dat'!J13<>\"\", IF('Vstupni oblast dat'!J13=0,1E-23,'Vstupni oblast dat'!J13),0)","v":0},{"$f":"IF('Vstupni oblast dat'!K13<>\"\", IF('Vstupni oblast dat'!K13=0,1E-23,'Vstupni oblast dat'!K13),0)","v":0},{"$f":"IF('Vstupni oblast dat'!L13<>\"\", IF('Vstupni oblast dat'!L13=0,1E-23,'Vstupni oblast dat'!L13),0)","v":0},{"$f":"IF('Vstupni oblast dat'!M13<>\"\", IF('Vstupni oblast dat'!M13=0,1E-23,'Vstupni oblast dat'!M13),0)","v":0},{"$f":"IF('Vstupni oblast dat'!N13<>\"\", IF('Vstupni oblast dat'!N13=0,1E-23,'Vstupni oblast dat'!N13),0)","v":0},{"$f":"IF('Vstupni oblast dat'!O13<>\"\", IF('Vstupni oblast dat'!O13=0,1E-23,'Vstupni oblast dat'!O13),0)","v":0},{"$f":"IF('Vstupni oblast dat'!P13<>\"\", IF('Vstupni oblast dat'!P13=0,1E-23,'Vstupni oblast dat'!P13),0)","v":0},{"$f":"IF('Vstupni oblast dat'!Q13<>\"\", IF('Vstupni oblast dat'!Q13=0,1E-23,'Vstupni oblast dat'!Q13),0)","v":0}]
[{"$f":"'Vstupni oblast dat'!A14","v":"jednotky"},null,null,null,6,null,{"$f":"IF('Vstupni oblast dat'!G14<>\"\", IF('Vstupni oblast dat'!G14=0,1E-23,'Vstupni oblast dat'!G14),0)","v":0},{"$f":"IF('Vstupni oblast dat'!H14<>\"\", IF('Vstupni oblast dat'!H14=0,1E-23,'Vstupni oblast dat'!H14),0)","v":0},{"$f":"IF('Vstupni oblast dat'!I14<>\"\", IF('Vstupni oblast dat'!I14=0,1E-23,'Vstupni oblast dat'!I14),0)","v":0},{"$f":"IF('Vstupni oblast dat'!J14<>\"\", IF('Vstupni oblast dat'!J14=0,1E-23,'Vstupni oblast dat'!J14),0)","v":0},{"$f":"IF('Vstupni oblast dat'!K14<>\"\", IF('Vstupni oblast dat'!K14=0,1E-23,'Vstupni oblast dat'!K14),0)","v":0},{"$f":"IF('Vstupni oblast dat'!L14<>\"\", IF('Vstupni oblast dat'!L14=0,1E-23,'Vstupni oblast dat'!L14),0)","v":0},{"$f":"IF('Vstupni oblast dat'!M14<>\"\", IF('Vstupni oblast dat'!M14=0,1E-23,'Vstupni oblast dat'!M14),0)","v":0},{"$f":"IF('Vstupni oblast dat'!N14<>\"\", IF('Vstupni oblast dat'!N14=0,1E-23,'Vstupni oblast dat'!N14),0)","v":0},{"$f":"IF('Vstupni oblast dat'!O14<>\"\", IF('Vstupni oblast dat'!O14=0,1E-23,'Vstupni oblast dat'!O14),0)","v":0},{"$f":"IF('Vstupni oblast dat'!P14<>\"\", IF('Vstupni oblast dat'!P14=0,1E-23,'Vstupni oblast dat'!P14),0)","v":0},{"$f":"IF('Vstupni oblast dat'!Q14<>\"\", IF('Vstupni oblast dat'!Q14=0,1E-23,'Vstupni oblast dat'!Q14),0)","v":0}]
[{"$f":"'Vstupni oblast dat'!A15","v":0},null,null,null,7,null,{"$f":"IF('Vstupni oblast dat'!G15<>\"\", IF('Vstupni oblast dat'!G15=0,1E-23,'Vstupni oblast dat'!G15),0)","v":0},{"$f":"IF('Vstupni oblast dat'!H15<>\"\", IF('Vstupni oblast dat'!H15=0,1E-23,'Vstupni oblast dat'!H15),0)","v":0},{"$f":"IF('Vstupni oblast dat'!I15<>\"\", IF('Vstupni oblast dat'!I15=0,1E-23,'Vstupni oblast dat'!I15),0)","v":0},{"$f":"IF('Vstupni oblast dat'!J15<>\"\", IF('Vstupni oblast dat'!J15=0,1E-23,'Vstupni oblast dat'!J15),0)","v":0},{"$f":"IF('Vstupni oblast dat'!K15<>\"\", IF('Vstupni oblast dat'!K15=0,1E-23,'Vstupni oblast dat'!K15),0)","v":0},{"$f":"IF('Vstupni oblast dat'!L15<>\"\", IF('Vstupni oblast dat'!L15=0,1E-23,'Vstupni oblast dat'!L15),0)","v":0},{"$f":"IF('Vstupni oblast dat'!M15<>\"\", IF('Vstupni oblast dat'!M15=0,1E-23,'Vstupni oblast dat'!M15),0)","v":0},{"$f":"IF('Vstupni oblast dat'!N15<>\"\", IF('Vstupni oblast dat'!N15=0,1E-23,'Vstupni oblast dat'!N15),0)","v":0},{"$f":"IF('Vstupni oblast dat'!O15<>\"\", IF('Vstupni oblast dat'!O15=0,1E-23,'Vstupni oblast dat'!O15),0)","v":0},{"$f":"IF('Vstupni oblast dat'!P15<>\"\", IF('Vstupni oblast dat'!P15=0,1E-23,'Vstupni oblast dat'!P15),0)","v":0},{"$f":"IF('Vstupni oblast dat'!Q15<>\"\", IF('Vstupni oblast dat'!Q15=0,1E-23,'Vstupni oblast dat'!Q15),0)","v":0}]
[{"$f":"'Vstupni oblast dat'!A16","v":0},null,null,null,8,null,{"$f":"IF('Vstupni oblast dat'!G16<>\"\", IF('Vstupni oblast dat'!G16=0,1E-23,'Vstupni oblast dat'!G16),0)","v":0},{"$f":"IF('Vstupni oblast dat'!H16<>\"\", IF('Vstupni oblast dat'!H16=0,1E-23,'Vstupni oblast dat'!H16),0)","v":0},{"$f":"IF('Vstupni oblast dat'!I16<>\"\", IF('Vstupni oblast dat'!I16=0,1E-23,'Vstupni oblast dat'!I16),0)","v":0},{"$f":"IF('Vstupni oblast dat'!J16<>\"\", IF('Vstupni oblast dat'!J16=0,1E-23,'Vstupni oblast dat'!J16),0)","v":0},{"$f":"IF('Vstupni oblast dat'!K16<>\"\", IF('Vstupni oblast dat'!K16=0,1E-23,'Vstupni oblast dat'!K16),0)","v":0},{"$f":"IF('Vstupni oblast dat'!L16<>\"\", IF('Vstupni oblast dat'!L16=0,1E-23,'Vstupni oblast dat'!L16),0)","v":0},{"$f":"IF('Vstupni oblast dat'!M16<>\"\", IF('Vstupni oblast dat'!M16=0,1E-23,'Vstupni oblast dat'!M16),0)","v":0},{"$f":"IF('Vstupni oblast dat'!N16<>\"\", IF('Vstupni oblast dat'!N16=0,1E-23,'Vstupni oblast dat'!N16),0)","v":0},{"$f":"IF('Vstupni oblast dat'!O16<>\"\", IF('Vstupni oblast dat'!O16=0,1E-23,'Vstupni oblast dat'!O16),0)","v":0},{"$f":"IF('Vstupni oblast dat'!P16<>\"\", IF('Vstupni oblast dat'!P16=0,1E-23,'Vstupni oblast dat'!P16),0)","v":0},{"$f":"IF('Vstupni oblast dat'!Q16<>\"\", IF('Vstupni oblast dat'!Q16=0,1E-23,'Vstupni oblast dat'!Q16),0)","v":0}]
[{"$f":"'Vstupni oblast dat'!A17","v":0},null,null,null,9,null,{"$f":"IF('Vstupni oblast dat'!G17<>\"\", IF('Vstupni oblast dat'!G17=0,1E-23,'Vstupni oblast dat'!G17),0)","v":0},{"$f":"IF('Vstupni oblast dat'!H17<>\"\", IF('Vstupni oblast dat'!H17=0,1E-23,'Vstupni oblast dat'!H17),0)","v":0},{"$f":"IF('Vstupni oblast dat'!I17<>\"\", IF('Vstupni oblast dat'!I17=0,1E-23,'Vstupni oblast dat'!I17),0)","v":0},{"$f":"IF('Vstupni oblast dat'!J17<>\"\", IF('Vstupni oblast dat'!J17=0,1E-23,'Vstupni oblast dat'!J17),0)","v":0},{"$f":"IF('Vstupni oblast dat'!K17<>\"\", IF('Vstupni oblast dat'!K17=0,1E-23,'Vstupni oblast dat'!K17),0)","v":0},{"$f":"IF('Vstupni oblast dat'!L17<>\"\", IF('Vstupni oblast dat'!L17=0,1E-23,'Vstupni oblast dat'!L17),0)","v":0},{"$f":"IF('Vstupni oblast dat'!M17<>\"\", IF('Vstupni oblast dat'!M17=0,1E-23,'Vstupni oblast dat'!M17),0)","v":0},{"$f":"IF('Vstupni oblast dat'!N17<>\"\", IF('Vstupni oblast dat'!N17=0,1E-23,'Vstupni oblast dat'!N17),0)","v":0},{"$f":"IF('Vstupni oblast dat'!O17<>\"\", IF('Vstupni oblast dat'!O17=0,1E-23,'Vstupni oblast dat'!O17),0)","v":0},{"$f":"IF('Vstupni oblast dat'!P17<>\"\", IF('Vstupni oblast dat'!P17=0,1E-23,'Vstupni oblast dat'!P17),0)","v":0},{"$f":"IF('Vstupni oblast dat'!Q17<>\"\", IF('Vstupni oblast dat'!Q17=0,1E-23,'Vstupni oblast dat'!Q17),0)","v":0}]
[{"$f":"G21","v":0},null,null,null,10,null,{"$f":"IF('Vstupni oblast dat'!G18<>\"\", IF('Vstupni oblast dat'!G18=0,1E-23,'Vstupni oblast dat'!G18),0)","v":0},{"$f":"IF('Vstupni oblast dat'!H18<>\"\", IF('Vstupni oblast dat'!H18=0,1E-23,'Vstupni oblast dat'!H18),0)","v":0},{"$f":"IF('Vstupni oblast dat'!I18<>\"\", IF('Vstupni oblast dat'!I18=0,1E-23,'Vstupni oblast dat'!I18),0)","v":0},{"$f":"IF('Vstupni oblast dat'!J18<>\"\", IF('Vstupni oblast dat'!J18=0,1E-23,'Vstupni oblast dat'!J18),0)","v":0},{"$f":"IF('Vstupni oblast dat'!K18<>\"\", IF('Vstupni oblast dat'!K18=0,1E-23,'Vstupni oblast dat'!K18),0)","v":0},{"$f":"IF('Vstupni oblast dat'!L18<>\"\", IF('Vstupni oblast dat'!L18=0,1E-23,'Vstupni oblast dat'!L18),0)","v":0},{"$f":"IF('Vstupni oblast dat'!M18<>\"\", IF('Vstupni oblast dat'!M18=0,1E-23,'Vstupni oblast dat'!M18),0)","v":0},{"$f":"IF('Vstupni oblast dat'!N18<>\"\", IF('Vstupni oblast dat'!N18=0,1E-23,'Vstupni oblast dat'!N18),0)","v":0},{"$f":"IF('Vstupni oblast dat'!O18<>\"\", IF('Vstupni oblast dat'!O18=0,1E-23,'Vstupni oblast dat'!O18),0)","v":0},{"$f":"IF('Vstupni oblast dat'!P18<>\"\", IF('Vstupni oblast dat'!P18=0,1E-23,'Vstupni oblast dat'!P18),0)","v":0},{"$f":"IF('Vstupni oblast dat'!Q18<>\"\", IF('Vstupni oblast dat'!Q18=0,1E-23,'Vstupni oblast dat'!Q18),0)","v":0}]
[0,null,null,null,11,null,{"$f":"IF('Vstupni oblast dat'!G19<>\"\", IF('Vstupni oblast dat'!G19=0,1E-23,'Vstupni oblast dat'!G19),0)","v":0},{"$f":"IF('Vstupni oblast dat'!H19<>\"\", IF('Vstupni oblast dat'!H19=0,1E-23,'Vstupni oblast dat'!H19),0)","v":0},{"$f":"IF('Vstupni oblast dat'!I19<>\"\", IF('Vstupni oblast dat'!I19=0,1E-23,'Vstupni oblast dat'!I19),0)","v":0},{"$f":"IF('Vstupni oblast dat'!J19<>\"\", IF('Vstupni oblast dat'!J19=0,1E-23,'Vstupni oblast dat'!J19),0)","v":0},{"$f":"IF('Vstupni oblast dat'!K19<>\"\", IF('Vstupni oblast dat'!K19=0,1E-23,'Vstupni oblast dat'!K19),0)","v":0},{"$f":"IF('Vstupni oblast dat'!L19<>\"\", IF('Vstupni oblast dat'!L19=0,1E-23,'Vstupni oblast dat'!L19),0)","v":0},{"$f":"IF('Vstupni oblast dat'!M19<>\"\", IF('Vstupni oblast dat'!M19=0,1E-23,'Vstupni oblast dat'!M19),0)","v":0},{"$f":"IF('Vstupni oblast dat'!N19<>\"\", IF('Vstupni oblast dat'!N19=0,1E-23,'Vstupni oblast dat'!N19),0)","v":0},{"$f":"IF('Vstupni oblast dat'!O19<>\"\", IF('Vstupni oblast dat'!O19=0,1E-23,'Vstupni oblast dat'!O19),0)","v":0},{"$f":"IF('Vstupni oblast dat'!P19<>\"\", IF('Vstupni oblast dat'!P19=0,1E-23,'Vstupni oblast dat'!P19),0)","v":0},{"$f":"IF('Vstupni oblast dat'!Q19<>\"\", IF('Vstupni oblast dat'!Q19=0,1E-23,'Vstupni oblast dat'!Q19),0)","v":0}]
[0,null,null,null,12,null,{"$f":"IF('Vstupni oblast dat'!G20<>\"\", IF('Vstupni oblast dat'!G20=0,1E-23,'Vstupni oblast dat'!G20),0)","v":0},{"$f":"IF('Vstupni oblast dat'!H20<>\"\", IF('Vstupni oblast dat'!H20=0,1E-23,'Vstupni oblast dat'!H20),0)","v":0},{"$f":"IF('Vstupni oblast dat'!I20<>\"\", IF('Vstupni oblast dat'!I20=0,1E-23,'Vstupni oblast dat'!I20),0)","v":0},{"$f":"IF('Vstupni oblast dat'!J20<>\"\", IF('Vstupni oblast dat'!J20=0,1E-23,'Vstupni oblast dat'!J20),0)","v":0},{"$f":"IF('Vstupni oblast dat'!K20<>\"\", IF('Vstupni oblast dat'!K20=0,1E-23,'Vstupni oblast dat'!K20),0)","v":0},{"$f":"IF('Vstupni oblast dat'!L20<>\"\", IF('Vstupni oblast dat'!L20=0,1E-23,'Vstupni oblast dat'!L20),0)","v":0},{"$f":"IF('Vstupni oblast dat'!M20<>\"\", IF('Vstupni oblast dat'!M20=0,1E-23,'Vstupni oblast dat'!M20),0)","v":0},{"$f":"IF('Vstupni oblast dat'!N20<>\"\", IF('Vstupni oblast dat'!N20=0,1E-23,'Vstupni oblast dat'!N20),0)","v":0},{"$f":"IF('Vstupni oblast dat'!O20<>\"\", IF('Vstupni oblast dat'!O20=0,1E-23,'Vstupni oblast dat'!O20),0)","v":0},{"$f":"IF('Vstupni oblast dat'!P20<>\"\", IF('Vstupni oblast dat'!P20=0,1E-23,'Vstupni oblast dat'!P20),0)","v":0},{"$f":"IF('Vstupni oblast dat'!Q20<>\"\", IF('Vstupni oblast dat'!Q20=0,1E-23,'Vstupni oblast dat'!Q20),0)","v":0}]
[null,null,null,null,13,null,{"$f":"IF('Vstupni oblast dat'!G21<>\"\", IF('Vstupni oblast dat'!G21=0,1E-23,'Vstupni oblast dat'!G21),0)","v":0},{"$f":"IF('Vstupni oblast dat'!H21<>\"\", IF('Vstupni oblast dat'!H21=0,1E-23,'Vstupni oblast dat'!H21),0)","v":0},{"$f":"IF('Vstupni oblast dat'!I21<>\"\", IF('Vstupni oblast dat'!I21=0,1E-23,'Vstupni oblast dat'!I21),0)","v":0},{"$f":"IF('Vstupni oblast dat'!J21<>\"\", IF('Vstupni oblast dat'!J21=0,1E-23,'Vstupni oblast dat'!J21),0)","v":0},{"$f":"IF('Vstupni oblast dat'!K21<>\"\", IF('Vstupni oblast dat'!K21=0,1E-23,'Vstupni oblast dat'!K21),0)","v":0},{"$f":"IF('Vstupni oblast dat'!L21<>\"\", IF('Vstupni oblast dat'!L21=0,1E-23,'Vstupni oblast dat'!L21),0)","v":0},{"$f":"IF('Vstupni oblast dat'!M21<>\"\", IF('Vstupni oblast dat'!M21=0,1E-23,'Vstupni oblast dat'!M21),0)","v":0},{"$f":"IF('Vstupni oblast dat'!N21<>\"\", IF('Vstupni oblast dat'!N21=0,1E-23,'Vstupni oblast dat'!N21),0)","v":0},{"$f":"IF('Vstupni oblast dat'!O21<>\"\", IF('Vstupni oblast dat'!O21=0,1E-23,'Vstupni oblast dat'!O21),0)","v":0},{"$f":"IF('Vstupni oblast dat'!P21<>\"\", IF('Vstupni oblast dat'!P21=0,1E-23,'Vstupni oblast dat'!P21),0)","v":0},{"$f":"IF('Vstupni oblast dat'!Q21<>\"\", IF('Vstupni oblast dat'!Q21=0,1E-23,'Vstupni oblast dat'!Q21),0)","v":0}]
[null,null,null,null,14,null,{"$f":"IF('Vstupni oblast dat'!G22<>\"\", IF('Vstupni oblast dat'!G22=0,1E-23,'Vstupni oblast dat'!G22),0)","v":0},{"$f":"IF('Vstupni oblast dat'!H22<>\"\", IF('Vstupni oblast dat'!H22=0,1E-23,'Vstupni oblast dat'!H22),0)","v":0},{"$f":"IF('Vstupni oblast dat'!I22<>\"\", IF('Vstupni oblast dat'!I22=0,1E-23,'Vstupni oblast dat'!I22),0)","v":0},{"$f":"IF('Vstupni oblast dat'!J22<>\"\", IF('Vstupni oblast dat'!J22=0,1E-23,'Vstupni oblast dat'!J22),0)","v":0},{"$f":"IF('Vstupni oblast dat'!K22<>\"\", IF('Vstupni oblast dat'!K22=0,1E-23,'Vstupni oblast dat'!K22),0)","v":0},{"$f":"IF('Vstupni oblast dat'!L22<>\"\", IF('Vstupni oblast dat'!L22=0,1E-23,'Vstupni oblast dat'!L22),0)","v":0},{"$f":"IF('Vstupni oblast dat'!M22<>\"\", IF('Vstupni oblast dat'!M22=0,1E-23,'Vstupni oblast dat'!M22),0)","v":0},{"$f":"IF('Vstupni oblast dat'!N22<>\"\", IF('Vstupni oblast dat'!N22=0,1E-23,'Vstupni oblast dat'!N22),0)","v":0},{"$f":"IF('Vstupni oblast dat'!O22<>\"\", IF('Vstupni oblast dat'!O22=0,1E-23,'Vstupni oblast dat'!O22),0)","v":0},{"$f":"IF('Vstupni oblast dat'!P22<>\"\", IF('Vstupni oblast dat'!P22=0,1E-23,'Vstupni oblast dat'!P22),0)","v":0},{"$f":"IF('Vstupni oblast dat'!Q22<>\"\", IF('Vstupni oblast dat'!Q22=0,1E-23,'Vstupni oblast dat'!Q22),0)","v":0}]
[null,null,null,null,15,null,{"$f":"IF('Vstupni oblast dat'!G23<>\"\", IF('Vstupni oblast dat'!G23=0,1E-23,'Vstupni oblast dat'!G23),0)","v":0},{"$f":"IF('Vstupni oblast dat'!H23<>\"\", IF('Vstupni oblast dat'!H23=0,1E-23,'Vstupni oblast dat'!H23),0)","v":0},{"$f":"IF('Vstupni oblast dat'!I23<>\"\", IF('Vstupni oblast dat'!I23=0,1E-23,'Vstupni oblast dat'!I23),0)","v":0},{"$f":"IF('Vstupni oblast dat'!J23<>\"\", IF('Vstupni oblast dat'!J23=0,1E-23,'Vstupni oblast dat'!J23),0)","v":0},{"$f":"IF('Vstupni oblast dat'!K23<>\"\", IF('Vstupni oblast dat'!K23=0,1E-23,'Vstupni oblast dat'!K23),0)","v":0},{"$f":"IF('Vstupni oblast dat'!L23<>\"\", IF('Vstupni oblast dat'!L23=0,1E-23,'Vstupni oblast dat'!L23),0)","v":0},{"$f":"IF('Vstupni oblast dat'!M23<>\"\", IF('Vstupni oblast dat'!M23=0,1E-23,'Vstupni oblast dat'!M23),0)","v":0},{"$f":"IF('Vstupni oblast dat'!N23<>\"\", IF('Vstupni oblast dat'!N23=0,1E-23,'Vstupni oblast dat'!N23),0)","v":0},{"$f":"IF('Vstupni oblast dat'!O23<>\"\", IF('Vstupni oblast dat'!O23=0,1E-23,'Vstupni oblast dat'!O23),0)","v":0},{"$f":"IF('Vstupni oblast dat'!P23<>\"\", IF('Vstupni oblast dat'!P23=0,1E-23,'Vstupni oblast dat'!P23),0)","v":0},{"$f":"IF('Vstupni oblast dat'!Q23<>\"\", IF('Vstupni oblast dat'!Q23=0,1E-23,'Vstupni oblast dat'!Q23),0)","v":0}]
[null,null,null,null,16,null,{"$f":"IF('Vstupni oblast dat'!G24<>\"\", IF('Vstupni oblast dat'!G24=0,1E-23,'Vstupni oblast dat'!G24),0)","v":0},{"$f":"IF('Vstupni oblast dat'!H24<>\"\", IF('Vstupni oblast dat'!H24=0,1E-23,'Vstupni oblast dat'!H24),0)","v":0},{"$f":"IF('Vstupni oblast dat'!I24<>\"\", IF('Vstupni oblast dat'!I24=0,1E-23,'Vstupni oblast dat'!I24),0)","v":0},{"$f":"IF('Vstupni oblast dat'!J24<>\"\", IF('Vstupni oblast dat'!J24=0,1E-23,'Vstupni oblast dat'!J24),0)","v":0},{"$f":"IF('Vstupni oblast dat'!K24<>\"\", IF('Vstupni oblast dat'!K24=0,1E-23,'Vstupni oblast dat'!K24),0)","v":0},{"$f":"IF('Vstupni oblast dat'!L24<>\"\", IF('Vstupni oblast dat'!L24=0,1E-23,'Vstupni oblast dat'!L24),0)","v":0},{"$f":"IF('Vstupni oblast dat'!M24<>\"\", IF('Vstupni oblast dat'!M24=0,1E-23,'Vstupni oblast dat'!M24),0)","v":0},{"$f":"IF('Vstupni oblast dat'!N24<>\"\", IF('Vstupni oblast dat'!N24=0,1E-23,'Vstupni oblast dat'!N24),0)","v":0},{"$f":"IF('Vstupni oblast dat'!O24<>\"\", IF('Vstupni oblast dat'!O24=0,1E-23,'Vstupni oblast dat'!O24),0)","v":0},{"$f":"IF('Vstupni oblast dat'!P24<>\"\", IF('Vstupni oblast dat'!P24=0,1E-23,'Vstupni oblast dat'!P24),0)","v":0},{"$f":"IF('Vstupni oblast dat'!Q24<>\"\", IF('Vstupni oblast dat'!Q24=0,1E-23,'Vstupni oblast dat'!Q24),0)","v":0}]
[null,null,null,null,17,null,{"$f":"IF('Vstupni oblast dat'!G25<>\"\", IF('Vstupni oblast dat'!G25=0,1E-23,'Vstupni oblast dat'!G25),0)","v":0},{"$f":"IF('Vstupni oblast dat'!H25<>\"\", IF('Vstupni oblast dat'!H25=0,1E-23,'Vstupni oblast dat'!H25),0)","v":0},{"$f":"IF('Vstupni oblast dat'!I25<>\"\", IF('Vstupni oblast dat'!I25=0,1E-23,'Vstupni oblast dat'!I25),0)","v":0},{"$f":"IF('Vstupni oblast dat'!J25<>\"\", IF('Vstupni oblast dat'!J25=0,1E-23,'Vstupni oblast dat'!J25),0)","v":0},{"$f":"IF('Vstupni oblast dat'!K25<>\"\", IF('Vstupni oblast dat'!K25=0,1E-23,'Vstupni oblast dat'!K25),0)","v":0},{"$f":"IF('Vstupni oblast dat'!L25<>\"\", IF('Vstupni oblast dat'!L25=0,1E-23,'Vstupni oblast dat'!L25),0)","v":0},{"$f":"IF('Vstupni oblast dat'!M25<>\"\", IF('Vstupni oblast dat'!M25=0,1E-23,'Vstupni oblast dat'!M25),0)","v":0},{"$f":"IF('Vstupni oblast dat'!N25<>\"\", IF('Vstupni oblast dat'!N25=0,1E-23,'Vstupni oblast dat'!N25),0)","v":0},{"$f":"IF('Vstupni oblast dat'!O25<>\"\", IF('Vstupni oblast dat'!O25=0,1E-23,'Vstupni oblast dat'!O25),0)","v":0},{"$f":"IF('Vstupni oblast dat'!P25<>\"\", IF('Vstupni oblast dat'!P25=0,1E-23,'Vstupni oblast dat'!P25),0)","v":0},{"$f":"IF('Vstupni oblast dat'!Q25<>\"\", IF('Vstupni oblast dat'!Q25=0,1E-23,'Vstupni oblast dat'!Q25),0)","v":0}]
[null,null,null,null,18,null,{"$f":"IF('Vstupni oblast dat'!G26<>\"\", IF('Vstupni oblast dat'!G26=0,1E-23,'Vstupni oblast dat'!G26),0)","v":0},{"$f":"IF('Vstupni oblast dat'!H26<>\"\", IF('Vstupni oblast dat'!H26=0,1E-23,'Vstupni oblast dat'!H26),0)","v":0},{"$f":"IF('Vstupni oblast dat'!I26<>\"\", IF('Vstupni oblast dat'!I26=0,1E-23,'Vstupni oblast dat'!I26),0)","v":0},{"$f":"IF('Vstupni oblast dat'!J26<>\"\", IF('Vstupni oblast dat'!J26=0,1E-23,'Vstupni oblast dat'!J26),0)","v":0},{"$f":"IF('Vstupni oblast dat'!K26<>\"\", IF('Vstupni oblast dat'!K26=0,1E-23,'Vstupni oblast dat'!K26),0)","v":0},{"$f":"IF('Vstupni oblast dat'!L26<>\"\", IF('Vstupni oblast dat'!L26=0,1E-23,'Vstupni oblast dat'!L26),0)","v":0},{"$f":"IF('Vstupni oblast dat'!M26<>\"\", IF('Vstupni oblast dat'!M26=0,1E-23,'Vstupni oblast dat'!M26),0)","v":0},{"$f":"IF('Vstupni oblast dat'!N26<>\"\", IF('Vstupni oblast dat'!N26=0,1E-23,'Vstupni oblast dat'!N26),0)","v":0},{"$f":"IF('Vstupni oblast dat'!O26<>\"\", IF('Vstupni oblast dat'!O26=0,1E-23,'Vstupni oblast dat'!O26),0)","v":0},{"$f":"IF('Vstupni oblast dat'!P26<>\"\", IF('Vstupni oblast dat'!P26=0,1E-23,'Vstupni oblast dat'!P26),0)","v":0},{"$f":"IF('Vstupni oblast dat'!Q26<>\"\", IF('Vstupni oblast dat'!Q26=0,1E-23,'Vstupni oblast dat'!Q26),0)","v":0}]
[null,null,null,null,19,null,{"$f":"IF('Vstupni oblast dat'!G27<>\"\", IF('Vstupni oblast dat'!G27=0,1E-23,'Vstupni oblast dat'!G27),0)","v":0},{"$f":"IF('Vstupni oblast dat'!H27<>\"\", IF('Vstupni oblast dat'!H27=0,1E-23,'Vstupni oblast dat'!H27),0)","v":0},{"$f":"IF('Vstupni oblast dat'!I27<>\"\", IF('Vstupni oblast dat'!I27=0,1E-23,'Vstupni oblast dat'!I27),0)","v":0},{"$f":"IF('Vstupni oblast dat'!J27<>\"\", IF('Vstupni oblast dat'!J27=0,1E-23,'Vstupni oblast dat'!J27),0)","v":0},{"$f":"IF('Vstupni oblast dat'!K27<>\"\", IF('Vstupni oblast dat'!K27=0,1E-23,'Vstupni oblast dat'!K27),0)","v":0},{"$f":"IF('Vstupni oblast dat'!L27<>\"\", IF('Vstupni oblast dat'!L27=0,1E-23,'Vstupni oblast dat'!L27),0)","v":0},{"$f":"IF('Vstupni oblast dat'!M27<>\"\", IF('Vstupni oblast dat'!M27=0,1E-23,'Vstupni oblast dat'!M27),0)","v":0},{"$f":"IF('Vstupni oblast dat'!N27<>\"\", IF('Vstupni oblast dat'!N27=0,1E-23,'Vstupni oblast dat'!N27),0)","v":0},{"$f":"IF('Vstupni oblast dat'!O27<>\"\", IF('Vstupni oblast dat'!O27=0,1E-23,'Vstupni oblast dat'!O27),0)","v":0},{"$f":"IF('Vstupni oblast dat'!P27<>\"\", IF('Vstupni oblast dat'!P27=0,1E-23,'Vstupni oblast dat'!P27),0)","v":0},{"$f":"IF('Vstupni oblast dat'!Q27<>\"\", IF('Vstupni oblast dat'!Q27=0,1E-23,'Vstupni oblast dat'!Q27),0)","v":0}]
[null,null,null,null,20,null,{"$f":"IF('Vstupni oblast dat'!G28<>\"\", IF('Vstupni oblast dat'!G28=0,1E-23,'Vstupni oblast dat'!G28),0)","v":0},{"$f":"IF('Vstupni oblast dat'!H28<>\"\", IF('Vstupni oblast dat'!H28=0,1E-23,'Vstupni oblast dat'!H28),0)","v":0},{"$f":"IF('Vstupni oblast dat'!I28<>\"\", IF('Vstupni oblast dat'!I28=0,1E-23,'Vstupni oblast dat'!I28),0)","v":0},{"$f":"IF('Vstupni oblast dat'!J28<>\"\", IF('Vstupni oblast dat'!J28=0,1E-23,'Vstupni oblast dat'!J28),0)","v":0},{"$f":"IF('Vstupni oblast dat'!K28<>\"\", IF('Vstupni oblast dat'!K28=0,1E-23,'Vstupni oblast dat'!K28),0)","v":0},{"$f":"IF('Vstupni oblast dat'!L28<>\"\", IF('Vstupni oblast dat'!L28=0,1E-23,'Vstupni oblast dat'!L28),0)","v":0},{"$f":"IF('Vstupni oblast dat'!M28<>\"\", IF('Vstupni oblast dat'!M28=0,1E-23,'Vstupni oblast dat'!M28),0)","v":0},{"$f":"IF('Vstupni oblast dat'!N28<>\"\", IF('Vstupni oblast dat'!N28=0,1E-23,'Vstupni oblast dat'!N28),0)","v":0},{"$f":"IF('Vstupni oblast dat'!O28<>\"\", IF('Vstupni oblast dat'!O28=0,1E-23,'Vstupni oblast dat'!O28),0)","v":0},{"$f":"IF('Vstupni oblast dat'!P28<>\"\", IF('Vstupni oblast dat'!P28=0,1E-23,'Vstupni oblast dat'!P28),0)","v":0},{"$f":"IF('Vstupni oblast dat'!Q28<>\"\", IF('Vstupni oblast dat'!Q28=0,1E-23,'Vstupni oblast dat'!Q28),0)","v":0}]
[null,null,null,null,21,null,{"$f":"IF('Vstupni oblast dat'!G29<>\"\", IF('Vstupni oblast dat'!G29=0,1E-23,'Vstupni oblast dat'!G29),0)","v":0},{"$f":"IF('Vstupni oblast dat'!H29<>\"\", IF('Vstupni oblast dat'!H29=0,1E-23,'Vstupni oblast dat'!H29),0)","v":0},{"$f":"IF('Vstupni oblast dat'!I29<>\"\", IF('Vstupni oblast dat'!I29=0,1E-23,'Vstupni oblast dat'!I29),0)","v":0},{"$f":"IF('Vstupni oblast dat'!J29<>\"\", IF('Vstupni oblast dat'!J29=0,1E-23,'Vstupni oblast dat'!J29),0)","v":0},{"$f":"IF('Vstupni oblast dat'!K29<>\"\", IF('Vstupni oblast dat'!K29=0,1E-23,'Vstupni oblast dat'!K29),0)","v":0},{"$f":"IF('Vstupni oblast dat'!L29<>\"\", IF('Vstupni oblast dat'!L29=0,1E-23,'Vstupni oblast dat'!L29),0)","v":0},{"$f":"IF('Vstupni oblast dat'!M29<>\"\", IF('Vstupni oblast dat'!M29=0,1E-23,'Vstupni oblast dat'!M29),0)","v":0},{"$f":"IF('Vstupni oblast dat'!N29<>\"\", IF('Vstupni oblast dat'!N29=0,1E-23,'Vstupni oblast dat'!N29),0)","v":0},{"$f":"IF('Vstupni oblast dat'!O29<>\"\", IF('Vstupni oblast dat'!O29=0,1E-23,'Vstupni oblast dat'!O29),0)","v":0},{"$f":"IF('Vstupni oblast dat'!P29<>\"\", IF('Vstupni oblast dat'!P29=0,1E-23,'Vstupni oblast dat'!P29),0)","v":0},{"$f":"IF('Vstupni oblast dat'!Q29<>\"\", IF('Vstupni oblast dat'!Q29=0,1E-23,'Vstupni oblast dat'!Q29),0)","v":0}]
[null,null,null,null,22,null,{"$f":"IF('Vstupni oblast dat'!G30<>\"\", IF('Vstupni oblast dat'!G30=0,1E-23,'Vstupni oblast dat'!G30),0)","v":0},{"$f":"IF('Vstupni oblast dat'!H30<>\"\", IF('Vstupni oblast dat'!H30=0,1E-23,'Vstupni oblast dat'!H30),0)","v":0},{"$f":"IF('Vstupni oblast dat'!I30<>\"\", IF('Vstupni oblast dat'!I30=0,1E-23,'Vstupni oblast dat'!I30),0)","v":0},{"$f":"IF('Vstupni oblast dat'!J30<>\"\", IF('Vstupni oblast dat'!J30=0,1E-23,'Vstupni oblast dat'!J30),0)","v":0},{"$f":"IF('Vstupni oblast dat'!K30<>\"\", IF('Vstupni oblast dat'!K30=0,1E-23,'Vstupni oblast dat'!K30),0)","v":0},{"$f":"IF('Vstupni oblast dat'!L30<>\"\", IF('Vstupni oblast dat'!L30=0,1E-23,'Vstupni oblast dat'!L30),0)","v":0},{"$f":"IF('Vstupni oblast dat'!M30<>\"\", IF('Vstupni oblast dat'!M30=0,1E-23,'Vstupni oblast dat'!M30),0)","v":0},{"$f":"IF('Vstupni oblast dat'!N30<>\"\", IF('Vstupni oblast dat'!N30=0,1E-23,'Vstupni oblast dat'!N30),0)","v":0},{"$f":"IF('Vstupni oblast dat'!O30<>\"\", IF('Vstupni oblast dat'!O30=0,1E-23,'Vstupni oblast dat'!O30),0)","v":0},{"$f":"IF('Vstupni oblast dat'!P30<>\"\", IF('Vstupni oblast dat'!P30=0,1E-23,'Vstupni oblast dat'!P30),0)","v":0},{"$f":"IF('Vstupni oblast dat'!Q30<>\"\", IF('Vstupni oblast dat'!Q30=0,1E-23,'Vstupni oblast dat'!Q30),0)","v":0}]
[null,null,null,null,23,null,{"$f":"IF('Vstupni oblast dat'!G31<>\"\", IF('Vstupni oblast dat'!G31=0,1E-23,'Vstupni oblast dat'!G31),0)","v":0},{"$f":"IF('Vstupni oblast dat'!H31<>\"\", IF('Vstupni oblast dat'!H31=0,1E-23,'Vstupni oblast dat'!H31),0)","v":0},{"$f":"IF('Vstupni oblast dat'!I31<>\"\", IF('Vstupni oblast dat'!I31=0,1E-23,'Vstupni oblast dat'!I31),0)","v":0},{"$f":"IF('Vstupni oblast dat'!J31<>\"\", IF('Vstupni oblast dat'!J31=0,1E-23,'Vstupni oblast dat'!J31),0)","v":0},{"$f":"IF('Vstupni oblast dat'!K31<>\"\", IF('Vstupni oblast dat'!K31=0,1E-23,'Vstupni oblast dat'!K31),0)","v":0},{"$f":"IF('Vstupni oblast dat'!L31<>\"\", IF('Vstupni oblast dat'!L31=0,1E-23,'Vstupni oblast dat'!L31),0)","v":0},{"$f":"IF('Vstupni oblast dat'!M31<>\"\", IF('Vstupni oblast dat'!M31=0,1E-23,'Vstupni oblast dat'!M31),0)","v":0},{"$f":"IF('Vstupni oblast dat'!N31<>\"\", IF('Vstupni oblast dat'!N31=0,1E-23,'Vstupni oblast dat'!N31),0)","v":0},{"$f":"IF('Vstupni oblast dat'!O31<>\"\", IF('Vstupni oblast dat'!O31=0,1E-23,'Vstupni oblast dat'!O31),0)","v":0},{"$f":"IF('Vstupni oblast dat'!P31<>\"\", IF('Vstupni oblast dat'!P31=0,1E-23,'Vstupni oblast dat'!P31),0)","v":0},{"$f":"IF('Vstupni oblast dat'!Q31<>\"\", IF('Vstupni oblast dat'!Q31=0,1E-23,'Vstupni oblast dat'!Q31),0)","v":0}]
[null,null,null,null,24,null,{"$f":"IF('Vstupni oblast dat'!G32<>\"\", IF('Vstupni oblast dat'!G32=0,1E-23,'Vstupni oblast dat'!G32),0)","v":0},{"$f":"IF('Vstupni oblast dat'!H32<>\"\", IF('Vstupni oblast dat'!H32=0,1E-23,'Vstupni oblast dat'!H32),0)","v":0},{"$f":"IF('Vstupni oblast dat'!I32<>\"\", IF('Vstupni oblast dat'!I32=0,1E-23,'Vstupni oblast dat'!I32),0)","v":0},{"$f":"IF('Vstupni oblast dat'!J32<>\"\", IF('Vstupni oblast dat'!J32=0,1E-23,'Vstupni oblast dat'!J32),0)","v":0},{"$f":"IF('Vstupni oblast dat'!K32<>\"\", IF('Vstupni oblast dat'!K32=0,1E-23,'Vstupni oblast dat'!K32),0)","v":0},{"$f":"IF('Vstupni oblast dat'!L32<>\"\", IF('Vstupni oblast dat'!L32=0,1E-23,'Vstupni oblast dat'!L32),0)","v":0},{"$f":"IF('Vstupni oblast dat'!M32<>\"\", IF('Vstupni oblast dat'!M32=0,1E-23,'Vstupni oblast dat'!M32),0)","v":0},{"$f":"IF('Vstupni oblast dat'!N32<>\"\", IF('Vstupni oblast dat'!N32=0,1E-23,'Vstupni oblast dat'!N32),0)","v":0},{"$f":"IF('Vstupni oblast dat'!O32<>\"\", IF('Vstupni oblast dat'!O32=0,1E-23,'Vstupni oblast dat'!O32),0)","v":0},{"$f":"IF('Vstupni oblast dat'!P32<>\"\", IF('Vstupni oblast dat'!P32=0,1E-23,'Vstupni oblast dat'!P32),0)","v":0},{"$f":"IF('Vstupni oblast dat'!Q32<>\"\", IF('Vstupni oblast dat'!Q32=0,1E-23,'Vstupni oblast dat'!Q32),0)","v":0}]
[null,null,null,null,25,null,{"$f":"IF('Vstupni oblast dat'!G33<>\"\", IF('Vstupni oblast dat'!G33=0,1E-23,'Vstupni oblast dat'!G33),0)","v":0},{"$f":"IF('Vstupni oblast dat'!H33<>\"\", IF('Vstupni oblast dat'!H33=0,1E-23,'Vstupni oblast dat'!H33),0)","v":0},{"$f":"IF('Vstupni oblast dat'!I33<>\"\", IF('Vstupni oblast dat'!I33=0,1E-23,'Vstupni oblast dat'!I33),0)","v":0},{"$f":"IF('Vstupni oblast dat'!J33<>\"\", IF('Vstupni oblast dat'!J33=0,1E-23,'Vstupni oblast dat'!J33),0)","v":0},{"$f":"IF('Vstupni oblast dat'!K33<>\"\", IF('Vstupni oblast dat'!K33=0,1E-23,'Vstupni oblast dat'!K33),0)","v":0},{"$f":"IF('Vstupni oblast dat'!L33<>\"\", IF('Vstupni oblast dat'!L33=0,1E-23,'Vstupni oblast dat'!L33),0)","v":0},{"$f":"IF('Vstupni oblast dat'!M33<>\"\", IF('Vstupni oblast dat'!M33=0,1E-23,'Vstupni oblast dat'!M33),0)","v":0},{"$f":"IF('Vstupni oblast dat'!N33<>\"\", IF('Vstupni oblast dat'!N33=0,1E-23,'Vstupni oblast dat'!N33),0)","v":0},{"$f":"IF('Vstupni oblast dat'!O33<>\"\", IF('Vstupni oblast dat'!O33=0,1E-23,'Vstupni oblast dat'!O33),0)","v":0},{"$f":"IF('Vstupni oblast dat'!P33<>\"\", IF('Vstupni oblast dat'!P33=0,1E-23,'Vstupni oblast dat'!P33),0)","v":0},{"$f":"IF('Vstupni oblast dat'!Q33<>\"\", IF('Vstupni oblast dat'!Q33=0,1E-23,'Vstupni oblast dat'!Q33),0)","v":0}]
[null,null,null,null,26,null,{"$f":"IF('Vstupni oblast dat'!G34<>\"\", IF('Vstupni oblast dat'!G34=0,1E-23,'Vstupni oblast dat'!G34),0)","v":0},{"$f":"IF('Vstupni oblast dat'!H34<>\"\", IF('Vstupni oblast dat'!H34=0,1E-23,'Vstupni oblast dat'!H34),0)","v":0},{"$f":"IF('Vstupni oblast dat'!I34<>\"\", IF('Vstupni oblast dat'!I34=0,1E-23,'Vstupni oblast dat'!I34),0)","v":0},{"$f":"IF('Vstupni oblast dat'!J34<>\"\", IF('Vstupni oblast dat'!J34=0,1E-23,'Vstupni oblast dat'!J34),0)","v":0},{"$f":"IF('Vstupni oblast dat'!K34<>\"\", IF('Vstupni oblast dat'!K34=0,1E-23,'Vstupni oblast dat'!K34),0)","v":0},{"$f":"IF('Vstupni oblast dat'!L34<>\"\", IF('Vstupni oblast dat'!L34=0,1E-23,'Vstupni oblast dat'!L34),0)","v":0},{"$f":"IF('Vstupni oblast dat'!M34<>\"\", IF('Vstupni oblast dat'!M34=0,1E-23,'Vstupni oblast dat'!M34),0)","v":0},{"$f":"IF('Vstupni oblast dat'!N34<>\"\", IF('Vstupni oblast dat'!N34=0,1E-23,'Vstupni oblast dat'!N34),0)","v":0},{"$f":"IF('Vstupni oblast dat'!O34<>\"\", IF('Vstupni oblast dat'!O34=0,1E-23,'Vstupni oblast dat'!O34),0)","v":0},{"$f":"IF('Vstupni oblast dat'!P34<>\"\", IF('Vstupni oblast dat'!P34=0,1E-23,'Vstupni oblast dat'!P34),0)","v":0},{"$f":"IF('Vstupni oblast dat'!Q34<>\"\", IF('Vstupni oblast dat'!Q34=0,1E-23,'Vstupni oblast dat'!Q34),0)","v":0}]
[null,null,null,null,27,null,{"$f":"IF('Vstupni oblast dat'!G35<>\"\", IF('Vstupni oblast dat'!G35=0,1E-23,'Vstupni oblast dat'!G35),0)","v":0},{"$f":"IF('Vstupni oblast dat'!H35<>\"\", IF('Vstupni oblast dat'!H35=0,1E-23,'Vstupni oblast dat'!H35),0)","v":0},{"$f":"IF('Vstupni oblast dat'!I35<>\"\", IF('Vstupni oblast dat'!I35=0,1E-23,'Vstupni oblast dat'!I35),0)","v":0},{"$f":"IF('Vstupni oblast dat'!J35<>\"\", IF('Vstupni oblast dat'!J35=0,1E-23,'Vstupni oblast dat'!J35),0)","v":0},{"$f":"IF('Vstupni oblast dat'!K35<>\"\", IF('Vstupni oblast dat'!K35=0,1E-23,'Vstupni oblast dat'!K35),0)","v":0},{"$f":"IF('Vstupni oblast dat'!L35<>\"\", IF('Vstupni oblast dat'!L35=0,1E-23,'Vstupni oblast dat'!L35),0)","v":0},{"$f":"IF('Vstupni oblast dat'!M35<>\"\", IF('Vstupni oblast dat'!M35=0,1E-23,'Vstupni oblast dat'!M35),0)","v":0},{"$f":"IF('Vstupni oblast dat'!N35<>\"\", IF('Vstupni oblast dat'!N35=0,1E-23,'Vstupni oblast dat'!N35),0)","v":0},{"$f":"IF('Vstupni oblast dat'!O35<>\"\", IF('Vstupni oblast dat'!O35=0,1E-23,'Vstupni oblast dat'!O35),0)","v":0},{"$f":"IF('Vstupni oblast dat'!P35<>\"\", IF('Vstupni oblast dat'!P35=0,1E-23,'Vstupni oblast dat'!P35),0)","v":0},{"$f":"IF('Vstupni oblast dat'!Q35<>\"\", IF('Vstupni oblast dat'!Q35=0,1E-23,'Vstupni oblast dat'!Q35),0)","v":0}]
[null,null,null,null,28,null,{"$f":"IF('Vstupni oblast dat'!G36<>\"\", IF('Vstupni oblast dat'!G36=0,1E-23,'Vstupni oblast dat'!G36),0)","v":0},{"$f":"IF('Vstupni oblast dat'!H36<>\"\", IF('Vstupni oblast dat'!H36=0,1E-23,'Vstupni oblast dat'!H36),0)","v":0},{"$f":"IF('Vstupni oblast dat'!I36<>\"\", IF('Vstupni oblast dat'!I36=0,1E-23,'Vstupni oblast dat'!I36),0)","v":0},{"$f":"IF('Vstupni oblast dat'!J36<>\"\", IF('Vstupni oblast dat'!J36=0,1E-23,'Vstupni oblast dat'!J36),0)","v":0},{"$f":"IF('Vstupni oblast dat'!K36<>\"\", IF('Vstupni oblast dat'!K36=0,1E-23,'Vstupni oblast dat'!K36),0)","v":0},{"$f":"IF('Vstupni oblast dat'!L36<>\"\", IF('Vstupni oblast dat'!L36=0,1E-23,'Vstupni oblast dat'!L36),0)","v":0},{"$f":"IF('Vstupni oblast dat'!M36<>\"\", IF('Vstupni oblast dat'!M36=0,1E-23,'Vstupni oblast dat'!M36),0)","v":0},{"$f":"IF('Vstupni oblast dat'!N36<>\"\", IF('Vstupni oblast dat'!N36=0,1E-23,'Vstupni oblast dat'!N36),0)","v":0},{"$f":"IF('Vstupni oblast dat'!O36<>\"\", IF('Vstupni oblast dat'!O36=0,1E-23,'Vstupni oblast dat'!O36),0)","v":0},{"$f":"IF('Vstupni oblast dat'!P36<>\"\", IF('Vstupni oblast dat'!P36=0,1E-23,'Vstupni oblast dat'!P36),0)","v":0},{"$f":"IF('Vstupni oblast dat'!Q36<>\"\", IF('Vstupni oblast dat'!Q36=0,1E-23,'Vstupni oblast dat'!Q36),0)","v":0}]
[null,null,null,null,{"$f":"E36+1","v":29},null,{"$f":"IF('Vstupni oblast dat'!G37<>\"\", IF('Vstupni oblast dat'!G37=0,1E-23,'Vstupni oblast dat'!G37),0)","v":0},{"$f":"IF('Vstupni oblast dat'!H37<>\"\", IF('Vstupni oblast dat'!H37=0,1E-23,'Vstupni oblast dat'!H37),0)","v":0},{"$f":"IF('Vstupni oblast dat'!I37<>\"\", IF('Vstupni oblast dat'!I37=0,1E-23,'Vstupni oblast dat'!I37),0)","v":0},{"$f":"IF('Vstupni oblast dat'!J37<>\"\", IF('Vstupni oblast dat'!J37=0,1E-23,'Vstupni oblast dat'!J37),0)","v":0},{"$f":"IF('Vstupni oblast dat'!K37<>\"\", IF('Vstupni oblast dat'!K37=0,1E-23,'Vstupni oblast dat'!K37),0)","v":0},{"$f":"IF('Vstupni oblast dat'!L37<>\"\", IF('Vstupni oblast dat'!L37=0,1E-23,'Vstupni oblast dat'!L37),0)","v":0},{"$f":"IF('Vstupni oblast dat'!M37<>\"\", IF('Vstupni oblast dat'!M37=0,1E-23,'Vstupni oblast dat'!M37),0)","v":0},{"$f":"IF('Vstupni oblast dat'!N37<>\"\", IF('Vstupni oblast dat'!N37=0,1E-23,'Vstupni oblast dat'!N37),0)","v":0},{"$f":"IF('Vstupni oblast dat'!O37<>\"\", IF('Vstupni oblast dat'!O37=0,1E-23,'Vstupni oblast dat'!O37),0)","v":0},{"$f":"IF('Vstupni oblast dat'!P37<>\"\", IF('Vstupni oblast dat'!P37=0,1E-23,'Vstupni oblast dat'!P37),0)","v":0},{"$f":"IF('Vstupni oblast dat'!Q37<>\"\", IF('Vstupni oblast dat'!Q37=0,1E-23,'Vstupni oblast dat'!Q37),0)","v":0}]
[null,null,null,null,{"$f":"E37+1","v":30},null,{"$f":"IF('Vstupni oblast dat'!G38<>\"\", IF('Vstupni oblast dat'!G38=0,1E-23,'Vstupni oblast dat'!G38),0)","v":0},{"$f":"IF('Vstupni oblast dat'!H38<>\"\", IF('Vstupni oblast dat'!H38=0,1E-23,'Vstupni oblast dat'!H38),0)","v":0},{"$f":"IF('Vstupni oblast dat'!I38<>\"\", IF('Vstupni oblast dat'!I38=0,1E-23,'Vstupni oblast dat'!I38),0)","v":0},{"$f":"IF('Vstupni oblast dat'!J38<>\"\", IF('Vstupni oblast dat'!J38=0,1E-23,'Vstupni oblast dat'!J38),0)","v":0},{"$f":"IF('Vstupni oblast dat'!K38<>\"\", IF('Vstupni oblast dat'!K38=0,1E-23,'Vstupni oblast dat'!K38),0)","v":0},{"$f":"IF('Vstupni oblast dat'!L38<>\"\", IF('Vstupni oblast dat'!L38=0,1E-23,'Vstupni oblast dat'!L38),0)","v":0},{"$f":"IF('Vstupni oblast dat'!M38<>\"\", IF('Vstupni oblast dat'!M38=0,1E-23,'Vstupni oblast dat'!M38),0)","v":0},{"$f":"IF('Vstupni oblast dat'!N38<>\"\", IF('Vstupni oblast dat'!N38=0,1E-23,'Vstupni oblast dat'!N38),0)","v":0},{"$f":"IF('Vstupni oblast dat'!O38<>\"\", IF('Vstupni oblast dat'!O38=0,1E-23,'Vstupni oblast dat'!O38),0)","v":0},{"$f":"IF('Vstupni oblast dat'!P38<>\"\", IF('Vstupni oblast dat'!P38=0,1E-23,'Vstupni oblast dat'!P38),0)","v":0},{"$f":"IF('Vstupni oblast dat'!Q38<>\"\", IF('Vstupni oblast dat'!Q38=0,1E-23,'Vstupni oblast dat'!Q38),0)","v":0}]